Workbook

Sheet Summary and Index
A1: OPC 015192
A2: FPL RC-16
A4: Summary of Model
A8: Basis for Rate Design Methodology:
A9: FPL calculated the 2018 Subsequent year base rate increases in the Utilities International system (UI) to improve rate design automation and apply a more consistent approach to rate
A10: calculations across rate classes. Both the revenue forecast, which provides rates and forecasted units by bill component for rate design, and the cost of service, which provides
A11: present revenues and revenue requirements by rate class to the rate design model, were calculated in UI. Data transfers within UI reduced the opportunity for errors that could have
A12: occurred in a manual Excel model. The majority of rate design MFRs were produced in the UI system including MFRs: A-2, A-3, E-5, E-8, E-12, E-13a, E-13c, E-13d, and portions
A13: of E-14. To provide support for calculations and to test the results of the UI system, rate design was also calculated in this Excel workbook. The results produced in UI vs. those
A14: produced in this Excel workbook, are shown on each rate class tab and are identical. Other than this workpaper, there are no MFRs with formulas in Excel as the logic for the
A15: calculations resides in the UI system. However, the calculations and supporting workpapers included in this Excel model are identical to the data in UI that was used to produce
A16: the MFRs.
A19: Index of Workpapers in this Model:
A20: Title | B20: Source | C20: Description
A21: Customers by Rate Class | B21: Utilities International (UI) system | C21: Number of customers by rate class from the Revenue Forecast
A22: Sales (kWh) by Rate Class | B22: Utilities International (UI) system | C22: Sales (kWh) by rate class from the Revenue Forecast
A23: Clause Revenues by Rate Class | B23: Revenues are from the Detailed Jurisdictional NOI. Allocations are based on the 2018 rate case load forecast. | C23: Clause revenues by rate class are used in the E-8 for total revenue percent increase calculations.
A24: CILC & CDR Credits | B24: Beginning credit balances are from the 2012 Settlement agreement. Sales are from the 2018 sales forecast. GBRA percentages are per the Canaveral, Riviera and Port Everglades GBRA filings. | C24: CILC credit decreases are calculated using a dollars per kWh methodology. CDR credits are based on pre-settlement credits increased using GBRA percentages.
A25: Billing Determinants (Units) | B25: Utilities International (UI) system | C25: Billing determinants by rate code and bill component are from the Revenue Forecast.
A26: Present Base Rates by Rate Code | B26: West County Energy Center 3 (WCEC3) rate calculations. | C26: Present base rates by rate code are April 2016 base rates adjusted to move WCEC3 increases from the capacity rate to the base rate as of January 2018.
A27: E-8 Parity Analysis | B27: Excel version of E-8 workpaper calculation. | C27: The E-8 workpaper uses information from the MFR E-1 as a starting point to calculate revenue requirements by rate class for rate design. It demonstrates the entire process of adjusting revenue requirements for Commission guidelines and rounding issues, through calculating final parity after rate design. The results from this workpaper are used to update the following MFRs: E-5, E-8 and portions of E-14.
A28: E-6b Proposed Equalized | B28: Data from MFR E-6b, Attachment 2. | C28: The E-6b proposed equalized workpaper includes revenue requirements and units from the MFR E-6b Attachment 2 that are used for customer charge and CDR adder calculations as well as for comparisons of final rates to unit costs. The data is also used to calculate the proposed metered lighting rates.
A29: Rate Class tabs | B29: Excel versions of rate calculations from UI. | C29: Each tab shows the rate calculations for that particular rate class. To replicate rate calculations consistently in an automated system, FPL increased rates based on a percent increase methodology with adjustments for revenue neutrality and rounding. This method continues the practice of including some demand costs in the energy charge for standard and TOU rates by maintaining the relationship between demand and energy reflected in current rates. The percent increase is rate class specific based on Cost of Service allocations as adjusted in the E-8 workpaper. There are separate calculations in UI (and in this workbook) for optional rate revenue neutrality and the SDTR rates. There is also a separate calculation for the Standby & Interruptible (SST/ISST) rates as they must be developed using a specific formula.
A30: SL-1M & SL-2M Metered Rate WP | B30: Excel calculations of the new metered rates. | C30: The SL-1M and SL-2M proposed metered lighting rates were calculated manually in Excel in these workpapers using the MFR E-6b workpaper.
A31: Transformer Credit | B31: TX Rating from FPL Distribution; Distribution Secondary Transformer costs from the MFR E-6b. | C31: The ratio of Distribution Secondary transformer costs to the total TX rating is used to calculate the transformation credit.
A32: CDR Credit | B32: Current CDR Credit; CDR Credit prior to 2012 Settlement; and GBRA % increases. | C32: The proposed CDR Credit is calculated by adjusting the pre-settlement CDR credit by the 2013 to 2016 GBRA % increases.

Sheet Customers by Rate Class
A1: OPC 015193
A2: FPL RC-16
A4: Rate Design (UI Report) | C4: Year 2018
A5: CILC-1D | B5: C:[Customer Bills] | C5: 3336
A6: CILC-1G | B6: C:[Customer Bills] | C6: 744
A7: CILC-1T | B7: C:[Customer Bills] | C7: 204
A8: GS(T)-1 | B8: C:[Customer Bills] | C8: 5232902
A9: GSCU-1 | B9: C:[Customer Bills] | C9: 132123
A10: GSD(T)-1 | B10: C:[Customer Bills] | C10: 1296800
A11: GSLD(T)-1 | B11: C:[Customer Bills] | C11: 37565
A12: GSLD(T)-2 | B12: C:[Customer Bills] | C12: 1898
A13: GSLD(T)-3 | B13: C:[Customer Bills] | C13: 84
A14: MET | B14: C:[Customer Bills] | C14: 324
A15: OL-1 | B15: C:[Customer Bills] | C15: 64458
A16: OS-2 | B16: C:[Customer Bills] | C16: 2171
A17: RS(T)-1 | B17: C:[Customer Bills] | C17: 52983652
A18: SL-1 | B18: C:[Customer Bills] | C18: 110887
A19: SL-2 | B19: C:[Customer Bills] | C19: 11208
A20: SST-DST | B20: C:[Customer Bills] | C20: 72
A21: SST-TST | B21: C:[Customer Bills] | C21: 168
B22: C:[Customer Bills] | C22: =SUM(C5:C21) -> 59878596

Sheet Sales kWh by Rate Class
A1: OPC 015194
A2: FPL RC-16
A4: Rate Design (UI Report)
C5: Year 2018
A7: CILC-1D | B7: E:[kWh Sales] | C7: 2686957625
A8: CILC-1G | B8: E:[kWh Sales] | C8: 101508535
A9: CILC-1T | B9: E:[kWh Sales] | C9: 1532421391
A10: GS(T)-1 | B10: E:[kWh Sales] | C10: 6001791085
A11: GSCU-1 | B11: E:[kWh Sales] | C11: 71082174
A12: GSD(T)-1 | B12: E:[kWh Sales] | C12: 25949742256
A13: GSLD(T)-1 | B13: E:[kWh Sales] | C13: 10561627481
A14: GSLD(T)-2 | B14: E:[kWh Sales] | C14: 2511431587
A15: GSLD(T)-3 | B15: E:[kWh Sales] | C15: 175782528
A16: MET | B16: E:[kWh Sales] | C16: 91241144
A17: OL-1 | B17: E:[kWh Sales] | C17: 97314768
A18: OS-2 | B18: E:[kWh Sales] | C18: 10819466
A19: RS(T)-1 | B19: E:[kWh Sales] | C19: 57361215879
A20: SL-1 | B20: E:[kWh Sales] | C20: 570960264
A21: SL-2 | B21: E:[kWh Sales] | C21: 33455312
A22: SST-DST | B22: E:[kWh Sales] | C22: 11856926
A23: SST-TST | B23: E:[kWh Sales] | C23: 89667754
C24: =SUM(C7:C23) -> 107858876175

Sheet Clause Revenues by Rate Class
A1: OPC 015195
A2: FPL RC-16
A4: Clause Revenues by Rate Class for E-8 (Source: Clauses for E-8 Based on NOI)
A6: Rate Class | C6: 2018 Clause Revenues by Rate Class | G6: 2018 Sales Forecast
A7: CILC-1D | C7: 115009352.8 | G7: 2686957625
A8: CILC-1G | C8: 4344851.144 | G8: 101508535
A9: CILC-1T | C9: 64417931.69 | G9: 1532421391
A10: GS(T)-1 | C10: 268699438.2 | G10: 6001791085
A11: GSCU-1 | C11: 3025701.136 | G11: 71082174
A12: GSD(T)-1 | C12: 1139148192 | G12: 25949742256
A13: GSLD(T)-1 | C13: 462823846.6 | G13: 10561627481
A14: GSLD(T)-2 | C14: 107448764.1 | G14: 2511431587
A15: GSLD(T)-3 | C15: 7421866.02 | G15: 175782528
A16: MET | C16: 4002358.279 | G16: 91241144
A17: OL-1 | C17: 4777183.454 | G17: 97314768
A18: OS-2 | C18: 515905.7154 | G18: 10819466
A19: RS(T)-1 | C19: 2602418790 | G19: 57361215879
A20: SL-1 | C20: 28028448.12 | G20: 570960264
A21: SL-2 | C21: 1424066.961 | G21: 33455312
A22: SST-DST | C22: 860801.6157 | G22: 11856926
A23: SST-TST | C23: 3399965.417 | G23: 89667754
C25: =SUM(C7:C23) -> 4817767463 | G25: =SUM(G7:G23) -> 107858876175

Sheet CILC & CDR Credits
B1: OPC 015196
B2: FPL RC-16
B5: Calculation to Remove Increased Credits
B9: CILC
G10: Add GBRAs | M10: 2018
G11: Canaveral | I11: Riviera | K11: Port Everglades
C12: Increased Credits | D12: 2013 kWh | E12: per kWh | G12: 0.03475 | I12: 0.04566 | K12: 0.03899 | M12: Sales | N12: Revenue
B15: CILC-1D | C15: 9406552.54 | D15: 2861942625 | E15: =ROUND(C15/D15,5) -> 0.00329 | G15: =ROUND(E15*(1+G$12),5) -> 0.0034 | I15: =ROUND(G15*(1+I$12),5) -> 0.00356 | K15: =ROUND(I15*(1+K$12),5) -> 0.0037 | M15: =708452199+1978505426 -> 2686957625 | N15: =K15*M15 -> 9941743.213
B17: CILC-1G | C17: =574.6341835248*1000 -> 574634.1835 | D17: 177616369 | E17: =ROUND(C17/D17,5) -> 0.00324 | G17: =ROUND(E17*(1+G$12),5) -> 0.00335 | I17: =ROUND(G17*(1+I$12),5) -> 0.0035 | K17: =ROUND(I17*(1+K$12),5) -> 0.00364 | M17: =27690941+73817594 -> 101508535 | N17: =K17*M17 -> 369491.0674
B19: CILC-1T | C19: =4129.349248724*1000 -> 4129349.249 | D19: 1341477742 | E19: =ROUND(C19/D19,5) -> 0.00308 | G19: =ROUND(E19*(1+G$12),5) -> 0.00319 | I19: =ROUND(G19*(1+I$12),5) -> 0.00334 | K19: =ROUND(I19*(1+K$12),5) -> 0.00347 | M19: =388803907+1143617484 -> 1532421391 | N19: =K19*M19 -> 5317502.227
B22: CDR Credit | G22: Add GBRAs | M22: 2018
C23: Presettlement Credit | D23: Settlement Credit | E23: Credit Increase | G23: Canaveral | I23: Riviera | K23: Port Everglades
C24: per kW | D24: per kW | E24: (Diff) | G24: 0.03475 | I24: 0.04566 | K24: 0.03899 | M24: LC kW | N24: Revenue
B25: GSD(T)-1 | C25: 4.68 | D25: 7.3 | E25: =D25-C25 -> 2.62 | G25: =ROUND(E25*(1+G$12),2) -> 2.71 | I25: =ROUND(G25*(1+I$12),2) -> 2.83 | K25: =ROUND(I25*(1+K$12),2) -> 2.94 | M25: 773417.5804 | N25: =K25*M25 -> 2273847.686
B27: GSLD(T)-1 | C27: 4.68 | D27: 7.3 | E27: =D27-C27 -> 2.62 | G27: =ROUND(E27*(1+G$12),2) -> 2.71 | I27: =ROUND(G27*(1+I$12),2) -> 2.83 | K27: =ROUND(I27*(1+K$12),2) -> 2.94 | M27: 1458842.426 | N27: =K27*M27 -> 4288996.734
B29: GSLD(T)-2 | C29: 4.68 | D29: 7.3 | E29: =D29-C29 -> 2.62 | G29: =ROUND(E29*(1+G$12),2) -> 2.71 | I29: =ROUND(G29*(1+I$12),2) -> 2.83 | K29: =ROUND(I29*(1+K$12),2) -> 2.94 | M29: 375641.2034 | N29: =K29*M29 -> 1104385.138
B32: Totals | N32: =N15+N17+N19+N25+N27+N29 -> 23295966.06

Sheet Billing Determinants - Units
A1: OPC 015197
A2: FPL RC-16
A4: Rate Design (UI Report)
B5: Dec 2018
A9: OL-1 - 11Non-Fuel Energy | B9: 97314768
A10: OL-1 - 11Customer | B10: 64458
A11: OL-1 - 11Non-Fuel Energy | B11: 0
A12: OL-1 - 11First 1,000 kWh | B12: 0
A13: OL-1 - 11All additional kWh | B13: 0
A14: OL-1 - 11Non-Fuel Energy - On Peak | B14: 0
A15: OL-1 - 11Non-Fuel Energy - Off Peak | B15: 0
A16: OL-1 - 11Non-Fuel Energy - Seasonal On Peak | B16: 0
A17: OL-1 - 11Non-Fuel Energy - Seasonal Off Peak | B17: 0
A18: OL-1 - 11Non-Fuel Energy - Non-Seasonal | B18: 0
A19: OL-1 - 11Non-Fuel Energy - Non-Seasonal On Peak | B19: 0
A20: OL-1 - 11Non-Fuel Energy - Non-Seasonal Off Peak | B20: 0
A21: OL-1 - 11Demand | B21: 0
A22: OL-1 - 11Demand - Maximum | B22: 0
A23: OL-1 - 11Demand - On-Peak | B23: 0
A24: OL-1 - 11Demand - Seasonal On-Peak | B24: 0
A25: OL-1 - 11Demand - Non-Seasonal | B25: 0
A26: OL-1 - 11Demand - Non-Seasonal On Peak | B26: 0
A27: OL-1 - 11Load Control On-Peak | B27: 0
A28: OL-1 - 11Firm On-Peak | B28: 0
A29: OL-1 - 11Distribution CSD | B29: 0
A30: OL-1 - 11Reservation/kW | B30: 0
A31: OL-1 - 11Daily Demand | B31: 0
A32: OL-1 - 11CSD - Max On-Peak | B32: 0
A33: OL-1 - 11Curtailable Credit | B33: 0
A34: OL-1 - 11Unmetered Service Credit | B34: 0
A35: OL-1 - 11Transformation Credit | B35: 0
A36: OL-1 - 11Adder | B36: 0
A37: OL-1 - 11Credit | B37: 0
A38: 145 - RTR-1 - Residential Time of Use Rider
A40: RTR-1 - 145Non-Fuel Energy | B40: 3311269
A41: RTR-1 - 145Customer | B41: 1404
A42: RTR-1 - 145Non-Fuel Energy | B42: 0
A43: RTR-1 - 145First 1,000 kWh | B43: 1362905
A44: RTR-1 - 145All additional kWh | B44: 1948364
A45: RTR-1 - 145Non-Fuel Energy - On Peak | B45: 718999
A46: RTR-1 - 145Non-Fuel Energy - Off Peak | B46: 2592270
A47: RTR-1 - 145Non-Fuel Energy - Seasonal On Peak | B47: 0
A48: RTR-1 - 145Non-Fuel Energy - Seasonal Off Peak | B48: 0
A49: RTR-1 - 145Non-Fuel Energy - Non-Seasonal | B49: 0
A50: RTR-1 - 145Non-Fuel Energy - Non-Seasonal On Peak | B50: 0
A51: RTR-1 - 145Non-Fuel Energy - Non-Seasonal Off Peak | B51: 0
A52: RTR-1 - 145Demand | B52: 0
A53: RTR-1 - 145Demand - Maximum | B53: 0
A54: RTR-1 - 145Demand - On-Peak | B54: 0
A55: RTR-1 - 145Demand - Seasonal On-Peak | B55: 0
A56: RTR-1 - 145Demand - Non-Seasonal | B56: 0
A57: RTR-1 - 145Demand - Non-Seasonal On Peak | B57: 0
A58: RTR-1 - 145Load Control On-Peak | B58: 0
A59: RTR-1 - 145Firm On-Peak | B59: 0
A60: RTR-1 - 145Distribution CSD | B60: 0
A61: RTR-1 - 145Reservation/kW | B61: 0
A62: RTR-1 - 145Daily Demand | B62: 0
A63: RTR-1 - 145CSD - Max On-Peak | B63: 0
A64: RTR-1 - 145Curtailable Credit | B64: 0
A65: RTR-1 - 145Unmetered Service Credit | B65: 0
A66: RTR-1 - 145Transformation Credit | B66: 0
A67: RTR-1 - 145Adder | B67: 0
A68: RTR-1 - 145Credit | B68: 0
A69: 164 - HLFT-2 - High Load Factor TOU (500 - 1,999 kW)
A71: HLFT - 164Non-Fuel Energy | B71: 1425352856
A72: HLFT - 164Customer | B72: 3472
A73: HLFT - 164Non-Fuel Energy | B73: 0
A74: HLFT - 164First 1,000 kWh | B74: 0
A75: HLFT - 164All additional kWh | B75: 0
A76: HLFT - 164Non-Fuel Energy - On Peak | B76: 361256508
A77: HLFT - 164Non-Fuel Energy - Off Peak | B77: 1064096348
A78: HLFT - 164Non-Fuel Energy - Seasonal On Peak | B78: 0
A79: HLFT - 164Non-Fuel Energy - Seasonal Off Peak | B79: 0
A80: HLFT - 164Non-Fuel Energy - Non-Seasonal | B80: 0
A81: HLFT - 164Non-Fuel Energy - Non-Seasonal On Peak | B81: 0
A82: HLFT - 164Non-Fuel Energy - Non-Seasonal Off Peak | B82: 0
A83: HLFT - 164Demand | B83: 0
A84: HLFT - 164Demand - Maximum | B84: 2490186
A85: HLFT - 164Demand - On-Peak | B85: 2348012
A86: HLFT - 164Demand - Seasonal On-Peak | B86: 0
A87: HLFT - 164Demand - Non-Seasonal | B87: 0
A88: HLFT - 164Demand - Non-Seasonal On Peak | B88: 0
A89: HLFT - 164Load Control On-Peak | B89: 0
A90: HLFT - 164Firm On-Peak | B90: 0
A91: HLFT - 164Distribution CSD | B91: 0
A92: HLFT - 164Reservation/kW | B92: 0
A93: HLFT - 164Daily Demand | B93: 0
A94: HLFT - 164CSD - Max On-Peak | B94: 0
A95: HLFT - 164Curtailable Credit | B95: 0
A96: HLFT - 164Unmetered Service Credit | B96: 0
A97: HLFT - 164Transformation Credit | B97: 82834
A98: HLFT - 164Adder | B98: 53
A99: HLFT - 164Credit | B99: 20729.19674
A100: 165 - HLFT-3 - High Load Factor TOU (2,000+ kW)
A102: HLFT - 165Non-Fuel Energy | B102: 873151797
A103: HLFT - 165Customer | B103: 420
A104: HLFT - 165Non-Fuel Energy | B104: 0
A105: HLFT - 165First 1,000 kWh | B105: 0
A106: HLFT - 165All additional kWh | B106: 0
A107: HLFT - 165Non-Fuel Energy - On Peak | B107: 224711506
A108: HLFT - 165Non-Fuel Energy - Off Peak | B108: 648440291
A109: HLFT - 165Non-Fuel Energy - Seasonal On Peak | B109: 0
A110: HLFT - 165Non-Fuel Energy - Seasonal Off Peak | B110: 0
A111: HLFT - 165Non-Fuel Energy - Non-Seasonal | B111: 0
A112: HLFT - 165Non-Fuel Energy - Non-Seasonal On Peak | B112: 0
A113: HLFT - 165Non-Fuel Energy - Non-Seasonal Off Peak | B113: 0
A114: HLFT - 165Demand | B114: 0
A115: HLFT - 165Demand - Maximum | B115: 1453443
A116: HLFT - 165Demand - On-Peak | B116: 1421334
A117: HLFT - 165Demand - Seasonal On-Peak | B117: 0
A118: HLFT - 165Demand - Non-Seasonal | B118: 0
A119: HLFT - 165Demand - Non-Seasonal On Peak | B119: 0
A120: HLFT - 165Load Control On-Peak | B120: 0
A121: HLFT - 165Firm On-Peak | B121: 0
A122: HLFT - 165Distribution CSD | B122: 0
A123: HLFT - 165Reservation/kW | B123: 0
A124: HLFT - 165Daily Demand | B124: 0
A125: HLFT - 165CSD - Max On-Peak | B125: 0
A126: HLFT - 165Curtailable Credit | B126: 0
A127: HLFT - 165Unmetered Service Credit | B127: 0
A128: HLFT - 165Transformation Credit | B128: 179012
A129: HLFT - 165Adder | B129: 24
A130: HLFT - 165Credit | B130: 18162.48248
A131: 168 - GSCU-1 - General Service Constant Usage
A133: GSCU - 168Non-Fuel Energy | B133: 71082174
A134: GSCU - 168Customer | B134: 132123
A135: GSCU - 168Non-Fuel Energy | B135: 71082174
A136: GSCU - 168First 1,000 kWh | B136: 0
A137: GSCU - 168All additional kWh | B137: 0
A138: GSCU - 168Non-Fuel Energy - On Peak | B138: 0
A139: GSCU - 168Non-Fuel Energy - Off Peak | B139: 0
A140: GSCU - 168Non-Fuel Energy - Seasonal On Peak | B140: 0
A141: GSCU - 168Non-Fuel Energy - Seasonal Off Peak | B141: 0
A142: GSCU - 168Non-Fuel Energy - Non-Seasonal | B142: 0
A143: GSCU - 168Non-Fuel Energy - Non-Seasonal On Peak | B143: 0
A144: GSCU - 168Non-Fuel Energy - Non-Seasonal Off Peak | B144: 0
A145: GSCU - 168Demand | B145: 0
A146: GSCU - 168Demand - Maximum | B146: 0
A147: GSCU - 168Demand - On-Peak | B147: 0
A148: GSCU - 168Demand - Seasonal On-Peak | B148: 0
A149: GSCU - 168Demand - Non-Seasonal | B149: 0
A150: GSCU - 168Demand - Non-Seasonal On Peak | B150: 0
A151: GSCU - 168Load Control On-Peak | B151: 0
A152: GSCU - 168Firm On-Peak | B152: 0
A153: GSCU - 168Distribution CSD | B153: 0
A154: GSCU - 168Reservation/kW | B154: 0
A155: GSCU - 168Daily Demand | B155: 0
A156: GSCU - 168CSD - Max On-Peak | B156: 0
A157: GSCU - 168Curtailable Credit | B157: 0
A158: GSCU - 168Unmetered Service Credit | B158: 0
A159: GSCU - 168Transformation Credit | B159: 0
A160: GSCU - 168Adder | B160: 0
A161: GSCU - 168Credit | B161: 0
A162: 170 - HLFT-1 - High Load Factor TOU (21 - 499 kW)
A164: HLFT - 170Non-Fuel Energy | B164: 1094400172
A165: HLFT - 170Customer | B165: 10572
A166: HLFT - 170Non-Fuel Energy | B166: 0
A167: HLFT - 170First 1,000 kWh | B167: 0
A168: HLFT - 170All additional kWh | B168: 0
A169: HLFT - 170Non-Fuel Energy - On Peak | B169: 270300406
A170: HLFT - 170Non-Fuel Energy - Off Peak | B170: 824099766
A171: HLFT - 170Non-Fuel Energy - Seasonal On Peak | B171: 0
A172: HLFT - 170Non-Fuel Energy - Seasonal Off Peak | B172: 0
A173: HLFT - 170Non-Fuel Energy - Non-Seasonal | B173: 0
A174: HLFT - 170Non-Fuel Energy - Non-Seasonal On Peak | B174: 0
A175: HLFT - 170Non-Fuel Energy - Non-Seasonal Off Peak | B175: 0
A176: HLFT - 170Demand | B176: 0
A177: HLFT - 170Demand - Maximum | B177: 1921682
A178: HLFT - 170Demand - On-Peak | B178: 1766146
A179: HLFT - 170Demand - Seasonal On-Peak | B179: 0
A180: HLFT - 170Demand - Non-Seasonal | B180: 0
A181: HLFT - 170Demand - Non-Seasonal On Peak | B181: 0
A182: HLFT - 170Load Control On-Peak | B182: 0
A183: HLFT - 170Firm On-Peak | B183: 0
A184: HLFT - 170Distribution CSD | B184: 0
A185: HLFT - 170Reservation/kW | B185: 0
A186: HLFT - 170Daily Demand | B186: 0
A187: HLFT - 170CSD - Max On-Peak | B187: 0
A188: HLFT - 170Curtailable Credit | B188: 0
A189: HLFT - 170Unmetered Service Credit | B189: 0
A190: HLFT - 170Transformation Credit | B190: 6555
A191: HLFT - 170Adder | B191: 364
A192: HLFT - 170Credit | B192: 125397.6204
A193: 19 - OS-2 - Sports Field Service
A195: OS-2 -19Non-Fuel Energy | B195: 10819466
A196: OS-2 -19Customer | B196: 2171
A197: OS-2 -19Non-Fuel Energy | B197: 10819466
A198: OS-2 -19First 1,000 kWh | B198: 0
A199: OS-2 -19All additional kWh | B199: 0
A200: OS-2 -19Non-Fuel Energy - On Peak | B200: 0
A201: OS-2 -19Non-Fuel Energy - Off Peak | B201: 0
A202: OS-2 -19Non-Fuel Energy - Seasonal On Peak | B202: 0
A203: OS-2 -19Non-Fuel Energy - Seasonal Off Peak | B203: 0
A204: OS-2 -19Non-Fuel Energy - Non-Seasonal | B204: 0
A205: OS-2 -19Non-Fuel Energy - Non-Seasonal On Peak | B205: 0
A206: OS-2 -19Non-Fuel Energy - Non-Seasonal Off Peak | B206: 0
A207: OS-2 -19Demand | B207: 0
A208: OS-2 -19Demand - Maximum | B208: 0
A209: OS-2 -19Demand - On-Peak | B209: 0
A210: OS-2 -19Demand - Seasonal On-Peak | B210: 0
... 913 more rows

Sheet Present Base Rates by Rate Code
A1: OPC 015198
A2: FPL RC-16
A4: Business Base Rates - Current from Revenue Forecast | B4: 0 | C4: Rate class | D4: Customer Charge | E4: Demand Charge $/kW | F4: On-Peak Demand Charge $/kW | G4: Firm On-Peak Demand Charge $/kW | H4: Maximum Demand Charge $/kW | I4: Energy Charges $/kWh | J4: On-Peak Energy Charge $/kWh | K4: Off-Peak Energy Charge $/kWh | S4: Curtailment Credit ($/kW) | T4: Commercial / Industrial Demand Rider Credit (CDR) ($/kW) | U4: Commercial / Industrial Demand Rider (CDR) Adder per Customer | V4: Transformation Rider Credit ($/kW) | W4: Min Demand | X4: Max Demand | Y4: TOU CHECK | Z4: Rate Code | AA4: Rate Class
Y5: NTOU
A6: General Service Non-Demand (GS-1) | C6: GST-1 | D6: 7.75 | E6: 0 | F6: 0 | G6: 0 | H6: 0 | I6: 0.0551 | J6: 0 | K6: 0 | S6: =ROUND(,2) -> 0 | T6: 0 | U6: 0 | V6: 0 | Y6: NTOU | Z6: 68 | AA6: GST-1 | AB6: General Service Non-Demand (GS-1)
A7: General Service Non-Demand-TOU (GST-1) | C7: GST-1 | D7: 15.21 | E7: 0 | F7: 0 | G7: 0 | H7: 0 | I7: 0 | J7: 0.10037 | K7: 0.03484 | S7: 0 | T7: 0 | U7: 0 | V7: 0 | Y7: TOU | Z7: 69 | AA7: GST-1 | AB7: General Service Non-Demand-TOU (GST-1)
A8: General Service Constant Usage (GSCU-1) | D8: 13.5 | E8: 0 | F8: 0 | G8: 0 | H8: 0 | I8: 0.03443 | J8: 0 | K8: 0 | S8: 0 | T8: 0 | U8: 0 | V8: 0 | Y8: NTOU | Z8: 168 | AA8: GST-1 | AB8: General Service Constant Usage (GSCU-1)
D9: 0 | E9: 0 | F9: 0 | G9: 0 | H9: 0 | I9: 0 | J9: 0 | K9: 0 | S9: 0 | T9: 0 | U9: 0 | V9: 0 | Y9: NTOU | AB9: 0
A10: General Service Demand (GSD-1) | B10: CDR eligible | C10: GSDT-1 | D10: 20.24 | E10: 8.68 | F10: 0 | G10: 0 | H10: 0 | I10: 0.01934 | J10: 0 | K10: 0 | S10: =ROUND(,2) -> 0 | T10: =ROUND('CDR Credit'!$D$7,2) -> -8.2 | U10: =ROUND(81.15*(1+3.899%),2) -> 84.31 | V10: =ROUND(-0.29*(1+3.899%),2) -> -0.3 | W10: 21 | X10: 499 | Y10: NTOU | Z10: 72 | AA10: GSDT-1 | AB10: General Service Demand (GSD-1)
A11: C/I Load Control, General Service [CILC-1(G)] | D11: 112.42 | E11: 3.82 | F11: 2.52 | G11: 9.28 | H11: 0 | I11: 0 | J11: 0.01425 | K11: 0.01425 | S11: 0 | T11: =ROUND('CDR Credit'!$D$7,2) -> -8.2 | U11: 84.31 | V11: -0.3 | W11: 200 | X11: 999999999999 | Y11: TOU | Z11: 56 | AA11: CILC | AB11: C/I Load Control, General Service [CILC-1(G)]
A12: General Service Demand-TOU (GSDT-1) | B12: CDR eligible | C12: GSDT-1 | D12: 26.97 | E12: 0 | F12: 8.68 | G12: 0 | H12: 0 | I12: 0 | J12: 0.04114 | K12: 0.01045 | S12: 0 | T12: =ROUND('CDR Credit'!$D$7,2) -> -8.2 | U12: 84.31 | V12: -0.3 | W12: 21 | X12: 499 | Y12: TOU | Z12: 70 | AA12: GSDT-1 | AB12: General Service Demand-TOU (GSDT-1)
A13: High Load Factor-TOU (21 - 499 kW) | B13: CDR eligible | C13: GSDT-1 | D13: 26.97 | E13: 0 | F13: 10.25 | G13: 0 | H13: 2.14 | I13: 0 | J13: 0.01617 | K13: 0.01045 | S13: 0 | T13: =ROUND('CDR Credit'!$D$7,2) -> -8.2 | U13: 84.31 | V13: -0.3 | W13: 21 | X13: 499 | Y13: TOU | Z13: 170 | AA13: GSDT-1 | AB13: High Load Factor-TOU (21 - 499 kW)
A14: Seasonal Demand TOU Rider (SDTR) (21-499 kW) Option A Summer | B14: Jun-Sep | C14: GSDT-1 | D14: 26.97 | E14: 0 | F14: 10.02 | G14: 0 | H14: 0 | I14: 0 | J14: 0.07278 | K14: 0.01371 | S14: 0 | T14: =ROUND('CDR Credit'!$D$7,2) -> -8.2 | U14: 84.31 | V14: -0.3 | W14: 21 | X14: 499 | Y14: TOU | AB14: Seasonal Demand TOU Rider (SDTR) (21-499 kW) Option A Summer
A15: Seasonal Demand TOU Rider (SDTR) (21-499 kW) Option A Winter | B15: Jan-May/Oct-Dec | C15: GSDT-1 | D15: 26.97 | E15: 8.34 | F15: 0 | G15: 0 | H15: 0 | I15: 0.01934 | J15: 0 | K15: 0 | S15: 0 | T15: =ROUND('CDR Credit'!$D$7,2) -> -8.2 | U15: 84.31 | V15: -0.3 | W15: 21 | X15: 499 | Y15: NTOU | AB15: Seasonal Demand TOU Rider (SDTR) (21-499 kW) Option A Winter
A16: Seasonal Demand TOU Rider (SDTR) (21-499 kW) Option B Summer | B16: Jun-Sep | C16: GSDT-1 | D16: 26.97 | E16: 0 | F16: 10.02 | G16: 0 | H16: 0 | I16: 0 | J16: 0.07278 | K16: 0.01371 | S16: 0 | T16: =ROUND('CDR Credit'!$D$7,2) -> -8.2 | U16: 84.31 | V16: -0.3 | W16: 21 | X16: 499 | Y16: TOU | AB16: Seasonal Demand TOU Rider (SDTR) (21-499 kW) Option B Summer
A17: Seasonal Demand TOU Rider (SDTR) (21-499 kW) Option B Winter | B17: Jan-May/Oct-Dec | C17: GSDT-1 | D17: 26.97 | E17: 0 | F17: 8.34 | G17: 0 | H17: 0 | I17: 0 | J17: 0.03881 | K17: 0.01371 | S17: 0 | T17: =ROUND('CDR Credit'!$D$7,2) -> -8.2 | U17: 84.31 | V17: -0.3 | W17: 21 | X17: 499 | Y17: TOU | AB17: Seasonal Demand TOU Rider (SDTR) (21-499 kW) Option B Winter
D18: 0 | E18: 0 | F18: 0 | G18: 0 | H18: 0 | I18: 0 | J18: 0 | K18: 0 | S18: 0 | T18: =ROUND(,2) -> 0 | U18: =ROUND(,2) -> 0 | V18: =ROUND(,2) -> 0 | Y18: NTOU | AB18: 0
A19: General Service Large Demand (GSLD-1) | B19: CDR eligible | C19: GSLDT-1 | D19: 61.83 | E19: 9.94 | F19: 0 | G19: 0 | H19: 0 | I19: 0.0143 | J19: 0 | K19: 0 | S19: 0 | T19: =ROUND('CDR Credit'!$D$7,2) -> -8.2 | U19: =ROUND(135.25*(1+3.899%),2) -> 140.52 | V19: =ROUND(-0.29*(1+3.899%),2) -> -0.3 | W19: 500 | X19: 1999 | Y19: NTOU | Z19: 62 | AA19: GSLDT-1 | AB19: General Service Large Demand (GSLD-1)
A20: General Service Large Demand-TOU (GSLDT-1) | B20: CDR eligible | C20: GSLDT-1 | D20: 61.83 | E20: 0 | F20: 9.94 | G20: 0 | H20: 0 | I20: 0 | J20: 0.0238 | K20: 0.01035 | S20: 0 | T20: =ROUND('CDR Credit'!$D$7,2) -> -8.2 | U20: 140.52 | V20: -0.3 | W20: 500 | X20: 1999 | Y20: TOU | Z20: 64 | AA20: GSLDT-1 | AB20: General Service Large Demand-TOU (GSLDT-1)
A21: Curtailable Service (CS-1) | C21: GSLDT-1 | D21: 89.93 | E21: 9.94 | F21: 0 | G21: 0 | H21: 0 | I21: 0.0143 | J21: 0 | K21: 0 | S21: =ROUND(-1.86*(1+3.899%),2) -> -1.93 | T21: =ROUND('CDR Credit'!$D$7,2) -> -8.2 | U21: 140.52 | V21: -0.3 | W21: 500 | X21: 1999 | Y21: NTOU | Z21: 73 | AA21: GSLDT-1 | AB21: Curtailable Service (CS-1)
A22: Curtailable Service-TOU (CST-1) | C22: GSLDT-1 | D22: 89.93 | E22: 0 | F22: 9.94 | G22: 0 | H22: 0 | I22: 0 | J22: 0.0238 | K22: 0.01035 | S22: =ROUND(-1.86*(1+3.899%),2) -> -1.93 | T22: =ROUND('CDR Credit'!$D$7,2) -> -8.2 | U22: 140.52 | V22: -0.3 | W22: 500 | X22: 1999 | Y22: TOU | Z22: 74 | AA22: GSLDT-1 | AB22: Curtailable Service-TOU (CST-1)
A23: High Load Factor-TOU (500 - 1,999 kW) | B23: CDR eligible | C23: GSLDT-1 | D23: 61.83 | E23: 0 | F23: 10.5 | G23: 0 | H23: 2.24 | I23: 0 | J23: 0.00885 | K23: 0.00885 | S23: =ROUND(,2) -> 0 | T23: =ROUND('CDR Credit'!$D$7,2) -> -8.2 | U23: 140.52 | V23: -0.3 | W23: 500 | X23: 1999 | Y23: TOU | Z23: 164 | AA23: GSLDT-1 | AB23: High Load Factor-TOU (500 - 1,999 kW)
A24: Seasonal Demand TOU Rider (SDTR) (500 - 1,999 kW) Option A Summer | B24: Jun-Sep | C24: GSLDT-1 | D24: 61.83 | E24: 0 | F24: 10.94 | G24: 0 | H24: 0 | I24: 0 | J24: 0.0504 | K24: 0.01035 | S24: 0 | T24: =ROUND('CDR Credit'!$D$7,2) -> -8.2 | U24: 140.52 | V24: -0.3 | W24: 500 | X24: 1999 | Y24: TOU | AB24: Seasonal Demand TOU Rider (SDTR) (500 - 1,999 kW) Option A Summer
A25: Seasonal Demand TOU Rider (SDTR) (500 - 1,999 kW) Option A Winter | B25: Jan-May/Oct-Dec | C25: GSLDT-1 | D25: 61.83 | E25: 9.59 | F25: 0 | G25: 0 | H25: 0 | I25: 0.0143 | J25: 0 | K25: 0 | S25: 0 | T25: =ROUND('CDR Credit'!$D$7,2) -> -8.2 | U25: 140.52 | V25: -0.3 | W25: 500 | X25: 1999 | Y25: NTOU | AB25: Seasonal Demand TOU Rider (SDTR) (500 - 1,999 kW) Option A Winter
A26: Seasonal Demand TOU Rider (SDTR) (500 - 1,999 kW) Option B Summer | B26: Jun-Sep | C26: GSLDT-1 | D26: 61.83 | E26: 0 | F26: 10.94 | G26: 0 | H26: 0 | I26: 0 | J26: 0.0504 | K26: 0.01035 | S26: 0 | T26: =ROUND('CDR Credit'!$D$7,2) -> -8.2 | U26: 140.52 | V26: -0.3 | W26: 500 | X26: 1999 | Y26: TOU | AB26: Seasonal Demand TOU Rider (SDTR) (500 - 1,999 kW) Option B Summer
A27: Seasonal Demand TOU Rider (SDTR) (500 - 1,999 kW) Option B Winter | B27: Jan-May/Oct-Dec | C27: GSLDT-1 | D27: 61.83 | E27: 0 | F27: 9.59 | G27: 0 | H27: 0 | I27: 0 | J27: 0.0271 | K27: 0.01035 | S27: 0 | T27: =ROUND('CDR Credit'!$D$7,2) -> -8.2 | U27: 140.52 | V27: -0.3 | W27: 500 | X27: 1999 | Y27: TOU | AB27: Seasonal Demand TOU Rider (SDTR) (500 - 1,999 kW) Option B Winter
D28: 0 | E28: 0 | F28: 0 | G28: 0 | H28: 0 | I28: 0 | J28: 0 | K28: 0 | S28: 0 | T28: =ROUND(,2) -> 0 | U28: =ROUND(,2) -> 0 | V28: =ROUND(,2) -> 0 | Y28: NTOU | AB28: 0
A29: General Service Large Demand (GSLD-2) | B29: CDR eligible | C29: GSLDT-2 | D29: 219.22 | E29: 10.26 | F29: 0 | G29: 0 | H29: 0 | I29: 0.01287 | J29: 0 | K29: 0 | S29: 0 | T29: =ROUND('CDR Credit'!$D$7,2) -> -8.2 | U29: =ROUND(54.1*(1+3.899%),2) -> 56.21 | V29: =ROUND(-0.29*(1+3.899%),2) -> -0.3 | W29: 2000 | X29: 999999999999 | Y29: NTOU | Z29: 63 | AA29: GSLDT-2 | AB29: General Service Large Demand (GSLD-2)
A30: General Service Large Demand-TOU (GSLDT-2) | B30: CDR eligible | C30: GSLDT-2 | D30: 219.22 | E30: 0 | F30: 10.26 | G30: 0 | H30: 0 | I30: 0 | J30: 0.02041 | K30: 0.01003 | S30: 0 | T30: =ROUND('CDR Credit'!$D$7,2) -> -8.2 | U30: 56.21 | V30: -0.3 | W30: 2000 | X30: 999999999999 | Y30: TOU | Z30: 65 | AA30: GSLDT-2 | AB30: General Service Large Demand-TOU (GSLDT-2)
A31: Curtailable Service (CS-2) | C31: GSLDT-2 | D31: 247.32 | E31: 10.26 | F31: 0 | G31: 0 | H31: 0 | I31: 0.01287 | J31: 0 | K31: 0 | S31: =ROUND(-1.86*(1+3.899%),2) -> -1.93 | T31: =ROUND('CDR Credit'!$D$7,2) -> -8.2 | U31: 56.21 | V31: -0.3 | W31: 2000 | X31: 999999999999 | Y31: NTOU | Z31: 71 | AA31: GSLDT-2 | AB31: Curtailable Service (CS-2)
A32: Curtailable Service-TOU (CST-2) | C32: GSLDT-2 | D32: 247.32 | E32: 0 | F32: 10.26 | G32: 0 | H32: 0 | I32: 0 | J32: 0.02041 | K32: 0.01003 | S32: =ROUND(-1.86*(1+3.899%),2) -> -1.93 | T32: =ROUND('CDR Credit'!$D$7,2) -> -8.2 | U32: 56.21 | V32: -0.3 | W32: 2000 | X32: 999999999999 | Y32: TOU | Z32: 75 | AA32: GSLDT-2 | AB32: Curtailable Service-TOU (CST-2)
A33: High Load Factor-TOU (2,000 kW or more) | B33: CDR eligible | C33: GSLDT-2 | D33: 219.22 | E33: 0 | F33: 10.49 | G33: 0 | H33: 2.24 | I33: 0 | J33: 0.0081 | K33: 0.0081 | S33: =ROUND(,2) -> 0 | T33: =ROUND('CDR Credit'!$D$7,2) -> -8.2 | U33: 56.21 | V33: -0.3 | W33: 2000 | X33: 999999999999 | Y33: TOU | Z33: 165 | AA33: GSLDT-2 | AB33: High Load Factor-TOU (2,000 kW or more)
A34: Seasonal Demand TOU Rider (SDTR) (2,000 kW and greater) Option A Summer | B34: Jun-Sep | C34: GSLDT-2 | D34: 219.22 | E34: 0 | F34: 11.27 | G34: 0 | H34: 0 | I34: 0 | J34: 0.04302 | K34: 0.00931 | S34: 0 | T34: =ROUND('CDR Credit'!$D$7,2) -> -8.2 | U34: 56.21 | V34: -0.3 | W34: 2000 | X34: 999999999999 | Y34: TOU | AB34: Seasonal Demand TOU Rider (SDTR) (2,000 kW and greater) Option A Summer
A35: Seasonal Demand TOU Rider (SDTR) (2,000 kW and greater) Option A Winter | B35: Jan-May/Oct-Dec | C35: GSLDT-2 | D35: 219.22 | E35: 10.03 | F35: 0 | G35: 0 | H35: 0 | I35: 0.01287 | J35: 0 | K35: 0 | S35: 0 | T35: =ROUND('CDR Credit'!$D$7,2) -> -8.2 | U35: 56.21 | V35: -0.3 | W35: 2000 | X35: 999999999999 | Y35: NTOU | AB35: Seasonal Demand TOU Rider (SDTR) (2,000 kW and greater) Option A Winter
A36: Seasonal Demand TOU Rider (SDTR) (2,000 kW and greater) Option B Summer | B36: Jun-Sep | C36: GSLDT-2 | D36: 219.22 | E36: 0 | F36: 11.27 | G36: 0 | H36: 0 | I36: 0 | J36: 0.04302 | K36: 0.00931 | S36: 0 | T36: =ROUND('CDR Credit'!$D$7,2) -> -8.2 | U36: 56.21 | V36: -0.3 | W36: 2000 | X36: 999999999999 | Y36: TOU | AB36: Seasonal Demand TOU Rider (SDTR) (2,000 kW and greater) Option B Summer
A37: Seasonal Demand TOU Rider (SDTR) (2,000 kW and greater) Option B Winter | B37: Jan-May/Oct-Dec | C37: GSLDT-2 | D37: 219.22 | E37: 0 | F37: 10.03 | G37: 0 | H37: 0 | I37: 0 | J37: 0.02479 | K37: 0.00931 | S37: 0 | T37: =ROUND('CDR Credit'!$D$7,2) -> -8.2 | U37: 56.21 | V37: -0.3 | W37: 2000 | X37: 999999999999 | Y37: TOU | AB37: Seasonal Demand TOU Rider (SDTR) (2,000 kW and greater) Option B Winter
D38: 0 | E38: 0 | F38: 0 | G38: 0 | H38: 0 | I38: 0 | J38: 0 | K38: 0 | S38: 0 | T38: =ROUND(,2) -> 0 | U38: =ROUND(,2) -> 0 | V38: =ROUND(,2) -> 0 | Y38: NTOU | AB38: 0
A39: General Service Large Demand (GSLD-3) | B39: CDR eligible | C39: GSLDT-3 | D39: 1620.94 | E39: 8.18 | F39: 0 | G39: 0 | H39: 0 | I39: 0.00932 | J39: 0 | K39: 0 | S39: 0 | T39: =ROUND('CDR Credit'!$D$7,2) -> -8.2 | U39: =ROUND(513.95*(1+3.899%),2) -> 533.99 | V39: =ROUND(,2) -> 0 | W39: 2000 | X39: 999999999999 | Y39: NTOU | Z39: 91 | AA39: GSLDT-3 | AB39: General Service Large Demand (GSLD-3) | AE39: A
A40: General Service Large Demand-TOU (GSLDT-3) | B40: CDR eligible | C40: GSLDT-3 | D40: 1620.94 | E40: 0 | F40: 8.18 | G40: 0 | H40: 0 | I40: 0 | J40: 0.01043 | K40: 0.00892 | S40: 0 | T40: =ROUND('CDR Credit'!$D$7,2) -> -8.2 | U40: =ROUND(513.95*(1+3.899%),2) -> 533.99 | V40: 0 | W40: 2000 | X40: 999999999999 | Y40: TOU | Z40: 90 | AA40: GSLDT-3 | AB40: General Service Large Demand-TOU (GSLDT-3) | AE40: A
A41: Curtailable Service (CS-3) | C41: GSLDT-3 | D41: 1649.04 | E41: 8.18 | F41: 0 | G41: 0 | H41: 0 | I41: 0.00932 | J41: 0 | K41: 0 | S41: =ROUND(-1.86*(1+3.899%),2) -> -1.93 | T41: =ROUND('CDR Credit'!$D$7,2) -> -8.2 | U41: =ROUND(513.95*(1+3.899%),2) -> 533.99 | V41: 0 | W41: 2000 | X41: 999999999999 | Y41: NTOU | Z41: 92 | AA41: GSLDT-3 | AB41: Curtailable Service (CS-3)
A42: Curtailable Service-TOU (CST-3) | C42: GSLDT-3 | D42: 1649.04 | E42: 0 | F42: 8.18 | G42: 0 | H42: 0 | I42: 0 | J42: 0.01043 | K42: 0.00892 | S42: =ROUND(-1.86*(1+3.899%),2) -> -1.93 | T42: =ROUND('CDR Credit'!$D$7,2) -> -8.2 | U42: =ROUND(513.95*(1+3.899%),2) -> 533.99 | V42: 0 | W42: 2000 | X42: 999999999999 | Y42: TOU | Z42: 82 | AA42: GSLDT-3 | AB42: Curtailable Service-TOU (CST-3)
D43: 0 | E43: 0 | F43: 0 | G43: 0 | H43: 0 | I43: 0 | J43: 0 | K43: 0 | S43: =ROUND(,2) -> 0 | T43: 0 | U43: 0 | V43: 0 | Y43: NTOU | AB43: 0
A44: C/I Load Control Program, Transmission [CILC-1(T)] | D44: 2220.26 | E44: 0 | F44: 2.47 | G44: 9.15 | H44: 0 | I44: 0 | J44: 0.00731 | K44: 0.00731 | S44: 0 | T44: 0 | U44: 0 | V44: 0 | W44: 200 | X44: 999999999999 | Y44: TOU | Z44: 55 | AA44: CILC | AB44: C/I Load Control Program, Transmission [CILC-1(T)]
A45: C/I Load Control Program, Distribution [CILC-1(D)] | D45: 168.63 | E45: 3.49 | F45: 2.52 | G45: 9.06 | H45: 0 | I45: 0 | J45: 0.00822 | K45: 0.00822 | S45: 0 | T45: 0 | U45: 0 | V45: =ROUND(-0.29*(1+3.899%),2) -> -0.3 | W45: 200 | X45: 999999999999 | Y45: TOU | Z45: 54 | AA45: CILC | AB45: C/I Load Control Program, Distribution [CILC-1(D)]
A46: Metrorail (MET) | D46: 449.67 | E46: 12.38 | F46: 0 | G46: 0 | H46: 0 | I46: 0.01661 | J46: 0 | K46: 0 | S46: 0 | T46: 0 | U46: 0 | V46: =ROUND(,2) -> 0 | Y46: NTOU | AB46: Metrorail (MET)
A47: Sportsfield Lighting (OS-2) | D47: 115.8 | E47: 0 | F47: 0 | G47: 0 | H47: 0 | I47: 0.06845 | J47: 0 | K47: 0 | S47: 0 | T47: 0 | U47: 0 | V47: =ROUND(,2) -> 0 | Y47: NTOU | AB47: Sportsfield Lighting (OS-2)
A48: Street Lighting (SL-1 and PL-1) | D48: 0 | E48: 0 | F48: 0 | G48: 0 | H48: 0 | I48: 0.02791 | J48: 0 | K48: 0 | S48: 0 | T48: 0 | U48: 0 | V48: =ROUND(,2) -> 0 | Y48: NTOU | AB48: Street Lighting (SL-1 and PL-1)
A49: Outdoor Lighting (OL-1) | D49: 0 | E49: 0 | F49: 0 | G49: 0 | H49: 0 | I49: 0.02817 | J49: 0 | K49: 0 | S49: 0 | T49: 0 | U49: 0 | V49: =ROUND(,2) -> 0 | Y49: NTOU | AB49: Outdoor Lighting (OL-1)
A50: Traffic Signals (SL-2) | D50: 0 | E50: 0 | F50: 0 | G50: 0 | H50: 0 | I50: 0.04598 | J50: 0 | K50: 0 | S50: 0 | T50: 0 | U50: 0 | V50: =ROUND(,2) -> 0 | Y50: NTOU | AB50: Traffic Signals (SL-2)
Y51: NTOU | AB51: 0
AB52: 0
D53: Customer Charge | E53: Contract Standby Demand Charge $/kW | F53: Reservation Demand Charge Interruptible $/kW | G53: Reservation Demand Charge Firm $/Kw | H53: Demand Charge $/Kw RDC | I53: Daily Demand Charge Interruptible $/kW | J53: Daily Demand Charge Firm $/Kw | K53: Demand Charge $/Kw DDC | L53: On-Peak Energy Charge ¢/kWh | M53: Off-Peak Energy Charge ¢/kWh | W53: On-Peak Fuel Charge ¢/kWh | X53: Off-Peak Fuel Charge ¢/kWh | AB53: 0
A54: Standby and Supplemental (SST-1D) | D54: =ROUND(108.2*(1+3.899%),2) -> 112.42 | E54: =ROUND(2.92*(1+3.899%),2) -> 3.03 | F54: =ROUND(0*(1+3.899%),2) -> 0 | G54: 0 | H54: 1.23 | I54: =ROUND(0*(1+3.899%),2) -> 0 | J54: 0 | K54: 0.6 | L54: 0.00984 | M54: 0.00984 | W54: 3.952 | X54: 2.708 | AB54: Standby and Supplemental (SST-1D)
AB55: 0
A56: Standby and Supplemental (SST-2D) | D56: =ROUND(108.2*(1+3.899%),2) -> 112.42 | E56: =ROUND(2.92*(1+3.899%),2) -> 3.03 | F56: 0 | G56: 0 | H56: 1.23 | I56: 0 | J56: 0 | K56: 0.6 | L56: 0.00984 | M56: 0.00984 | W56: 3.948 | X56: 2.705 | AB56: Standby and Supplemental (SST-2D)
AB57: 0
A58: Standby and Supplemental (SST-3D) | D58: =ROUND(405.75*(1+3.899%),2) -> 421.57 | E58: =ROUND(2.92*(1+3.899%),2) -> 3.03 | F58: 0 | G58: 0 | H58: 1.23 | I58: 0 | J58: 0 | K58: 0.6 | L58: 0.00984 | M58: 0.00984 | W58: 3.917 | X58: 2.684 | AB58: Standby and Supplemental (SST-3D)
AB59: 0
A60: Standby and Supplemental (SST-1T) | D60: =ROUND(1570.75*(1+3.899%),2) -> 1631.99 | E60: =ROUND(0*(1+3.899%),2) -> 0 | F60: 0 | G60: 0 | H60: 1.28 | I60: 0 | J60: 0 | K60: 0.37 | L60: 0.00957 | M60: 0.00957 | W60: 3.81 | X60: 2.611 | AB60: Standby and Supplemental (SST-1T)
AB61: 0
A62: Interruptible Standby and Supplemental (ISST-1D) | D62: =ROUND(405.75*(1+3.899%),2) -> 421.57 | E62: =ROUND(2.92*(1+3.899%),2) -> 3.03 | F62: 0.22 | G62: 1.23 | H62: =ROUND(0*(1+3.899%),2) -> 0 | I62: 0.1 | J62: 0.6 | K62: =ROUND(0*(1+3.899%),2) -> 0 | L62: 0.00984 | M62: 0.00984 | W62: 3.914 | X62: 2.682 | AB62: Interruptible Standby and Supplemental (ISST-1D)
AB63: 0
A64: Interruptible Standby and Supplemental (ISST-1T) | D64: =ROUND(2046.05*(1+3.899%),2) -> 2125.83 | E64: =ROUND(0*(1+3.899%),2) -> 0 | F64: 0.3 | G64: 1.03 | H64: =ROUND(0*(1+3.899%),2) -> 0 | I64: 0.12 | J64: 0.48 | K64: =ROUND(0*(1+3.899%),2) -> 0 | L64: 0.009 | M64: 0.009 | W64: 3.81 | X64: 2.611 | AB64: Interruptible Standby and Supplemental (ISST-1T)
AB65: 0
AB66: 0
AB67: 0
A68: Residential Rates - Current from Revenue Forecast | D68: Customer Charge | J68: < 1,000 kWh/ On-Peak Energy Charge ¢/kWh | K68: > 1,000 kWh/ Off-Peak Energy Charge ¢/kWh | AB68: Residential Rates & Clauses
A69: Residential Service (RS-1) | C69: RST-1 | D69: =ROUND(7.57*(1+3.899%),2) -> 7.87 | E69: 0 | F69: 0 | G69: 0 | H69: 0 | I69: 0 | J69: 0.05052 | K69: 0.06177 | Z69: 44 | AA69: RST-1 | AB69: Residential Service (RS-1)
A70: Residential TOU Service (RTR-1) | C70: RST-1 | D70: =ROUND(11.9*(1+3.899%),2) -> 12.36 | E70: 0 | F70: 0 | G70: 0 | H70: 0 | I70: 0 | J70: =ROUND(0.0881*(1+3.899%),5) -> 0.09154 | K70: =ROUND(-0.03919*(1+3.899%),5) -> -0.04072 | Z70: 145 | AA70: RST-1 | AB70: Residential TOU Service (RTR-1)

Sheet E-8 Parity Analysis Final
A1: OPC 015199
A2: FPL RC-16
A4: 2018 E-8 Workpaper - Manual Version
A5: ($000 WHERE APPLICABLE)
B8: 2018 MFR E-1 - Attachment 1 | K8: 2018 MFR E-1 - Attachment 2 | N8: Calculation of Proposed
A9: Description | B9: Used for Rate of Return Calculation (Present and Proposed) | C9: Used for Net Income Calc.; Total Proposed Revenues; and % Increase Calc.; | D9: Used for Net Income Calc. for Present and Proposed | E9: Used for Net Income Calc. for Present and Proposed | F9: Used for Net Income Calc. for Present and Proposed | G9: Calculated - Revenues minus Expenses | H9: Calculated - Present Net Income divided by Rate Base equals return on Rate Base | I9: Calculated (Parity) - Each Rate Class' return as a percent of overall average return | K9: Revenues at Proposed Rates - Used as starting allocation for Proposed Increase | L9: Operating Revenues Equalized Proposed less Operating Revenues Present | O9: Proposed Increase per E-1, Attachment 2 | P9: Unbilled Revenues (Proposed) Removed for Rate Design | Q9: Proposed Miscellaneous Service Charges Removed for Rate Design | R9: Beginning Balance for Rate Design Adjustments | S9: Reverse Additional CILC/CDR Credits per Settlement E-5 - adjusted for GBRAs (see workpaper) | T9: Adjustment needed to ensure that increase is not higher than max increase or lower than min increase | U9: Second adjustment needed to spread differences from adj. in col. 16. | V9: Final Adjustments - Needed for Rounding Differences from Rate Design | W9: Proposed Increase to be used as beginning Target Increase in Rate Calculations | X9: Proposed Increase after Rate Design Calculations - Used in MFRs | Y9: Add back increases/decreases from other sources before applying Comm. Guidelines | Z9: Add back increases/decreases from other sources before applying Comm. Guidelines | AA9: Add back increases/decreases from other sources before applying Comm. Guidelines | AB9: Proposed Increase used for applying Commission Guidelines | AC9: Present Revenues + Proposed Increase | AD9: Clauses are added to Present Op. Revenues before applying Comm. Guidelines to Total Proposed Increases in Col. 19 | AE9: Present + Proposed + Clause Revenues - For Calculating Proposed Rate of Return | AF9: % Increase (with Clauses) by Rate Class after a applying Comm. Guidelines. | AG9: % Increase (without Clauses) by Rate Class after a applying Comm. Guidelines. | AH9: Total Proposed Increase multiplied by Tax Factor - This calculates the portion of the increase that relates to taxes | AI9: Adds the tax expenses for the proposed increase to Total Operating Expenses | AJ9: Net Income (with proposed increase) without clauses | AK9: Net Income (after increase) divided by Rate Base | AL9: Calculated (Parity) - Each Rate Class' return as a percent of overall average return - following increase | AO9: Max is calculated as the max increase allowed - No more than 1.5X system average increase | AP9: Min is calculated as a minimum 0.5% increase to each rate class - this .05% should be an input
A10: Source/Calc. | B10: E-1, Attachment 1, Line 12 | C10: E-1, Attachment 1, Line 17 | D10: E-1, Attachment 1, Line 25 | E10: E-1, Attachment 1, Line 28 | F10: E-1, Attachment 1, Line 34 | G10: Sum: Col. 2 : 5 | H10: Col. 6 / Col. 1 | I10: Col. 7 / Total Col. 7 | K10: E-1, Attachment 2, line 17 | L10: Col. 9 - Col. 2 | O10: Col. 10 | P10: MFR E-12 (based on (kWh) Sales Allocation | Q10: MFR E-13b - Allocated based on Present Miscellaneous Service Revenues | R10: Calculated | S10: E-14, Attachment 5 | T10: Solve for Base Adjustment Using Col. 35 as a Max and Col. 36 as a Min. | U10: Solve for Rounding Adjustment - Spread difference generated in Col. 16 based on Col. 14 | V10: Manual Adjustments (Col. 35 - Col. 24 corrects 1.5X violations caused by adjustments in column 17) | W10: Used for Rate Design | X10: Final Proposed Increases after Rate Design and final manual adjustments - See Rate Class tabs | Y10: Reverse Col. 15 | Z10: Col. 12 | AA10: Col. 13 | AB10: Sum: Col. 20 - 23 | AC10: Col. 2 + Col. 24 | AD10: Revenue Requirements per NOI with Allocations from 2017 COS | AE10: Col. 2 + Col. 24 + Col. 26 | AF10: Col. 24 / Col. 2 + Col. 26 | AG10: Col. 24 / Col. 2 | AH10: Col. 24 X Expansion Factor per COS | AI10: (Sum: Col. 3: Col. 5) + Col. 30 | AJ10: (Col. 27 - Col. 26) + Col. 31 | AK10: (Col. 32 / Col. 1) | AL10: Col. 33 / Total Col. 33 | AO10: (Col. 2 + Col. 26) * (1.5X Average Increase per Col. 28) | AP10: (Col. 2 + Col. 26) * 1/2% (Min. Increase)
A13: Column # | B13: 1 | C13: =B13+1 -> 2 | D13: =C13+1 -> 3 | E13: 4 | F13: 5 | G13: 6 | H13: 7 | I13: 8 | K13: =I13+1 -> 9 | L13: =K13+1 -> 10 | O13: =L13+1 -> 11 | P13: =O13+1 -> 12 | Q13: =P13+1 -> 13 | R13: 14 | S13: 15 | T13: 16 | U13: 17 | V13: 18 | W13: 19 | X13: 20 | Y13: 21 | Z13: 22 | AA13: 23 | AB13: 24 | AC13: 25 | AD13: 26 | AE13: 27 | AF13: 28 | AG13: 29 | AH13: 30 | AI13: 31 | AJ13: 32 | AK13: 33 | AL13: 34 | AO13: =AL13+1 -> 35 | AP13: =AO13+1 -> 36
A14: Rate Class | B14: Total Rate Base | C14: Operating Revenues | D14: Operating Expenses | E14: Income Taxes | F14: Curtailment Credits | G14: Net Operating Income | H14: Rate of Return | I14: Parity | K14: Operating Revenues | L14: Proposed Equalized Increase | N14: Rate Class | O14: Proposed Increase - Base | P14: Proposed Unbilled Revenues - Allocated on Sales | Q14: Proposed Misc. Service Charges | R14: Total Revenue Requirements less Unbilled and Misc. Service Charges | S14: Reverse Additional CILC/CDR Credits | T14: Base Adjustment | U14: Rounding adjustment | V14: Manual Adjustments | W14: Total Proposed Increase - Base | X14: Total Proposed Increase - Base After Rate Design | Y14: CILC / CDR Revenue collected through ECCR | Z14: Unbilled Revenues - Allocated on Sales | AA14: Misc. Service Charges | AB14: Total Proposed Increase | AC14: Total Proposed Revenues | AD14: Clause Revenues | AE14: Proposed Operating Revenues (with Clauses_ | AF14: Percent Increase (with Clauses) | AG14: Percent Increase (without Clauses) | AH14: Taxes on Proposed Increase | AI14: Operating Expenses (Grossed up for Taxes) | AJ14: Net Operating Income (Proposed) - Without Clauses | AK14: Rate of Return | AL14: Parity | AO14: Max increase - Not greater than 1.5X Average | AP14: Min increase - Not less than 0.5%
A15: CILC-1D | B15: 584302.1428 | C15: 89408.91531 | D15: -62825.75108 | E15: -6533.614302 | F15: -6.759157902 | G15: =SUM(C15:F15) -> 20042.79077 | H15: =G15/B15 -> 0.03430210041 | I15: =H15/$H$32 -> 0.737345333 | K15: 120603.6033 | L15: =K15-C15 -> 31194.68798 | N15: CILC-1D | O15: =(L15/$L$32)*$O$33 -> 31194.68798 | P15: =D42 -> 7.595946181 | Q15: =E42 -> 1.875197694 | R15: =O15-P15-Q15 -> 31185.21684 | S15: =P39 -> 9941.743212 | T15: =IF(SUM(R15)<0,AP15-SUM(R15),IF(SUM(R15)>AO15,AO15-SUM(R15),0)) -> 0 | U15: =IF(T15=0,-T$32*R15/SUMIF($T$15:$T$31,"0",$R$15:$R$31),0) -> 1269.349839 | V15: -260 | W15: =SUM(R15:V15) -> 42136.30989 | X15: =('CILC-1D'!T24)/1000 -> 42136.72961 | Y15: =-S15 -> -9941.743212 | Z15: =D42 -> 7.595946181 | AA15: =E42 -> 1.875197694 | AB15: =SUM(X15:AA15) -> 32204.45755 | AC15: =C15+AB15 -> 121613.3729 | AD15: 115009.3528 | AE15: =C15+AB15+AD15 -> 236622.7256 | AF15: =AB15/(C15+AD15) -> 0.1575419744 | AG15: =AB15/C15 -> 0.3601929118 | AH15: =-(AB15*($AH$36)) -> -12450.06052 | AI15: =(SUM(D15:F15))+AH15 -> -81816.18506 | AJ15: =AE15-AD15+AI15 -> 39797.1878 | AK15: =AJ15/B15 -> 0.06811063126 | AL15: =AK15/$AK$32 -> 1.01580994 | AO15: =(C15+AD15)*$AF$33 -> 32228.18836 | AP15: =(C15+AD15)*0.005 -> 1022.09134
A16: CILC-1G | B16: 23315.25181 | C16: 4172.294096 | D16: -2515.072814 | E16: -494.750327 | F16: -0.2639965423 | G16: =SUM(C16:F16) -> 1162.206959 | H16: =G16/B16 -> 0.04984749762 | I16: =H16/$H$32 -> 1.071503473 | K16: 4826.174372 | L16: =K16-C16 -> 653.880276 | N16: CILC-1G | O16: =(L16/$L$32)*$O$33 -> 653.880276 | P16: 0.2869614919 | Q16: 0.1190677398 | R16: =O16-P16-Q16 -> 653.4742468 | S16: =P40 -> 369.4910674 | T16: =IF(SUM(R16)<0,AP16-SUM(R16),IF(SUM(R16)>AO16,AO16-SUM(R16),0)) -> 0 | U16: 26.59873858 | V16: 12 | W16: =SUM(R16:V16) -> 1061.564053 | X16: =('CILC-1G'!T24)/1000 -> 1061.396716 | Y16: -369.4910674 | Z16: 0.2869614919 | AA16: 0.1190677398 | AB16: =SUM(X16:AA16) -> 692.3116777 | AC16: =C16+AB16 -> 4864.605774 | AD16: 4344.851144 | AE16: 9209.456918 | AF16: =AB16/(C16+AD16) -> 0.08128447481 | AG16: 0.1659306995 | AH16: =-(AB16*($AH$36)) -> -267.6437657 | AI16: -3277.730903 | AJ16: =AE16-AD16+AI16 -> 1586.874871 | AK16: 0.06806166556 | AL16: 1.015079659 | AO16: =(C16+AD16)*$AF$33 -> 1342.796628 | AP16: =(C16+AD16)*0.005 -> 42.5857262
A17: CILC-1T | B17: 235236.4773 | C17: 36661.16814 | D17: -26289.65287 | E17: -2507.551516 | F17: -3.582669915 | G17: 7860.381089 | H17: 0.0334148053 | I17: 0.7182723636 | K17: 49560.2302 | L17: =K17-C17 -> 12899.06206 | N17: CILC-1T | O17: 12899.06206 | P17: 4.332107922 | Q17: 0.001324399527 | R17: 12894.72862 | S17: =P41 -> 5317.502227 | T17: 0 | U17: 524.8615648 | W17: 18737.09242 | X17: =('CILC-1T'!T24)/1000 -> 18733.00838 | Y17: -5317.502227 | Z17: 4.332107922 | AA17: 0.001324399527 | AB17: 13419.83959 | AC17: 50081.00773 | AD17: 64417.93169 | AE17: 114498.9394 | AF17: =AB17/(C17+AD17) -> 0.1327657212 | AG17: 0.366050518 | AH17: -5188.033827 | AI17: -33988.82088 | AJ17: 16092.18685 | AK17: 0.06840855226 | AL17: 1.020253168 | AO17: =(C17+AD17)*$AF$33 -> 15935.93518 | AP17: =(C17+AD17)*0.005 -> 505.3954991
A18: GS(T)-1 | B18: 1974078.99 | C18: 384085.6683 | D18: -225495.5922 | E18: -49033.04461 | F18: -20.51337825 | G18: 109536.5181 | H18: 0.05548740385 | I18: 1.192736823 | K18: 421298.5545 | L18: 37212.88615 | N18: GS(T)-1 | O18: 37212.88615 | P18: 16.96687795 | Q18: -6.929791627 | R18: 37202.84906 | S18: =U42 -> 0 | T18: 0 | U18: 1514.288989 | V18: 340 | W18: 39057.13805 | X18: =('GS(T)-1'!V33)/1000 -> 39077.52343 | Y18: 0 | Z18: 16.96687795 | AA18: -6.929791627 | AB18: 39087.56052 | AC18: 423173.2288 | AD18: 268699.4382 | AE18: 691872.6671 | AF18: 0.05987814386 | AG18: 0.1017678183 | AH18: -15111.02907 | AI18: -289660.1793 | AJ18: 133513.0496 | AK18: 0.06763308372 | AL18: 1.00868774 | AO18: 102916.836 | AP18: 3263.925533
A19: GSCU-1 | B19: 18518.11769 | C19: 4348.059156 | D19: -2347.950741 | E19: -661.0617584 | F19: -0.1660517386 | G19: 1338.880605 | H19: 0.07230111761 | I19: 1.554158229 | K19: 4189.550137 | L19: -158.5090191 | N19: GSCU-1 | O19: -158.5090191 | P19: 0.2009471095 | Q19: 2.212171881 | R19: -160.9221381 | S19: 0 | T19: 197.7909396 | U19: 0 | W19: 36.86880146 | X19: =('GSCU-1'!U21)/1000 -> 36.91780866 | Y19: 0 | Z19: 0.2009471095 | AA19: 2.212171881 | AB19: 39.33092765 | AC19: 4387.390084 | AD19: 3025.701136 | AE19: 7413.09122 | AF19: 0.005333903747 | AG19: 0.00904562846 | AH19: -15.20511342 | AI19: -3024.383664 | AJ19: 1363.00642 | AK19: 0.07360393978 | AL19: 1.097737787 | AO19: 1162.532771 | AP19: 36.86880146
A20: GSD(T)-1 | B20: 6904182.342 | C20: 1166608.342 | D20: -737248.5525 | E20: -122390.008 | F20: -79.2519114 | G20: 306890.5298 | H20: 0.04444994564 | I20: 0.9554796813 | K20: 1420989.432 | L20: 254381.0901 | N20: GSD(T)-1 | O20: 254381.0901 | P20: 73.35911953 | Q20: 106.7395289 | R20: 254200.9914 | S20: =P44 -> 2273.847686 | T20: 0 | U20: 10346.88934 | W20: 266821.7284 | X20: =('GSD(T)-1'!Z86)/1000 -> 266896.1779 | Y20: -2273.847686 | Z20: 73.35911953 | AA20: 106.7395289 | AB20: 264802.4289 | AC20: 1431410.771 | AD20: 1139148.192 | AE20: 2570558.964 | AF20: 0.1148440544 | AG20: 0.2269848579 | AH20: -102371.1162 | AI20: -962088.9287 | AJ20: 469321.8425 | AK20: 0.06797645531 | AL20: 1.013808824 | AO20: 363521.111 | AP20: 11528.78267
A21: GSLD(T)-1 | B21: 2764702.491 | C21: 391311.6266 | D21: -292593.7471 | E21: -20276.97552 | F21: 210.2679969 | G21: 78651.172 | H21: 0.02844833115 | I21: 0.6115148622 | K21: 565297.1296 | L21: 173985.503 | N21: GSLD(T)-1 | O21: 173985.503 | P21: 29.85739454 | Q21: 14.95983121 | R21: 173940.6858 | S21: =P45 -> 4288.996734 | T21: -39279.34084 | U21: 0 | V21: -75.45565143 | W21: 138874.8861 | X21: =('GSLD(T)-1'!X105)/1000 -> 138871.9685 | Y21: -4288.996734 | Z21: 29.85739454 | AA21: 14.95983121 | AB21: 134627.789 | AC21: 525939.4156 | AD21: 462823.8466 | AE21: 988763.2621 | AF21: 0.1576187773 | AG21: 0.3440423944 | AH21: -52046.33919 | AI21: -364706.7938 | AJ21: 161232.6218 | AK21: 0.05831825388 | AL21: 0.8697652754 | AO21: 134661.345 | AP21: 4270.677366
A22: GSLD(T)-2 | B22: 552377.53 | C22: 79877.24703 | D22: -59271.23469 | E22: -4400.168681 | F22: 73.62967267 | G22: 16279.47333 | H22: 0.02947164294 | I22: 0.6335115959 | K22: 113717.4177 | L22: 33840.17065 | N22: GSLD(T)-2 | O22: 33840.17065 | P22: 7.099739495 | Q22: 3.365532136 | R22: 33829.70538 | S22: =P46 -> 1104.385138 | T22: -4296.249155 | U22: 0 | V22: -20.01831823 | W22: 30617.82305 | X22: =('GSLD(T)-2'!X105)/1000 -> 30622.63239 | Y22: -1104.385138 | Z22: 7.099739495 | AA22: 3.365532136 | AB22: 29528.71253 | AC22: 109405.9596 | AD22: 107448.7641 | AE22: 216854.7236 | AF22: 0.1576327406 | AG22: 0.3696761422 | AH22: -11415.63269 | AI22: -75013.40638 | AJ22: 34392.55317 | AK22: 0.06226276651 | AL22: 0.9285941991 | AO22: 29533.45623 | AP22: 936.6300556
A23: GSLD(T)-3 | B23: 29177.477 | C23: 4689.899164 | D23: -3201.307913 | E23: -390.2390572 | F23: 43.02676931 | G23: 1141.378963 | H23: 0.03911849413 | I23: 0.8408767607 | K23: 6018.526235 | L23: 1328.627071 | N23: GSLD(T)-3 | O23: 1328.627071 | P23: 0.4969317751 | Q23: 0.05772680945 | R23: 1328.072413 | S23: 0 | T23: 0 | U23: 54.05729621 | W23: 1382.129709 | X23: =('GSLD(T)-3'!V57)/1000 -> 1382.025768 | Y23: 0 | Z23: 0.4969317751 | AA23: 0.05772680945 | AB23: 1382.580426 | AC23: 6072.47959 | AD23: 7421.86602 | AE23: 13494.34561 | AF23: 0.114151852 | AG23: 0.2947996062 | AH23: -534.4977466 | AI23: -4083.017948 | AJ23: 1989.461642 | AK23: 0.06818484143 | AL23: 1.016916719 | AO23: 1909.517449 | AP23: 60.55882592
A24: MET | B24: 23570.56518 | C24: 4161.445891 | D24: -2526.754001 | E24: -484.1577642 | F24: -0.2750285247 | G24: 1150.259098 | H24: 0.04880065832 | I24: 1.049001001 | K24: 4862.712046 | L24: 701.2661555 | N24: MET | O24: 701.2661555 | P24: 0.2579358948 | Q24: 0.002103458072 | R24: 701.0061161 | S24: 0 | T24: 0 | U24: 28.53345563 | W24: 729.5395717 | X24: =(MET!U20)/1000 -> 729.2246602 | Y24: 0 | Z24: 0.2579358948 | AA24: 0.002103458072 | AB24: 729.4846996 | AC24: 4890.930591 | AD24: 4002.358279 | AE24: 8893.28887 | AF24: 0.08935597723 | AG24: 0.1752959713 | AH24: -282.014645 | AI24: -3293.201438 | AJ24: 1597.729152 | AK24: 0.06778493176 | AL24: 1.010952419 | AO24: 1287.089559 | AP24: 40.81902085
A25: OL-1 | B25: 69715.25039 | C25: 18510.44482 | D25: -7454.326083 | E25: -3867.566171 | F25: -0.03603897542 | G25: 7188.51653 | H25: 0.1031125398 | I25: 2.216469227 | K25: 14411.90183 | L25: -4098.54299 | N25: OL-1 | O25: -4098.54299 | P25: 0.2751058422 | Q25: 15.14163986 | R25: -4113.959736 | S25: 0 | T25: 4230.397877 | U25: 0 | W25: 116.4381414 | X25: 116.499 | Y25: 0 | Z25: 0.2751058422 | AA25: 15.14163986 | AB25: 131.9157457 | AC25: 18642.36057 | AD25: 4777.183454 | AE25: 23419.54402 | AF25: 0.005664627764 | AG25: 0.007126557301 | AH25: -50.99787866 | AI25: -11372.92617 | AJ25: 7269.434397 | AK25: 0.1042732308 | AL25: 1.555143189 | AO25: 3671.482386 | AP25: 116.4381414
A26: OS-2 | B26: 7803.574628 | C26: 1028.127012 | D26: -814.1814178 | E26: -31.39671627 | F26: -0.02532512465 | G26: 182.5235526 | H26: 0.02338973628 | I26: 0.5027771675 | K26: 1583.567819 | L26: 555.4408073 | N26: OS-2 | O26: 555.4408073 | P26: 0.03058629607 | Q26: 0.01543537924 | R26: 555.3947856 | S26: 0 | T26: -311.9655753 | U26: 0 | W26: 243.4292103 | X26: =('OS-2'!T18)/1000 -> 243.4646482 | Y26: 0 | Z26: 0.03058629607 | AA26: 0.01543537924 | AB26: 243.5106699 | AC26: 1271.637682 | AD26: 515.9057154 | AE26: 1787.543397 | AF26: 0.1577108216 | AG26: 0.2368488204 | AH26: -94.13984305 | AI26: -939.7433022 | AJ26: 331.8943795 | AK26: 0.04253107009 | AL26: 0.6343133655 | AO26: 243.4292103 | AP26: 7.720163636
A27: RS(T)-1 | B27: 20201656.76 | C27: 3680682.307 | D27: -2260920.125 | E27: -422028.6804 | F27: -215.5449655 | G27: 997517.957 | H27: 0.04937802719 | I27: 1.06141191 | K27: 4262702.621 | L27: 582020.3145 | N27: RS(T)-1 | O27: 582020.3145 | P27: 162.1583849 | Q27: -3917.559091 | R27: 585775.7152 | S27: 0 | T27: 0 | U27: 23843.16626 | W27: 609618.8815 | X27: =('RS(T)-1'!T44)/1000 -> 609544.8085 | Y27: 0 | Z27: 162.1583849 | AA27: -3917.559091 | AB27: 605789.4078 | AC27: 4286471.715 | AD27: 2602418.79 | AE27: 6888890.504 | AF27: 0.09641567093 | AG27: 0.1645861711 | AH27: -234194.7471 | AI27: -2917359.097 | AJ27: 1369112.618 | AK27: 0.06777229381 | AL27: 1.010763935 | AO27: 990581.554 | AP27: 31415.50548
A28: SL-1 | B28: 454915.0069 | C28: 95162.80722 | D28: -60381.71397 | E28: -10574.89968 | F28: -0.2170227316 | G28: 24205.97654 | H28: 0.05320988795 | I28: 1.143780179 | K28: 105427.3555 | L28: 10264.54829 | N28: SL-1 | O28: 10264.54829 | P28: 1.614087024 | Q28: 2.182980217 | R28: 10260.75122 | S28: 0 | T28: 0 | U28: 417.6492656 | W28: 10678.40048 | X28: 10668.646 | Y28: 0 | Z28: 1.614087024 | AA28: 2.182980217 | AB28: 10672.44307 | AC28: 105835.2503 | AD28: 28028.44812 | AE28: 133863.6984 | AF28: 0.08663312212 | AG28: 0.112149309 | AH28: -4125.905923 | AI28: -75082.7366 | AJ28: 30752.51369 | AK28: 0.06760056982 | AL28: 1.008202824 | AO28: 19422.0948 | AP28: 615.9562767
A29: SL-2 | B29: 7086.309725 | C29: 1561.547223 | D29: -798.3894018 | E29: -252.2183794 | F29: -0.07809513713 | G29: 510.8613464 | H29: 0.07209130933 | I29: 1.549648268 | K29: 1503.314523 | L29: -58.23269925 | N29: SL-2 | O29: -58.23269925 | P29: 0.09457713328 | Q29: 0.1120550892 | R29: -58.43933147 | S29: 0 | T29: 73.36740239 | U29: 0 | W29: 14.92807092 | X29: ='SL-2'!T28/1000 -> 15.09694352 | Y29: 0 | Z29: 0.09457713328 | AA29: 0.1120550892 | AB29: 15.30357574 | AC29: 1576.850798 | AD29: 1424.066961 | AE29: 3000.91776 | AF29: 0.005125771382 | AG29: 0.009800264456 | AH29: -5.916275533 | AI29: -1056.602152 | AJ29: 520.2486466 | AK29: 0.07341601861 | AL29: 1.094935108 | AO29: 470.7061517 | AP29: 14.92807092
A30: SST-DST | B30: 5029.417418 | C30: 823.4803626 | D30: -509.6343633 | E30: -89.41868975 | F30: -0.03271753282 | G30: 224.3945921 | H30: 0.04461641845 | I30: 0.9590581196 | K30: 1007.421753 | L30: 183.9413902 | N30: SST-DST | O30: 183.9413902 | P30: 0.03351916343 | Q30: 0.04362334449 | R30: 183.8642477 | S30: 0 | T30: 0 | U30: 7.483932355 | W30: 191.3481801 | X30: =('SST-DST'!L67)/1000 -> 190.8961109 | Y30: 0 | Z30: 0.03351916343 | AA30: 0.04362334449 | AB30: 190.9732534 | AC30: 1014.453616 | AD30: 860.8016157 | AE30: 1875.255232 | AF30: 0.1133855589 | AG30: 0.2319099059 | AH30: -73.82917598 | AI30: -672.9149465 | AJ30: 341.5386695 | AK30: 0.06790819714 | AL30: 1.012790813 | AO30: 265.5406357 | AP30: 8.421409891
A31: SST-TST | B31: 15229.71619 | C31: 4435.542814 | D31: -1595.172009 | E31: -1013.321578 | F31: -0.1780795864 | G31: 1826.871147 | H31: 0.119954379 | I31: 2.578495207 | K31: 3122.040039 | L31: -1313.502775 | N31: SST-TST | O31: -1313.502775 | P31: 0.2534879699 | Q31: 0.1868635925 | R31: -1313.943126 | S31: 0 | T31: 1353.120667 | U31: 0 | W31: 39.17754115 | X31: =('SST-TST'!M41)/1000 -> 34.13086346 | Y31: 0 | Z31: 0.2534879699 | AA31: 0.1868635925 | AB31: 34.57121502 | AC31: 4470.114029 | AD31: 3399.965417 | AE31: 7870.079446 | AF31: 0.004412121589 | AG31: 0.007794133993 | AH31: -13.36503553 | AI31: -2622.036702 | AJ31: 1848.077327 | AK31: 0.1213468002 | AL31: 1.809780404 | AO31: 1235.331057 | AP31: 39.17754115
A32: Total Retail | B32: =SUM(B15:B31) -> 33870897.42 | C32: 5967528.922 | D32: -3746789.158 | E32: -645029.0732 | F32: -5.884182031e-14 | G32: 1575710.691 | H32: 0.0465210789 | I32: 1 | K32: =SUM(K15:K31) -> 7101121.553 | L32: =SUM(L15:L31) -> 1133592.631 | N32: Total Retail | O32: 1133592.631 | P32: =SUM(P15:P31) -> 304.9137102 | Q32: -3777.473801 | R32: =SUM(R15:R31) -> 1137065.191 | S32: 23295.96606 | T32: -38032.87868 | U32: 38032.87868 | V32: =SUM(V15:V31) -> -3.473969663 | W32: =SUM(W15:W31) -> 1160357.683 | X32: =SUM(X15:X31) -> 1160361.147 | Y32: -23295.96606 | Z32: 304.9137102 | AA32: -3777.473801 | AB32: 1133592.621 | AC32: 7101121.543 | AD32: =SUM(AD15:AD31) -> 4817767.463 | AE32: 11918889.01 | AF32: =(AB33)/(C32+AD32) -> 0.1051053759 | AG32: 0.1899601386 | AH32: =SUM(AH15:AH31) -> -438240.4741 | AI32: -4830058.705 | AJ32: 2271062.838 | AK32: 0.06705056586 | AL32: 1 | AO32: =SUM(AO15:AO31) -> 1700388.946 | AP32: =SUM(AP15:AP31) -> 53926.48193
O33: =L32 -> 1133592.631 | U33: =T32+U32 -> 0 | W33: =SUM(R32:U32) -> 1160361.157 | X33: =X32-W32 -> 3.464045421 | AA33: Overall Inc | AB33: =O33 -> 1133592.631 | AE33: 1.5x | AF33: =AF32*1.5 -> 0.1576580639 | AG33: =AG32*1.5 -> 0.2849402079
X34: =X32-W33 -> -0.009924241574 | AA34: Difference | AB34: =AB32-AB33 -> -0.009924241807
A36: From ROR & Parity | F36: Per E-5 | AH36: 0.3865943249 | AI36: Expansion Factor per COS
A37: Proposed | F37: Actuals | AN37: 3.062670913
B38: Retail Sales (KWh) by Rate Class | C38: % Sales by Rate Class | D38: Unbilled Revenue is allocated based on Sales per UI E-5 | E38: Estimated decrease in Misc. Service Charges allocated based on - present - From E-5 | F38: Allocation of Misc Revenues per actuals - from COS | O38: CILC/CDR Credits - Additional Credits awarded thru Settlement (source is Settlement E-5) | P38: 2018 CILC/CDR Credits - CILC & CDR Credits workpapers
B39: 2 | C39: 3 | D39: 4 | E39: 5 | F39: 6 | N39: CILC-1D | O39: 9406.55254 | P39: =('CILC & CDR Credits'!N15)/1000 -> 9941.743212
N40: CILC-1G | O40: 574.6341835 | P40: =('CILC & CDR Credits'!N17)/1000 -> 369.4910674
B41: Sales Allocation Per E-6a in UI (Sales FC) | C41: % Sales Allocation per Col. 2 | D41: Allocation of Unbilled Revenue (Based on Col. 3) | E41: Misc Service Charges | F41: % of Misc. Service Charges per E-5 Actuals UI | N41: CILC-1T | O41: 4129.349249 | P41: =('CILC & CDR Credits'!N19)/1000 -> 5317.502227
A42: CILC-1D | B42: =('Sales kWh by Rate Class'!C7)/1000 -> 2686957.625 | C42: =B42/$B$59 -> 0.02491178956 | D42: =$C$66*(B42/$B$59) -> 7.595946181 | E42: 1.875197694 | F42: 0.0005460827435 | N42: GS(T)-1 | O42: 0 | P42: 0
A43: CILC-1G | B43: =('Sales kWh by Rate Class'!C8)/1000 -> 101508.535 | C43: 0.0009411236108 | D43: 0.2869614919 | E43: 0.1190677398 | F43: 4.528754933e-05 | N43: GSCU-1 | O43: 0 | P43: 0
A44: CILC-1T | B44: =('Sales kWh by Rate Class'!C9)/1000 -> 1532421.391 | C44: 0.01420765212 | D44: 4.332107922 | E44: 0.001324399527 | F44: 7.159089253e-07 | N44: GSD(T)-1 | O44: 1830.971415 | P44: =('CILC & CDR Credits'!N25)/1000 -> 2273.847686
A45: GS(T)-1 | B45: =('Sales kWh by Rate Class'!C10)/1000 -> 6001791.085 | C45: 0.05564485092 | D45: 16.96687795 | E45: -6.929791627 | F45: 0.07470264228 | N45: GSLD(T)-1 | O45: 3337.099922 | P45: =('CILC & CDR Credits'!N27)/1000 -> 4288.996734
A46: GSCU-1 | B46: =('Sales kWh by Rate Class'!C11)/1000 -> 71082.174 | C46: 0.0006590294329 | D46: 0.2009471095 | E46: 2.212171881 | F46: 0.0005322037929 | N46: GSLD(T)-2 | O46: 600.5641603 | P46: =('CILC & CDR Credits'!N29)/1000 -> 1104.385138
A47: GSD(T)-1 | B47: =('Sales kWh by Rate Class'!C12)/1000 -> 25949742.26 | C47: 0.2405897704 | D47: 73.35911953 | E47: 106.7395289 | F47: 0.04037401226 | N47: GSLD(T)-3 | O47: 0
A48: GSLD(T)-1 | B48: =('Sales kWh by Rate Class'!C13)/1000 -> 10561627.48 | C48: 0.09792080036 | D48: 29.85739454 | E48: 14.95983121 | F48: 0.004395837802 | N48: MET | O48: 0
A49: GSLD(T)-2 | B49: =('Sales kWh by Rate Class'!C14)/1000 -> 2511431.587 | C49: 0.02328442198 | D49: 7.099739495 | E49: 3.365532136 | F49: 0.001312696211 | N49: OL-1 | O49: 0
A50: GSLD(T)-3 | B50: =('Sales kWh by Rate Class'!C15)/1000 -> 175782.528 | C50: 0.001629745592 | D50: 0.4969317751 | E50: 0.05772680945 | F50: 2.857749076e-05 | N50: OS-2 | O50: 0
A51: MET | B51: =('Sales kWh by Rate Class'!C16)/1000 -> 91241.144 | C51: 0.0008459307869 | D51: 0.2579358948 | E51: 0.002103458072 | F51: 8.710346526e-06 | N51: RS(T)-1 | O51: 0
A52: OL-1 | B52: =('Sales kWh by Rate Class'!C17)/1000 -> 97314.768 | C52: 0.0009022416277 | D52: 0.2751058422 | E52: 15.14163986 | F52: 0.004868257886 | N52: SL-1 | O52: 0
A53: OS-2 | B53: =('Sales kWh by Rate Class'!C18)/1000 -> 10819.466 | C53: 0.0001003113177 | D53: 0.03058629607 | E53: 0.01543537924 | F53: 7.777166598e-06 | N53: SL-2 | O53: 0
A54: RS(T)-1 | B54: =('Sales kWh by Rate Class'!C19)/1000 -> 57361215.88 | C54: 0.531817296 | D54: 162.1583849 | E54: -3917.559091 | F54: 0.8713287189 | N54: SST-DST | O54: 0
A55: SL-1 | B55: =('Sales kWh by Rate Class'!C20)/1000 -> 570960.264 | C55: 0.005293586251 | D55: 1.614087024 | E55: 2.182980217 | F55: 0.001673963799 | N55: SST-TST | O55: 0
A56: SL-2 | B56: =('Sales kWh by Rate Class'!C21)/1000 -> 33455.312 | C56: 0.000310176716 | D56: 0.09457713328 | E56: 0.1120550892 | F56: 4.951644419e-05 | N56: Total Retail | O56: =SUM(O39:O55) -> 19879.17147 | P56: =SUM(P39:P55) -> 23295.96606
A57: SST-DST | B57: =('Sales kWh by Rate Class'!C22)/1000 -> 11856.926 | C57: 0.0001099299976 | D57: 0.03351916343 | E57: 0.04362334449 | F57: 7.227241966e-06
A58: SST-TST | B58: =('Sales kWh by Rate Class'!C23)/1000 -> 89667.754 | C58: 0.0008313432995 | D58: 0.2534879699 | E58: 0.1868635925 | F58: 0.000117772194
A59: Total Retail | B59: =SUM(B42:B58) -> 107858876.2 | C59: =SUM(C42:C58) -> 1 | D59: =SUM(D42:D58) -> 304.9137102 | E59: =SUM(E42:E58) -> -3777.473801 | F59: =SUM(F42:F58) -> 1
E60: 3777
A62: Calc of Unbilled Revenue - MFR E-12
A63: Total Prop. Base Inc. per COS | C63: =$O$32 -> 1133592.631
C64: =C63/B59 -> 0.01050996145 | D64: Increase divided by Retail Sales
A65: Unbilled Sales | C65: 29011.87712 | D65: Per Sales FC - diff. between Unbilled at beg of 2018 and end of 2018
A66: Unbilled Revenue | C66: =C64*C65 -> 304.9137102 | D66: Unbilled revenue associated with Increase only (doesn't include present unbilled)

Sheet E-6b Proposed Equalized
A1: OPC 015200
A2: FPL RC-16
A4: MFR E-6b - COST OF SERVICE STUDY - UNIT COSTS
A5: (12CP & 25% PROD and 12CP TRAN)
A6: 2018 PROPOSED RATES - EQUALIZED - DETAIL
A7: ($000 WHERE APPLICABLE)
B9: (1) | C9: (2) | D9: (3) | E9: (4) | F9: (5) | G9: (6) | H9: (7) | I9: (8) | J9: (9) | K9: (2) | L9: (3) | M9: (4) | N9: (5) | O9: (6) | P9: (7) | Q9: (8) | R9: (9) | S9: (2) | T9: (3)
A11: Line No. | C11: Total Retail | D11: CILC-1D | E11: CILC-1G | F11: CILC-1T | G11: GS(T)-1 | H11: GSCU-1 | I11: GSD(T)-1 | J11: GSLD(T)-1 | K11: GSLD(T)-2 | L11: GSLD(T)-3 | M11: MET | N11: OL-1 | O11: OS-2 | P11: RS(T)-1 | Q11: SL-1 | R11: SL-2 | S11: SST-DST | T11: SST-TST
A12: 1 | B12: Demand
A13: =A12+1 -> 2 | B13: Revenue Requirements
A14: 3 | B14: Production - Steam | C14: =SUM(D14:T14) -> 203032.5229 | D14: 3754.414239 | E14: 146.7925673 | F14: 1990.174469 | G14: 11429.42141 | H14: 92.47510527 | I14: 44077.36715 | J14: 17465.65639 | K14: 3401.567948 | L14: 182.555023 | M14: 152.9396367 | N14: 20.16173427 | O14: 14.05392346 | P14: 120022.8903 | Q14: 120.8655061 | R14: 43.49573324 | S14: 18.18493662 | T14: 99.50683021
A15: 4 | B15: Production - Nuclear | C15: 949519.4091 | D15: 17516.97658 | E15: 684.957045 | F15: 9285.688009 | G15: 53332.20159 | H15: 431.5622858 | I15: 205662.1506 | J15: 82914.66203 | K15: 16346.40815 | L15: 1127.554601 | M15: 713.63326 | N15: 94.11095239 | O15: 65.56386999 | P15: 560027.6211 | Q15: 563.9489056 | R15: 202.9875783 | S15: 84.8488096 | T15: 464.533741
A16: 5 | B16: Production - Other Production | C16: 1375903.542 | D16: 25379.31007 | E16: 992.6747529 | F16: 13454.0111 | G16: 77294.87516 | H16: 625.6889377 | I16: 298015.3647 | J16: 120108.8565 | K16: 23679.39323 | L16: 1633.055253 | M16: 1034.204631 | N16: 136.5287636 | O16: 94.95970655 | P16: 811546.0418 | Q16: 817.1857756 | R16: 294.3041362 | S16: 122.9465541 | T16: 674.140898
A17: 6 | B17: Production - Other Power Supply | C17: 10654.04765 | D17: 196.62635 | E17: 7.682689122 | F17: 104.2199153 | G17: 598.1249225 | H17: 4.835369882 | I17: 2307.622606 | J17: 931.1549082 | K17: 183.5695499 | L17: 12.66906268 | M17: 8.004940608 | N17: 1.052682478 | O17: 0.7366165579 | P17: 6283.002636 | Q17: 6.327887182 | R17: 2.274172714 | S17: 0.9521230912 | T17: 5.191213237
A18: 7 | B18: Production - Curtailment Credit | C18: 514.139053 | D18: 8.999606698 | E18: 0.3775355138 | F18: 4.744805196 | G18: 29.83686799 | H18: 0.2486564437 | I18: 111.3125643 | J18: 40.49406024 | K18: 8.064103642 | L18: 0.59273829 | M18: 0.392088629 | N18: 0.05567572586 | O18: 0.02987090667 | P18: 308.2368295 | Q18: 0.3134377834 | R18: 0.1169408064 | S18: 0.04592214778 | T18: 0.2773491643
A19: 8 | B19: Transmission | C19: 600541.7481 | D19: 11076.6669 | E19: 433.2970174 | F19: 5872.020001 | G19: 33739.34282 | H19: 273.1522191 | I19: 130075.0237 | J19: 52417.13374 | K19: 10334.05583 | L19: 712.6393227 | M19: 451.4195627 | N19: 59.61769727 | O19: 41.43900368 | P19: 354222.7027 | Q19: 356.677332 | R19: 128.483461 | S19: 53.66193429 | T19: 294.4148626
A20: 9 | B20: Distribution - Land & Land Rights | C20: 5481.734006 | D20: 91.8218004 | E20: 3.60829117 | F20: 0 | G20: 327.0253135 | H20: 2.26156791 | I20: 1159.250119 | J20: 472.8451656 | K20: 88.90025242 | L20: 0 | M20: 4.106379376 | N20: 6.649696023 | O20: 2.855132786 | P20: 3280.640096 | Q20: 38.76058845 | R20: 1.04648508 | S20: 1.963117839 | T20: 0
A21: 10 | B21: Distribution - Structures & Improvements | C21: 23148.15018 | D21: 388.7503512 | E21: 15.2027374 | F21: 0 | G21: 1376.885616 | H21: 9.465787879 | I21: 4895.529954 | J21: 2008.030088 | K21: 377.4599192 | L21: 0 | M21: 17.30953467 | N21: 27.54974621 | O21: 12.15861813 | P21: 13843.43639 | Q21: 163.6987273 | R21: 4.378082617 | S21: 8.294627013 | T21: 0
A22: 11 | B22: Distribution - Station Equipment | C22: 263346.1372 | D22: 4423.176246 | E22: 172.9360734 | F22: 0 | G22: 15662.00681 | H22: 107.6421033 | I22: 55694.39548 | J22: 22850.51994 | K22: 4295.294931 | L22: 0 | M22: 196.9060616 | N22: 313.1311626 | O22: 138.3777082 | P22: 157485.2563 | Q22: 1862.342286 | R22: 49.78514405 | S22: 94.36689597 | T22: 0
A23: 12 | B23: Distribution - Poles, Towers & Fixtures | C23: 271693.9798 | D23: 4478.697291 | E23: 178.4559206 | F23: 0 | G23: 16173.48724 | H23: 111.1764736 | I23: 57500.22015 | J23: 23545.74454 | K23: 4363.608461 | L23: 0 | M23: 193.1386616 | N23: 323.5095064 | O23: 141.0894125 | P23: 162617.8868 | Q23: 1922.98979 | R23: 51.42049392 | S23: 92.55509883 | T23: 0
A24: 13 | B24: Distribution - Overhead Conductors & Devices | C24: 521796.1458 | D24: 8109.70226 | E24: 342.7765309 | F24: 0 | G24: 31128.88546 | H24: 213.8005884 | I24: 110669.0428 | J24: 45106.60877 | K24: 7992.66599 | L24: 0 | M24: 312.0877952 | N24: 621.2221994 | O24: 261.6477834 | P24: 313086.4504 | Q24: 3702.766611 | R24: 98.87900898 | S24: 149.6096091 | T24: 0
A25: 14 | B25: Distribution - Underground Conduit | C25: 223697.7375 | D25: 3659.653763 | E25: 146.9519182 | F25: 0 | G25: 13322.29267 | H25: 91.59825255 | I25: 47355.57037 | J25: 19373.88535 | K25: 3570.125723 | L25: 0 | M25: 155.7637123 | N25: 266.6454089 | O25: 115.5938167 | P25: 133938.8514 | Q25: 1583.801326 | R25: 42.36607075 | S25: 74.63769957 | T25: 0
A26: 15 | B26: Distribution - Underground Conductors & Devices | C26: 336014.7862 | D26: 5358.701268 | E26: 220.7585293 | F26: 0 | G26: 20031.39754 | H26: 137.6933715 | I26: 71199.29362 | J26: 29066.1866 | K26: 5253.164459 | L26: 0 | M26: 217.4436784 | N26: 400.6583243 | O26: 170.9870554 | P26: 201408.9062 | Q26: 2381.707605 | R26: 63.68480241 | S26: 104.2031526 | T26: 0
A27: 16 | B27: Distribution - Primary Capacitors and Regulators | C27: 26387.2379 | D27: 443.2063882 | E27: 17.32799103 | F27: 0 | G27: 1569.309994 | H27: 10.78529196 | I27: 5580.570182 | J27: 2289.673554 | K27: 430.3979098 | L27: 0 | M27: 19.7297975 | N27: 31.37297221 | O27: 13.86591958 | P27: 15779.94751 | Q27: 186.606562 | R27: 4.988254383 | S27: 9.455571651 | T27: 0
A28: 17 | B28: Distribution - Secondary Transformers | C28: 216649.1165 | D28: 1308.464129 | E28: 84.26460548 | F28: 0 | G28: 10434.94767 | H28: 45.47649195 | I28: 30194.89219 | J28: 10553.11805 | K28: 1489.567073 | L28: 0 | M28: 0 | N28: 127.7016671 | O28: 53.57885548 | P28: 161577.2314 | Q28: 759.5700182 | R28: 20.30436889 | S28: 0 | T28: 0
A29: =A28+1 -> 18 | B29: Sub-Total Revenue Requirements | C29: =SUM(C14:C28) -> 5028380.434 | D29: =SUM(D14:D28) -> 86195.16724 | E29: 3448.064205 | F29: 30710.8583 | G29: 286450.0411 | H29: 2157.862503 | I29: 1064497.606 | J29: 429144.5697 | K29: 81814.24354 | L29: 3669.066001 | M29: 3477.07974 | N29: 2429.968189 | O29: 1126.937293 | P29: 3015429.102 | Q29: 14467.56236 | R29: 1008.514733 | S29: 815.7260523 | T29: 1538.064894
A30: 23 | B30: Sub-Total Billing Units (Annual) | C30: =SUM(D30:T30) -> 6.425803237e+10 | D30: 5177848.808 | E30: 203722.0568 | F30: 2829345.973 | G30: 6001791085 | H30: 71082174 | I30: 70701549.26 | J30: 25443126.93 | K30: 5233521.579 | L30: 433959.7208 | M30: 230510.5193 | N30: 97314768 | O30: 10819466 | P30: 57361215879 | Q30: 570960264 | R30: 33455312 | S30: 54718.01142 | T30: 1085122.76
B31: Demand Unit Costs - Equalized | D31: =ROUND((D29*1000)/D30,2) -> 16.65 | E31: =ROUND((E29*1000)/E30,2) -> 16.93 | F31: 10.85 | G31: 0.05 | H31: 0.03 | I31: 15.06 | J31: 16.87 | K31: 15.63 | L31: 8.45 | M31: 15.08 | N31: 0.02 | O31: 0.1 | P31: =ROUND((P29*1000)/P30,5) -> 0.05257 | Q31: =ROUND((Q29*1000)/Q30,5) -> 0.02534 | R31: =ROUND((R29*1000)/R30,5) -> 0.03015 | S31: 14.91 | T31: 1.42
B32: % Distribution to Total | C32: =SUM(C20:C28)/C29 -> 0.3755115688 | D32: =SUM(D20:D28)/D29 -> 0.3278858247 | E32: 0.3428829996 | F32: 0 | G32: 0.3841027144 | H32: 0.3382513612 | I32: 0.3609672418 | J32: 0.3618049092 | K32: 0.3405419828 | L32: 0 | M32: 0.3210986529 | N32: 0.8717977021 | O32: 0.8076352673 | P32: 0.3856892559 | Q32: 0.8710688921 | R32: 0.3340087159 | S32: 0.6559625881 | T32: 0
A33: =A30+1 -> 24 | B33: Energy
A34: =A33+1 -> 25 | B34: Revenue Requirements
A35: 15 | B35: Production - Steam | C35: =SUM(D35:T35) -> 155624.6176 | D35: 3842.692163 | E35: 146.4542988 | F35: 2142.789501 | G35: 8679.273573 | H35: 102.7392105 | I35: 37457.26596 | J35: 15209.93662 | K35: 3593.491793 | L35: 245.54924 | M35: 128.9237768 | N35: 141.2821901 | O35: 15.25704506 | P35: 82902.42567 | Q35: 825.3361871 | R35: 48.35928354 | S35: 16.74601029 | T35: 126.0950702
A36: 16 | B36: Production - Nuclear | C36: =SUM(D36:T36) -> 590748.1287 | D36: 14586.42805 | E36: 555.9541213 | F36: 8133.863769 | G36: 32947.56115 | H36: 390.0393461 | I36: 142187.2926 | J36: 57733.28535 | K36: 13640.05254 | L36: 932.0004489 | M36: 489.4037816 | N36: 536.4354917 | O36: 57.91049845 | P36: 314698.9847 | Q36: 3132.950022 | R36: 183.5923961 | S36: 63.56719542 | T36: 478.8072095
A37: 17 | B37: Production - Other Production | C37: =SUM(D37:T37) -> 540598.9101 | D37: 13347.09831 | E37: 508.8048887 | F37: 7442.975154 | G37: 30154.05173 | H37: 357.0503434 | I37: 130117.4947 | J37: 52822.3813 | K37: 12479.86347 | L37: 852.6049255 | M37: 447.8905195 | N37: 491.2625597 | O37: 52.97969988 | P37: 287992.6563 | Q37: 2866.972689 | R37: 168.0674528 | S37: 58.16998095 | T37: 438.5859752
A38: 18 | B38: Customer - Uncollectible Accounts | C38: =SUM(D38:T38) -> -229.0624107 | D38: 0 | E38: 0 | F38: 0 | G38: -20.76425777 | H38: 0 | I38: -19.66195207 | J38: -1.062687508 | K38: 0 | L38: 0 | M38: 0 | N38: -1.440037727 | O38: 0 | P38: -180.3030511 | Q38: -5.830424549 | R38: 0 | S38: 0 | T38: 0
A39: =A38+1 -> 19 | B39: Sub-Total Revenue Requirements | C39: =SUM(C35:C38) -> 1286742.594 | D39: 31776.21852 | E39: 1211.213309 | F39: 17719.62842 | G39: 71760.1222 | H39: 849.8288999 | I39: 309742.3914 | J39: 125764.5406 | K39: 29713.4078 | L39: 2030.154614 | M39: 1066.218078 | N39: 1167.540204 | O39: 126.1472434 | P39: 685413.7637 | Q39: 6819.428473 | R39: 400.0191324 | S39: 138.4831867 | T39: 1043.488255
A40: 23 | B40: Sub-Total Billing Units (Annual) | C40: =SUM(D40:T40) -> 107858876175 | D40: 2686957625 | E40: 101508535 | F40: 1532421391 | G40: 6001791085 | H40: 71082174 | I40: 25949742256 | J40: 10561627481 | K40: 2511431587 | L40: 175782528 | M40: 91241144 | N40: 97314768 | O40: 10819466 | P40: 57361215879 | Q40: 570960264 | R40: 33455312 | S40: 11856926 | T40: 89667754
A41: =A40+1 -> 24 | B41: Energy Unit Costs - Equalized | D41: =ROUND((D39*1000)/D40,5) -> 0.01183 | E41: =ROUND((E39*1000)/E40,5) -> 0.01193 | F41: 0.01156 | G41: 0.01196 | H41: 0.01196 | I41: 0.01194 | J41: 0.01191 | K41: 0.01183 | L41: 0.01155 | M41: 0.01169 | N41: 0.012 | O41: 0.01166 | P41: 0.01195 | Q41: 0.01194 | R41: 0.01196 | S41: 0.01168 | T41: 0.01164
A42: =A41+1 -> 25 | B42: Customer
A43: =A42+1 -> 26 | B43: Revenue Requirements
A44: 4 | B44: Transmission Pull-Offs | C44: =SUM(D44:T44) -> 1214.062417 | D44: 0 | E44: 0 | F44: 541.4700644 | G44: 0 | H44: 0 | I44: 0 | J44: 0 | K44: 0 | L44: 222.5288844 | M44: 0 | N44: 0 | O44: 0 | P44: 0 | Q44: 0 | R44: 0 | S44: 0 | T44: 450.0634682
A45: 5 | B45: Distribution - Meters | C45: 169255.6872 | D45: 812.9635422 | E45: 85.27023424 | F45: 120.9984824 | G45: 17515.91204 | H45: 211.2471135 | I45: 15228.6211 | J45: 1832.791354 | K45: 497.4657061 | L45: 39.78770468 | M45: 195.7393185 | N45: 0 | O45: 167.2811949 | P45: 132465.0511 | Q45: 0 | R45: 0 | S45: 21.52948544 | T45: 61.0287686
A46: 6 | B46: Distribution - Installation on Customer's Premises | C46: 2331.758139 | D46: 0.1286227805 | E46: 0.02868295295 | F46: 0 | G46: 202.1171475 | H46: 5.09349994 | I46: 50.03367885 | J46: 1.448940281 | K46: 0.07320153868 | L46: 0 | M46: 0.01249342643 | N46: 26.42079079 | O46: 0.08374126625 | P46: 2046.314563 | Q46: 0 | R46: 0 | S46: 0.002776525899 | T46: 0
A47: 7 | B47: Distribution - Services | C47: 205259.12 | D47: 111.2876673 | E47: 3.723952889 | F47: 0 | G47: 17950.64751 | H47: 453.2027327 | I47: 4640.108618 | J47: 255.6198035 | K47: 73.53766486 | L47: 0 | M47: 46.3048557 | N47: 0 | O47: 99.90844319 | P47: 181614.496 | Q47: 0 | R47: 0 | S47: 10.28270682 | T47: 0
A48: 8 | B48: Customer - Meter Reading | C48: 22033.59911 | D48: 68.6715387 | E48: 10.86066162 | F48: 4.386199135 | G48: 4382.157948 | H48: 22.14394409 | I48: 3171.39364 | J48: 381.1515082 | K48: 61.807334 | L48: 1.607927774 | M48: 7.89916614 | N48: 0 | O48: 20.42711973 | P48: 13897.72374 | Q48: 0 | R48: 0 | S48: 0.8775410306 | T48: 2.490836561
A49: 9 | B49: Customer - Collections, Service and Sales | C49: 195162.0886 | D49: 10.85103862 | E49: 2.420926415 | F49: 0.663544262 | G49: 17060.45383 | H49: 430.1846253 | I49: 4222.045104 | J49: 122.2013314 | K49: 6.173817365 | L49: 0.2731873049 | M49: 1.054433665 | N49: 210.516717 | O49: 7.06071774 | P49: 172689.3966 | Q49: 361.5172271 | R49: 36.49366854 | S49: 0.2342826595 | T49: 0.5475777896
A50: 10 | B50: Customer - Field Collection - Late Pay Charges | C50: -63325.84852 | D50: -73.67614036 | E50: -4.817094002 | F50: 0 | G50: -4564.098989 | H50: -54.39759121 | I50: -3912.667052 | J50: -548.6196014 | K50: -134.1817675 | L50: -2.296597501 | M50: 0 | N50: -592.7111249 | O50: -0.05385550664 | P50: -53368.68434 | Q50: -58.87176357 | R50: -1.578058542 | S50: -1.733285619 | T50: -7.461260749
A51: 11 | B51: Customer - Initial Connection Charges | C51: -1850.017832 | D51: -0.07446289421 | E51: 0 | F51: 0 | G51: -496.0516566 | H51: 0 | I51: -55.76096449 | J51: -1.117146549 | K51: -0.03723616371 | L51: 0 | M51: 0 | N51: 0 | O51: 0 | P51: -1296.976365 | Q51: 0 | R51: 0 | S51: 0 | T51: 0
A52: 12 | B52: Customer - Connection of Existing Acct Charges | C52: -14187.85237 | D52: -0.04770988387 | E52: -0.02385677793 | F52: 0 | G52: -720.261034 | H52: 0 | I52: -82.92711688 | J52: -1.169334882 | K52: -0.0119306178 | L52: 0 | M52: 0 | N52: 0 | O52: 0 | P52: -13383.41139 | Q52: 0 | R52: 0 | S52: 0 | T52: 0
A53: 13 | B53: Customer - Reconnection Charges | C53: -10851.19351 | D53: 0 | E53: 0 | F53: 0 | G53: -559.5471631 | H53: 0 | I53: -22.99496716 | J53: 0 | K53: 0 | L53: 0 | M53: 0 | N53: 0 | O53: 0 | P53: -10268.65138 | Q53: 0 | R53: 0 | S53: 0 | T53: 0
A54: 14 | B54: Customer - Returned Check Charges | C54: -6954.867483 | D54: -4.139134508 | E54: 0 | F54: 0 | G54: -306.4798582 | H54: 0 | I54: -178.3402608 | J54: -11.65088241 | K54: 0 | L54: 0 | M54: 0 | N54: -10.64304378 | O54: 0 | P54: -6443.261208 | Q54: -0.3530959907 | R54: 0 | S54: 0 | T54: 0
A55: 15 | B55: Customer - Current Diversion Charges | C55: -1420.836193 | D55: 0 | E55: 0 | F55: 0 | G55: -31.48609446 | H55: 0 | I55: -11.75908026 | J55: -1.602221429 | K55: 0 | L55: 0 | M55: 0 | N55: 0 | O55: 0 | P55: -1375.988797 | Q55: 0 | R55: 0 | S55: 0 | T55: 0
A56: 16 | B56: Customer - Other Billings (Charges) | C56: -2204.25295 | D56: -0.1226235283 | E56: -0.02734909118 | F56: -0.007498222105 | G56: -192.6582212 | H56: -4.857508586 | I56: -47.69747235 | J56: -1.38114853 | K56: -0.06977824797 | L56: -0.003088262496 | M56: -0.01191187337 | N56: -2.374469819 | O56: -0.0798169327 | P56: -1950.458003 | Q56: -4.083174701 | R56: -0.4120626228 | S56: -0.002647083569 | T56: -0.006176527979
A57: 17 | B57: Customer - Reimbursements - Other Charges | C57: =SUM(D57:T57) -> 1429.366609 | D57: 0.1492530311 | E57: 0.04975409872 | F57: 0 | G57: 208.4397714 | H57: 2.562803218 | I57: 49.90125256 | J57: 1.181947458 | K57: 0.07464239565 | L57: 0 | M57: 0 | N57: 2.943051017 | O57: 0.09952635527 | P57: 1159.228912 | Q57: 4.300267471 | R57: 0.4354276698 | S57: 0 | T57: 0
A58: =A57+1 -> 18 | B58: Sub-Total Revenue Requirements | C58: =SUM(C44:C57) -> 495890.8132 | D58: =SUM(D44:D57) -> 925.9915915 | E58: 97.48591235 | F58: 667.5107919 | G58: 50449.14524 | H58: 1065.179619 | I58: 23049.95648 | J58: 2028.854549 | K58: 504.8316537 | L58: 261.8980184 | M58: 250.9983556 | N58: -365.8480797 | O58: 294.7270708 | P58: 415784.7794 | Q58: 302.5094604 | R58: 34.93897504 | S58: 31.19085977 | T58: 506.6632139
A59: 23 | B59: Sub-Total Billing Units (Annual) | C59: =SUM(D59:T59) -> 761422387 | D59: 3336 | E59: 744 | F59: 204 | G59: 5232902 | H59: 132123 | I59: 1296800 | J59: 37565 | K59: 1898 | L59: 84 | M59: 324 | N59: 97314768 | O59: 2171 | P59: 52983652 | Q59: 570960264 | R59: 33455312 | S59: 72 | T59: 168
B61: Total Revenue Requirements | C61: =SUM(D61:T61) -> 6811013.841 | D61: =D58+D39+D29 -> 118897.3774 | E61: 4756.763426 | F61: 49097.99751 | G61: 408659.3085 | H61: 4072.871022 | I61: 1397289.954 | J61: 556937.9648 | K61: 112032.483 | L61: 5961.118634 | M61: 4794.296174 | N61: 3231.660313 | O61: 1547.811607 | P61: 4116627.645 | Q61: 21589.50029 | R61: 1443.472841 | S61: 985.4000988 | T61: 3088.216363
B63: Customer Unit Costs - Equalized | D63: =ROUND((D58*1000)/D59,0) -> 278 | E63: =ROUND((E58*1000)/E59,0) -> 131 | F63: 3272 | G63: 10 | H63: 8 | I63: =ROUND((I58*1000)/I59,0) -> 18 | J63: 54 | K63: 266 | L63: 3118 | M63: 775 | N63: 0 | O63: 136 | P63: 8 | Q63: =ROUND((Q58*1000)/Q59,5) -> 0.00053 | R63: =ROUND(((R58)*1000)/R59,5) -> 0.00104 | S63: 433 | T63: 3016
B65: Unmetered Service Credit | G65: 5 | H65: override to match UI calc.
B67: Current Customer Charge | D67: ='CILC-1D'!G12 -> 168.63 | E67: ='CILC-1G'!G12 -> 112.42 | F67: ='CILC-1T'!$G$12 -> 2220.26 | G67: ='GS(T)-1'!$I$13 -> 7.75 | H67: ='GSCU-1'!$H$13 -> 13.5 | I67: ='GSD(T)-1'!$K$12 -> 20.24 | J67: ='GSLD(T)-1'!$K$13 -> 61.83 | K67: ='GSLD(T)-2'!$K$13 -> 219.22 | L67: ='GSLD(T)-3'!$I$13 -> 1620.94 | M67: =MET!$H$13 -> 449.67 | O67: ='OS-2'!$G$13 -> 115.8 | P67: ='RS(T)-1'!$G$13 -> 7.87 | S67: ='SST-DST'!$G$12 -> 112.42 | T67: ='SST-TST'!$H$13 -> 1631.99
S68: ='SST-DST'!$G$40 -> 421.57 | T68: ='SST-TST'!$H$27 -> 2125.83
B69: Final Non-TOU & TOU Customer Charge to Use | D69: 300 | E69: 150 | F69: 3275 | G69: =G63+2 -> 12 | H69: 14 | I69: 25 | J69: 75 | K69: 275 | L69: 3125 | M69: 775 | O69: 150 | P69: 10 | S69: 125 | T69: 3025
S70: 450 | T70: 3025
B71: Current CDR Admin Adder | I71: ='GSD(T)-1'!K19 -> 84.31 | J71: ='GSLD(T)-1'!K19 -> 140.52 | K71: ='GSLD(T)-2'!K19 -> 56.21 | L71: ='GSLD(T)-3'!I18 -> 533.99
B73: Difference between CILC Cust Charge & corresponding GSD(L)(T) rate | I73: =E69-I69 -> 125 | J73: =D69-J69 -> 225 | K73: =D69-K69 -> 25 | L73: =F69-L69 -> 150
B75: CDR Admin Adder to Use | I75: 100 | J75: 150 | K75: 75 | L75: =L73 -> 150
B78: 1 For rate classes other than RS(T)-1 and GS(T)-1, the customer charge is set at the higher of current customer charge or unit cost rounded up to the nearest $25.
B79: 2 For rate classes RS(T)-1 and GS(T)-1, the customer charge is set at the higher of the current customer charge or unit cost rounded to the nearest dollar and then an additional $2 is added.
B80: 3 The TOU customer charge is set the same as the Non-TOU customer charge as there is no longer a significant difference between TOU and Non-TOU meter costs.
B81: 4Curtailable service customer charges are set to the proposed customer charge for the standard rate and then an additional $25 is added to cover program cost.
B82: 5The calculation for proposed metered lighting rate customer charges are shown on a separate workpaper.
B83: 6The "CDR Adder to Use" is based on the current CDR Adder rounded up to the nearest $25 except for the GSLDT-3 Adder which was set to the calculated amount due to the large difference in the calculated amount vs. the current adder.

Sheet CILC-1D
O1: OPC 015201
O2: FPL RC-16
D4: MFR E-14 Workpapers - 2018
D5: Rate Class CILC-1D | F5: Present Revenues (with WCEC3 in Base) | J5: Percent increase calculation | N5: Rounded | R5: Final adjustments to achieve target revenues
M6: =L30 -> 0.6894159256 | Q6: =P30 -> 0 | X6: =(T22-H22)/H22 -> 0.6962731775
A7: Ref. for linking data | E7: -1 | F7: =E7-1 -> -2 | G7: =F7-1 -> -3 | H7: -4 | I7: -5 | J7: -6 | K7: -7 | L7: -8 | M7: -9 | N7: -10 | O7: -11 | P7: -12 | Q7: -13 | R7: -14 | S7: -15 | T7: -16 | U7: -17 | V7: -18 | W7: -19 | X7: -20 | AA7: Override
D8: Line | E8: Type of | F8: Present Revenue Calculation | J8: Proposed Revenue Calculation | N8: Proposed Revenue Calculation | R8: Proposed Revenue Calculation | X8: Percent | AA8: Calculated
D9: No. | E9: Charges | F9: Units | G9: Charge/Unit | H9: $ Revenue | J9: Units | K9: Charge/Unit | L9: $ Revenue | N9: Units | O9: Charge/Unit | P9: $ Revenue | R9: Units | S9: Charge/Unit | T9: $ Revenue | X9: Increase
A10: Reference for Billing Units | B10: Reference for Rates | C10: Reference for Rates | D10: 1 | E10: RATE SCHEDULE CILC-1D - 54 | M10: Override | Q10: Override | Y10: Comparison of Unit Costs to Calculated Rates
D11: =D10+1 -> 2 | M11: Revenue | Q11: Revenue
A12: CILC-1D - 54Customer | B12: C/I Load Control Program, Distribution [CILC-1(D)] | C12: Customer Charge | D12: =D11+1 -> 3 | E12: Customer | F12: =VLOOKUP($A12,'Billing Determinants - Units'!$A$9:$B$1153,2,FALSE) -> 3336 | G12: =INDEX('Present Base Rates by Rate Code'!$A$4:$V$50,MATCH('CILC-1D'!$B12,'Present Base Rates by Rate Code'!$A$4:$A$50,0),MATCH('CILC-1D'!$C12,'Present Base Rates by Rate Code'!$A$4:$V$4,0)) -> 168.63 | H12: =F12*G12 -> 562549.68 | J12: =F12 -> 3336 | K12: ='E-6b Proposed Equalized'!$D$69 -> 300 | L12: =J12*K12 -> 1000800 | M12: =L12-H12 -> 438250.32 | N12: =F12 -> 3336 | O12: =ROUND(K12,0) -> 300 | P12: =N12*O12 -> 1000800 | Q12: =P12-L12 -> 0 | R12: =F12 -> 3336 | S12: =O12 -> 300 | T12: =R12*S12 -> 1000800 | V12: =S12/G12-1 -> 0.7790428749 | W12: =S12-G12 -> 131.37
B13: C/I Load Control Program, Distribution [CILC-1(D)] | D13: 4 | E13: Non-Fuel Energy | J13: =F13 -> 0 | N13: =F13 -> 0 | AA13: On-Peak
A14: CILC-1D - 54Non-Fuel Energy - On Peak | B14: C/I Load Control Program, Distribution [CILC-1(D)] | C14: On-Peak Energy Charge $/kWh | D14: 5 | E14: On Peak | F14: =VLOOKUP($A14,'Billing Determinants - Units'!$A$9:$B$1153,2,FALSE) -> 708452199 | G14: =INDEX('Present Base Rates by Rate Code'!$A$4:$V$50,MATCH('CILC-1D'!$B14,'Present Base Rates by Rate Code'!$A$4:$A$50,0),MATCH('CILC-1D'!$C14,'Present Base Rates by Rate Code'!$A$4:$V$4,0)) -> 0.00822 | H14: =F14*G14 -> 5823477.076 | J14: 708452199 | K14: =G14*(1+$M$6) -> 0.01388699891 | L14: =J14*K14 -> 9838274.914 | N14: 708452199 | O14: =ROUND(K14*(1+$Q$6),5) -> 0.01389 | P14: =N14*O14 -> 9840401.044 | R14: =F14 -> 708452199 | S14: =O14+T27 -> 0.01381 | T14: =R14*S14 -> 9783724.868 | V14: =S14/G14-1 -> 0.6800486618 | W14: =S14-G14 -> 0.00559 | AA14: Demand | AC14: Energy
A15: CILC-1D - 54Non-Fuel Energy - Off Peak | B15: C/I Load Control Program, Distribution [CILC-1(D)] | C15: Off-Peak Energy Charge $/kWh | D15: 6 | E15: Off Peak | F15: =VLOOKUP($A15,'Billing Determinants - Units'!$A$9:$B$1153,2,FALSE) -> 1978505426 | G15: =INDEX('Present Base Rates by Rate Code'!$A$4:$V$50,MATCH('CILC-1D'!$B15,'Present Base Rates by Rate Code'!$A$4:$A$50,0),MATCH('CILC-1D'!$C15,'Present Base Rates by Rate Code'!$A$4:$V$4,0)) -> 0.00822 | H15: =F15*G15 -> 16263314.6 | J15: 1978505426 | K15: =G15*(1+$M$6) -> 0.01388699891 | L15: =J15*K15 -> 27475502.69 | N15: 1978505426 | O15: =ROUND(K15*(1+$Q$6),5) -> 0.01389 | P15: =N15*O15 -> 27481440.37 | R15: =F15 -> 1978505426 | S15: =O15+T27 -> 0.01381 | T15: =R15*S15 -> 27323159.93 | V15: =S15/G15-1 -> 0.6800486618 | W15: =S15-G15 -> 0.00559
B16: C/I Load Control Program, Distribution [CILC-1(D)] | D16: 7 | E16: Demand | J16: 0 | N16: 0
A17: CILC-1D - 54Demand - Maximum | B17: C/I Load Control Program, Distribution [CILC-1(D)] | C17: Demand Charge $/kW | D17: 8 | E17: Max Demand | F17: =VLOOKUP($A17,'Billing Determinants - Units'!$A$9:$B$1153,2,FALSE) -> 6060261 | G17: =INDEX('Present Base Rates by Rate Code'!$A$4:$V$50,MATCH('CILC-1D'!$B17,'Present Base Rates by Rate Code'!$A$4:$A$50,0),MATCH('CILC-1D'!$C17,'Present Base Rates by Rate Code'!$A$4:$V$4,0)) -> 3.49 | H17: =F17*G17 -> 21150310.89 | J17: 6060261 | K17: =G17*(1+$M$6) -> 5.89606158 | L17: =J17*K17 -> 35731672.05 | N17: 6060261 | O17: =ROUND(K17*(1+$Q$6),1) -> 5.9 | P17: =N17*O17 -> 35755539.9 | R17: =F17 -> 6060261 | S17: =O17 -> 5.9 | T17: =R17*S17 -> 35755539.9 | V17: =S17/G17-1 -> 0.6905444126 | W17: =S17-G17 -> 2.41 | Y17: Billing Units | Z17: kW | AA17: =R18+R19 -> 5062687 | AB17: kWh | AC17: =R14+R15 -> 2686957625
A18: CILC-1D - 54Load Control On-Peak | B18: C/I Load Control Program, Distribution [CILC-1(D)] | C18: On-Peak Demand Charge $/kW | D18: 9 | E18: Load Control On-Peak | F18: =VLOOKUP($A18,'Billing Determinants - Units'!$A$9:$B$1153,2,FALSE) -> 4394595 | G18: =INDEX('Present Base Rates by Rate Code'!$A$4:$V$50,MATCH('CILC-1D'!$B18,'Present Base Rates by Rate Code'!$A$4:$A$50,0),MATCH('CILC-1D'!$C18,'Present Base Rates by Rate Code'!$A$4:$V$4,0)) -> 2.52 | H18: =F18*G18 -> 11074379.4 | J18: 4394595 | K18: =G18*(1+$M$6) -> 4.257328133 | L18: =J18*K18 -> 18709232.92 | N18: 4394595 | O18: =ROUND(K18*(1+$Q$6),1) -> 4.3 | P18: =N18*O18 -> 18896758.5 | R18: =F18 -> 4394595 | S18: =O18 -> 4.3 | T18: =R18*S18 -> 18896758.5 | V18: =S18/G18-1 -> 0.7063492063 | W18: =S18-G18 -> 1.78
A19: CILC-1D - 54Firm On-Peak | B19: C/I Load Control Program, Distribution [CILC-1(D)] | C19: Firm On-Peak Demand Charge $/kW | D19: 10 | E19: Firm On-Peak | F19: =VLOOKUP($A19,'Billing Determinants - Units'!$A$9:$B$1153,2,FALSE) -> 668092 | G19: =INDEX('Present Base Rates by Rate Code'!$A$4:$V$50,MATCH('CILC-1D'!$B19,'Present Base Rates by Rate Code'!$A$4:$A$50,0),MATCH('CILC-1D'!$C19,'Present Base Rates by Rate Code'!$A$4:$V$4,0)) -> 9.06 | H19: =F19*G19 -> 6052913.52 | J19: 668092 | K19: =G19*(1+$M$6) -> 15.30610829 | L19: =J19*K19 -> 10225888.5 | N19: 668092 | O19: =ROUND(K19*(1+$Q$6),1) -> 15.3 | P19: =N19*O19 -> 10221807.6 | R19: =F19 -> 668092 | S19: =O19 -> 15.3 | T19: =R19*S19 -> 10221807.6 | V19: =S19/G19-1 -> 0.6887417219 | W19: =S19-G19 -> 6.24 | Y19: Unit Costs per E-6b | AA19: ='E-6b Proposed Equalized'!D31 -> 16.65 | AC19: ='E-6b Proposed Equalized'!D41 -> 0.01183
A20: CILC-1D - 54Transformation Credit | B20: C/I Load Control Program, Distribution [CILC-1(D)] | C20: Transformation Rider Credit ($/kW) | D20: 11 | E20: Transformation Credit | F20: =VLOOKUP($A20,'Billing Determinants - Units'!$A$9:$B$1153,2,FALSE) -> 1364733 | G20: =INDEX('Present Base Rates by Rate Code'!$A$4:$V$50,MATCH('CILC-1D'!$B20,'Present Base Rates by Rate Code'!$A$4:$A$50,0),MATCH('CILC-1D'!$C20,'Present Base Rates by Rate Code'!$A$4:$V$4,0)) -> -0.3 | H20: =F20*G20 -> -409419.9 | J20: 1364733 | K20: ='Transformer Credit'!$E$9 -> -0.24 | L20: =J20*K20 -> -327535.92 | M20: =L20-H20 -> 81883.98 | N20: 1364733 | O20: =K20 -> -0.24 | P20: =N20*O20 -> -327535.92 | Q20: =P20-L20 -> 0 | R20: =F20 -> 1364733 | S20: =O20 -> -0.24 | T20: =R20*S20 -> -327535.92 | V20: =S20/G20-1 -> -0.2 | W20: =S20-G20 -> 0.06
D21: 12 | Y21: Rate Calculated | AA21: =S19+S18 -> 19.6 | AC21: =S14 -> 0.01381
D22: 13 | E22: TOTAL | H22: =SUM(H12:H21) -> 60517525.27 | L22: =SUM(L12:L21) -> 102653835.2 | M22: =SUM(M12:M20) -> 520134.3 | P22: =SUM(P12:P21) -> 102869211.5 | Q22: =SUM(Q12:Q20) -> 0 | T22: =SUM(T12:T21) -> 102654254.9 | X22: =T22/H22-1 -> 0.6962731775
D23: 14 | Y23: Difference | AA23: =AA21-AA19 -> 2.95 | AC23: =AC21-AC19 -> 0.00198
D24: 15 | J24: a | K24: target revenue | L24: =('E-8 Parity Analysis Final'!W15*1000)+H22 -> 102653835.2 | N24: a | O24: target revenue | P24: =L24 -> 102653835.2 | S24: Increase | T24: =+T22-H22 -> 42136729.61
D25: 16 | J25: b | K25: Present revenue | L25: =H22 -> 60517525.27 | N25: b | O25: Present revenue | P25: =L22 -> 102653835.2 | S25: Target revenues | T25: =L34 -> 42136309.89 | Y25: % Difference | AA25: =AA23/AA19 -> 0.1771771772 | AC25: =AC23/AC19 -> 0.1673710904
D26: 17 | J26: c | K26: Proposed Increase | L26: =L24-L25 -> 42136309.89 | N26: c | O26: Proposed Increase | P26: =P24-P25 -> 0 | S26: Difference | T26: =+T24-T25 -> 419.7241027
D27: 18 | J27: d | K27: Override Revenue | L27: =M22 -> 520134.3 | N27: d | O27: Override Revenue | P27: =Q22 -> 0 | S27: Adjustment | T27: -8e-05 | Y27: Note: Unit costs per E-6b did not include an adjustment to reset
D28: 19 | J28: e | K28: Increase of Non-Override Revenue | L28: =L26-L27 -> 41616175.59 | N28: e | O28: Increase of Non-Override Revenue | P28: =P26-P27 -> 0 | Y28: the CILC load control "credit".
D29: 20 | J29: f | K29: Non-Override Revenue | L29: =H14+H15+H17+H18+H19 -> 60364395.49 | N29: f | O29: Non-Override Revenue | P29: =L14+L15+L17+L18+L19 -> 101980571.1
D30: 21 | J30: g | K30: adjustment factor | L30: =L28/L29 -> 0.6894159256 | N30: g | O30: adjustment factor | P30: =P28/P29 -> 0 | S30: Per UII | T30: 102654255
D31: 22 | S31: Difference | T31: =T22-T30 -> -0.1187500209
D32: 23
D33: 24 | K33: Increase | L33: =L22-H22 -> 42136309.89 | O33: Increase | P33: =P22-L22 -> 215376.3341
D34: 25 | K34: Target Increase | L34: =L26 -> 42136309.89 | O34: Target Increase | P34: =P24-L22 -> 0
D35: 26 | K35: Difference | L35: =L33-L34 -> 0 | O35: Difference | P35: =P33-P34 -> 215376.3341
D36: =D35+1 -> 27
D37: 28
D38: 29
D39: 30
D40: 31 | E40: Step 1 - Set customer charge and CDR adder (if applicable) based on customer charge workpaper; transformation credit (if applicable) based on transformer credit workpaper; curtailment credit (if applicable) based on present curtailment credit;
D41: 32 | E41: and CDR credit (if applicable) based on CILC/CDR credit workpaper. These revenues/credits become "override revenues". Exclude override revenue from % increase calculations and apply the percent increase to only non-override rates.
D42: 33 | E42: Step 2 - Round results of Step 1
D43: 34 | E43: Step 3 - Calculate revenue neutral and/or rounding adjustment. For rate classes with SDTR, refer to SDTR workpaper.
D44: 35 | E44: Step 4 - Compare to Unit Costs for reasonableness. Depending on changes in other rates (Customer, Demand, etc.), unit costs may differ from final energy rates to achieve target revenues.
D45: 36
D46: 37 | E46: Footnotes:
D47: 38 | E47: 1 Firm On_Peak and Load Control On-Peak unit costs are calculated based on total On-Peak demand. When calculating revenues for rate design, however, the firm on-peak rate is multiplied by firm demand and the load control on-peak demand is multiplied by load control on-peak
D48: 39 | E48: demand. This results in a difference between the rates needed to obtain target revenue requirements and the unit costs calculated.

Sheet CILC-1G
A1: OPC 015202
A2: FPL RC-16
D4: MFR E-14 Workpapers - 2018
D5: Rate Class CILC-1G | F5: Present Revenues (with WCEC3 in Base) | J5: Percent increase calculation | N5: Rounded | R5: Final adjustments to achieve target revenues
M6: =L30 -> 0.3363917428 | Q6: 0 | X6: =(T22-H22)/H22 -> 0.3365661823
A7: Ref. for linking data | E7: -1 | F7: =E7-1 -> -2 | G7: =F7-1 -> -3 | H7: -4 | I7: -5 | J7: -6 | K7: -7 | L7: -8 | M7: -9 | N7: -10 | O7: -11 | P7: -12 | Q7: -13 | R7: -14 | S7: -15 | T7: -16 | U7: -17 | V7: -18 | W7: -19 | X7: -20 | AA7: Override
D8: Line | E8: Type of | F8: Present Revenue Calculation | J8: Proposed Revenue Calculation | N8: Proposed Revenue Calculation | R8: Proposed Revenue Calculation | X8: Percent | AA8: Calculated
D9: No. | E9: Charges | F9: Units | G9: Charge/Unit | H9: $ Revenue | J9: Units | K9: Charge/Unit | L9: $ Revenue | N9: Units | O9: Charge/Unit | P9: $ Revenue | R9: Units | S9: Charge/Unit | T9: $ Revenue | X9: Increase
A10: Reference for Billing Units | B10: Reference for Rates | C10: Reference for Rates | D10: 1 | E10: RATE SCHEDULE CILC-1G - 56 | M10: Override | Q10: Override | Y10: Comparison of Unit Costs to Calculated Rates
D11: =D10+1 -> 2 | M11: Revenue | Q11: Revenue
A12: CILC-1G - 56Customer | B12: C/I Load Control, General Service [CILC-1(G)] | C12: Customer Charge | D12: =D11+1 -> 3 | E12: Customer | F12: =VLOOKUP($A12,'Billing Determinants - Units'!$A$9:$B$1153,2,FALSE) -> 744 | G12: =INDEX('Present Base Rates by Rate Code'!$A$4:$V$50,MATCH('CILC-1G'!$B12,'Present Base Rates by Rate Code'!$A$4:$A$50,0),MATCH('CILC-1G'!$C12,'Present Base Rates by Rate Code'!$A$4:$V$4,0)) -> 112.42 | H12: =F12*G12 -> 83640.48 | J12: =F12 -> 744 | K12: ='E-6b Proposed Equalized'!$E$69 -> 150 | L12: =J12*K12 -> 111600 | M12: =L12-H12 -> 27959.52 | N12: =F12 -> 744 | O12: =ROUND(K12,0) -> 150 | P12: =N12*O12 -> 111600 | Q12: =P12-L12 -> 0 | R12: =F12 -> 744 | S12: =O12 -> 150 | T12: =R12*S12 -> 111600 | V12: =S12/G12-1 -> 0.3342821562 | W12: =S12-G12 -> 37.58
B13: C/I Load Control, General Service [CILC-1(G)] | D13: 4 | E13: Non-Fuel Energy | J13: =F13 -> 0 | N13: =F13 -> 0 | AA13: On-Peak
A14: CILC-1G - 56Non-Fuel Energy - On Peak | B14: C/I Load Control, General Service [CILC-1(G)] | C14: On-Peak Energy Charge $/kWh | D14: 5 | E14: On Peak | F14: =VLOOKUP($A14,'Billing Determinants - Units'!$A$9:$B$1153,2,FALSE) -> 27690941 | G14: =INDEX('Present Base Rates by Rate Code'!$A$4:$V$50,MATCH('CILC-1G'!$B14,'Present Base Rates by Rate Code'!$A$4:$A$50,0),MATCH('CILC-1G'!$C14,'Present Base Rates by Rate Code'!$A$4:$V$4,0)) -> 0.01425 | H14: =F14*G14 -> 394595.9093 | J14: 27690941 | K14: =G14*(1+$M$6) -> 0.01904358234 | L14: =J14*K14 -> 527334.7149 | N14: 27690941 | O14: =ROUND(K14*(1+$Q$6),5) -> 0.01904 | P14: =N14*O14 -> 527235.5166 | R14: =F14 -> 27690941 | S14: =O14+T27 -> 0.01899 | T14: =R14*S14 -> 525850.9696 | V14: =S14/G14-1 -> 0.3326315789 | W14: =S14-G14 -> 0.00474 | AA14: Demand | AC14: Energy
A15: CILC-1G - 56Non-Fuel Energy - Off Peak | B15: C/I Load Control, General Service [CILC-1(G)] | C15: Off-Peak Energy Charge $/kWh | D15: 6 | E15: Off Peak | F15: =VLOOKUP($A15,'Billing Determinants - Units'!$A$9:$B$1153,2,FALSE) -> 73817594 | G15: =INDEX('Present Base Rates by Rate Code'!$A$4:$V$50,MATCH('CILC-1G'!$B15,'Present Base Rates by Rate Code'!$A$4:$A$50,0),MATCH('CILC-1G'!$C15,'Present Base Rates by Rate Code'!$A$4:$V$4,0)) -> 0.01425 | H15: =F15*G15 -> 1051900.715 | J15: 73817594 | K15: =G15*(1+$M$6) -> 0.01904358234 | L15: =J15*K15 -> 1405751.429 | N15: 73817594 | O15: =ROUND(K15*(1+$Q$6),5) -> 0.01904 | P15: =N15*O15 -> 1405486.99 | R15: =F15 -> 73817594 | S15: =O15+T27 -> 0.01899 | T15: =R15*S15 -> 1401796.11 | V15: =S15/G15-1 -> 0.3326315789 | W15: =S15-G15 -> 0.00474
B16: C/I Load Control, General Service [CILC-1(G)] | D16: 7 | E16: Demand | J16: 0 | N16: 0
A17: CILC-1G - 56Demand - Maximum | B17: C/I Load Control, General Service [CILC-1(G)] | C17: Demand Charge $/kW | D17: 8 | E17: Max Demand | F17: =VLOOKUP($A17,'Billing Determinants - Units'!$A$9:$B$1153,2,FALSE) -> 275382 | G17: =INDEX('Present Base Rates by Rate Code'!$A$4:$V$50,MATCH('CILC-1G'!$B17,'Present Base Rates by Rate Code'!$A$4:$A$50,0),MATCH('CILC-1G'!$C17,'Present Base Rates by Rate Code'!$A$4:$V$4,0)) -> 3.82 | H17: =F17*G17 -> 1051959.24 | J17: 275382 | K17: =G17*(1+$M$6) -> 5.105016458 | L17: =J17*K17 -> 1405829.642 | N17: 275382 | O17: =ROUND(K17*(1+$Q$6),1) -> 5.1 | P17: =N17*O17 -> 1404448.2 | R17: =F17 -> 275382 | S17: =O17 -> 5.1 | T17: =R17*S17 -> 1404448.2 | V17: =S17/G17-1 -> 0.335078534 | W17: =S17-G17 -> 1.28 | Y17: Billing Units | Z17: kW | AA17: =R18+R19 -> 212066 | AB17: kWh | AC17: =R14+R15 -> 101508535
A18: CILC-1G - 56Load Control On-Peak | B18: C/I Load Control, General Service [CILC-1(G)] | C18: On-Peak Demand Charge $/kW | D18: 9 | E18: Load Control On-Peak | F18: =VLOOKUP($A18,'Billing Determinants - Units'!$A$9:$B$1153,2,FALSE) -> 206331 | G18: =INDEX('Present Base Rates by Rate Code'!$A$4:$V$50,MATCH('CILC-1G'!$B18,'Present Base Rates by Rate Code'!$A$4:$A$50,0),MATCH('CILC-1G'!$C18,'Present Base Rates by Rate Code'!$A$4:$V$4,0)) -> 2.52 | H18: =F18*G18 -> 519954.12 | J18: 206331 | K18: =G18*(1+$M$6) -> 3.367707192 | L18: =J18*K18 -> 694862.3926 | N18: 206331 | O18: =ROUND(K18*(1+$Q$6),1) -> 3.4 | P18: =N18*O18 -> 701525.4 | R18: =F18 -> 206331 | S18: =O18 -> 3.4 | T18: =R18*S18 -> 701525.4 | V18: =S18/G18-1 -> 0.3492063492 | W18: =S18-G18 -> 0.88
A19: CILC-1G - 56Firm On-Peak | B19: C/I Load Control, General Service [CILC-1(G)] | C19: Firm On-Peak Demand Charge $/kW | D19: 10 | E19: Firm On-Peak | F19: =VLOOKUP($A19,'Billing Determinants - Units'!$A$9:$B$1153,2,FALSE) -> 5735 | G19: =INDEX('Present Base Rates by Rate Code'!$A$4:$V$50,MATCH('CILC-1G'!$B19,'Present Base Rates by Rate Code'!$A$4:$A$50,0),MATCH('CILC-1G'!$C19,'Present Base Rates by Rate Code'!$A$4:$V$4,0)) -> 9.28 | H19: =F19*G19 -> 53220.8 | J19: 5735 | K19: =G19*(1+$M$6) -> 12.40171537 | L19: =J19*K19 -> 71123.83767 | N19: 5735 | O19: =ROUND(K19*(1+$Q$6),1) -> 12.4 | P19: =N19*O19 -> 71114 | R19: =F19 -> 5735 | S19: =O19 -> 12.4 | T19: =R19*S19 -> 71114 | V19: =S19/G19-1 -> 0.3362068966 | W19: =S19-G19 -> 3.12 | Y19: Unit Costs per E-6b | AA19: ='E-6b Proposed Equalized'!E31 -> 16.93 | AC19: ='E-6b Proposed Equalized'!E41 -> 0.01193
A20: CILC-1G - 56Transformation Credit | B20: C/I Load Control, General Service [CILC-1(G)] | C20: Transformation Rider Credit ($/kW) | D20: 11 | E20: Transformation Credit | F20: =VLOOKUP($A20,'Billing Determinants - Units'!$A$9:$B$1153,2,FALSE) -> 5555 | G20: =INDEX('Present Base Rates by Rate Code'!$A$4:$V$50,MATCH('CILC-1G'!$B20,'Present Base Rates by Rate Code'!$A$4:$A$50,0),MATCH('CILC-1G'!$C20,'Present Base Rates by Rate Code'!$A$4:$V$4,0)) -> -0.3 | H20: =F20*G20 -> -1666.5 | J20: 5555 | K20: ='Transformer Credit'!$E$9 -> -0.24 | L20: =J20*K20 -> -1333.2 | M20: =L20-H20 -> 333.3 | N20: 5555 | O20: =K20 -> -0.24 | P20: =N20*O20 -> -1333.2 | Q20: =P20-L20 -> 0 | R20: =F20 -> 5555 | S20: =O20 -> -0.24 | T20: =R20*S20 -> -1333.2 | V20: =S20/G20-1 -> -0.2 | W20: =S20-G20 -> 0.06
D21: 12 | Y21: Rate Calculated | AA21: =S19+S18 -> 15.8 | AC21: =S14 -> 0.01899
D22: 13 | E22: TOTAL | H22: =SUM(H12:H21) -> 3153604.764 | L22: =SUM(L12:L21) -> 4215168.816 | M22: =SUM(M12:M20) -> 28292.82 | P22: =SUM(P12:P21) -> 4220076.906 | Q22: =SUM(Q12:Q20) -> 0 | T22: =SUM(T12:T21) -> 4215001.48 | X22: =T22/H22-1 -> 0.3365661823
D23: 14 | Y23: Difference | AA23: =AA21-AA19 -> -1.13 | AC23: =AC21-AC19 -> 0.00706
D24: 15 | J24: a | K24: target revenue | L24: =('E-8 Parity Analysis Final'!W16*1000)+H22 -> 4215168.816 | N24: a | O24: target revenue | P24: =L24 -> 4215168.816 | S24: Increase | T24: =+T22-H22 -> 1061396.716
D25: 16 | J25: b | K25: Present revenue | L25: =H22 -> 3153604.764 | N25: b | O25: Present revenue | P25: =L22 -> 4215168.816 | S25: Target revenues | T25: =L34 -> 1061564.053 | Y25: % Difference | AA25: =AA23/AA19 -> -0.06674542233 | AC25: =AC23/AC19 -> 0.5917854149
D26: 17 | J26: c | K26: Proposed Increase | L26: =L24-L25 -> 1061564.053 | N26: c | O26: Proposed Increase | P26: =P24-P25 -> 0 | S26: Difference | T26: =+T24-T25 -> -167.3368371
D27: 18 | J27: d | K27: Override Revenue | L27: =M22 -> 28292.82 | N27: d | O27: Override Revenue | P27: =Q22 -> 0 | S27: Adjustment | T27: -5e-05 | Y27: Note: Unit costs per E-6b did not include an adjustment to reset
D28: 19 | J28: e | K28: Increase of Non-Override Revenue | L28: =L26-L27 -> 1033271.233 | N28: e | O28: Increase of Non-Override Revenue | P28: =P26-P27 -> 0 | Y28: the CILC load control "credit".
D29: 20 | J29: f | K29: Non-Override Revenue | L29: =H14+H15+H17+H18+H19 -> 3071630.784 | N29: f | O29: Non-Override Revenue | P29: =L14+L15+L17+L18+L19 -> 4104902.016 | S29: Per UII | T29: 4215001
D30: 21 | J30: g | K30: adjustment factor | L30: =L28/L29 -> 0.3363917428 | N30: g | O30: adjustment factor | P30: =P28/P29 -> 0 | S30: Difference | T30: =T22-T29 -> 0.4796499992
D31: 22
D32: 23
D33: 24 | K33: Increase | L33: =L22-H22 -> 1061564.053 | O33: Increase | P33: =P22-L22 -> 4908.089913
D34: 25 | K34: Target Increase | L34: =L26 -> 1061564.053 | O34: Target Increase | P34: =P26 -> 0
D35: =D34+1 -> 26 | K35: Difference | L35: =L33-L34 -> 0 | O35: Difference | P35: =P33-P34 -> 4908.089913
D36: =D35+1 -> 27
D37: 28
D38: 29
D39: 30
D40: 31 | E40: Step 1 - Set customer charge and CDR adder (if applicable) based on customer charge workpaper; transformation credit (if applicable) based on transformer credit workpaper; curtailment credit (if applicable) based on present curtailment credit;
D41: 32 | E41: and CDR credit (if applicable) based on CILC/CDR credit workpaper. These revenues/credits become "override revenues". Exclude override revenue from % increase calculations and apply the percent increase to only non-override rates.
D42: 33 | E42: Step 2 - Round results of Step 1
D43: 34 | E43: Step 3 - Calculate revenue neutral and/or rounding adjustment. For rate classes with SDTR, refer to SDTR workpaper.
D44: 35 | E44: Step 4 - Compare to Unit Costs for reasonableness. Depending on changes in other rates (Customer, Demand, etc.), unit costs may differ from final energy rates to achieve target revenues.
D45: 36
D46: 37 | E46: Footnotes:
D47: 38 | E47: 1 Firm On_Peak and Load Control On-Peak unit costs are calculated based on total On-Peak demand. When calculating revenues for rate design, however, the firm on-peak rate is multiplied by firm demand and the load control on-peak demand is multiplied by load control on-peak
D48: 39 | E48: demand. This results in a difference between the rates needed to obtain target revenue requirements and the unit costs calculated.

Sheet CILC-1T
A1: OPC 015203
A2: FPL RC-16
D4: MFR E-14 Workpapers - 2018
D5: Rate Class CILC-1T | F5: Present Revenues (with WCEC3 in Base) | J5: Percent increase calculation | N5: Rounded | R5: Final adjustments to achieve target revenues
M6: =L30 -> 0.841594941 | Q6: 0 | X6: =(T22-H22)/H22 -> 0.8340216897
A7: Ref. for linking data | E7: -1 | F7: =E7-1 -> -2 | G7: =F7-1 -> -3 | H7: -4 | I7: -5 | J7: -6 | K7: -7 | L7: -8 | M7: -9 | N7: -10 | O7: -11 | P7: -12 | Q7: -13 | R7: -14 | S7: -15 | T7: -16 | U7: -17 | V7: -18 | W7: -19 | X7: -20 | AA7: Override
D8: Line | E8: Type of | F8: Present Revenue Calculation | J8: Proposed Revenue Calculation | N8: Proposed Revenue Calculation | R8: Proposed Revenue Calculation | X8: Percent | AA8: Calculated
D9: No. | E9: Charges | F9: Units | G9: Charge/Unit | H9: $ Revenue | J9: Units | K9: Charge/Unit | L9: $ Revenue | N9: Units | O9: Charge/Unit | P9: $ Revenue | R9: Units | S9: Charge/Unit | T9: $ Revenue | X9: Increase
A10: Reference for Billing Units | B10: Reference for Rates | C10: Reference for Rates | D10: 1 | E10: RATE SCHEDULE CILC-1T - 55 | M10: Override | Q10: Override | Y10: Comparison of Unit Costs to Calculated Rates
D11: =D10+1 -> 2 | M11: Revenue | Q11: Revenue
A12: CILC-1T - 55Customer | B12: C/I Load Control Program, Transmission [CILC-1(T)] | C12: Customer Charge | D12: =D11+1 -> 3 | E12: Customer | F12: =VLOOKUP($A12,'Billing Determinants - Units'!$A$9:$B$1153,2,FALSE) -> 204 | G12: =INDEX('Present Base Rates by Rate Code'!$A$4:$V$50,MATCH('CILC-1T'!$B12,'Present Base Rates by Rate Code'!$A$4:$A$50,0),MATCH('CILC-1T'!$C12,'Present Base Rates by Rate Code'!$A$4:$V$4,0)) -> 2220.26 | H12: =F12*G12 -> 452933.04 | J12: =F12 -> 204 | K12: ='E-6b Proposed Equalized'!$F$69 -> 3275 | L12: =J12*K12 -> 668100 | M12: =L12-H12 -> 215166.96 | N12: =F12 -> 204 | O12: =ROUND(K12,0) -> 3275 | P12: =N12*O12 -> 668100 | Q12: =P12-L12 -> 0 | R12: =F12 -> 204 | S12: =O12 -> 3275 | T12: =R12*S12 -> 668100 | V12: =S12/G12-1 -> 0.4750524713 | W12: =S12-G12 -> 1054.74
B13: C/I Load Control Program, Transmission [CILC-1(T)] | D13: 4 | E13: Non-Fuel Energy | J13: =F13 -> 0 | N13: =F13 -> 0 | AA13: On-Peak
A14: CILC-1T - 55Non-Fuel Energy - On Peak | B14: C/I Load Control Program, Transmission [CILC-1(T)] | C14: On-Peak Energy Charge $/kWh | D14: 5 | E14: On Peak | F14: =VLOOKUP($A14,'Billing Determinants - Units'!$A$9:$B$1153,2,FALSE) -> 388803907 | G14: =INDEX('Present Base Rates by Rate Code'!$A$4:$V$50,MATCH('CILC-1T'!$B14,'Present Base Rates by Rate Code'!$A$4:$A$50,0),MATCH('CILC-1T'!$C14,'Present Base Rates by Rate Code'!$A$4:$V$4,0)) -> 0.00731 | H14: =F14*G14 -> 2842156.56 | J14: 388803907 | K14: =G14*(1+$M$6) -> 0.01346205902 | L14: =J14*K14 -> 5234101.143 | N14: 388803907 | O14: =ROUND(K14*(1+$Q$6),5) -> 0.01346 | P14: =N14*O14 -> 5233300.588 | R14: =F14 -> 388803907 | S14: =O14+T27 -> 0.01351 | T14: =R14*S14 -> 5252740.784 | V14: =S14/G14-1 -> 0.8481532148 | W14: =S14-G14 -> 0.0062 | AA14: Demand | AC14: Energy
A15: CILC-1T - 55Non-Fuel Energy - Off Peak | B15: C/I Load Control Program, Transmission [CILC-1(T)] | C15: Off-Peak Energy Charge $/kWh | D15: 6 | E15: Off Peak | F15: =VLOOKUP($A15,'Billing Determinants - Units'!$A$9:$B$1153,2,FALSE) -> 1143617484 | G15: =INDEX('Present Base Rates by Rate Code'!$A$4:$V$50,MATCH('CILC-1T'!$B15,'Present Base Rates by Rate Code'!$A$4:$A$50,0),MATCH('CILC-1T'!$C15,'Present Base Rates by Rate Code'!$A$4:$V$4,0)) -> 0.00731 | H15: =F15*G15 -> 8359843.808 | J15: 1143617484 | K15: =G15*(1+$M$6) -> 0.01346205902 | L15: =J15*K15 -> 15395446.06 | N15: 1143617484 | O15: =ROUND(K15*(1+$Q$6),5) -> 0.01346 | P15: =N15*O15 -> 15393091.33 | R15: =F15 -> 1143617484 | S15: =O15+T27 -> 0.01351 | T15: =R15*S15 -> 15450272.21 | V15: =S15/G15-1 -> 0.8481532148 | W15: =S15-G15 -> 0.0062
B16: C/I Load Control Program, Transmission [CILC-1(T)] | D16: 7 | E16: Demand | J16: 0 | N16: 0
A17: CILC-1T - 55Demand - Maximum | B17: C/I Load Control Program, Transmission [CILC-1(T)] | C17: Demand Charge $/kW | D17: 8 | E17: Max Demand | F17: =VLOOKUP($A17,'Billing Determinants - Units'!$A$9:$B$1153,2,FALSE) -> 0 | G17: =INDEX('Present Base Rates by Rate Code'!$A$4:$V$50,MATCH('CILC-1T'!$B17,'Present Base Rates by Rate Code'!$A$4:$A$50,0),MATCH('CILC-1T'!$C17,'Present Base Rates by Rate Code'!$A$4:$V$4,0)) -> 0 | H17: =F17*G17 -> 0 | J17: 0 | L17: =J17*K17 -> 0 | N17: 0 | P17: =N17*O17 -> 0 | R17: =F17 -> 0 | T17: =R17*S17 -> 0 | W17: =S17-G17 -> 0 | Y17: Billing Units | Z17: kW | AA17: =R18+R19 -> 2779240 | AB17: kWh | AC17: =R14+R15 -> 1532421391
A18: CILC-1T - 55Load Control On-Peak | B18: C/I Load Control Program, Transmission [CILC-1(T)] | C18: On-Peak Demand Charge $/kW | D18: 9 | E18: Load Control On-Peak | F18: =VLOOKUP($A18,'Billing Determinants - Units'!$A$9:$B$1153,2,FALSE) -> 2189210 | G18: =INDEX('Present Base Rates by Rate Code'!$A$4:$V$50,MATCH('CILC-1T'!$B18,'Present Base Rates by Rate Code'!$A$4:$A$50,0),MATCH('CILC-1T'!$C18,'Present Base Rates by Rate Code'!$A$4:$V$4,0)) -> 2.47 | H18: =F18*G18 -> 5407348.7 | J18: 2189210 | K18: =G18*(1+$M$6) -> 4.548739504 | L18: =J18*K18 -> 9958146.01 | N18: 2189210 | O18: =ROUND(K18*(1+$Q$6),1) -> 4.5 | P18: =N18*O18 -> 9851445 | R18: =F18 -> 2189210 | S18: =O18 -> 4.5 | T18: =R18*S18 -> 9851445 | V18: =S18/G18-1 -> 0.8218623482 | W18: =S18-G18 -> 2.03
A19: CILC-1T - 55Firm On-Peak | B19: C/I Load Control Program, Transmission [CILC-1(T)] | C19: Firm On-Peak Demand Charge $/kW | D19: 10 | E19: Firm On-Peak | F19: =VLOOKUP($A19,'Billing Determinants - Units'!$A$9:$B$1153,2,FALSE) -> 590030 | G19: =INDEX('Present Base Rates by Rate Code'!$A$4:$V$50,MATCH('CILC-1T'!$B19,'Present Base Rates by Rate Code'!$A$4:$A$50,0),MATCH('CILC-1T'!$C19,'Present Base Rates by Rate Code'!$A$4:$V$4,0)) -> 9.15 | H19: =F19*G19 -> 5398774.5 | J19: 590030 | K19: =G19*(1+$M$6) -> 16.85059371 | L19: =J19*K19 -> 9942355.807 | N19: 590030 | O19: =ROUND(K19*(1+$Q$6),1) -> 16.9 | P19: =N19*O19 -> 9971507 | R19: =F19 -> 590030 | S19: =O19 -> 16.9 | T19: =R19*S19 -> 9971507 | V19: =S19/G19-1 -> 0.8469945355 | W19: =S19-G19 -> 7.75 | Y19: Unit Costs per E-6b | AA19: ='E-6b Proposed Equalized'!F31 -> 10.85 | AC19: ='E-6b Proposed Equalized'!F41 -> 0.01156
A20: CILC-1T - 55Transformation Credit | B20: C/I Load Control Program, Transmission [CILC-1(T)] | C20: Transformation Rider Credit ($/kW) | D20: 11 | W20: =S20-G20 -> 0
D21: 12 | Y21: Rate Calculated | AA21: =S19+S18 -> 21.4 | AC21: =S14 -> 0.01351
D22: 13 | E22: TOTAL | H22: =SUM(H12:H21) -> 22461056.61 | L22: =SUM(L12:L21) -> 41198149.02 | M22: =SUM(M12:M20) -> 215166.96 | P22: =SUM(P12:P21) -> 41117443.92 | Q22: =SUM(Q12:Q20) -> 0 | T22: =SUM(T12:T21) -> 41194064.99 | X22: =T22/H22-1 -> 0.8340216897
D23: 14 | Y23: Difference | AA23: =AA21-AA19 -> 10.55 | AC23: =AC21-AC19 -> 0.00195
D24: 15 | J24: a | K24: target revenue | L24: =('E-8 Parity Analysis Final'!W17*1000)+H22 -> 41198149.02 | N24: a | O24: target revenue | P24: =L24 -> 41198149.02 | S24: Increase | T24: =+T22-H22 -> 18733008.38
D25: 16 | J25: b | K25: Present revenue | L25: =H22 -> 22461056.61 | N25: b | O25: Present revenue | P25: =L22 -> 41198149.02 | S25: Target revenues | T25: =L34 -> 18737092.42 | Y25: % Difference | AA25: =AA23/AA19 -> 0.9723502304 | AC25: =AC23/AC19 -> 0.1686851211
D26: 17 | J26: c | K26: Proposed Increase | L26: =L24-L25 -> 18737092.42 | N26: c | O26: Proposed Increase | P26: =P24-P25 -> 0 | S26: Difference | T26: =+T24-T25 -> -4084.031732
D27: 18 | J27: d | K27: Override Revenue | L27: =M22 -> 215166.96 | N27: d | O27: Override Revenue | P27: =Q22 -> 0 | S27: Adjustment | T27: 5e-05 | Y27: Note: Unit costs per E-6b did not include an adjustment to reset
D28: 19 | J28: e | K28: Increase of Non-Override Revenue | L28: =L26-L27 -> 18521925.46 | N28: e | O28: Increase of Non-Override Revenue | P28: =P26-P27 -> 0 | Y28: the CILC load control "credit".
D29: 20 | J29: f | K29: Non-Override Revenue | L29: =H14+H15+H17+H18+H19 -> 22008123.57 | N29: f | O29: Non-Override Revenue | P29: =L14+L15+L17+L18+L19 -> 40530049.02 | S29: Per UII | T29: 41194065
D30: 21 | J30: g | K30: adjustment factor | L30: =L28/L29 -> 0.841594941 | N30: g | O30: adjustment factor | P30: =P28/P29 -> 0 | S30: Difference | T30: =T22-T29 -> -0.007589995861
D31: 22
D32: 23
D33: 24 | K33: Increase | L33: =L22-H22 -> 18737092.42 | O33: Increase | P33: =P22-L22 -> -80705.10128
D34: 25 | K34: Target Increase | L34: =L26 -> 18737092.42 | O34: Target Increase | P34: =P26 -> 0
D35: 26 | K35: Difference | L35: =L33-L34 -> 0 | O35: Difference | P35: =P33-P34 -> -80705.10128
D36: 27
D37: 28
D38: 29
D39: 30
D40: 31 | E40: Step 1 - Set customer charge and CDR adder (if applicable) based on customer charge workpaper; transformation credit (if applicable) based on transformer credit workpaper; curtailment credit (if applicable) based on present curtailment credit;
D41: 32 | E41: and CDR credit (if applicable) based on CILC/CDR credit workpaper. These revenues/credits become "override revenues". Exclude override revenue from % increase calculations and apply the percent increase to only non-override rates.
D42: 33 | E42: Step 2 - Round results of Step 1
D43: 34 | E43: Step 3 - Calculate revenue neutral and/or rounding adjustment. For rate classes with SDTR, refer to SDTR workpaper.
D44: 35 | E44: Step 4 - Compare to Unit Costs for reasonableness. Depending on changes in other rates (Customer, Demand, etc.), unit costs may differ from final energy rates to achieve target revenues.
D45: 36
D46: 37 | E46: Footnotes:
D47: 38 | E47: 1 Firm On_Peak and Load Control On-Peak unit costs are calculated based on total On-Peak demand. When calculating revenues for rate design, however, the firm on-peak rate is multiplied by firm demand and the load control on-peak demand is multiplied by load control on-peak
D48: 39 | E48: demand. This results in a difference between the rates needed to obtain target revenue requirements and the unit costs calculated.

Sheet GS(T)-1
A1: OPC 015204
A2: FPL RC-16
D4: MFR E-14 Workpapers - 2018
D5: Rate Class GS(T)-1 | H5: Present Revenues (with WCEC3 in Base) | L5: Percent increase calculation | P5: Rounded | T5: Final adjustments to achieve target revenues
O6: =N39 -> 0.05095603123 | S6: 0 | Y6: =(V31-J31)/J31 -> 0.1052781178
A7: Ref. for linking data | E7: -1 | F7: =E7-1 -> -2 | G7: =F7-1 -> -3 | H7: -4 | I7: -5 | J7: -6 | K7: -7 | L7: -8 | M7: -9 | N7: -10 | O7: -11 | P7: -12 | Q7: -13 | R7: -14 | S7: -15 | T7: -16 | U7: -17 | V7: -18 | W7: -19 | X7: -20 | Y7: -21 | AA7: Override
D8: Line | E8: TYPE OF | H8: PRESENT REVENUE CALCULATION | L8: PROPOSED REVENUE CALCULATION | P8: PROPOSED REVENUE CALCULATION | T8: PROPOSED REVENUE CALCULATION | Y8: PERCENT | AA8: Calculated
D9: No. | E9: CHARGES | H9: UNITS | I9: CHARGE/UNIT | J9: $ REVENUE | L9: UNITS | M9: CHARGE/UNIT | N9: $ REVENUE | P9: UNITS | Q9: CHARGE/UNIT | R9: $ REVENUE | T9: UNITS | U9: CHARGE/UNIT | V9: $ REVENUE | Y9: INCREASE
A10: Reference for Billing Units | B10: Reference for Rates | C10: Reference for Rates | Z10: Comparison of Unit Costs to Calculated Rates
D11: 1 | E11: RATE SCHEDULE GS-1 - 68 | O11: Override | S11: Override
D12: =D11+1 -> 2 | O12: Revenue | S12: Revenue | AB12: Energy
A13: GS-1 - 68Customer | B13: General Service Non-Demand (GS-1) | C13: Customer Charge | D13: =D12+1 -> 3 | E13: Customer | H13: =VLOOKUP($A13,'Billing Determinants - Units'!$A$9:$B$1153,2,FALSE) -> 5226716 | I13: =INDEX('Present Base Rates by Rate Code'!$A$4:$V$50,MATCH('GS(T)-1'!$B13,'Present Base Rates by Rate Code'!$A$4:$A$50,0),MATCH('GS(T)-1'!C13,'Present Base Rates by Rate Code'!$A$4:$V$4,0)) -> 7.75 | J13: =H13*I13 -> 40507049 | L13: =H13 -> 5226716 | M13: ='E-6b Proposed Equalized'!$G$69 -> 12 | N13: =L13*M13 -> 62720592 | O13: =N13-J13 -> 22213543 | P13: =H13 -> 5226716 | Q13: =ROUND(M13,0) -> 12 | R13: =P13*Q13 -> 62720592 | S13: =R13-N13 -> 0 | T13: =H13 -> 5226716 | U13: =Q13 -> 12 | V13: =T13*U13 -> 62720592 | W13: =U13/I13-1 -> 0.5483870968 | X13: =U13-I13 -> 4.25
D14: 4 | E14: NSMR | J14: 41916 | N14: =J14 -> 41916 | O14: =N14-J14 -> 0 | R14: =N14 -> 41916 | S14: =R14-N14 -> 0 | V14: =R14 -> 41916 | Z14: Billing Units | AB14: =H15+H25+H26 -> 6001791085
A15: GS-1 - 68Non-Fuel Energy | B15: General Service Non-Demand (GS-1) | C15: Energy Charges $/kWh | D15: 5 | E15: Non-Fuel Energy | H15: =VLOOKUP($A15,'Billing Determinants - Units'!$A$9:$B$1153,2,FALSE) -> 5982748957 | I15: =INDEX('Present Base Rates by Rate Code'!$A$4:$V$50,MATCH('GS(T)-1'!$B15,'Present Base Rates by Rate Code'!$A$4:$A$50,0),MATCH('GS(T)-1'!C15,'Present Base Rates by Rate Code'!$A$4:$V$4,0)) -> 0.0551 | J15: =H15*I15 -> 329649467.5 | L15: =H15 -> 5982748957 | M15: =I15*(1+$O$6) -> 0.05790767732 | N15: =L15*M15 -> 346447096.1 | P15: =H15 -> 5982748957 | Q15: =ROUND(M15*(1+$S$6),5) -> 0.05791 | R15: =P15*Q15 -> 346460992.1 | T15: =H15 -> 5982748957 | U15: =Q15+V36 -> 0.05791 | V15: =T15*U15 -> 346460992.1 | W15: =U15/I15-1 -> 0.05099818512 | X15: =U15-I15 -> 0.00281
D16: 6 | E16: Demand | P16: 0
A17: GS-1 - 68Unmetered Service Credit | B17: General Service Non-Demand (GS-1) | D17: 7 | E17: Unmetered Service Credit | H17: =VLOOKUP($A17,'Billing Determinants - Units'!$A$9:$B$1153,2,FALSE) -> 9651 | I17: -6.77 | J17: =H17*I17 -> -65337.27 | L17: 9651 | M17: =-5 -> -5 | N17: =L17*M17 -> -48255 | O17: =N17-J17 -> 17082.27 | P17: 9651 | Q17: =M17 -> -5 | R17: =P17*Q17 -> -48255 | S17: =R17-N17 -> 0 | T17: =H17 -> 9651 | U17: =Q17 -> -5 | V17: =T17*U17 -> -48255 | W17: =U17/I17-1 -> -0.2614475628 | X17: =U17-I17 -> 1.77 | Z17: Unit Costs per E-6b | AB17: ='E-6b Proposed Equalized'!G41+'E-6b Proposed Equalized'!G31 -> 0.06196
D18: 8 | L18: 0 | P18: 0 | Z18: (Demand & Energy)
D19: 9 | E19: Total | J19: =SUM(J13:J18) -> 370133095.3 | L19: 0 | N19: =SUM(N13:N18) -> 409161349.1 | P19: 0 | R19: =SUM(R13:R18) -> 409175245.1 | V19: =SUM(V13:V18) -> 409175245.1 | Y19: =V19/J19-1 -> 0.1054813805 | Z19: Rate Calculated | AB19: =U15 -> 0.05791
D20: 10 | L20: 0 | P20: 0
D21: 11 | E21: RATE SCHEDULE GST-1 - 69 | L21: 0 | P21: 0 | Z21: Difference | AB21: =AB17-AB19 -> 0.00405
D22: 12 | L22: 0 | P22: 0 | Z22: % Difference | AB22: =AB21/AB17 -> 0.06536475145
A23: GST-1 - 69Customer | B23: General Service Non-Demand-TOU (GST-1) | C23: Customer Charge | D23: 13 | E23: Customer | H23: =VLOOKUP($A23,'Billing Determinants - Units'!$A$9:$B$1153,2,FALSE) -> 6186 | I23: =INDEX('Present Base Rates by Rate Code'!$A$4:$V$50,MATCH('GS(T)-1'!$B23,'Present Base Rates by Rate Code'!$A$4:$A$50,0),MATCH('GS(T)-1'!C23,'Present Base Rates by Rate Code'!$A$4:$V$4,0)) -> 15.21 | J23: =H23*I23 -> 94089.06 | L23: 6186 | M23: =M13 -> 12 | N23: =L23*M23 -> 74232 | O23: =N23-J23 -> -19857.06 | P23: 6186 | Q23: =ROUND(M23,0) -> 12 | R23: =P23*Q23 -> 74232 | S23: =R23-N23 -> 0 | T23: =H23 -> 6186 | U23: =Q23 -> 12 | V23: =T23*U23 -> 74232 | W23: =U23/I23-1 -> -0.2110453649 | X23: =U23-I23 -> -3.21
D24: 14 | E24: Non-Fuel Energy | L24: 0 | P24: 0
A25: GST-1 - 69Non-Fuel Energy - On Peak | B25: General Service Non-Demand-TOU (GST-1) | C25: On-Peak Energy Charge $/kWh | D25: 15 | E25: On Peak | H25: =VLOOKUP($A25,'Billing Determinants - Units'!$A$9:$B$1153,2,FALSE) -> 4472886 | I25: =INDEX('Present Base Rates by Rate Code'!$A$4:$V$50,MATCH('GS(T)-1'!$B25,'Present Base Rates by Rate Code'!$A$4:$A$50,0),MATCH('GS(T)-1'!C25,'Present Base Rates by Rate Code'!$A$4:$V$4,0)) -> 0.10037 | J25: =H25*I25 -> 448943.5678 | L25: 4472886 | M25: =I25*(1+$O$6) -> 0.1054844569 | N25: =L25*M25 -> 471819.9503 | P25: 4472886 | Q25: =ROUND(M25*(1+$S$6),5) -> 0.10548 | R25: =P25*Q25 -> 471800.0153 | T25: =H25 -> 4472886 | U25: =I41 -> 0.10692 | V25: =T25*U25 -> 478240.9711 | W25: =U25/I25-1 -> 0.06525854339 | X25: =U25-I25 -> 0.00655
A26: GST-1 - 69Non-Fuel Energy - Off Peak | B26: General Service Non-Demand-TOU (GST-1) | C26: Off-Peak Energy Charge $/kWh | D26: 16 | E26: Off Peak | H26: =VLOOKUP($A26,'Billing Determinants - Units'!$A$9:$B$1153,2,FALSE) -> 14569242 | I26: =INDEX('Present Base Rates by Rate Code'!$A$4:$V$50,MATCH('GS(T)-1'!$B26,'Present Base Rates by Rate Code'!$A$4:$A$50,0),MATCH('GS(T)-1'!C26,'Present Base Rates by Rate Code'!$A$4:$V$4,0)) -> 0.03484 | J26: =H26*I26 -> 507592.3913 | L26: 14569242 | M26: =I26*(1+$O$6) -> 0.03661530813 | N26: =L26*M26 -> 533457.285 | P26: 14569242 | Q26: =ROUND(M26*(1+$S$6),5) -> 0.03662 | R26: =P26*Q26 -> 533525.642 | T26: =H26 -> 14569242 | U26: =I42 -> 0.03662 | V26: =T26*U26 -> 533525.642 | W26: 0.05109070034 | X26: =U26-I26 -> 0.00178
D27: 17 | E27: Demand
D28: 18
D29: 19 | E29: Total | J29: =SUM(J23:J28) -> 1050625.019 | N29: =SUM(N23:N28) -> 1079509.235 | R29: =SUM(R23:R28) -> 1079557.657 | V29: =SUM(V23:V28) -> 1085998.613 | Y29: =V29/J29-1 -> 0.03366909546
D30: 20
D31: 21 | E31: TOTALS | J31: =J19+J29 -> 371183720.3 | N31: =N19+N29 -> 410240858.3 | O31: =SUM(O13:O28) -> 22210768.21 | R31: =R19+R29 -> 410254802.8 | S31: =SUM(S13:S28) -> 0 | V31: =V19+V29 -> 410261243.7
D32: 22
D33: 23 | L33: a | M33: target revenue | N33: =('E-8 Parity Analysis Final'!W18*1000)+J31 -> 410240858.3 | P33: a | Q33: target revenue | R33: =N33 -> 410240858.3 | U33: Increase | V33: =+V31-J31 -> 39077523.43
D34: 24 | L34: b | M34: Present revenue | N34: =J31 -> 371183720.3 | P34: b | Q34: Present revenue | R34: =N31 -> 410240858.3 | U34: Target | V34: =N43 -> 39057138.05
D35: 25 | L35: c | M35: Proposed Increase | N35: =N33-N34 -> 39057138.05 | P35: c | Q35: Proposed Increase | R35: =R33-R34 -> 0 | U35: Difference | V35: =+V33-V34 -> 20385.38532
D36: 26 | L36: d | M36: Override Revenue | N36: =O31 -> 22210768.21 | P36: d | Q36: Override Revenue | R36: =S31 -> 0 | U36: adjustment | V36: =ROUND(-0.00000338769922047,5) -> 0
D37: 27 | L37: e | M37: Increase of Non-Override Revenue | N37: =N35-N36 -> 16846369.84 | P37: e | Q37: Increase of Non-Override Revenue | R37: =R35-R36 -> 0
D38: 28 | L38: f | M38: Non-Override Revenue | N38: =J15+J25+J26 -> 330606003.5 | P38: f | Q38: Non-Override Revenue | R38: =N15+N25+N26 -> 347452373.3
D39: 29 | E39: Revenue Neutral Calculation | L39: g | M39: adjustment factor | N39: =N37/N38 -> 0.05095603123 | P39: g | Q39: adjustment factor | R39: =R37/R38 -> 0
D40: 30 | E40: on pk class ave per Load Research Study | F40: 0.3028530704 | H40: Energy Revenue | U40: Per UII | V40: 410261244
D41: 31 | E41: on peak | F41: =SUM(H25:H26)*F40 -> 5766966.932 | G41: =ROUND((H44-H42)/F41,5) -> 0.10692 | H41: =F41*G41 -> 616604.1044 | I41: =G41 -> 0.10692 | U41: Difference | V41: =V31-V40 -> -0.2869699597
D42: 32 | E42: off peak | F42: =SUM(H25:H26)-F41 -> 13275161.07 | G42: =Q26 -> 0.03662 | H42: =F42*G42 -> 486136.3983 | I42: =IF(G41>G42,G42,I41) -> 0.03662 | M42: Increase | N42: =N31-J31 -> 39057138.05 | Q42: Increase | R42: =R31-N31 -> 13944.42948
D43: 33 | E43: total at class on-pk | H43: =SUM(H41:H42) -> 1102740.503 | M43: Target Increase | N43: =N33-J31 -> 39057138.05 | Q43: Target Increase | R43: =R33-N31 -> 0
D44: 34 | E44: total rev required at RS1 rates | F44: =F41+F42 -> 19042128 | G44: =U15 -> 0.05791 | H44: =G44*F44 -> 1102729.632 | M44: Difference | N44: =N42-N43 -> 0 | Q44: Difference | R44: =R42-R43 -> 13944.42948
D45: 35 | E45: Difference | H45: =+H43-H44 -> 10.87023408
D46: 36
D47: 37
D48: 38 | E48: Step 1 - Set customer charge and CDR adder (if applicable) based on customer charge workpaper; transformation credit (if applicable) based on transformer credit workpaper; curtailment credit (if applicable) based on present curtailment credit;
D49: 39 | E49: and CDR credit (if applicable) based on CILC/CDR credit workpaper. These revenues/credits become "override revenues". Exclude override revenue from % increase calculations and apply the percent increase to only non-override rates.
D50: 40 | E50: Step 2 - Round results of Step 1
D51: 41 | E51: Step 3 - Calculate revenue neutral and/or rounding adjustment. For rate classes with SDTR, refer to SDTR workpaper.
D52: 42 | E52: Step 4 - Compare to Unit Costs for reasonableness. Depending on changes in other rates (Customer, Demand, etc.), unit costs may differ from final energy rates to achieve target revenues.
L69: g | M69: adjustment factor | N69: =N37/N38 -> 0.05095603123
M71: Increase | N71: =N31-J31 -> 39057138.05
M72: Target Increase | N72: =N35 -> 39057138.05
M73: Difference | N73: =N71-N72 -> 0

Sheet GSCU-1
A1: OPC 015205
A2: FPL RC-16
D4: MFR E-14 Workpapers - 2018
D5: Rate Class GSCU | G5: Present Revenues (with WCEC3 in Base) | K5: Percent increase calculation | O5: Rounded | S5: Final adjustments to achieve target revenues
N6: =M27 -> -0.0119282441 | R6: 0 | Y6: =U22/I19 -> 0.008713927997
A7: Ref. for linking data | E7: -1 | F7: =E7-1 -> -2 | G7: =F7-1 -> -3 | H7: -4 | I7: -5 | J7: -6 | K7: -7 | L7: -8 | M7: -9 | N7: -10 | O7: -11 | P7: -12 | Q7: -13 | R7: -14 | S7: -15 | T7: -16 | U7: -17 | V7: -18 | W7: -19 | X7: -20 | Y7: -21 | AB7: Override
D8: Line | E8: Type of | G8: Present Revenue Calculation | K8: Proposed Revenue Calculation | O8: Proposed Revenue Calculation | S8: Proposed Revenue Calculation | Y8: Percent | AB8: Calculated
D9: No. | E9: Charges | G9: Units | H9: Charge/Unit | I9: $ Revenue | K9: Units | L9: Charge/Unit | M9: $ Revenue | O9: Units | P9: Charge/Unit | Q9: $ Revenue | S9: Units | T9: Charge/Unit | U9: $ Revenue | Y9: Increase
Z10: Comparison of Unit Costs to Calculated Rates
A11: Reference for Billing Units | B11: Reference for Rates | C11: Reference for Rates | D11: 1 | E11: RATE SCHEDULE GSCU-1 - 168 | N11: Override | R11: Override
D12: =D11+1 -> 2 | N12: Revenue | R12: Revenue | AB12: Energy
A13: GSCU - 168Customer | B13: General Service Constant Usage (GSCU-1) | C13: Customer Charge | D13: =D12+1 -> 3 | E13: Customer* | G13: =VLOOKUP($A13,'Billing Determinants - Units'!$A$9:$B$1153,2,FALSE) -> 132123 | H13: =INDEX('Present Base Rates by Rate Code'!$A$4:$V$50,MATCH(B13,'Present Base Rates by Rate Code'!$A$4:$A$50,0),MATCH(C13,'Present Base Rates by Rate Code'!$A$4:$V$4,0)) -> 13.5 | I13: =G13*H13 -> 1783660.5 | K13: =G13 -> 132123 | L13: ='E-6b Proposed Equalized'!$H$69 -> 14 | M13: =K13*L13 -> 1849722 | N13: =M13-I13 -> 66061.5 | O13: =G13 -> 132123 | P13: =ROUND(L13,0) -> 14 | Q13: =O13*P13 -> 1849722 | R13: =Q13-M13 -> 0 | S13: =G13 -> 132123 | T13: =P13 -> 14 | U13: =S13*T13 -> 1849722 | V13: =T13/H13-1 -> 0.03703703704 | W13: =T13-H13 -> 0.5
A14: GSCU - 168Non-Fuel Energy | B14: General Service Constant Usage (GSCU-1) | C14: Energy Charges $/kWh | D14: 4 | E14: Non-Fuel Energy | G14: =VLOOKUP($A14,'Billing Determinants - Units'!$A$9:$B$1153,2,FALSE) -> 71082174 | H14: =INDEX('Present Base Rates by Rate Code'!$A$4:$V$50,MATCH(B14,'Present Base Rates by Rate Code'!$A$4:$A$50,0),MATCH(C14,'Present Base Rates by Rate Code'!$A$4:$V$4,0)) -> 0.03443 | I14: =G14*H14 -> 2447359.251 | K14: =G14 -> 71082174 | L14: =H14*(1+$N$6) -> 0.03401931056 | M14: =K14*L14 -> 2418166.552 | O14: =G14 -> 71082174 | P14: =ROUND(L14*(1+$R$6),5) -> 0.03402 | Q14: =O14*P14 -> 2418215.559 | S14: =G14 -> 71082174 | T14: =P14+U24 -> 0.03402 | U14: =S14*T14 -> 2418215.559 | V14: =T14/H14-1 -> -0.01190821958 | W14: =T14-H14 -> -0.00041 | Z14: Billing Units | AB14: =S14 -> 71082174
D15: 5 | E15: Demand | G15: 0 | H15: 0 | I15: =G15*H15 -> 0 | K15: =G15 -> 0 | L15: 0 | M15: =K15*L15 -> 0 | O15: 0 | P15: 0 | Q15: =O15*P15 -> 0 | S15: 0 | T15: 0 | U15: =S15*T15 -> 0
D16: 6 | E16: Unmetered Service Credit | G16: 0 | H16: 0 | I16: =G16*H16 -> 0 | K16: =G16 -> 0 | L16: 0 | M16: =K16*L16 -> 0 | O16: 0 | P16: 0 | Q16: =O16*P16 -> 0 | S16: 0 | T16: 0 | U16: =S16*T16 -> 0 | Z16: Unit Costs per E-6b | AB16: ='E-6b Proposed Equalized'!H31+'E-6b Proposed Equalized'!H41 -> 0.04196
D17: 7 | E17: Total | I17: =SUM(I13:I16) -> 4231019.751 | M17: =SUM(M13:M16) -> 4267888.552 | Q17: =SUM(Q13:Q16) -> 4267937.559 | U17: =SUM(U13:U16) -> 4267937.559 | Y17: =U17/I17-1 -> 0.008725510831 | Z17: (Demand & Energy)
D18: 8 | Z18: Rate Calculated | AB18: =T14 -> 0.03402
D19: 9 | E19: TOTAL | I19: =I17 -> 4231019.751 | M19: =M17 -> 4267888.552 | N19: =SUM(N13:N15) -> 66061.5 | Q19: =Q17 -> 4267937.559 | R19: =SUM(R13:R15) -> 0 | U19: =U17 -> 4267937.559
D20: 10 | Z20: Difference | AB20: =AB18-AB16 -> -0.00794
D21: 11 | K21: a | L21: target revenue | M21: =('E-8 Parity Analysis Final'!W19*1000)+I19 -> 4267888.552 | O21: a | P21: target revenue | Q21: =M21 -> 4267888.552 | T21: Increase | U21: =+U19-I19 -> 36917.80866 | Z21: % Difference | AB21: =AB20/AB16 -> -0.189227836
D22: 12 | K22: b | L22: Present revenue | M22: =I19 -> 4231019.751 | O22: b | P22: Present revenue | Q22: =M19 -> 4267888.552 | T22: Target | U22: =M31 -> 36868.80146
D23: 13 | K23: c | L23: Proposed Increase | M23: =M21-M22 -> 36868.80146 | O23: c | P23: Proposed Increase | Q23: =Q21-Q22 -> 0 | T23: Difference | U23: =+U21-U22 -> 49.00719868
D24: 14 | K24: d | L24: Override Revenue | M24: =N19 -> 66061.5 | O24: d | P24: Override Revenue | Q24: =R19 -> 0 | T24: Adj. | U24: =ROUND(-7.16152897303757E-07,5) -> 0
D25: 15 | K25: e | L25: Increase of Non-Override Revenue | M25: =M23-M24 -> -29192.69854 | O25: e | P25: Increase of Non-Override Revenue | Q25: =Q23-Q24 -> 0
D26: 16 | K26: f | L26: Non-Override Revenue | M26: =I14 -> 2447359.251 | O26: f | P26: Non-Override Revenue | Q26: =M14 -> 2418166.552
D27: 17 | K27: g | L27: adjustment factor | M27: =M25/M26 -> -0.0119282441 | O27: g | P27: adjustment factor | Q27: =Q25/Q26 -> 0 | T27: Per UII | U27: 4267938
D28: 18 | T28: Difference | U28: =U19-U27 -> -0.4405199997
D29: 19
D30: 20 | L30: Increase | M30: =M19-I19 -> 36868.80146 | P30: Increase | Q30: =Q19-M19 -> 49.00719868
D31: 21 | L31: Target Increase | M31: =M23 -> 36868.80146 | P31: Target Increase | Q31: =Q23 -> 0
D32: 22 | L32: Difference | M32: =M30-M31 -> 9.313225746e-10 | P32: Difference | Q32: =Q30-Q31 -> 49.00719868
D33: 23
D34: 24
D35: 25
D36: 26
D37: 27
D38: 28
D39: 29
D40: 30 | E40: Step 1 - Set customer charge and CDR adder (if applicable) based on customer charge workpaper; transformation credit (if applicable) based on transformer credit workpaper; curtailment credit (if applicable) based on present curtailment credit;
D41: 31 | E41: and CDR credit (if applicable) based on CILC/CDR credit workpaper. These revenues/credits become "override revenues". Exclude override revenue from % increase calculations and apply the percent increase to only non-override rates.
D42: 32 | E42: Step 2 - Round results of Step 1
D43: 33 | E43: Step 3 - Calculate revenue neutral and/or rounding adjustment. For rate classes with SDTR, refer to SDTR workpaper.
D44: 34 | E44: Step 4 - Compare to Unit Costs for reasonableness. Depending on changes in other rates (Customer, Demand, etc.), unit costs may differ from final energy rates to achieve target revenues.

Sheet GSD(T)-1
A1: OPC 015206
A2: FPL RC-16
D4: MFR E-14 Workpapers - 2018
D5: Rate Class GSD(T)-1 | J5: Present Revenues (with WCEC3 in Base) | N5: Percent increase calculation | S5: Rounded | X5: Final adjustments to achieve target revenues
Q6: =P92 -> 0.2322096602 | V6: 0 | AB6: Final Increase % | AD6: =(Z84-L84)/L84 -> 0.2350290302
A7: Ref. for linking data | E7: -1 | F7: =E7-1 -> -2 | G7: =F7-1 -> -3 | H7: -4 | I7: -5 | J7: -6 | K7: -7 | L7: -8 | M7: -9 | N7: -10 | O7: -11 | P7: -12 | Q7: -13 | R7: -14 | S7: -15 | T7: -16 | U7: -17 | V7: -18 | W7: -19 | X7: -20 | Y7: -21 | Z7: -22 | AA7: -23 | AB7: -24 | AC7: -25
D8: Line | E8: TYPE OF | H8: PRESENT REVENUE CALCULATION | N8: PROPOSED REVENUE CALCULATION -STEP 1 | S8: PROPOSED REVENUE CALCULATION - STEP 2 | X8: PROPOSED REVENUE CALCULATION - REV NEUTRAL | AE8: Override
D9: No. | E9: CHARGES | H9: UNITS | K9: CHARGE/UNIT | L9: $ REVENUE | N9: UNITS | O9: CHARGE/UNIT | P9: $ REVENUE | S9: UNITS | T9: CHARGE/UNIT | U9: $ REVENUE | X9: UNITS | Y9: CHARGE/UNIT | Z9: $ REVENUE | AC9: INCREASE | AE9: Calculated
A10: Reference for Billing Units | B10: Reference for Rates | C10: Reference for Rates | D10: 1 | E10: RATE SCHEDULE GSD-1 - 72 | H10: Current Units | J10: Final Units to Use | Q10: Override | V10: Override
D11: =D10+1 -> 2 | Q11: Revenue | V11: Revenue | AF11: Comparison of Unit Costs to Calculated Rates
A12: GSD-1 - 72Customer | B12: General Service Demand (GSD-1) | C12: Customer Charge | D12: =D11+1 -> 3 | E12: Customer Charge | H12: =VLOOKUP($A12,'Billing Determinants - Units'!$A$9:$B$1153,2,FALSE) -> 1212547 | J12: =H12+I12 -> 1212547 | K12: =INDEX('Present Base Rates by Rate Code'!$A$4:$V$50,MATCH('GSD(T)-1'!$B12,'Present Base Rates by Rate Code'!$A$4:$A$50,0),MATCH('GSD(T)-1'!C12,'Present Base Rates by Rate Code'!$A$4:$V$4,0)) -> 20.24 | L12: =J12*K12 -> 24541951.28 | N12: =J12 -> 1212547 | O12: ='E-6b Proposed Equalized'!$I$69 -> 25 | P12: =N12*O12 -> 30313675 | Q12: =P12-L12 -> 5771723.72 | S12: =N12 -> 1212547 | T12: =ROUND(O12,0) -> 25 | U12: =S12*T12 -> 30313675 | V12: =U12-P12 -> 0 | X12: =J12 -> 1212547 | Y12: =T12 -> 25 | Z12: =X12*Y12 -> 30313675 | AB12: =Y12/K12-1 -> 0.2351778656 | AC12: =Y12-K12 -> 4.76
D13: 4 | E13: NSMR | L13: 7776 | P13: =L13 -> 7776 | Q13: =P13-L13 -> 0 | U13: =P13 -> 7776 | V13: =U13-P13 -> 0 | Z13: =U13 -> 7776
A14: GSD-1 - 72Non-Fuel Energy | B14: General Service Demand (GSD-1) | C14: Energy Charges $/kWh | D14: 5 | E14: Non-Fuel Energy | H14: =VLOOKUP($A14,'Billing Determinants - Units'!$A$9:$B$1153,2,FALSE) -> 21681041886 | J14: =H14+I14 -> 21681041886 | K14: =INDEX('Present Base Rates by Rate Code'!$A$4:$V$50,MATCH('GSD(T)-1'!$B14,'Present Base Rates by Rate Code'!$A$4:$A$50,0),MATCH('GSD(T)-1'!C14,'Present Base Rates by Rate Code'!$A$4:$V$4,0)) -> 0.01934 | L14: =J14*K14 -> 419311350.1 | N14: =J14 -> 21681041886 | O14: =K14*(1+$Q$6) -> 0.02383093483 | P14: =N14*O14 -> 516679496.2 | S14: =N14 -> 21681041886 | T14: =ROUND(O14*(1+$V$6),5) -> 0.02383 | U14: =S14*T14 -> 516659228.1 | X14: =J14 -> 21681041886 | Y14: =T14+Z89 -> 0.02387 | Z14: =X14*Y14 -> 517526469.8 | AB14: =Y14/K14-1 -> 0.234229576 | AC14: =Y14-K14 -> 0.00453
A15: GSD-1 - 72Demand | B15: General Service Demand (GSD-1) | C15: Demand Charge $/kW | D15: 6 | E15: Demand | H15: =VLOOKUP($A15,'Billing Determinants - Units'!$A$9:$B$1153,2,FALSE) -> 61484366 | J15: 61484366 | K15: =INDEX('Present Base Rates by Rate Code'!$A$4:$V$50,MATCH('GSD(T)-1'!$B15,'Present Base Rates by Rate Code'!$A$4:$A$50,0),MATCH('GSD(T)-1'!C15,'Present Base Rates by Rate Code'!$A$4:$V$4,0)) -> 8.68 | L15: =J15*K15 -> 533684296.9 | N15: 61484366 | O15: =K15*(1+$Q$6) -> 10.69557985 | P15: =N15*O15 -> 657610946.1 | S15: =N15 -> 61484366 | T15: =ROUND(O15*(1+$V$6),1) -> 10.7 | U15: =S15*T15 -> 657882716.2 | X15: =J15 -> 61484366 | Y15: =T15 -> 10.7 | Z15: =X15*Y15 -> 657882716.2 | AB15: =Y15/K15-1 -> 0.232718894 | AC15: =Y15-K15 -> 2.02 | AH15: Demand | AK15: Energy
A16: GSD-1 - 72Transformation Credit | B16: General Service Demand (GSD-1) | C16: Transformation Rider Credit ($/kW) | D16: 7 | E16: Transformation Credit | H16: =VLOOKUP($A16,'Billing Determinants - Units'!$A$9:$B$1153,2,FALSE) -> 78938 | J16: 78938 | K16: =INDEX('Present Base Rates by Rate Code'!$A$4:$V$50,MATCH('GSD(T)-1'!$B16,'Present Base Rates by Rate Code'!$A$4:$A$50,0),MATCH('GSD(T)-1'!C16,'Present Base Rates by Rate Code'!$A$4:$V$4,0)) -> -0.3 | L16: =J16*K16 -> -23681.4 | N16: 78938 | O16: ='Transformer Credit'!$E$9 -> -0.24 | P16: =N16*O16 -> -18945.12 | Q16: =P16-L16 -> 4736.28 | S16: =N16 -> 78938 | T16: =O16 -> -0.24 | U16: =S16*T16 -> -18945.12 | V16: =U16-P16 -> 0 | X16: =J16 -> 78938 | Y16: =T16 -> -0.24 | Z16: =X16*Y16 -> -18945.12 | AB16: =Y16/K16-1 -> -0.2 | AC16: =Y16-K16 -> 0.06
A17: GSD-1 - 72Subtotal | B17: General Service Demand (GSD-1) | D17: 8 | E17: Subtotal | L17: =SUM(L12:L16) -> 977521692.8 | P17: =SUM(P12:P16) -> 1204592948 | U17: =SUM(U12:U16) -> 1204844450 | Z17: =SUM(Z12:Z16) -> 1205711692 | AC17: =Z17/L17-1 -> 0.2334372738
A18: GSD-1 - 72CDR Credit | B18: General Service Demand (GSD-1) | D18: 9 | E18: CDR Credit | AF18: Billing Units | AG18: kW | AH18: =X15+X42+X58+X59+X75+X76+X29 -> 71385525 | AJ18: kWh | AK18: =X14+X40+X41+X55+X56+X57+X71+X72+X73+X74+X27+X28 -> 25949742256
A19: GSD-1 - 72Adder | B19: General Service Demand (GSD-1) | C19: Commercial / Industrial Demand Rider (CDR) Adder per Customer | D19: 10 | E19: Adder | H19: =VLOOKUP($A19,'Billing Determinants - Units'!$A$9:$B$1153,2,FALSE) -> 204 | J19: 204 | K19: =INDEX('Present Base Rates by Rate Code'!$A$4:$V$50,MATCH('GSD(T)-1'!$B19,'Present Base Rates by Rate Code'!$A$4:$A$50,0),MATCH('GSD(T)-1'!C19,'Present Base Rates by Rate Code'!$A$4:$V$4,0)) -> 84.31 | L19: =J19*K19 -> 17199.24 | N19: 204 | O19: ='E-6b Proposed Equalized'!$I$75 -> 100 | P19: =N19*O19 -> 20400 | Q19: =P19-L19 -> 3200.76 | S19: =N19 -> 204 | T19: =O19 -> 100 | U19: =S19*T19 -> 20400 | V19: =U19-P19 -> 0 | X19: =J19 -> 204 | Y19: =T19 -> 100 | Z19: =X19*Y19 -> 20400 | AB19: =Y19/K19-1 -> 0.1860989206 | AC19: =Y19-K19 -> 15.69
A20: GSD-1 - 72Credit | B20: General Service Demand (GSD-1) | C20: Commercial / Industrial Demand Rider Credit (CDR) ($/kW) | D20: 11 | E20: Credit | H20: =VLOOKUP($A20,'Billing Determinants - Units'!$A$9:$B$1153,2,FALSE) -> 50109.03056 | J20: 50109.03056 | K20: =INDEX('Present Base Rates by Rate Code'!$A$4:$V$50,MATCH('GSD(T)-1'!$B20,'Present Base Rates by Rate Code'!$A$4:$A$50,0),MATCH('GSD(T)-1'!C20,'Present Base Rates by Rate Code'!$A$4:$V$4,0)) -> -8.2 | L20: =J20*K20 -> -410894.0506 | N20: 50109.03056 | O20: ='CDR Credit'!D13 -> -5.26 | P20: =N20*O20 -> -263573.5008 | Q20: =P20-L20 -> 147320.5498 | S20: =N20 -> 50109.03056 | T20: =O20 -> -5.26 | U20: =S20*T20 -> -263573.5008 | V20: =U20-P20 -> 0 | X20: =J20 -> 50109.03056 | Y20: =T20 -> -5.26 | Z20: =X20*Y20 -> -263573.5008 | AB20: =Y20/K20-1 -> -0.3585365854 | AC20: =Y20-K20 -> 2.94 | AF20: Unit Costs per E-6b | AH20: ='E-6b Proposed Equalized'!I31 -> 15.06 | AK20: ='E-6b Proposed Equalized'!I41 -> 0.01194
A21: Total | B21: General Service Demand (GSD-1) | D21: 12 | E21: Total | L21: =SUM(L17:L20) -> 977127998 | P21: =SUM(P17:P20) -> 1204349775 | U21: =SUM(U17:U20) -> 1204601277 | Z21: =SUM(Z17:Z20) -> 1205468518 | AC21: =Z21/L21-1 -> 0.2336853727
D22: 13 | AF22: Rate Calculated | AH22: =Y15 -> 10.7 | AK22: =Y28 -> 0.01288
A23: RATE SCHEDULE GSDT-1 - 70 | D23: 14 | E23: RATE SCHEDULE GSDT-1 - 70
D24: 15 | AF24: Difference | AH24: =AH22-AH20 -> -4.36 | AK24: =AK22-AK20 -> 0.00094
A25: GSDT-1 - 70Customer | B25: General Service Demand-TOU (GSDT-1) | C25: Customer Charge | D25: 16 | E25: Customer | H25: =VLOOKUP($A25,'Billing Determinants - Units'!$A$9:$B$1153,2,FALSE) -> 50745 | J25: 50745 | K25: =INDEX('Present Base Rates by Rate Code'!$A$4:$V$50,MATCH('GSD(T)-1'!$B25,'Present Base Rates by Rate Code'!$A$4:$A$50,0),MATCH('GSD(T)-1'!C25,'Present Base Rates by Rate Code'!$A$4:$V$4,0)) -> 26.97 | L25: =J25*K25 -> 1368592.65 | N25: 50745 | O25: =O12 -> 25 | P25: =N25*O25 -> 1268625 | Q25: =P25-L25 -> -99967.65 | S25: =N25 -> 50745 | T25: =ROUND(O25,0) -> 25 | U25: =S25*T25 -> 1268625 | V25: =U25-P25 -> 0 | X25: =J25 -> 50745 | Y25: =T25 -> 25 | Z25: =X25*Y25 -> 1268625 | AB25: =Y25/K25-1 -> -0.0730441231 | AC25: =Y25-K25 -> -1.97
A26: GSDT-1 - 70Non-Fuel Energy | B26: General Service Demand-TOU (GSDT-1) | D26: 17 | E26: Non-Fuel Energy | X26: 0 | AF26: % Difference | AH26: =AH24/AH20 -> -0.2895086321 | AK26: =AK24/AK20 -> 0.07872696817
A27: GSDT-1 - 70Non-Fuel Energy - On Peak | B27: General Service Demand-TOU (GSDT-1) | C27: On-Peak Energy Charge $/kWh | D27: 18 | E27: Non-Fuel Energy - On Peak | H27: =VLOOKUP($A27,'Billing Determinants - Units'!$A$9:$B$1153,2,FALSE) -> 551018154 | J27: 551018154 | K27: =INDEX('Present Base Rates by Rate Code'!$A$4:$V$50,MATCH('GSD(T)-1'!$B27,'Present Base Rates by Rate Code'!$A$4:$A$50,0),MATCH('GSD(T)-1'!C27,'Present Base Rates by Rate Code'!$A$4:$V$4,0)) -> 0.04114 | L27: =J27*K27 -> 22668886.86 | N27: 551018154 | O27: =K27*(1+$Q$6) -> 0.05069310542 | P27: =N27*O27 -> 27932821.37 | S27: =N27 -> 551018154 | T27: =ROUND(O27*(1+$V$6),5) -> 0.05069 | U27: =S27*T27 -> 27931110.23 | X27: 551018154 | Y27: =G96 -> 0.04869 | Z27: =X27*Y27 -> 26829073.92 | AB27: =Y27/K27-1 -> 0.1835196889 | AC27: =Y27-K27 -> 0.00755
A28: GSDT-1 - 70Non-Fuel Energy - Off Peak | B28: General Service Demand-TOU (GSDT-1) | C28: Off-Peak Energy Charge $/kWh | D28: 19 | E28: Non-Fuel Energy - Off Peak | H28: =VLOOKUP($A28,'Billing Determinants - Units'!$A$9:$B$1153,2,FALSE) -> 1807995806 | J28: 1807995806 | K28: =INDEX('Present Base Rates by Rate Code'!$A$4:$V$50,MATCH('GSD(T)-1'!$B28,'Present Base Rates by Rate Code'!$A$4:$A$50,0),MATCH('GSD(T)-1'!C28,'Present Base Rates by Rate Code'!$A$4:$V$4,0)) -> 0.01045 | L28: =J28*K28 -> 18893556.17 | N28: 1807995806 | O28: =K28*(1+$Q$6) -> 0.01287659095 | P28: =N28*O28 -> 23280822.43 | S28: =N28 -> 1807995806 | T28: =ROUND(O28*(1+$V$6),5) -> 0.01288 | U28: =S28*T28 -> 23286985.98 | X28: 1807995806 | Y28: =T28 -> 0.01288 | Z28: =X28*Y28 -> 23286985.98 | AB28: =Y28/K28-1 -> 0.2325358852 | AC28: =Y28-K28 -> 0.00243 | AF28: Note: The use of the percent increase method maintains the shift of some demand costs to
A29: GSDT-1 - 70Demand | B29: General Service Demand-TOU (GSDT-1) | C29: On-Peak Demand Charge $/kW | D29: 20 | E29: Demand | H29: =VLOOKUP($A29,'Billing Determinants - Units'!$A$9:$B$1153,2,FALSE) -> 5152480 | J29: 5152480 | K29: =INDEX('Present Base Rates by Rate Code'!$A$4:$V$50,MATCH('GSD(T)-1'!$B29,'Present Base Rates by Rate Code'!$A$4:$A$50,0),MATCH('GSD(T)-1'!C29,'Present Base Rates by Rate Code'!$A$4:$V$4,0)) -> 8.68 | L29: =J29*K29 -> 44723526.4 | N29: 5152480 | O29: =K29*(1+$Q$6) -> 10.69557985 | P29: =N29*O29 -> 55108761.27 | S29: =N29 -> 5152480 | T29: =ROUND(O29*(1+$V$6),1) -> 10.7 | U29: =S29*T29 -> 55131536 | X29: 5152480 | Y29: =T29 -> 10.7 | Z29: =X29*Y29 -> 55131536 | AB29: =Y29/K29-1 -> 0.232718894 | AC29: =Y29-K29 -> 2.02 | AF29: energy charges approved in past rate cases to limit impacts to low load factor customers.
A30: GSDT-1 - 70Transformation Credit | B30: General Service Demand-TOU (GSDT-1) | C30: Transformation Rider Credit ($/kW) | D30: 21 | E30: Transformation Credit | H30: =VLOOKUP($A30,'Billing Determinants - Units'!$A$9:$B$1153,2,FALSE) -> 11279 | J30: 11279 | K30: =INDEX('Present Base Rates by Rate Code'!$A$4:$V$50,MATCH('GSD(T)-1'!$B30,'Present Base Rates by Rate Code'!$A$4:$A$50,0),MATCH('GSD(T)-1'!C30,'Present Base Rates by Rate Code'!$A$4:$V$4,0)) -> -0.3 | L30: =J30*K30 -> -3383.7 | N30: 11279 | O30: =$O$16 -> -0.24 | P30: =N30*O30 -> -2706.96 | Q30: =P30-L30 -> 676.74 | S30: =N30 -> 11279 | T30: =$O$16 -> -0.24 | U30: =S30*T30 -> -2706.96 | V30: =U30-P30 -> 0 | X30: 11279 | Y30: =+Y16 -> -0.24 | Z30: =X30*Y30 -> -2706.96 | AB30: =Y30/K30-1 -> -0.2 | AC30: =Y30-K30 -> 0.06
A31: GSDT-1 - 70Subtotal | B31: General Service Demand-TOU (GSDT-1) | D31: 22 | E31: Subtotal | L31: =SUM(L25:L30) -> 87651178.38 | P31: =SUM(P25:P30) -> 107588323.1 | U31: =SUM(U25:U30) -> 107615550.2 | Z31: =SUM(Z25:Z30) -> 106513513.9 | AC31: =Z31/L31-1 -> 0.2151977408
A32: GSDT-1 - 70CDR Credit | B32: General Service Demand-TOU (GSDT-1) | D32: 23 | E32: CDR Credit
A33: GSDT-1 - 70Adder | B33: General Service Demand-TOU (GSDT-1) | C33: Commercial / Industrial Demand Rider (CDR) Adder per Customer | D33: 24 | E33: Adder | H33: =VLOOKUP($A33,'Billing Determinants - Units'!$A$9:$B$1153,2,FALSE) -> 2022 | J33: 2022 | K33: =INDEX('Present Base Rates by Rate Code'!$A$4:$V$50,MATCH('GSD(T)-1'!$B33,'Present Base Rates by Rate Code'!$A$4:$A$50,0),MATCH('GSD(T)-1'!C33,'Present Base Rates by Rate Code'!$A$4:$V$4,0)) -> 84.31 | L33: =J33*K33 -> 170474.82 | N33: 2022 | O33: =$O$19 -> 100 | P33: =N33*O33 -> 202200 | Q33: =P33-L33 -> 31725.18 | S33: =N33 -> 2022 | T33: =$O$19 -> 100 | U33: =S33*T33 -> 202200 | V33: =U33-P33 -> 0 | X33: =J33 -> 2022 | Y33: =Y19 -> 100 | Z33: =X33*Y33 -> 202200 | AB33: =Y33/K33-1 -> 0.1860989206 | AC33: =Y33-K33 -> 15.69
A34: GSDT-1 - 70Credit | B34: General Service Demand-TOU (GSDT-1) | C34: Commercial / Industrial Demand Rider Credit (CDR) ($/kW) | D34: 25 | E34: Credit | H34: =VLOOKUP($A34,'Billing Determinants - Units'!$A$9:$B$1153,2,FALSE) -> 597910.9295 | J34: 597910.9295 | K34: =INDEX('Present Base Rates by Rate Code'!$A$4:$V$50,MATCH('GSD(T)-1'!$B34,'Present Base Rates by Rate Code'!$A$4:$A$50,0),MATCH('GSD(T)-1'!C34,'Present Base Rates by Rate Code'!$A$4:$V$4,0)) -> -8.2 | L34: =J34*K34 -> -4902869.622 | N34: 597910.9295 | O34: =$O$20 -> -5.26 | P34: =N34*O34 -> -3145011.489 | Q34: =P34-L34 -> 1757858.133 | S34: =N34 -> 597910.9295 | T34: =$O$20 -> -5.26 | U34: =S34*T34 -> -3145011.489 | V34: =U34-P34 -> 0 | X34: =J34 -> 597910.9295 | Y34: =Y20 -> -5.26 | Z34: =X34*Y34 -> -3145011.489 | AB34: =Y34/K34-1 -> -0.3585365854 | AC34: =Y34-K34 -> 2.94
A35: Total | B35: General Service Demand-TOU (GSDT-1) | D35: 26 | E35: Total | L35: =SUM(L31:L34) -> 82918783.58 | P35: =SUM(P31:P34) -> 104645511.6 | U35: =SUM(U31:U34) -> 104672738.8 | Z35: =SUM(Z31:Z34) -> 103570702.5 | AC35: =Z31/L31-1 -> 0.2151977408
D36: 27
A37: RATE SCHEDULE HLFT - 170 | D37: 28 | E37: RATE SCHEDULE HLFT - 170
D38: 29
A39: HLFT - 170Customer | B39: High Load Factor-TOU (21 - 499 kW) | C39: Customer Charge | D39: 30 | E39: Customer | H39: =VLOOKUP($A39,'Billing Determinants - Units'!$A$9:$B$1153,2,FALSE) -> 10572 | J39: 10572 | K39: =INDEX('Present Base Rates by Rate Code'!$A$4:$V$50,MATCH('GSD(T)-1'!$B39,'Present Base Rates by Rate Code'!$A$4:$A$50,0),MATCH('GSD(T)-1'!C39,'Present Base Rates by Rate Code'!$A$4:$V$4,0)) -> 26.97 | L39: =J39*K39 -> 285126.84 | N39: 10572 | O39: =O25 -> 25 | P39: =N39*O39 -> 264300 | Q39: =P39-L39 -> -20826.84 | S39: =N39 -> 10572 | T39: =$T$25 -> 25 | U39: =S39*T39 -> 264300 | V39: =U39-P39 -> 0 | X39: =J39 -> 10572 | Y39: =Y25 -> 25 | Z39: =X39*Y39 -> 264300 | AB39: =Y39/K39-1 -> -0.0730441231 | AC39: =Y39-K39 -> -1.97
A40: HLFT - 170Non-Fuel Energy - On Peak | B40: High Load Factor-TOU (21 - 499 kW) | C40: On-Peak Energy Charge $/kWh | D40: 31 | E40: Non-Fuel Energy - On Peak | H40: =VLOOKUP($A40,'Billing Determinants - Units'!$A$9:$B$1153,2,FALSE) -> 270300406 | J40: 270300406 | K40: =INDEX('Present Base Rates by Rate Code'!$A$4:$V$50,MATCH('GSD(T)-1'!$B40,'Present Base Rates by Rate Code'!$A$4:$A$50,0),MATCH('GSD(T)-1'!C40,'Present Base Rates by Rate Code'!$A$4:$V$4,0)) -> 0.01617 | L40: 4370757.565 | N40: 270300406 | O40: =K40*(1+$Q$6) -> 0.01992483021 | P40: 5385689.694 | S40: 270300406 | T40: =ROUND(O40*(1+$V$6),5) -> 0.01992 | U40: 5384384.088 | X40: 270300406 | Y40: =J118 -> 0.02098 | Z40: 5670902.518 | AB40: 0.2974644403 | AC40: 0.00481
A41: HLFT - 170Non-Fuel Energy - Off Peak | B41: High Load Factor-TOU (21 - 499 kW) | C41: Off-Peak Energy Charge $/kWh | D41: 32 | E41: Non-Fuel Energy - Off Peak | H41: =VLOOKUP($A41,'Billing Determinants - Units'!$A$9:$B$1153,2,FALSE) -> 824099766 | J41: 824099766 | K41: =INDEX('Present Base Rates by Rate Code'!$A$4:$V$50,MATCH('GSD(T)-1'!$B41,'Present Base Rates by Rate Code'!$A$4:$A$50,0),MATCH('GSD(T)-1'!C41,'Present Base Rates by Rate Code'!$A$4:$V$4,0)) -> 0.01045 | L41: 8611842.555 | N41: 824099766 | O41: =K41*(1+$Q$6) -> 0.01287659095 | P41: 10611595.59 | S41: 824099766 | T41: =ROUND(O41*(1+$V$6),5) -> 0.01288 | U41: 10614404.99 | X41: 824099766 | Y41: =H119 -> 0.01288 | Z41: 10614404.99 | AB41: 0.2325358852 | AC41: 0.00243
A42: HLFT - 170Demand - Maximum | B42: High Load Factor-TOU (21 - 499 kW) | C42: Maximum Demand Charge $/kW | D42: 33 | E42: Demand - Maximum | H42: =VLOOKUP($A42,'Billing Determinants - Units'!$A$9:$B$1153,2,FALSE) -> 1921682 | J42: 1921682 | K42: =INDEX('Present Base Rates by Rate Code'!$A$4:$V$50,MATCH('GSD(T)-1'!$B42,'Present Base Rates by Rate Code'!$A$4:$A$50,0),MATCH('GSD(T)-1'!C42,'Present Base Rates by Rate Code'!$A$4:$V$4,0)) -> 2.14 | L42: 4112399.48 | N42: 1921682 | O42: =K42*(1+$Q$6) -> 2.636928673 | P42: 5067338.366 | S42: 1921682 | T42: =ROUND(O42*(1+$V$6),1) -> 2.6 | U42: 4996373.2 | X42: 1921682 | Y42: =ROUND(T42,1) -> 2.6 | Z42: 4996373.2 | AB42: 0.214953271 | AC42: 0.46
A43: HLFT - 170Demand - On-Peak | B43: High Load Factor-TOU (21 - 499 kW) | C43: On-Peak Demand Charge $/kW | D43: 34 | E43: Demand - On-Peak | H43: =VLOOKUP($A43,'Billing Determinants - Units'!$A$9:$B$1153,2,FALSE) -> 1766146 | J43: 1766146 | K43: =INDEX('Present Base Rates by Rate Code'!$A$4:$V$50,MATCH('GSD(T)-1'!$B43,'Present Base Rates by Rate Code'!$A$4:$A$50,0),MATCH('GSD(T)-1'!C43,'Present Base Rates by Rate Code'!$A$4:$V$4,0)) -> 10.25 | L43: 18102996.5 | N43: 1766146 | O43: =K43*(1+$Q$6) -> 12.63014902 | P43: 22306687.17 | S43: 1766146 | T43: =ROUND(O43*(1+$V$6),1) -> 12.6 | U43: 22253439.6 | X43: 1766146 | Y43: =ROUND(T43,1) -> 12.6 | Z43: 22253439.6 | AB43: 0.2292682927 | AC43: 2.35
A44: HLFT - 170Transformation Credit | B44: High Load Factor-TOU (21 - 499 kW) | C44: Transformation Rider Credit ($/kW) | D44: 35 | E44: Transformation Credit | H44: =VLOOKUP($A44,'Billing Determinants - Units'!$A$9:$B$1153,2,FALSE) -> 6555 | J44: 6555 | K44: =INDEX('Present Base Rates by Rate Code'!$A$4:$V$50,MATCH('GSD(T)-1'!$B44,'Present Base Rates by Rate Code'!$A$4:$A$50,0),MATCH('GSD(T)-1'!C44,'Present Base Rates by Rate Code'!$A$4:$V$4,0)) -> -0.3 | L44: -1966.5 | N44: 6555 | O44: =$O$16 -> -0.24 | P44: -1573.2 | Q44: =P44-L44 -> 393.3 | S44: 6555 | T44: =$O$16 -> -0.24 | U44: -1573.2 | V44: =U44-P44 -> 0 | X44: 6555 | Y44: =Y16 -> -0.24 | Z44: -1573.2 | AB44: -0.2 | AC44: 0.06
A45: HLFT - 170Subtotal | B45: High Load Factor-TOU (21 - 499 kW) | D45: 36 | E45: Subtotal | L45: =SUM(L39:L44) -> 35481156.44 | P45: =SUM(P39:P44) -> 43634037.61 | U45: =SUM(U39:U44) -> 43511328.67 | Z45: =SUM(Z39:Z44) -> 43797847.1 | AC45: =Z45/L45-1 -> 0.2343973957
A46: HLFT - 170CDR Credit | B46: High Load Factor-TOU (21 - 499 kW) | D46: 37 | E46: CDR Credit
A47: HLFT - 170Adder | B47: High Load Factor-TOU (21 - 499 kW) | C47: Commercial / Industrial Demand Rider (CDR) Adder per Customer | D47: 38 | E47: Adder | H47: =VLOOKUP($A47,'Billing Determinants - Units'!$A$9:$B$1153,2,FALSE) -> 364 | J47: 364 | K47: =INDEX('Present Base Rates by Rate Code'!$A$4:$V$50,MATCH('GSD(T)-1'!$B47,'Present Base Rates by Rate Code'!$A$4:$A$50,0),MATCH('GSD(T)-1'!C47,'Present Base Rates by Rate Code'!$A$4:$V$4,0)) -> 84.31 | L47: =J47*K47 -> 30688.84 | N47: 364 | O47: =$O$19 -> 100 | P47: =N47*O47 -> 36400 | Q47: =P47-L47 -> 5711.16 | S47: =N47 -> 364 | T47: =$O$19 -> 100 | U47: =S47*T47 -> 36400 | V47: =U47-P47 -> 0 | X47: =J47 -> 364 | Y47: =Y19 -> 100 | Z47: =X47*Y47 -> 36400 | AB47: =Y47/K47-1 -> 0.1860989206 | AC47: =Y47-K47 -> 15.69
A48: HLFT - 170Credit | B48: High Load Factor-TOU (21 - 499 kW) | C48: Commercial / Industrial Demand Rider Credit (CDR) ($/kW) | D48: 39 | E48: Credit | H48: =VLOOKUP($A48,'Billing Determinants - Units'!$A$9:$B$1153,2,FALSE) -> 125397.6204 | J48: 125397.6204 | K48: =INDEX('Present Base Rates by Rate Code'!$A$4:$V$50,MATCH('GSD(T)-1'!$B48,'Present Base Rates by Rate Code'!$A$4:$A$50,0),MATCH('GSD(T)-1'!C48,'Present Base Rates by Rate Code'!$A$4:$V$4,0)) -> -8.2 | L48: =J48*K48 -> -1028260.487 | N48: 125397.6204 | O48: =$O$20 -> -5.26 | P48: =N48*O48 -> -659591.4832 | Q48: =P48-L48 -> 368669.0039 | S48: =N48 -> 125397.6204 | T48: =$O$20 -> -5.26 | U48: =S48*T48 -> -659591.4832 | V48: =U48-P48 -> 0 | X48: =J48 -> 125397.6204 | Y48: =Y20 -> -5.26 | Z48: =X48*Y48 -> -659591.4832 | AB48: =Y48/K48-1 -> -0.3585365854 | AC48: =Y48-K48 -> 2.94
A49: Total | B49: High Load Factor-TOU (21 - 499 kW) | D49: 40 | E49: Total | L49: =SUM(L45:L48) -> 34483584.79 | P49: =SUM(P45:P48) -> 43010846.13 | U49: =SUM(U45:U48) -> 42888137.19 | Z49: =SUM(Z45:Z48) -> 43174655.62 | AC49: =Z49/L49-1 -> 0.2520350155
D50: 41
A51: RATE SCHEDULE SDTR - 270 | D51: 42 | E51: RATE SCHEDULE SDTR - 270
D52: 43 | N52: Option A - GSD-1 | S52: Option A - GSD-1 | X52: Option A - GSD-1
D53: 44
A54: SDTR - 270Customer | B54: Seasonal Demand TOU Rider (SDTR) (21-499 kW) Option A Summer | C54: Customer Charge | D54: 45 | E54: Customer | H54: =VLOOKUP($A54,'Billing Determinants - Units'!$A$9:$B$1153,2,FALSE) -> 21657 | J54: 21657 | K54: =INDEX('Present Base Rates by Rate Code'!$A$4:$V$50,MATCH('GSD(T)-1'!$B54,'Present Base Rates by Rate Code'!$A$4:$A$50,0),MATCH('GSD(T)-1'!C54,'Present Base Rates by Rate Code'!$A$4:$V$4,0)) -> 26.97 | L54: =J54*K54 -> 584089.29 | N54: =J54 -> 21657 | O54: =O25 -> 25 | P54: =N54*O54 -> 541425 | Q54: =P54-L54 -> -42664.29 | S54: =N54 -> 21657 | T54: =$T$25 -> 25 | U54: =S54*T54 -> 541425 | V54: =U54-P54 -> 0 | X54: =J54 -> 21657 | Y54: =T54 -> 25 | Z54: =X54*Y54 -> 541425 | AB54: =Y54/K54-1 -> -0.0730441231 | AC54: =Y54-K54 -> -1.97
A55: SDTR - 270Non-Fuel Energy - Seasonal On Peak | B55: Seasonal Demand TOU Rider (SDTR) (21-499 kW) Option A Summer | C55: On-Peak Energy Charge $/kWh | D55: 46 | E55: Non-Fuel Energy - Seasonal On Peak | H55: =VLOOKUP($A55,'Billing Determinants - Units'!$A$9:$B$1153,2,FALSE) -> 23766519 | J55: 23766519 | K55: =INDEX('Present Base Rates by Rate Code'!$A$4:$V$50,MATCH('GSD(T)-1'!$B55,'Present Base Rates by Rate Code'!$A$4:$A$50,0),MATCH('GSD(T)-1'!C55,'Present Base Rates by Rate Code'!$A$4:$V$4,0)) -> 0.07278 | L55: 1729727.253 | N55: =J55 -> 23766519 | O55: =K55*(1+$Q$6) -> 0.08968021907 | P55: 2131386.63 | S55: =N55 -> 23766519 | T55: =ROUND(O55*(1+$V$6),5) -> 0.08968 | U55: 2131381.424 | X55: 23766519 | Y55: ='SDTR Workpaper'!C42 -> 0.09487 | Z55: 2254729.658 | AB55: 0.3035174498 | AC55: 0.02209
A56: SDTR - 270Non-Fuel Energy - Seasonal Off Peak | B56: Seasonal Demand TOU Rider (SDTR) (21-499 kW) Option A Summer | C56: Off-Peak Energy Charge $/kWh | D56: 47 | E56: Non-Fuel Energy - Seasonal Off Peak | H56: =VLOOKUP($A56,'Billing Determinants - Units'!$A$9:$B$1153,2,FALSE) -> 250299334 | J56: 250299334 | K56: =INDEX('Present Base Rates by Rate Code'!$A$4:$V$50,MATCH('GSD(T)-1'!$B56,'Present Base Rates by Rate Code'!$A$4:$A$50,0),MATCH('GSD(T)-1'!C56,'Present Base Rates by Rate Code'!$A$4:$V$4,0)) -> 0.01371 | L56: 3431603.869 | N56: 250299334 | O56: =K56*(1+$Q$6) -> 0.01689359444 | P56: 4228455.438 | S56: 250299334 | T56: =ROUND(O56*(1+$V$6),5) -> 0.01689 | U56: 4227555.751 | X56: 250299334 | Y56: ='SDTR Workpaper'!C43 -> 0.01712 | Z56: 4285124.598 | AB56: 0.2487235594 | AC56: 0.00341
A57: SDTR - 270Non-Fuel Energy - Non-Seasonal | B57: Seasonal Demand TOU Rider (SDTR) (21-499 kW) Option A Winter | C57: Energy Charges $/kWh | D57: 48 | E57: Non-Fuel Energy - Non-Seasonal | H57: =VLOOKUP($A57,'Billing Determinants - Units'!$A$9:$B$1153,2,FALSE) -> 517608919 | J57: 517608919 | K57: =INDEX('Present Base Rates by Rate Code'!$A$4:$V$50,MATCH('GSD(T)-1'!$B57,'Present Base Rates by Rate Code'!$A$4:$A$50,0),MATCH('GSD(T)-1'!C57,'Present Base Rates by Rate Code'!$A$4:$V$4,0)) -> 0.01934 | L57: 10010556.49 | N57: 517608919 | O57: =K57*(1+$Q$6) -> 0.02383093483 | P57: 12335104.42 | S57: 517608919 | T57: =ROUND(O57*(1+$V$6),5) -> 0.02383 | U57: 12334620.54 | X57: 517608919 | Y57: ='SDTR Workpaper'!C45 -> 0.02387 | Z57: 12355324.9 | AB57: 0.234229576 | AC57: 0.00453
A58: SDTR - 270Demand - Seasonal On-Peak | B58: Seasonal Demand TOU Rider (SDTR) (21-499 kW) Option A Summer | C58: On-Peak Demand Charge $/kW | D58: 49 | E58: Demand - Seasonal On-Peak | H58: =VLOOKUP($A58,'Billing Determinants - Units'!$A$9:$B$1153,2,FALSE) -> 725862 | J58: 725862 | K58: =INDEX('Present Base Rates by Rate Code'!$A$4:$V$50,MATCH('GSD(T)-1'!$B58,'Present Base Rates by Rate Code'!$A$4:$A$50,0),MATCH('GSD(T)-1'!C58,'Present Base Rates by Rate Code'!$A$4:$V$4,0)) -> 10.02 | L58: 7273137.24 | N58: 725862 | O58: =K58*(1+$Q$6) -> 12.3467408 | P58: 8962029.967 | S58: 725862 | T58: =ROUND(O58*(1+$V$6),1) -> 12.3 | U58: 8928102.6 | X58: 725862 | Y58: ='SDTR Workpaper'!C39 -> 11.8 | Z58: 8565171.6 | AB58: 0.1776447106 | AC58: 1.78
A59: SDTR - 270Demand - Non-Seasonal | B59: Seasonal Demand TOU Rider (SDTR) (21-499 kW) Option A Winter | C59: Demand Charge $/kW | D59: 50 | E59: Demand - Non-Seasonal | H59: =VLOOKUP($A59,'Billing Determinants - Units'!$A$9:$B$1153,2,FALSE) -> 2034625 | J59: 2034625 | K59: =INDEX('Present Base Rates by Rate Code'!$A$4:$V$50,MATCH('GSD(T)-1'!$B59,'Present Base Rates by Rate Code'!$A$4:$A$50,0),MATCH('GSD(T)-1'!C59,'Present Base Rates by Rate Code'!$A$4:$V$4,0)) -> 8.34 | L59: 16968772.5 | N59: 2034625 | O59: =K59*(1+$Q$6) -> 10.27662857 | P59: 20909085.4 | S59: 2034625 | T59: =ROUND(O59*(1+$V$6),1) -> 10.3 | U59: 20956637.5 | X59: 2034625 | Y59: ='SDTR Workpaper'!C40 -> 10.3 | Z59: 20956637.5 | AB59: 0.2350119904 | AC59: 1.96
A60: SDTR - 270Transformation Credit | B60: Seasonal Demand TOU Rider (SDTR) (21-499 kW) Option A Summer | C60: Transformation Rider Credit ($/kW) | D60: 51 | E60: Transformation Credit | H60: =VLOOKUP($A60,'Billing Determinants - Units'!$A$9:$B$1153,2,FALSE) -> 5994 | J60: 5994 | K60: =INDEX('Present Base Rates by Rate Code'!$A$4:$V$50,MATCH('GSD(T)-1'!$B60,'Present Base Rates by Rate Code'!$A$4:$A$50,0),MATCH('GSD(T)-1'!C60,'Present Base Rates by Rate Code'!$A$4:$V$4,0)) -> -0.3 | L60: -1798.2 | N60: 5994 | O60: =$O$16 -> -0.24 | P60: -1438.56 | Q60: =P60-L60 -> 359.64 | S60: 5994 | T60: =$O$16 -> -0.24 | U60: -1438.56 | V60: =U60-P60 -> 0 | X60: 5994 | Y60: =Y16 -> -0.24 | Z60: -1438.56 | AB60: -0.2 | AC60: 0.06
A61: SDTR - 270Subtotal | B61: Seasonal Demand TOU Rider (SDTR) (21-499 kW) Option A Summer | D61: 52 | E61: Subtotal | L61: =SUM(L54:L60) -> 39996088.45 | P61: =SUM(P54:P60) -> 49106048.29 | U61: =SUM(U54:U60) -> 49118284.25 | Z61: =SUM(Z54:Z60) -> 48956974.69 | AC61: =Z61/L61-1 -> 0.2240440652
A62: SDTR - 270CDR Credit | B62: Seasonal Demand TOU Rider (SDTR) (21-499 kW) Option A Summer | D62: 53 | E62: CDR Credit
A63: SDTR - 270Adder | B63: Seasonal Demand TOU Rider (SDTR) (21-499 kW) Option A Summer | C63: Commercial / Industrial Demand Rider (CDR) Adder per Customer | D63: 54 | E63: Adder | J63: 0 | K63: =INDEX('Present Base Rates by Rate Code'!$A$4:$V$50,MATCH('GSD(T)-1'!$B63,'Present Base Rates by Rate Code'!$A$4:$A$50,0),MATCH('GSD(T)-1'!C63,'Present Base Rates by Rate Code'!$A$4:$V$4,0)) -> 84.31 | L63: =J63*K63 -> 0 | N63: 0 | O63: =$O$19 -> 100 | P63: =N63*O63 -> 0 | Q63: =P63-L63 -> 0 | S63: =N63 -> 0 | T63: =$O$19 -> 100 | U63: =S63*T63 -> 0 | V63: =U63-P63 -> 0 | X63: =J63 -> 0 | Y63: =Y19 -> 100 | Z63: =X63*Y63 -> 0 | AB63: =Y63/K63-1 -> 0.1860989206 | AC63: =Y63-K63 -> 15.69
A64: SDTR - 270Credit | B64: Seasonal Demand TOU Rider (SDTR) (21-499 kW) Option A Summer | C64: Commercial / Industrial Demand Rider Credit (CDR) ($/kW) | D64: 55 | E64: Credit | J64: 0 | K64: =INDEX('Present Base Rates by Rate Code'!$A$4:$V$50,MATCH('GSD(T)-1'!$B64,'Present Base Rates by Rate Code'!$A$4:$A$50,0),MATCH('GSD(T)-1'!C64,'Present Base Rates by Rate Code'!$A$4:$V$4,0)) -> -8.2 | L64: =J64*K64 -> 0 | N64: 0 | O64: =$O$20 -> -5.26 | P64: =N64*O64 -> 0 | Q64: =P64-L64 -> 0 | S64: =N64 -> 0 | T64: =$O$20 -> -5.26 | U64: =S64*T64 -> 0 | V64: =U64-P64 -> 0 | X64: =J64 -> 0 | Y64: =Y20 -> -5.26 | Z64: =X64*Y64 -> 0 | AB64: =Y64/K64-1 -> -0.3585365854 | AC64: =Y64-K64 -> 2.94
A65: Total | B65: Seasonal Demand TOU Rider (SDTR) (21-499 kW) Option A Summer | D65: 56 | E65: Total | J65: 0 | L65: =SUM(L61:L64) -> 39996088.45 | P65: =SUM(P61:P64) -> 49106048.29 | U65: =SUM(U61:U64) -> 49118284.25 | Z65: =SUM(Z61:Z64) -> 48956974.69 | AC65: =Z65/L65-1 -> 0.2240440652
D66: 57
A67: RATE SCHEDULE SDTR - 370 | D67: 58 | E67: RATE SCHEDULE SDTR - 370
D68: 59 | N68: Option B - GSDT-1 | S68: Option B - GSDT-1 | X68: Option B - GSDT-1
D69: 60
A70: SDTR - 370Customer | B70: Seasonal Demand TOU Rider (SDTR) (21-499 kW) Option B Summer | C70: Customer Charge | D70: 61 | E70: Customer | H70: =VLOOKUP($A70,'Billing Determinants - Units'!$A$9:$B$1153,2,FALSE) -> 1279 | J70: 1279 | K70: =INDEX('Present Base Rates by Rate Code'!$A$4:$V$50,MATCH('GSD(T)-1'!$B70,'Present Base Rates by Rate Code'!$A$4:$A$50,0),MATCH('GSD(T)-1'!C70,'Present Base Rates by Rate Code'!$A$4:$V$4,0)) -> 26.97 | L70: =J70*K70 -> 34494.63 | N70: =J70 -> 1279 | O70: =O25 -> 25 | P70: =N70*O70 -> 31975 | Q70: =P70-L70 -> -2519.63 | S70: =N70 -> 1279 | T70: =$T$25 -> 25 | U70: =S70*T70 -> 31975 | V70: =U70-P70 -> 0 | X70: =J70 -> 1279 | Y70: =+$Y$25 -> 25 | Z70: =X70*Y70 -> 31975 | AB70: =Y70/K70-1 -> -0.0730441231 | AC70: =Y70-K70 -> -1.97
A71: SDTR - 370Non-Fuel Energy - Seasonal On Peak | B71: Seasonal Demand TOU Rider (SDTR) (21-499 kW) Option B Summer | C71: On-Peak Energy Charge $/kWh | D71: 62 | E71: Non-Fuel Energy - Seasonal On Peak | H71: =VLOOKUP($A71,'Billing Determinants - Units'!$A$9:$B$1153,2,FALSE) -> 785892 | J71: 785892 | K71: =INDEX('Present Base Rates by Rate Code'!$A$4:$V$50,MATCH('GSD(T)-1'!$B71,'Present Base Rates by Rate Code'!$A$4:$A$50,0),MATCH('GSD(T)-1'!C71,'Present Base Rates by Rate Code'!$A$4:$V$4,0)) -> 0.07278 | L71: 57197.21976 | N71: =J71 -> 785892 | O71: =K71*(1+$Q$6) -> 0.08968021907 | P71: 70478.96673 | S71: =N71 -> 785892 | T71: =ROUND(O71*(1+$V$6),5) -> 0.08968 | U71: 70478.79456 | X71: 785892 | Y71: ='SDTR Workpaper'!C42 -> 0.09487 | Z71: 74557.57404 | AB71: 0.3035174498 | AC71: 0.02209
A72: SDTR - 370Non-Fuel Energy - Seasonal Off Peak | B72: Seasonal Demand TOU Rider (SDTR) (21-499 kW) Option B Summer | C72: Off-Peak Energy Charge $/kWh | D72: 63 | E72: Non-Fuel Energy - Seasonal Off Peak | H72: =VLOOKUP($A72,'Billing Determinants - Units'!$A$9:$B$1153,2,FALSE) -> 7968116 | J72: 7968116 | K72: =INDEX('Present Base Rates by Rate Code'!$A$4:$V$50,MATCH('GSD(T)-1'!$B72,'Present Base Rates by Rate Code'!$A$4:$A$50,0),MATCH('GSD(T)-1'!C72,'Present Base Rates by Rate Code'!$A$4:$V$4,0)) -> 0.01371 | L72: 109242.8704 | N72: 7968116 | O72: 0.01689359444 | P72: 134610.1202 | S72: 7968116 | T72: =ROUND(O72*(1+$V$6),5) -> 0.01689 | U72: 134581.4792 | X72: 7968116 | Y72: ='SDTR Workpaper'!C43 -> 0.01712 | Z72: 136414.1459 | AB72: 0.2487235594 | AC72: 0.00341
A73: SDTR - 370Non-Fuel Energy - Non-Seasonal On Peak | B73: Seasonal Demand TOU Rider (SDTR) (21-499 kW) Option B Winter | C73: On-Peak Energy Charge $/kWh | D73: 64 | E73: Non-Fuel Energy - Non-Seasonal On Peak | H73: =VLOOKUP($A73,'Billing Determinants - Units'!$A$9:$B$1153,2,FALSE) -> 2703513 | J73: 2703513 | K73: =INDEX('Present Base Rates by Rate Code'!$A$4:$V$50,MATCH('GSD(T)-1'!$B73,'Present Base Rates by Rate Code'!$A$4:$A$50,0),MATCH('GSD(T)-1'!C73,'Present Base Rates by Rate Code'!$A$4:$V$4,0)) -> 0.03881 | L73: 104923.3395 | N73: 2703513 | O73: 0.04782205691 | P73: 129287.5526 | S73: 2703513 | T73: =ROUND(O73*(1+$V$6),5) -> 0.04782 | U73: 129281.9917 | X73: 2703513 | Y73: ='SDTR Workpaper'!C46 -> 0.05422 | Z73: 146584.4749 | AB73: 0.3970626127 | AC73: 0.01541
A74: SDTR - 370Non-Fuel Energy - Non-Seasonal Off Peak | B74: Seasonal Demand TOU Rider (SDTR) (21-499 kW) Option B Winter | C74: Off-Peak Energy Charge $/kWh | D74: 65 | E74: Non-Fuel Energy - Non-Seasonal Off Peak | H74: =VLOOKUP($A74,'Billing Determinants - Units'!$A$9:$B$1153,2,FALSE) -> 12153945 | J74: 12153945 | K74: =INDEX('Present Base Rates by Rate Code'!$A$4:$V$50,MATCH('GSD(T)-1'!$B74,'Present Base Rates by Rate Code'!$A$4:$A$50,0),MATCH('GSD(T)-1'!C74,'Present Base Rates by Rate Code'!$A$4:$V$4,0)) -> 0.01371 | L74: 166630.586 | N74: 12153945 | O74: 0.01689359444 | P74: 205323.8177 | S74: 12153945 | T74: =ROUND(O74*(1+$V$6),5) -> 0.01689 | U74: 205280.131 | X74: 12153945 | Y74: ='SDTR Workpaper'!C47 -> 0.01712 | Z74: 208075.5384 | AB74: 0.2487235594 | AC74: 0.00341
A75: SDTR - 370Demand - Seasonal On-Peak | B75: Seasonal Demand TOU Rider (SDTR) (21-499 kW) Option B Summer | C75: On-Peak Demand Charge $/kW | D75: 66 | E75: Demand - Seasonal On-Peak | H75: =VLOOKUP($A75,'Billing Determinants - Units'!$A$9:$B$1153,2,FALSE) -> 20534 | J75: 20534 | K75: =INDEX('Present Base Rates by Rate Code'!$A$4:$V$50,MATCH('GSD(T)-1'!$B75,'Present Base Rates by Rate Code'!$A$4:$A$50,0),MATCH('GSD(T)-1'!C75,'Present Base Rates by Rate Code'!$A$4:$V$4,0)) -> 10.02 | L75: 205750.68 | N75: 20534 | O75: 12.3467408 | P75: 253527.9755 | S75: 20534 | T75: =ROUND(O75*(1+$V$6),1) -> 12.3 | U75: 252568.2 | X75: 20534 | Y75: ='SDTR Workpaper'!C39 -> 11.8 | Z75: 242301.2 | AB75: 0.1776447106 | AC75: 1.78
A76: SDTR - 370Demand - Non-Seasonal On Peak | B76: Seasonal Demand TOU Rider (SDTR) (21-499 kW) Option B Winter | C76: On-Peak Demand Charge $/kW | D76: =D75+1 -> 67 | E76: Demand - Non-Seasonal On Peak | H76: =VLOOKUP($A76,'Billing Determinants - Units'!$A$9:$B$1153,2,FALSE) -> 45976 | J76: 45976 | K76: =INDEX('Present Base Rates by Rate Code'!$A$4:$V$50,MATCH('GSD(T)-1'!$B76,'Present Base Rates by Rate Code'!$A$4:$A$50,0),MATCH('GSD(T)-1'!C76,'Present Base Rates by Rate Code'!$A$4:$V$4,0)) -> 8.34 | L76: 383439.84 | N76: 45976 | O76: 10.27662857 | P76: 472478.275 | S76: 45976 | T76: =ROUND(O76*(1+$V$6),1) -> 10.3 | U76: 473552.8 | X76: 45976 | Y76: ='SDTR Workpaper'!C40 -> 10.3 | Z76: 473552.8 | AB76: 0.2350119904 | AC76: 1.96
A77: SDTR - 370Transformation Credit | B77: Seasonal Demand TOU Rider (SDTR) (21-499 kW) Option B Summer | C77: Transformation Rider Credit ($/kW) | D77: 68 | E77: Transformation Credit | H77: 0 | J77: =H77+I77 -> 0 | K77: =INDEX('Present Base Rates by Rate Code'!$A$4:$V$50,MATCH('GSD(T)-1'!$B77,'Present Base Rates by Rate Code'!$A$4:$A$50,0),MATCH('GSD(T)-1'!C77,'Present Base Rates by Rate Code'!$A$4:$V$4,0)) -> -0.3 | L77: 0 | N77: 0 | O77: =$O$16 -> -0.24 | P77: 0 | Q77: =P77-L77 -> 0 | S77: 0 | T77: =$O$16 -> -0.24 | U77: 0 | V77: =U77-P77 -> 0 | X77: 0 | Y77: =+Y16 -> -0.24 | Z77: 0 | AB77: -0.2 | AC77: 0.06
A78: SDTR - 370Subtotal | B78: Seasonal Demand TOU Rider (SDTR) (21-499 kW) Option B Summer | D78: 69 | E78: Subtotal | L78: =SUM(L70:L77) -> 1061679.166 | P78: =SUM(P70:P77) -> 1297681.708 | U78: =SUM(U70:U77) -> 1297718.397 | Z78: =SUM(Z70:Z77) -> 1313460.733 | AC78: =Z78/L78-1 -> 0.2371541006
A79: SDTR - 370CDR Credit | B79: Seasonal Demand TOU Rider (SDTR) (21-499 kW) Option B Summer | D79: 70 | E79: CDR Credit
A80: SDTR - 370Adder | B80: Seasonal Demand TOU Rider (SDTR) (21-499 kW) Option B Summer | C80: Commercial / Industrial Demand Rider (CDR) Adder per Customer | D80: 71 | E80: Adder | H80: 0 | J80: =H80+I80 -> 0 | K80: =INDEX('Present Base Rates by Rate Code'!$A$4:$V$50,MATCH('GSD(T)-1'!$B80,'Present Base Rates by Rate Code'!$A$4:$A$50,0),MATCH('GSD(T)-1'!C80,'Present Base Rates by Rate Code'!$A$4:$V$4,0)) -> 84.31 | L80: =J80*K80 -> 0 | N80: 0 | O80: =$O$19 -> 100 | P80: =N80*O80 -> 0 | Q80: =P80-L80 -> 0 | S80: =N80 -> 0 | T80: =$O$19 -> 100 | U80: =S80*T80 -> 0 | V80: =U80-P80 -> 0 | X80: =J80 -> 0 | Y80: =Y19 -> 100 | Z80: =X80*Y80 -> 0
A81: SDTR - 370Credit | B81: Seasonal Demand TOU Rider (SDTR) (21-499 kW) Option B Summer | C81: Commercial / Industrial Demand Rider Credit (CDR) ($/kW) | D81: 72 | E81: Credit | H81: 0 | J81: =H81+I81 -> 0 | K81: =INDEX('Present Base Rates by Rate Code'!$A$4:$V$50,MATCH('GSD(T)-1'!$B81,'Present Base Rates by Rate Code'!$A$4:$A$50,0),MATCH('GSD(T)-1'!C81,'Present Base Rates by Rate Code'!$A$4:$V$4,0)) -> -8.2 | L81: =J81*K81 -> 0 | N81: 0 | O81: =$O$20 -> -5.26 | P81: =N81*O81 -> 0 | Q81: =P81-L81 -> 0 | S81: =N81 -> 0 | T81: =$O$20 -> -5.26 | U81: =S81*T81 -> 0 | V81: =U81-P81 -> 0 | X81: =J81 -> 0 | Y81: =Y20 -> -5.26 | Z81: =X81*Y81 -> 0
D82: 73 | E82: Total | L82: =SUM(L78:L81) -> 1061679.166 | P82: =SUM(P78:P81) -> 1297681.708 | U82: =SUM(U78:U81) -> 1297718.397 | Z82: =SUM(Z78:Z81) -> 1313460.733 | AC82: =Z82/L82-1 -> 0.2371541006
D83: 74
D84: 75 | E84: TOTALS | L84: =L21+L35+L49+L65+L82 -> 1135588134 | P84: =P21+P35+P49+P65+P82 -> 1402409862 | Q84: =SUM(Q12:Q82) -> 7926396.056 | U84: =U21+U35+U49+U65+U82 -> 1402578155 | V84: =SUM(V12:V82) -> 0 | Z84: =Z21+Z35+Z49+Z65+Z82 -> 1402484312
D85: 76
D86: 77 | N86: a | O86: target revenue | P86: =('E-8 Parity Analysis Final'!W20*1000)+L84 -> 1402409862 | S86: a | T86: target revenue | U86: =P86 -> 1402409862 | Y86: Increase | Z86: =+Z84-L84 -> 266896177.9
D87: 78 | N87: b | O87: Present revenue | P87: =L84 -> 1135588134 | S87: b | T87: Present revenue | U87: =P84 -> 1402409862 | Y87: Target | Z87: =P95 -> 266821728.4
D88: 79 | N88: c | O88: Proposed Increase | P88: =P86-P87 -> 266821728.4 | S88: c | T88: Proposed Increase | U88: =U86-U87 -> 0 | Y88: Difference | Z88: =+Z86-Z87 -> 74449.45083
D89: 80 | E89: Revenue Neutrality | N89: d | O89: Override Revenue | P89: =Q84 -> 7926396.056 | S89: d | T89: Override Revenue | U89: =V84 -> 0 | Y89: adjustment | Z89: 4e-05
D90: 81 | N90: e | O90: Increase of Non-Override Revenue | P90: =P88-P89 -> 258895332.4 | S90: e | T90: Increase of Non-Override Revenue | U90: =U88-U89 -> 0
D91: 82 | E91: TOU Off-Peak Energy | H91: =Y28 -> 0.01288 | N91: f | O91: Non-Override Revenue | P91: =L14+L15+L27+L28+L40+L41+L42+L43+L55+L56+L57+L58+L59+L71+L72+L73+L74+L75+L76+L29 -> 1114920594 | S91: f | T91: Non-Override Revenue | U91: =P14+P15+P27+P28+P40+P41+P42+P43+P55+P56+P57+P58+P59+P71+P72+P73+P74+P75+P76+P29 -> 1373815927 | Y91: Per UII | Z91: 1402484312
D92: 83 | N92: g | O92: adjustment factor | P92: =P90/P91 -> 0.2322096602 | S92: g | T92: adjustment factor | U92: =U90/U91 -> 0 | Y92: Difference | Z92: =Z84-Z91 -> -0.1053462029
D93: 84 | E93: New Calc.
D94: 85 | E94: TOU revenue neutral calculation | O94: Increase | P94: =P84-L84 -> 266821728.4 | T94: Increase | U94: =U84-P84 -> 168292.8791
D95: 86 | E95: on pk class ave per Load Research Study | F95: 0.3068908411 | H95: Energy Revenue | O95: Target Increase | P95: =P88 -> 266821728.4 | T95: Target Increase | U95: =U88 -> 0
D96: 87 | E96: on peak | F96: =+SUM($X$27:$X$28)*$F$95 -> 723959778.3 | G96: =ROUND((H99-H97)/F96,5) -> 0.04869 | H96: =+F96*G96 -> 35249601.6 | I96: =ROUND(IF(G96>G97,G96,H98/F99),5) -> 0.04869 | O96: Difference | P96: =P94-P95 -> 0 | T96: Difference | U96: =U94-U95 -> 168292.8791
D97: 88 | E97: off peak | F97: =+SUM($X$27:$X$28)-$F$96 -> 1635054182 | G97: =H91 -> 0.01288 | H97: =+F97*G97 -> 21059497.86 | I97: =ROUND(IF(G96>G97,G97,H98/F99),5) -> 0.01288
D98: 89 | E98: total at class on-pk | H98: =SUM(H96:H97) -> 56309099.46
D99: 90 | E99: total rev required at GSD1 rates | F99: =SUM(F96:F97) -> 2359013960 | G99: =Y14 -> 0.02387 | H99: =G99*F99 -> 56309663.23
D100: 91 | E100: Difference | H100: =+H98-H99 -> -563.7611846
D101: 92 | L101: Step 1 - Set customer charge and CDR adder (if applicable) based on customer charge workpaper; transformation credit (if applicable) based on transformer credit workpaper; curtailment credit (if applicable) based on present curtailment credit;
D102: 93 | L102: and CDR credit (if applicable) based on CILC/CDR credit workpaper. These revenues/credits become "override revenues". Exclude override revenue from % increase calculations and apply the percent increase to only non-override rates.
D103: 94 | E103: HLFT Revenue at GSD-1 rate and target Load Factor | L103: Step 2 - Round results of Step 1
D104: 95 | E104: Target Load Factor | G104: 0.7 | L104: Step 3 - Calculate revenue neutral and/or rounding adjustment. For rate classes with SDTR, refer to SDTR workpaper.
D105: 96 | E105: Average Class On-Peak % | G105: =+F95 -> 0.3068908411 | H105: =100%-G105 -> 0.6931091589 | L105: Step 4 - Compare to Unit Costs for reasonableness. Depending on changes in other rates (Customer, Demand, etc.), unit costs may differ from final energy rates to achieve target revenues.
D106: 97 | H106: Parent rates
D107: 98 | E107: accounts | G107: =+$X$39 -> 10572 | H107: =+$Y$12 -> 25 | I107: =G107*H107 -> 264300
D108: 99 | E108: kW | F108: on-peak kw | G108: =+$X$43 -> 1766146 | H108: =+$Y$15 -> 10.7 | I108: =G108*H108 -> 18897762.2
D109: 100 | E109: kWh | F109: max pk kw *8760*70% | G109: =($X$42/12)*8760*$G$104 -> 981979502 | H109: =+$Y$14 -> 0.02387 | I109: =G109*H109 -> 23439850.71
D110: 101 | E110: Total Revenue required | I110: =SUM(I107:I109) -> 42601912.91
D111: 102 | E111: Proposed HLFT Demand/Customer Rev | I111: =+SUM(Z39,Z42:Z43) -> 27514112.8
D112: 103 | E112: Net Energy Revenue required | F112: (line 115-116) | I112: =I110-I111 -> 15087800.11
D113: 104
D114: 105
D115: 106 | E115: Adjusted Energy Charges
D116: 107 | E116: HLFT Off-Peak Energy | H116: =Y28 -> 0.01288
D117: 108
D118: 109 | E118: kWh On-Peak | G118: =G109-G119 -> 301360515.3 | H118: =ROUND((I112-I119)/G118,5) -> 0.02098 | I118: =G118*H118 -> 6322543.61 | J118: =ROUND(IF(H118>H119,H118,I120/G120),5) -> 0.02098
D119: 110 | E119: kWh Off-Peak | G119: =G109*H105 -> 680618986.7 | H119: =H116 -> 0.01288 | I119: =G119*H119 -> 8766372.549 | J119: =ROUND(IF(H118>H119,H119,I120/G120),5) -> 0.01288
D120: 111 | E120: Total | G120: =SUM(G118:G119) -> 981979502 | I120: =SUM(I118:I119) -> 15088916.16
D121: 112 | E121: Difference | I121: =I120-I112 -> 1116.046712

Sheet GSLD(T)-1
A1: OPC 015207
A2: FPL RC-16
D4: MFR E-14 Workpapers 2018
D5: Rate Class GSLD(T)-1 | J5: Present Revenues (with WCEC3 in Base) | N5: Percent increase calculation | R5: Rounded | V5: Final adjustments to achieve target revenues
Q6: =P111 -> 0.352603559 | U6: 0 | AC6: =(X103-L103)/L103 -> 0.37476227
A7: Ref. for linking data | E7: -1 | F7: =E7-1 -> -2 | G7: =F7-1 -> -3 | H7: -4 | I7: -5 | J7: -6 | K7: -7 | L7: -8 | M7: -9 | N7: -10 | O7: -11 | P7: -12 | Q7: -13 | R7: -14 | S7: -15 | T7: -16 | U7: -17 | V7: -18 | W7: -19 | X7: -20 | Y7: -21 | Z7: -22 | AA7: -23
D8: Line | E8: TYPE OF | H8: PRESENT REVENUE CALCULATION | N8: PROPOSED REVENUE CALCULATION | R8: PROPOSED REVENUE CALCULATION | V8: PROPOSED REVENUE CALCULATION | AC8: Override
D9: No. | E9: CHARGES | H9: UNITS | K9: CHARGE/UNIT | L9: $ REVENUE | N9: UNITS | O9: CHARGE/UNIT | P9: $ REVENUE | R9: UNITS | S9: CHARGE/UNIT | T9: $ REVENUE | V9: UNITS | W9: CHARGE/UNIT | X9: $ REVENUE | AA9: INCREASE | AC9: Calculated
A10: Reference for Billing Units | B10: Reference for Rates | C10: Reference for Rates | D10: 1 | Q10: Override | U10: Override
D11: =D10+1 -> 2 | E11: RATE SCHEDULE GSLD-1 - 62 | Q11: Revenue | U11: Revenue | AD11: Comparison of Unit Costs to Calculated Rates
D12: =D11+1 -> 3
A13: GSLD-1 - 62Customer | B13: General Service Large Demand (GSLD-1) | C13: Customer Charge | D13: 4 | E13: Customer | H13: =VLOOKUP($A13,'Billing Determinants - Units'!$A$9:$B$1153,2,FALSE) -> 15258 | J13: =H13+I13 -> 15258 | K13: =INDEX('Present Base Rates by Rate Code'!$A$4:$V$50,MATCH('GSLD(T)-1'!$B13,'Present Base Rates by Rate Code'!$A$4:$A$50,0),MATCH('GSLD(T)-1'!C13,'Present Base Rates by Rate Code'!$A$4:$V$4,0)) -> 61.83 | L13: =J13*K13 -> 943402.14 | N13: =J13 -> 15258 | O13: ='E-6b Proposed Equalized'!$J$69 -> 75 | P13: =N13*O13 -> 1144350 | Q13: =P13-L13 -> 200947.86 | R13: =N13 -> 15258 | S13: =ROUND(O13,0) -> 75 | T13: =R13*S13 -> 1144350 | U13: =T13-P13 -> 0 | V13: =N13 -> 15258 | W13: =S13 -> 75 | X13: =V13*W13 -> 1144350 | Z13: =W13/K13-1 -> 0.2130033964 | AA13: =W13-K13 -> 13.17
A14: GSLD-1 - 62Non-Fuel Energy | B14: General Service Large Demand (GSLD-1) | C14: Energy Charges $/kWh | D14: 5 | E14: Non-Fuel Energy | H14: =VLOOKUP($A14,'Billing Determinants - Units'!$A$9:$B$1153,2,FALSE) -> 3530781423 | J14: =H14+I14 -> 3530781423 | K14: =INDEX('Present Base Rates by Rate Code'!$A$4:$V$50,MATCH('GSLD(T)-1'!$B14,'Present Base Rates by Rate Code'!$A$4:$A$50,0),MATCH('GSLD(T)-1'!C14,'Present Base Rates by Rate Code'!$A$4:$V$4,0)) -> 0.0143 | L14: =J14*K14 -> 50490174.35 | N14: =J14 -> 3530781423 | O14: =K14*(1+$Q$6) -> 0.01934223089 | P14: =N14*O14 -> 68293189.52 | R14: =N14 -> 3530781423 | S14: =ROUND(O14*(1+$U$6),5) -> 0.01934 | T14: =R14*S14 -> 68285312.72 | V14: =N14 -> 3530781423 | W14: =S14+X108 -> 0.01954 | X14: =V14*W14 -> 68991469.01 | Z14: =W14/K14-1 -> 0.3664335664 | AA14: =W14-K14 -> 0.00524 | AF14: Demand | AH14: Energy
A15: GSLD-1 - 62Demand | B15: General Service Large Demand (GSLD-1) | C15: Demand Charge $/kW | D15: 6 | E15: Demand | H15: =VLOOKUP($A15,'Billing Determinants - Units'!$A$9:$B$1153,2,FALSE) -> 9249140 | J15: 9249140 | K15: =INDEX('Present Base Rates by Rate Code'!$A$4:$V$50,MATCH('GSLD(T)-1'!$B15,'Present Base Rates by Rate Code'!$A$4:$A$50,0),MATCH('GSLD(T)-1'!C15,'Present Base Rates by Rate Code'!$A$4:$V$4,0)) -> 9.94 | L15: =J15*K15 -> 91936451.6 | N15: =J15 -> 9249140 | O15: =K15*(1+$Q$6) -> 13.44487938 | P15: =N15*O15 -> 124353571.6 | R15: =N15 -> 9249140 | S15: =ROUND(O15*(1+$U$6),1) -> 13.4 | T15: =R15*S15 -> 123938476 | V15: =N15 -> 9249140 | W15: =S15 -> 13.4 | X15: =V15*W15 -> 123938476 | Z15: =W15/K15-1 -> 0.3480885312 | AA15: =W15-K15 -> 3.46
A16: GSLD-1 - 62Transformation Credit | B16: General Service Large Demand (GSLD-1) | C16: Transformation Rider Credit ($/kW) | D16: 7 | E16: Transformation Credit | H16: =VLOOKUP($A16,'Billing Determinants - Units'!$A$9:$B$1153,2,FALSE) -> 97127 | J16: 97127 | K16: =INDEX('Present Base Rates by Rate Code'!$A$4:$V$50,MATCH('GSLD(T)-1'!$B16,'Present Base Rates by Rate Code'!$A$4:$A$50,0),MATCH('GSLD(T)-1'!C16,'Present Base Rates by Rate Code'!$A$4:$V$4,0)) -> -0.3 | L16: =J16*K16 -> -29138.1 | N16: =J16 -> 97127 | O16: ='Transformer Credit'!$E$9 -> -0.24 | P16: =N16*O16 -> -23310.48 | Q16: =P16-L16 -> 5827.62 | R16: =N16 -> 97127 | S16: =O16 -> -0.24 | T16: =R16*S16 -> -23310.48 | U16: =T16-P16 -> 0 | V16: =N16 -> 97127 | W16: =S16 -> -0.24 | X16: =V16*W16 -> -23310.48 | Z16: =W16/K16-1 -> -0.2 | AA16: =W16-K16 -> 0.06
B17: General Service Large Demand (GSLD-1) | D17: 8 | E17: Subtotal | L17: =SUM(L13:L16) -> 143340890 | P17: =SUM(P13:P16) -> 193767800.7 | T17: =SUM(T13:T16) -> 193344828.2 | X17: =SUM(X13:X16) -> 194050984.5 | AA17: =P17/L17-1 -> 0.3517971089 | AD17: Billing Units | AE17: kW | AF17: =N15+N29+N41+N52+N63+N77+N78+N94+N95 -> 23482310 | AG17: kWh | AH17: =N14+N27+N28+N40+N50+N51+N60+N61+N74+N75+N76+N90+N91+N92+N93 -> 10561627481
B18: General Service Large Demand (GSLD-1) | D18: 9 | E18: CDR Credit
A19: GSLD-1 - 62Adder | B19: General Service Large Demand (GSLD-1) | C19: Commercial / Industrial Demand Rider (CDR) Adder per Customer | D19: 10 | E19: Adder | H19: =VLOOKUP($A19,'Billing Determinants - Units'!$A$9:$B$1153,2,FALSE) -> 297 | J19: 297 | K19: =INDEX('Present Base Rates by Rate Code'!$A$4:$V$50,MATCH('GSLD(T)-1'!$B19,'Present Base Rates by Rate Code'!$A$4:$A$50,0),MATCH('GSLD(T)-1'!C19,'Present Base Rates by Rate Code'!$A$4:$V$4,0)) -> 140.52 | L19: =J19*K19 -> 41734.44 | N19: =J19 -> 297 | O19: ='E-6b Proposed Equalized'!$J$75 -> 150 | P19: =N19*O19 -> 44550 | Q19: =P19-L19 -> 2815.56 | R19: =N19 -> 297 | S19: =O19 -> 150 | T19: =R19*S19 -> 44550 | U19: =T19-P19 -> 0 | V19: =N19 -> 297 | W19: =S19 -> 150 | X19: =V19*W19 -> 44550 | Z19: =W19/K19-1 -> 0.06746370623 | AA19: =W19-K19 -> 9.48 | AD19: Unit Costs per E-6b | AF19: ='E-6b Proposed Equalized'!J31 -> 16.87 | AH19: ='E-6b Proposed Equalized'!J41 -> 0.01191
A20: GSLD-1 - 62Credit | B20: General Service Large Demand (GSLD-1) | C20: Commercial / Industrial Demand Rider Credit (CDR) ($/kW) | D20: 11 | E20: Credit | H20: =VLOOKUP($A20,'Billing Determinants - Units'!$A$9:$B$1153,2,FALSE) -> 146189.6882 | J20: 146189.6882 | K20: =INDEX('Present Base Rates by Rate Code'!$A$4:$V$50,MATCH('GSLD(T)-1'!$B20,'Present Base Rates by Rate Code'!$A$4:$A$50,0),MATCH('GSLD(T)-1'!C20,'Present Base Rates by Rate Code'!$A$4:$V$4,0)) -> -8.2 | L20: =J20*K20 -> -1198755.443 | N20: =J20 -> 146189.6882 | O20: ='CDR Credit'!D13 -> -5.26 | P20: =N20*O20 -> -768957.7599 | Q20: =P20-L20 -> 429797.6833 | R20: =N20 -> 146189.6882 | S20: =O20 -> -5.26 | T20: =R20*S20 -> -768957.7599 | U20: =T20-P20 -> 0 | V20: =N20 -> 146189.6882 | W20: =S20 -> -5.26 | X20: =V20*W20 -> -768957.7599 | Z20: =W20/K20-1 -> -0.3585365854 | AA20: =W20-K20 -> 2.94
A21: Total | B21: General Service Large Demand (GSLD-1) | D21: 12 | E21: Total | L21: =SUM(L17:L20) -> 142183869 | P21: =SUM(P17:P20) -> 193043392.9 | T21: =SUM(T17:T20) -> 192620420.5 | X21: =SUM(X17:X20) -> 193326576.8 | AA21: =P21/L21-1 -> 0.3577024896 | AD21: Rate Calculated | AF21: =W15 -> 13.4 | AH21: =W28 -> 0.014
A22: =C22&E22 ->  | D22: 13
A23: RATE SCHEDULE GSLDT-1 - 64 | D23: 14 | E23: RATE SCHEDULE GSLDT-1 - 64 | AD23: Difference | AF23: =AF21-AF19 -> -3.47 | AH23: =AH21-AH19 -> 0.00209
D24: 15 | AD24: % Difference | AF24: =AF23/AF19 -> -0.205690575 | AH24: =AH23/AH19 -> 0.1754827876
A25: GSLDT-1 - 64Customer | B25: General Service Large Demand-TOU (GSLDT-1) | C25: Customer Charge | D25: 16 | E25: Customer | H25: =VLOOKUP($A25,'Billing Determinants - Units'!$A$9:$B$1153,2,FALSE) -> 13416 | J25: 13416 | K25: =INDEX('Present Base Rates by Rate Code'!$A$4:$V$50,MATCH('GSLD(T)-1'!$B25,'Present Base Rates by Rate Code'!$A$4:$A$50,0),MATCH('GSLD(T)-1'!C25,'Present Base Rates by Rate Code'!$A$4:$V$4,0)) -> 61.83 | L25: =J25*K25 -> 829511.28 | N25: =J25 -> 13416 | O25: =O13 -> 75 | P25: =N25*O25 -> 1006200 | Q25: =P25-L25 -> 176688.72 | R25: =N25 -> 13416 | S25: =S13 -> 75 | T25: =R25*S25 -> 1006200 | U25: =T25-P25 -> 0 | V25: =N25 -> 13416 | W25: =S25 -> 75 | X25: =V25*W25 -> 1006200 | Z25: =W25/K25-1 -> 0.2130033964 | AA25: =W25-K25 -> 13.17
A26: GSLDT-1 - 64Non-Fuel Energy | B26: General Service Large Demand-TOU (GSLDT-1) | D26: 17 | E26: Non-Fuel Energy | N26: 0 | R26: 0 | V26: 0
A27: GSLDT-1 - 64Non-Fuel Energy - On Peak | B27: General Service Large Demand-TOU (GSLDT-1) | C27: On-Peak Energy Charge $/kWh | D27: 18 | E27: Non-Fuel Energy - On Peak | H27: =VLOOKUP($A27,'Billing Determinants - Units'!$A$9:$B$1153,2,FALSE) -> 1186020386 | J27: 1186020386 | K27: =INDEX('Present Base Rates by Rate Code'!$A$4:$V$50,MATCH('GSLD(T)-1'!$B27,'Present Base Rates by Rate Code'!$A$4:$A$50,0),MATCH('GSLD(T)-1'!C27,'Present Base Rates by Rate Code'!$A$4:$V$4,0)) -> 0.0238 | L27: =J27*K27 -> 28227285.19 | N27: 1186020386 | O27: =K27*(1+$Q$6) -> 0.0321919647 | P27: =N27*O27 -> 38180326.4 | R27: 1186020386 | S27: =ROUND(O27*(1+$U$6),5) -> 0.03219 | T27: =R27*S27 -> 38177996.23 | V27: 1186020386 | W27: =I114 -> 0.03222 | X27: =V27*W27 -> 38213576.84 | Z27: =W27/K27-1 -> 0.3537815126 | AA27: =W27-K27 -> 0.00842 | AD27: Note: The use of the percent increase method maintains the shift of
A28: GSLDT-1 - 64Non-Fuel Energy - Off Peak | B28: General Service Large Demand-TOU (GSLDT-1) | C28: Off-Peak Energy Charge $/kWh | D28: 19 | E28: Non-Fuel Energy - Off Peak | H28: =VLOOKUP($A28,'Billing Determinants - Units'!$A$9:$B$1153,2,FALSE) -> 3380780745 | J28: 3380780745 | K28: =INDEX('Present Base Rates by Rate Code'!$A$4:$V$50,MATCH('GSLD(T)-1'!$B28,'Present Base Rates by Rate Code'!$A$4:$A$50,0),MATCH('GSLD(T)-1'!C28,'Present Base Rates by Rate Code'!$A$4:$V$4,0)) -> 0.01035 | L28: =J28*K28 -> 34991080.71 | N28: 3380780745 | O28: =K28*(1+$Q$6) -> 0.01399944684 | P28: =N28*O28 -> 47329060.3 | R28: 3380780745 | S28: =ROUND(O28*(1+$U$6),5) -> 0.014 | T28: =R28*S28 -> 47330930.43 | V28: 3380780745 | W28: =I115 -> 0.014 | X28: =V28*W28 -> 47330930.43 | Z28: =W28/K28-1 -> 0.3526570048 | AA28: =W28-K28 -> 0.00365 | AD28: some demand costs to energy charges approved in past rate cases
A29: GSLDT-1 - 64Demand | B29: General Service Large Demand-TOU (GSLDT-1) | C29: On-Peak Demand Charge $/kW | D29: 20 | E29: Demand | H29: =VLOOKUP($A29,'Billing Determinants - Units'!$A$9:$B$1153,2,FALSE) -> 8538307 | J29: 8538307 | K29: =INDEX('Present Base Rates by Rate Code'!$A$4:$V$50,MATCH('GSLD(T)-1'!$B29,'Present Base Rates by Rate Code'!$A$4:$A$50,0),MATCH('GSLD(T)-1'!C29,'Present Base Rates by Rate Code'!$A$4:$V$4,0)) -> 9.94 | L29: =J29*K29 -> 84870771.58 | N29: 8538307 | O29: =K29*(1+$Q$6) -> 13.44487938 | P29: =N29*O29 -> 114796507.7 | R29: 8538307 | S29: =ROUND(O29*(1+$U$6),1) -> 13.4 | T29: =R29*S29 -> 114413313.8 | V29: 8538307 | W29: =S29 -> 13.4 | X29: =V29*W29 -> 114413313.8 | Z29: =W29/K29-1 -> 0.3480885312 | AA29: =W29-K29 -> 3.46 | AD29: to limit impacts to low load factor customers.
A30: GSLDT-1 - 64Transformation Credit | B30: General Service Large Demand-TOU (GSLDT-1) | C30: Transformation Rider Credit ($/kW) | D30: 21 | E30: Transformation Credit | H30: =VLOOKUP($A30,'Billing Determinants - Units'!$A$9:$B$1153,2,FALSE) -> 127236 | J30: 127236 | K30: =INDEX('Present Base Rates by Rate Code'!$A$4:$V$50,MATCH('GSLD(T)-1'!$B30,'Present Base Rates by Rate Code'!$A$4:$A$50,0),MATCH('GSLD(T)-1'!C30,'Present Base Rates by Rate Code'!$A$4:$V$4,0)) -> -0.3 | L30: =J30*K30 -> -38170.8 | N30: 127236 | O30: =+O16 -> -0.24 | P30: =N30*O30 -> -30536.64 | Q30: =P30-L30 -> 7634.16 | R30: 127236 | S30: =+S16 -> -0.24 | T30: =R30*S30 -> -30536.64 | U30: =T30-P30 -> 0 | V30: 127236 | W30: =O30 -> -0.24 | X30: =V30*W30 -> -30536.64 | Z30: =W30/K30-1 -> -0.2 | AA30: =W30-K30 -> 0.06
A31: GSLDT-1 - 64Subtotal | B31: General Service Large Demand-TOU (GSLDT-1) | D31: 22 | E31: Subtotal | L31: =SUM(L25:L30) -> 148880478 | P31: =SUM(P25:P30) -> 201281557.8 | T31: =SUM(T25:T30) -> 200897903.8 | X31: =SUM(X25:X30) -> 200933484.4 | AA31: =P31/L31-1 -> 0.351967434
A32: GSLDT-1 - 64CDR Credit | B32: General Service Large Demand-TOU (GSLDT-1) | D32: 23 | E32: CDR Credit
A33: GSLDT-1 - 64Adder | B33: General Service Large Demand-TOU (GSLDT-1) | C33: Commercial / Industrial Demand Rider (CDR) Adder per Customer | D33: 24 | E33: Adder | H33: =VLOOKUP($A33,'Billing Determinants - Units'!$A$9:$B$1153,2,FALSE) -> 3868 | J33: 3868 | K33: =INDEX('Present Base Rates by Rate Code'!$A$4:$V$50,MATCH('GSLD(T)-1'!$B33,'Present Base Rates by Rate Code'!$A$4:$A$50,0),MATCH('GSLD(T)-1'!C33,'Present Base Rates by Rate Code'!$A$4:$V$4,0)) -> 140.52 | L33: =J33*K33 -> 543531.36 | N33: =J33 -> 3868 | O33: =O19 -> 150 | P33: =N33*O33 -> 580200 | Q33: =P33-L33 -> 36668.64 | R33: =N33 -> 3868 | S33: =S19 -> 150 | T33: =R33*S33 -> 580200 | U33: =T33-P33 -> 0 | V33: =N33 -> 3868 | W33: =O33 -> 150 | X33: =V33*W33 -> 580200 | Z33: =W33/K33-1 -> 0.06746370623 | AA33: =W33-K33 -> 9.48
A34: GSLDT-1 - 64Credit | B34: General Service Large Demand-TOU (GSLDT-1) | C34: Commercial / Industrial Demand Rider Credit (CDR) ($/kW) | D34: 25 | E34: Credit | H34: =VLOOKUP($A34,'Billing Determinants - Units'!$A$9:$B$1153,2,FALSE) -> 1291923.542 | J34: 1291923.542 | K34: =INDEX('Present Base Rates by Rate Code'!$A$4:$V$50,MATCH('GSLD(T)-1'!$B34,'Present Base Rates by Rate Code'!$A$4:$A$50,0),MATCH('GSLD(T)-1'!C34,'Present Base Rates by Rate Code'!$A$4:$V$4,0)) -> -8.2 | L34: =J34*K34 -> -10593773.04 | N34: =J34 -> 1291923.542 | O34: =O20 -> -5.26 | P34: =N34*O34 -> -6795517.829 | Q34: =P34-L34 -> 3798255.212 | R34: =N34 -> 1291923.542 | S34: =S20 -> -5.26 | T34: =R34*S34 -> -6795517.829 | U34: =T34-P34 -> 0 | V34: =N34 -> 1291923.542 | W34: =O34 -> -5.26 | X34: =V34*W34 -> -6795517.829 | Z34: =W34/K34-1 -> -0.3585365854 | AA34: =W34-K34 -> 2.94
A35: Total | D35: 26 | E35: Total | L35: =SUM(L31:L34) -> 138830236.3 | P35: =SUM(P31:P34) -> 195066239.9 | T35: =SUM(T31:T34) -> 194682586 | X35: =SUM(X31:X34) -> 194718166.6 | AA35: =P35/L35-1 -> 0.405070287
D36: 27
A37: RATE SCHEDULE CS-1 - 73 | D37: 28 | E37: RATE SCHEDULE CS-1 - 73
D38: 29
A39: CS-1 - 73Customer | B39: Curtailable Service (CS-1) | C39: Customer Charge | D39: 30 | E39: Customer | H39: =VLOOKUP($A39,'Billing Determinants - Units'!$A$9:$B$1153,2,FALSE) -> 233 | J39: 233 | K39: =INDEX('Present Base Rates by Rate Code'!$A$4:$V$50,MATCH('GSLD(T)-1'!$B39,'Present Base Rates by Rate Code'!$A$4:$A$50,0),MATCH('GSLD(T)-1'!C39,'Present Base Rates by Rate Code'!$A$4:$V$4,0)) -> 89.93 | L39: =J39*K39 -> 20953.69 | N39: =J39 -> 233 | O39: =O13+25 -> 100 | P39: =N39*O39 -> 23300 | Q39: =P39-L39 -> 2346.31 | R39: =N39 -> 233 | S39: =ROUND(O39,0) -> 100 | T39: =R39*S39 -> 23300 | U39: =T39-P39 -> 0 | V39: =N39 -> 233 | W39: =S39 -> 100 | X39: =V39*W39 -> 23300 | Z39: =+W39/K39-1 -> 0.1119759813 | AA39: =W39-K39 -> 10.07
A40: CS-1 - 73Non-Fuel Energy | B40: Curtailable Service (CS-1) | C40: Energy Charges $/kWh | D40: 31 | E40: Non-Fuel Energy | H40: =VLOOKUP($A40,'Billing Determinants - Units'!$A$9:$B$1153,2,FALSE) -> 63022793 | J40: 63022793 | K40: =INDEX('Present Base Rates by Rate Code'!$A$4:$V$50,MATCH('GSLD(T)-1'!$B40,'Present Base Rates by Rate Code'!$A$4:$A$50,0),MATCH('GSLD(T)-1'!C40,'Present Base Rates by Rate Code'!$A$4:$V$4,0)) -> 0.0143 | L40: =J40*K40 -> 901225.9399 | N40: =J40 -> 63022793 | O40: =K40*(1+$Q$6) -> 0.01934223089 | P40: =N40*O40 -> 1219001.414 | R40: =N40 -> 63022793 | S40: =S14 -> 0.01934 | T40: =R40*S40 -> 1218860.817 | V40: =N40 -> 63022793 | W40: =W14 -> 0.01954 | X40: =V40*W40 -> 1231465.375 | Z40: =+W40/K40-1 -> 0.3664335664 | AA40: =W40-K40 -> 0.00524
A41: CS-1 - 73Demand | B41: Curtailable Service (CS-1) | C41: Demand Charge $/kW | D41: 32 | E41: Demand | H41: =VLOOKUP($A41,'Billing Determinants - Units'!$A$9:$B$1153,2,FALSE) -> 198803 | J41: 198803 | K41: =INDEX('Present Base Rates by Rate Code'!$A$4:$V$50,MATCH('GSLD(T)-1'!$B41,'Present Base Rates by Rate Code'!$A$4:$A$50,0),MATCH('GSLD(T)-1'!C41,'Present Base Rates by Rate Code'!$A$4:$V$4,0)) -> 9.94 | L41: =J41*K41 -> 1976101.82 | N41: =J41 -> 198803 | O41: =K41*(1+$Q$6) -> 13.44487938 | P41: =N41*O41 -> 2672882.355 | R41: =N41 -> 198803 | S41: =S15 -> 13.4 | T41: =R41*S41 -> 2663960.2 | V41: =N41 -> 198803 | W41: =S41 -> 13.4 | X41: =V41*W41 -> 2663960.2 | Z41: =+W41/K41-1 -> 0.3480885312 | AA41: =W41-K41 -> 3.46
A42: CS-1 - 73Transformation Credit | B42: Curtailable Service (CS-1) | C42: Transformation Rider Credit ($/kW) | D42: 33 | E42: Transformation Credit | H42: =VLOOKUP($A42,'Billing Determinants - Units'!$A$9:$B$1153,2,FALSE) -> 38573 | J42: 38573 | K42: =INDEX('Present Base Rates by Rate Code'!$A$4:$V$50,MATCH('GSLD(T)-1'!$B42,'Present Base Rates by Rate Code'!$A$4:$A$50,0),MATCH('GSLD(T)-1'!C42,'Present Base Rates by Rate Code'!$A$4:$V$4,0)) -> -0.3 | L42: =J42*K42 -> -11571.9 | N42: =J42 -> 38573 | O42: =O30 -> -0.24 | P42: =N42*O42 -> -9257.52 | Q42: =P42-L42 -> 2314.38 | R42: =N42 -> 38573 | S42: =S30 -> -0.24 | T42: =R42*S42 -> -9257.52 | U42: =T42-P42 -> 0 | V42: =N42 -> 38573 | W42: =S42 -> -0.24 | X42: =V42*W42 -> -9257.52 | Z42: =W42/K42-1 -> -0.2 | AA42: =W42-K42 -> 0.06
A43: CS-1 - 73Curtailable Credit | B43: Curtailable Service (CS-1) | C43: Curtailment Credit ($/kW) | D43: 34 | E43: Curtailable Credit | H43: =-VLOOKUP($A43,'Billing Determinants - Units'!$A$9:$B$1153,2,FALSE) -> 159658 | J43: 159658 | K43: =INDEX('Present Base Rates by Rate Code'!$A$4:$V$50,MATCH('GSLD(T)-1'!$B43,'Present Base Rates by Rate Code'!$A$4:$A$50,0),MATCH('GSLD(T)-1'!C43,'Present Base Rates by Rate Code'!$A$4:$V$4,0)) -> -1.93 | L43: =J43*K43 -> -308139.94 | N43: =J43 -> 159658 | O43: =K43 -> -1.93 | P43: =N43*O43 -> -308139.94 | Q43: =P43-L43 -> 0 | R43: =N43 -> 159658 | S43: =O43 -> -1.93 | T43: =R43*S43 -> -308139.94 | U43: =T43-P43 -> 0 | V43: =N43 -> 159658 | W43: =S43 -> -1.93 | X43: =V43*W43 -> -308139.94 | Z43: =W43/K43-1 -> 0 | AA43: =W43-K43 -> 0
A44: Total | B44: Curtailable Service (CS-1) | D44: 35 | E44: Total | L44: =SUM(L39:L43) -> 2578569.61 | P44: =SUM(P39:P43) -> 3597786.308 | T44: =SUM(T39:T43) -> 3588723.557 | X44: =SUM(X39:X43) -> 3601328.115 | AA44: =P44/L44-1 -> 0.3952643724
D45: 36
A46: RATE SCHEDULE CST-1 - 74 | D46: 37 | E46: RATE SCHEDULE CST-1 - 74
D47: 38
A48: CST-1 - 74Customer | B48: Curtailable Service-TOU (CST-1) | C48: Customer Charge | D48: 39 | E48: Customer | H48: =VLOOKUP($A48,'Billing Determinants - Units'!$A$9:$B$1153,2,FALSE) -> 84 | J48: 84 | K48: =INDEX('Present Base Rates by Rate Code'!$A$4:$V$50,MATCH('GSLD(T)-1'!$B48,'Present Base Rates by Rate Code'!$A$4:$A$50,0),MATCH('GSLD(T)-1'!C48,'Present Base Rates by Rate Code'!$A$4:$V$4,0)) -> 89.93 | L48: =J48*K48 -> 7554.12 | N48: =J48 -> 84 | O48: =O39 -> 100 | P48: =N48*O48 -> 8400 | Q48: =P48-L48 -> 845.88 | R48: =N48 -> 84 | S48: =S39 -> 100 | T48: =R48*S48 -> 8400 | U48: =T48-P48 -> 0 | V48: =N48 -> 84 | W48: =S48 -> 100 | X48: =V48*W48 -> 8400 | Z48: =+W48/K48-1 -> 0.1119759813 | AA48: =W48-K48 -> 10.07
A49: CST-1 - 74Non-Fuel Energy | B49: Curtailable Service-TOU (CST-1) | D49: 40 | E49: Non-Fuel Energy | N49: 0 | R49: 0 | V49: 0
A50: CST-1 - 74Non-Fuel Energy - On Peak | B50: Curtailable Service-TOU (CST-1) | C50: On-Peak Energy Charge $/kWh | D50: 41 | E50: Non-Fuel Energy - On Peak | H50: =VLOOKUP($A50,'Billing Determinants - Units'!$A$9:$B$1153,2,FALSE) -> 8628862 | J50: 8628862 | K50: =INDEX('Present Base Rates by Rate Code'!$A$4:$V$50,MATCH('GSLD(T)-1'!$B50,'Present Base Rates by Rate Code'!$A$4:$A$50,0),MATCH('GSLD(T)-1'!C50,'Present Base Rates by Rate Code'!$A$4:$V$4,0)) -> 0.0238 | L50: =J50*K50 -> 205366.9156 | N50: 8628862 | O50: =K50*(1+$Q$6) -> 0.0321919647 | P50: =N50*O50 -> 277780.0209 | R50: 8628862 | S50: =S27 -> 0.03219 | T50: =R50*S50 -> 277763.0678 | V50: 8628862 | W50: =W27 -> 0.03222 | X50: =V50*W50 -> 278021.9336 | Z50: =+W50/K50-1 -> 0.3537815126 | AA50: =W50-K50 -> 0.00842
A51: CST-1 - 74Non-Fuel Energy - Off Peak | B51: Curtailable Service-TOU (CST-1) | C51: Off-Peak Energy Charge $/kWh | D51: 42 | E51: Non-Fuel Energy - Off Peak | H51: =VLOOKUP($A51,'Billing Determinants - Units'!$A$9:$B$1153,2,FALSE) -> 26120480 | J51: 26120480 | K51: =INDEX('Present Base Rates by Rate Code'!$A$4:$V$50,MATCH('GSLD(T)-1'!$B51,'Present Base Rates by Rate Code'!$A$4:$A$50,0),MATCH('GSLD(T)-1'!C51,'Present Base Rates by Rate Code'!$A$4:$V$4,0)) -> 0.01035 | L51: =J51*K51 -> 270346.968 | N51: 26120480 | O51: =K51*(1+$Q$6) -> 0.01399944684 | P51: 365672.2711 | R51: 26120480 | S51: =S28 -> 0.014 | T51: 365686.72 | V51: 26120480 | W51: =W28 -> 0.014 | X51: 365686.72 | Z51: =+W51/K51-1 -> 0.3526570048 | AA51: 0.00365
A52: CST-1 - 74Demand | B52: Curtailable Service-TOU (CST-1) | C52: On-Peak Demand Charge $/kW | D52: 43 | E52: Demand | H52: =VLOOKUP($A52,'Billing Determinants - Units'!$A$9:$B$1153,2,FALSE) -> 68434 | J52: 68434 | K52: =INDEX('Present Base Rates by Rate Code'!$A$4:$V$50,MATCH('GSLD(T)-1'!$B52,'Present Base Rates by Rate Code'!$A$4:$A$50,0),MATCH('GSLD(T)-1'!C52,'Present Base Rates by Rate Code'!$A$4:$V$4,0)) -> 9.94 | L52: =J52*K52 -> 680233.96 | N52: 68434 | O52: =K52*(1+$Q$6) -> 13.44487938 | P52: 920086.8752 | R52: 68434 | S52: =S29 -> 13.4 | T52: 917015.6 | V52: 68434 | W52: =S52 -> 13.4 | X52: 917015.6 | Z52: =+W52/K52-1 -> 0.3480885312 | AA52: 3.46
A53: CST-1 - 74Transformation Credit | B53: Curtailable Service-TOU (CST-1) | C53: Transformation Rider Credit ($/kW) | D53: 44 | E53: Transformation Credit | H53: =VLOOKUP($A53,'Billing Determinants - Units'!$A$9:$B$1153,2,FALSE) -> 13925 | J53: 13925 | K53: =INDEX('Present Base Rates by Rate Code'!$A$4:$V$50,MATCH('GSLD(T)-1'!$B53,'Present Base Rates by Rate Code'!$A$4:$A$50,0),MATCH('GSLD(T)-1'!C53,'Present Base Rates by Rate Code'!$A$4:$V$4,0)) -> -0.3 | L53: =J53*K53 -> -4177.5 | N53: 13925 | O53: =O42 -> -0.24 | P53: -3342 | Q53: =P53-L53 -> 835.5 | R53: 13925 | S53: =O53 -> -0.24 | T53: -3342 | U53: =T53-P53 -> 0 | V53: 13925 | W53: =S53 -> -0.24 | X53: -3342 | Z53: =W53/K53-1 -> -0.2 | AA53: 0.06
A54: CST-1 - 74Curtailable Credit | B54: Curtailable Service-TOU (CST-1) | C54: Curtailment Credit ($/kW) | D54: 45 | E54: Curtailable Credit | H54: =-VLOOKUP($A54,'Billing Determinants - Units'!$A$9:$B$1153,2,FALSE) -> 44987 | J54: 44987 | K54: =INDEX('Present Base Rates by Rate Code'!$A$4:$V$50,MATCH('GSLD(T)-1'!$B54,'Present Base Rates by Rate Code'!$A$4:$A$50,0),MATCH('GSLD(T)-1'!C54,'Present Base Rates by Rate Code'!$A$4:$V$4,0)) -> -1.93 | L54: =J54*K54 -> -86824.91 | N54: 44987 | O54: =K54 -> -1.93 | P54: -86824.91 | Q54: =P54-L54 -> 0 | R54: 44987 | S54: =O54 -> -1.93 | T54: -86824.91 | U54: =T54-P54 -> 0 | V54: 44987 | W54: =S54 -> -1.93 | X54: -86824.91 | Z54: =W54/K54-1 -> 0 | AA54: 0
A55: Total | D55: 46 | E55: Total | L55: =SUM(L48:L54) -> 1072499.554 | P55: =SUM(P48:P54) -> 1481772.257 | T55: =SUM(T48:T54) -> 1478698.478 | X55: =SUM(X48:X54) -> 1478957.344 | AA55: =P55/L55-1 -> 0.3816064093
D56: 47
A57: RATE SCHEDULE HLFT - 164 | D57: 48 | E57: RATE SCHEDULE HLFT - 164
D58: 49 | H58: 500 - 1,999 kW
A59: HLFT - 164Customer | B59: High Load Factor-TOU (500 - 1,999 kW) | C59: Customer Charge | D59: 50 | E59: Customer | H59: =VLOOKUP($A59,'Billing Determinants - Units'!$A$9:$B$1153,2,FALSE) -> 3472 | J59: 3472 | K59: =INDEX('Present Base Rates by Rate Code'!$A$4:$V$50,MATCH('GSLD(T)-1'!$B59,'Present Base Rates by Rate Code'!$A$4:$A$50,0),MATCH('GSLD(T)-1'!C59,'Present Base Rates by Rate Code'!$A$4:$V$4,0)) -> 61.83 | L59: =J59*K59 -> 214673.76 | N59: =J59 -> 3472 | O59: =O13 -> 75 | P59: =N59*O59 -> 260400 | Q59: =P59-L59 -> 45726.24 | R59: =N59 -> 3472 | S59: =S13 -> 75 | T59: =R59*S59 -> 260400 | U59: =T59-P59 -> 0 | V59: =N59 -> 3472 | W59: =S59 -> 75 | X59: =V59*W59 -> 260400 | Z59: =+W59/K59-1 -> 0.2130033964 | AA59: =W59-K59 -> 13.17
A60: HLFT - 164Non-Fuel Energy - On Peak | B60: High Load Factor-TOU (500 - 1,999 kW) | C60: On-Peak Energy Charge $/kWh | D60: 51 | E60: Non-Fuel Energy - On Peak | H60: =VLOOKUP($A60,'Billing Determinants - Units'!$A$9:$B$1153,2,FALSE) -> 361256508 | J60: 361256508 | K60: =INDEX('Present Base Rates by Rate Code'!$A$4:$V$50,MATCH('GSLD(T)-1'!$B60,'Present Base Rates by Rate Code'!$A$4:$A$50,0),MATCH('GSLD(T)-1'!C60,'Present Base Rates by Rate Code'!$A$4:$V$4,0)) -> 0.00885 | L60: 3197120.096 | N60: 361256508 | O60: =K60*(1+$Q$6) -> 0.0119705415 | P60: 4324436.02 | R60: 361256508 | S60: =ROUND(O60*(1+$U$6),5) -> 0.01197 | T60: 4324240.401 | V60: 361256508 | W60: =J136 -> 0.0127 | X60: 4587957.652 | Z60: =+W60/K60-1 -> 0.4350282486 | AA60: 0.00385
A61: HLFT - 164Non-Fuel Energy - Off Peak | B61: High Load Factor-TOU (500 - 1,999 kW) | C61: Off-Peak Energy Charge $/kWh | D61: 52 | E61: Non-Fuel Energy - Off Peak | H61: =VLOOKUP($A61,'Billing Determinants - Units'!$A$9:$B$1153,2,FALSE) -> 1064096348 | J61: 1064096348 | K61: =INDEX('Present Base Rates by Rate Code'!$A$4:$V$50,MATCH('GSLD(T)-1'!$B61,'Present Base Rates by Rate Code'!$A$4:$A$50,0),MATCH('GSLD(T)-1'!C61,'Present Base Rates by Rate Code'!$A$4:$V$4,0)) -> 0.00885 | L61: 9417252.68 | N61: 1064096348 | O61: =K61*(1+$Q$6) -> 0.0119705415 | P61: 12737809.49 | R61: 1064096348 | S61: =ROUND(O61*(1+$U$6),5) -> 0.01197 | T61: 12737233.29 | V61: 1064096348 | W61: =J137 -> 0.01197 | X61: 12737233.29 | Z61: =+W61/K61-1 -> 0.3525423729 | AA61: 0.00312
A62: HLFT - 164Demand - On-Peak | B62: High Load Factor-TOU (500 - 1,999 kW) | C62: On-Peak Demand Charge $/kW | D62: 53 | E62: Demand - On-Peak | H62: =VLOOKUP($A62,'Billing Determinants - Units'!$A$9:$B$1153,2,FALSE) -> 2348012 | J62: 2348012 | K62: =INDEX('Present Base Rates by Rate Code'!$A$4:$V$50,MATCH('GSLD(T)-1'!$B62,'Present Base Rates by Rate Code'!$A$4:$A$50,0),MATCH('GSLD(T)-1'!C62,'Present Base Rates by Rate Code'!$A$4:$V$4,0)) -> 10.5 | L62: 24654126 | N62: 2348012 | O62: =K62*(1+$Q$6) -> 14.20233737 | P62: 33347258.57 | R62: 2348012 | S62: =ROUND(O62*(1+$U$6),1) -> 14.2 | T62: 33341770.4 | V62: 2348012 | W62: =S62 -> 14.2 | X62: 33341770.4 | Z62: =+W62/K62-1 -> 0.3523809524 | AA62: 3.7
A63: HLFT - 164Demand - Maximum | B63: High Load Factor-TOU (500 - 1,999 kW) | C63: Maximum Demand Charge $/kW | D63: 54 | E63: Demand - Maximum | H63: =VLOOKUP($A63,'Billing Determinants - Units'!$A$9:$B$1153,2,FALSE) -> 2490186 | J63: 2490186 | K63: =INDEX('Present Base Rates by Rate Code'!$A$4:$V$50,MATCH('GSLD(T)-1'!$B63,'Present Base Rates by Rate Code'!$A$4:$A$50,0),MATCH('GSLD(T)-1'!C63,'Present Base Rates by Rate Code'!$A$4:$V$4,0)) -> 2.24 | L63: 5578016.64 | N63: 2490186 | O63: =K63*(1+$Q$6) -> 3.029831972 | P63: 7544845.159 | R63: 2490186 | S63: =ROUND(O63*(1+$U$6),1) -> 3 | T63: 7470558 | V63: 2490186 | W63: =S63 -> 3 | X63: 7470558 | Z63: =+W63/K63-1 -> 0.3392857143 | AA63: 0.76
A64: HLFT - 164Transformation Credit | B64: High Load Factor-TOU (500 - 1,999 kW) | C64: Transformation Rider Credit ($/kW) | D64: 55 | E64: Transformation Credit | H64: =VLOOKUP($A64,'Billing Determinants - Units'!$A$9:$B$1153,2,FALSE) -> 82834 | J64: 82834 | K64: =INDEX('Present Base Rates by Rate Code'!$A$4:$V$50,MATCH('GSLD(T)-1'!$B64,'Present Base Rates by Rate Code'!$A$4:$A$50,0),MATCH('GSLD(T)-1'!C64,'Present Base Rates by Rate Code'!$A$4:$V$4,0)) -> -0.3 | L64: -24850.2 | N64: 82834 | O64: =O16 -> -0.24 | P64: -19880.16 | Q64: =P64-L64 -> 4970.04 | R64: 82834 | S64: =S16 -> -0.24 | T64: -19880.16 | U64: =T64-P64 -> 0 | V64: 82834 | W64: =S64 -> -0.24 | X64: -19880.16 | Z64: =W64/K64-1 -> -0.2 | AA64: 0.06
D65: 56 | E65: Subtotal | L65: =SUM(L59:L64) -> 43036338.98 | P65: =SUM(P59:P64) -> 58194869.08 | T65: =SUM(T59:T64) -> 58114321.93 | X65: =SUM(X59:X64) -> 58378039.18 | AA65: =P65/L65-1 -> 0.3522262921
D66: 57 | E66: CDR Credit
A67: HLFT - 164Adder | B67: High Load Factor-TOU (500 - 1,999 kW) | C67: Commercial / Industrial Demand Rider (CDR) Adder per Customer | D67: 58 | E67: Adder | H67: =VLOOKUP($A67,'Billing Determinants - Units'!$A$9:$B$1153,2,FALSE) -> 53 | J67: 53 | K67: =INDEX('Present Base Rates by Rate Code'!$A$4:$V$50,MATCH('GSLD(T)-1'!$B67,'Present Base Rates by Rate Code'!$A$4:$A$50,0),MATCH('GSLD(T)-1'!C67,'Present Base Rates by Rate Code'!$A$4:$V$4,0)) -> 140.52 | L67: =J67*K67 -> 7447.56 | N67: =J67 -> 53 | O67: =O33 -> 150 | P67: =N67*O67 -> 7950 | Q67: =P67-L67 -> 502.44 | R67: =N67 -> 53 | S67: =S33 -> 150 | T67: =R67*S67 -> 7950 | U67: =T67-P67 -> 0 | V67: =N67 -> 53 | W67: =O67 -> 150 | X67: =V67*W67 -> 7950 | Z67: =W67/K67-1 -> 0.06746370623 | AA67: =W67-K67 -> 9.48
A68: HLFT - 164Credit | B68: High Load Factor-TOU (500 - 1,999 kW) | C68: Commercial / Industrial Demand Rider Credit (CDR) ($/kW) | D68: 59 | E68: Credit | H68: =VLOOKUP($A68,'Billing Determinants - Units'!$A$9:$B$1153,2,FALSE) -> 20729.19674 | J68: 20729.19674 | K68: =INDEX('Present Base Rates by Rate Code'!$A$4:$V$50,MATCH('GSLD(T)-1'!$B68,'Present Base Rates by Rate Code'!$A$4:$A$50,0),MATCH('GSLD(T)-1'!C68,'Present Base Rates by Rate Code'!$A$4:$V$4,0)) -> -8.2 | L68: =J68*K68 -> -169979.4133 | N68: =J68 -> 20729.19674 | O68: =O34 -> -5.26 | P68: =N68*O68 -> -109035.5749 | Q68: =P68-L68 -> 60943.83842 | R68: =N68 -> 20729.19674 | S68: =S34 -> -5.26 | T68: =R68*S68 -> -109035.5749 | U68: =T68-P68 -> 0 | V68: =N68 -> 20729.19674 | W68: =S68 -> -5.26 | X68: =V68*W68 -> -109035.5749 | Z68: =W68/K68-1 -> -0.3585365854 | AA68: =W68-K68 -> 2.94
A69: Total | D69: 60 | E69: Total | L69: =SUM(L65:L68) -> 42873807.12 | P69: =SUM(P65:P68) -> 58093783.51 | T69: =SUM(T65:T68) -> 58013236.35 | X69: =SUM(X65:X68) -> 58276953.6 | AA69: =P69/L69-1 -> 0.3549947487
D70: 61
A71: RATE SCHEDULE SDTR - 264 | D71: 62 | E71: RATE SCHEDULE SDTR - 264
D72: 63 | H72: Option A - GSLD-1 | N72: Option A - GSLD-1 | R72: Option A - GSLD-1 | V72: Option A - GSLD-1
A73: SDTR - 264Customer | B73: Seasonal Demand TOU Rider (SDTR) (500 - 1,999 kW) Option A Summer | C73: Customer Charge | D73: 64 | E73: Customer | H73: =VLOOKUP($A73,'Billing Determinants - Units'!$A$9:$B$1153,2,FALSE) -> 4838 | J73: 4838 | K73: =INDEX('Present Base Rates by Rate Code'!$A$4:$V$50,MATCH('GSLD(T)-1'!$B73,'Present Base Rates by Rate Code'!$A$4:$A$50,0),MATCH('GSLD(T)-1'!C73,'Present Base Rates by Rate Code'!$A$4:$V$4,0)) -> 61.83 | L73: =J73*K73 -> 299133.54 | N73: =J73 -> 4838 | O73: =+$O$25 -> 75 | P73: =N73*O73 -> 362850 | Q73: =P73-L73 -> 63716.46 | R73: =N73 -> 4838 | S73: =ROUND(+$O$25,0) -> 75 | T73: =R73*S73 -> 362850 | U73: =T73-P73 -> 0 | V73: =N73 -> 4838 | W73: =S73 -> 75 | X73: =V73*W73 -> 362850 | Z73: =+W73/K73-1 -> 0.2130033964 | AA73: =W73-K73 -> 13.17
A74: SDTR - 264Non-Fuel Energy - Seasonal On Peak | B74: Seasonal Demand TOU Rider (SDTR) (500 - 1,999 kW) Option A Summer | C74: On-Peak Energy Charge $/kWh | D74: 65 | E74: Non-Fuel Energy - Seasonal On Peak | H74: =VLOOKUP($A74,'Billing Determinants - Units'!$A$9:$B$1153,2,FALSE) -> 30749461 | J74: 30749461 | K74: =INDEX('Present Base Rates by Rate Code'!$A$4:$V$50,MATCH('GSLD(T)-1'!$B74,'Present Base Rates by Rate Code'!$A$4:$A$50,0),MATCH('GSLD(T)-1'!C74,'Present Base Rates by Rate Code'!$A$4:$V$4,0)) -> 0.0504 | L74: 1549772.834 | N74: 30749461 | O74: =K74*(1+$Q$6) -> 0.06817121937 | P74: 2096228.251 | R74: 30749461 | S74: =ROUND(O74*(1+$U$6),5) -> 0.06817 | T74: 2096190.756 | V74: =N74 -> 30749461 | W74: ='SDTR Workpaper'!D42 -> 0.07048 | X74: 2167222.011 | Z74: 0.3984126984 | AA74: 0.02008
A75: SDTR - 264Non-Fuel Energy - Seasonal Off Peak | B75: Seasonal Demand TOU Rider (SDTR) (500 - 1,999 kW) Option A Summer | C75: Off-Peak Energy Charge $/kWh | D75: 66 | E75: Non-Fuel Energy - Seasonal Off Peak | H75: =VLOOKUP($A75,'Billing Determinants - Units'!$A$9:$B$1153,2,FALSE) -> 280883865 | J75: 280883865 | K75: =INDEX('Present Base Rates by Rate Code'!$A$4:$V$50,MATCH('GSLD(T)-1'!$B75,'Present Base Rates by Rate Code'!$A$4:$A$50,0),MATCH('GSLD(T)-1'!C75,'Present Base Rates by Rate Code'!$A$4:$V$4,0)) -> 0.01035 | L75: 2907148.003 | N75: 280883865 | O75: =K75*(1+$Q$6) -> 0.01399944684 | P75: 3932218.735 | R75: 280883865 | S75: =ROUND(O75*(1+$U$6),5) -> 0.014 | T75: 3932374.11 | V75: 280883865 | W75: ='SDTR Workpaper'!D43 -> 0.014 | X75: 3932374.11 | Z75: 0.3526570048 | AA75: 0.00365
A76: SDTR - 264Non-Fuel Energy - Non-Seasonal | B76: Seasonal Demand TOU Rider (SDTR) (500 - 1,999 kW) Option A Winter | C76: Energy Charges $/kWh | D76: =D75+1 -> 67 | E76: Non-Fuel Energy - Non-Seasonal | H76: =VLOOKUP($A76,'Billing Determinants - Units'!$A$9:$B$1153,2,FALSE) -> 585038654 | J76: =H76+I76 -> 585038654 | K76: =INDEX('Present Base Rates by Rate Code'!$A$4:$V$50,MATCH('GSLD(T)-1'!$B76,'Present Base Rates by Rate Code'!$A$4:$A$50,0),MATCH('GSLD(T)-1'!C76,'Present Base Rates by Rate Code'!$A$4:$V$4,0)) -> 0.0143 | L76: 8366052.752 | N76: 585038654 | O76: =K76*(1+$Q$6) -> 0.01934223089 | P76: 11315952.73 | R76: 585038654 | S76: =ROUND(O76*(1+$U$6),5) -> 0.01934 | T76: 11314647.57 | V76: 585038654 | W76: ='SDTR Workpaper'!D45 -> 0.01954 | X76: 11431655.3 | Z76: 0.3664335664 | AA76: 0.00524
A77: SDTR - 264Demand - Seasonal On-Peak | B77: Seasonal Demand TOU Rider (SDTR) (500 - 1,999 kW) Option A Summer | C77: On-Peak Demand Charge $/kW | D77: 68 | E77: Demand - Seasonal On-Peak | H77: =VLOOKUP($A77,'Billing Determinants - Units'!$A$9:$B$1153,2,FALSE) -> 794801 | J77: 794801 | K77: =INDEX('Present Base Rates by Rate Code'!$A$4:$V$50,MATCH('GSLD(T)-1'!$B77,'Present Base Rates by Rate Code'!$A$4:$A$50,0),MATCH('GSLD(T)-1'!C77,'Present Base Rates by Rate Code'!$A$4:$V$4,0)) -> 10.94 | L77: 8695122.94 | N77: 794801 | O77: =K77*(1+$Q$6) -> 14.79748294 | P77: 11761054.23 | R77: 794801 | S77: =ROUND(O77*(1+$U$6),1) -> 14.8 | T77: 11763054.8 | V77: 794801 | W77: ='SDTR Workpaper'!D39 -> 13.8 | X77: 10968253.8 | Z77: 0.2614259598 | AA77: 2.86
A78: SDTR - 264Demand - Non-Seasonal | B78: Seasonal Demand TOU Rider (SDTR) (500 - 1,999 kW) Option A Winter | C78: Demand Charge $/kW | D78: 69 | E78: Demand - Non-Seasonal | H78: =VLOOKUP($A78,'Billing Determinants - Units'!$A$9:$B$1153,2,FALSE) -> 2041851 | J78: 2041851 | K78: =INDEX('Present Base Rates by Rate Code'!$A$4:$V$50,MATCH('GSLD(T)-1'!$B78,'Present Base Rates by Rate Code'!$A$4:$A$50,0),MATCH('GSLD(T)-1'!C78,'Present Base Rates by Rate Code'!$A$4:$V$4,0)) -> 9.59 | L78: 19581351.09 | N78: 2041851 | O78: =K78*(1+$Q$6) -> 12.97146813 | P78: 26485805.17 | R78: 2041851 | S78: =ROUND(O78*(1+$U$6),1) -> 13 | T78: 26544063 | V78: 2041851 | W78: ='SDTR Workpaper'!D40 -> 13.2 | X78: 26952433.2 | Z78: 0.3764337852 | AA78: 3.61
A79: SDTR - 264Transformation Credit | B79: Seasonal Demand TOU Rider (SDTR) (500 - 1,999 kW) Option A Summer | C79: Transformation Rider Credit ($/kW) | D79: 70 | E79: Transformation Credit | H79: =VLOOKUP($A79,'Billing Determinants - Units'!$A$9:$B$1153,2,FALSE) -> 33226 | J79: 33226 | K79: =INDEX('Present Base Rates by Rate Code'!$A$4:$V$50,MATCH('GSLD(T)-1'!$B79,'Present Base Rates by Rate Code'!$A$4:$A$50,0),MATCH('GSLD(T)-1'!C79,'Present Base Rates by Rate Code'!$A$4:$V$4,0)) -> -0.3 | L79: -9967.8 | N79: 33226 | O79: =+O16 -> -0.24 | P79: -7974.24 | Q79: =P79-L79 -> 1993.56 | R79: 33226 | S79: =+S16 -> -0.24 | T79: -7974.24 | U79: =T79-P79 -> 0 | V79: 33226 | W79: =S79 -> -0.24 | X79: -7974.24 | Z79: =W79/K79-1 -> -0.2 | AA79: 0.06
A80: SDTR - 264Subtotal | D80: 71 | E80: Subtotal | L80: =SUM(L73:L79) -> 41388613.36 | P80: =SUM(P73:P79) -> 55946134.88 | T80: =SUM(T73:T79) -> 56005205.99 | X80: =SUM(X73:X79) -> 55806814.18 | AA80: =P80/L80-1 -> 0.3517276937
A81: SDTR - 264CDR Credit | D81: 72 | E81: CDR Credit
A82: SDTR - 264Adder | B82: Seasonal Demand TOU Rider (SDTR) (500 - 1,999 kW) Option A Summer | C82: Commercial / Industrial Demand Rider (CDR) Adder per Customer | D82: 73 | E82: Adder | H82: =VLOOKUP($A82,'Billing Determinants - Units'!$A$9:$B$1153,2,FALSE) -> 0 | J82: 0 | K82: =INDEX('Present Base Rates by Rate Code'!$A$4:$V$50,MATCH('GSLD(T)-1'!$B82,'Present Base Rates by Rate Code'!$A$4:$A$50,0),MATCH('GSLD(T)-1'!C82,'Present Base Rates by Rate Code'!$A$4:$V$4,0)) -> 140.52 | L82: =J82*K82 -> 0 | N82: =J82 -> 0 | O82: =O67 -> 150 | P82: =N82*O82 -> 0 | Q82: =P82-L82 -> 0 | R82: =N82 -> 0 | S82: =S67 -> 150 | T82: =R82*S82 -> 0 | U82: =T82-P82 -> 0 | V82: =N82 -> 0 | W82: =S82 -> 150 | X82: =V82*W82 -> 0 | Z82: =W82/K82-1 -> 0.06746370623 | AA82: =W82-K82 -> 9.48
A83: SDTR - 264Credit | B83: Seasonal Demand TOU Rider (SDTR) (500 - 1,999 kW) Option A Summer | C83: Commercial / Industrial Demand Rider Credit (CDR) ($/kW) | D83: 74 | E83: Credit | H83: =VLOOKUP($A83,'Billing Determinants - Units'!$A$9:$B$1153,2,FALSE) -> 0 | J83: 0 | K83: =INDEX('Present Base Rates by Rate Code'!$A$4:$V$50,MATCH('GSLD(T)-1'!$B83,'Present Base Rates by Rate Code'!$A$4:$A$50,0),MATCH('GSLD(T)-1'!C83,'Present Base Rates by Rate Code'!$A$4:$V$4,0)) -> -8.2 | L83: =J83*K83 -> 0 | N83: =J83 -> 0 | O83: =O68 -> -5.26 | P83: =N83*O83 -> 0 | Q83: =P83-L83 -> 0 | R83: =N83 -> 0 | S83: =S68 -> -5.26 | T83: =R83*S83 -> 0 | U83: =T83-P83 -> 0 | V83: =N83 -> 0 | W83: =S83 -> -5.26 | X83: =V83*W83 -> 0 | Z83: =W83/K83-1 -> -0.3585365854 | AA83: =W83-K83 -> 2.94
A84: Total | D84: 75 | E84: Total | L84: =SUM(L80:L83) -> 41388613.36 | P84: =SUM(P80:P83) -> 55946134.88 | T84: =SUM(T80:T83) -> 56005205.99 | X84: =SUM(X80:X83) -> 55806814.18 | AA84: =P84/L84-1 -> 0.3517276937
D85: 76
D86: 77
A87: RATE SCHEDULE SDTR - 364 | D87: 78 | E87: RATE SCHEDULE SDTR - 364
D88: 79 | H88: Option B - GSLDT-1 | N88: Option B - GSLDT-1 | R88: Option B - GSLDT-1 | V88: Option B - GSLDT-1
A89: SDTR - 364Customer | B89: Seasonal Demand TOU Rider (SDTR) (500 - 1,999 kW) Option B Summer | C89: Customer Charge | D89: 80 | E89: Customer | H89: =VLOOKUP($A89,'Billing Determinants - Units'!$A$9:$B$1153,2,FALSE) -> 264 | J89: 264 | K89: =INDEX('Present Base Rates by Rate Code'!$A$4:$V$50,MATCH('GSLD(T)-1'!$B89,'Present Base Rates by Rate Code'!$A$4:$A$50,0),MATCH('GSLD(T)-1'!C89,'Present Base Rates by Rate Code'!$A$4:$V$4,0)) -> 61.83 | L89: =J89*K89 -> 16323.12 | N89: =J89 -> 264 | O89: =+$O$25 -> 75 | P89: =N89*O89 -> 19800 | Q89: =P89-L89 -> 3476.88 | R89: =N89 -> 264 | S89: =ROUND(+$O$25,0) -> 75 | T89: =R89*S89 -> 19800 | U89: =T89-P89 -> 0 | V89: =N89 -> 264 | W89: =S89 -> 75 | X89: =V89*W89 -> 19800 | Z89: =+W89/K89-1 -> 0.2130033964 | AA89: =W89-K89 -> 13.17
A90: SDTR - 364Non-Fuel Energy - Seasonal On Peak | B90: Seasonal Demand TOU Rider (SDTR) (500 - 1,999 kW) Option B Summer | C90: On-Peak Energy Charge $/kWh | D90: 81 | E90: Non-Fuel Energy - Seasonal On Peak | H90: =VLOOKUP($A90,'Billing Determinants - Units'!$A$9:$B$1153,2,FALSE) -> 1480502 | J90: 1480502 | K90: =INDEX('Present Base Rates by Rate Code'!$A$4:$V$50,MATCH('GSLD(T)-1'!$B90,'Present Base Rates by Rate Code'!$A$4:$A$50,0),MATCH('GSLD(T)-1'!C90,'Present Base Rates by Rate Code'!$A$4:$V$4,0)) -> 0.0504 | L90: 74617.3008 | N90: 1480502 | O90: =K90*(1+$Q$6) -> 0.06817121937 | P90: 100927.6266 | R90: 1480502 | S90: =ROUND(O90*(1+$U$6),5) -> 0.06817 | T90: 100925.8213 | V90: =N90 -> 1480502 | W90: ='SDTR Workpaper'!D42 -> 0.07048 | X90: 104345.781 | Z90: 0.3984126984 | AA90: 0.02008
A91: SDTR - 364Non-Fuel Energy - Seasonal Off Peak | B91: Seasonal Demand TOU Rider (SDTR) (500 - 1,999 kW) Option B Summer | C91: Off-Peak Energy Charge $/kWh | D91: 82 | E91: Non-Fuel Energy - Seasonal Off Peak | H91: =VLOOKUP($A91,'Billing Determinants - Units'!$A$9:$B$1153,2,FALSE) -> 15446189 | J91: 15446189 | K91: =INDEX('Present Base Rates by Rate Code'!$A$4:$V$50,MATCH('GSLD(T)-1'!$B91,'Present Base Rates by Rate Code'!$A$4:$A$50,0),MATCH('GSLD(T)-1'!C91,'Present Base Rates by Rate Code'!$A$4:$V$4,0)) -> 0.01035 | L91: 159868.0561 | N91: 15446189 | O91: 0.01399944684 | P91: 216238.1017 | R91: 15446189 | S91: =ROUND(O91*(1+$U$6),5) -> 0.014 | T91: 216246.646 | V91: 15446189 | W91: ='SDTR Workpaper'!D43 -> 0.014 | X91: 216246.646 | Z91: 0.3526570048 | AA91: 0.00365
A92: SDTR - 364Non-Fuel Energy - Non-Seasonal On Peak | B92: Seasonal Demand TOU Rider (SDTR) (500 - 1,999 kW) Option B Winter | C92: On-Peak Energy Charge $/kWh | D92: 83 | E92: Non-Fuel Energy - Non-Seasonal On Peak | H92: =VLOOKUP($A92,'Billing Determinants - Units'!$A$9:$B$1153,2,FALSE) -> 5398607 | J92: 5398607 | K92: =INDEX('Present Base Rates by Rate Code'!$A$4:$V$50,MATCH('GSLD(T)-1'!$B92,'Present Base Rates by Rate Code'!$A$4:$A$50,0),MATCH('GSLD(T)-1'!C92,'Present Base Rates by Rate Code'!$A$4:$V$4,0)) -> 0.0271 | L92: 146302.2497 | N92: 5398607 | O92: 0.03665555645 | P92: 197888.9436 | R92: 5398607 | S92: =ROUND(O92*(1+$U$6),5) -> 0.03666 | T92: 197912.9326 | V92: 5398607 | W92: ='SDTR Workpaper'!D46 -> 0.04204 | X92: 226957.4383 | Z92: 0.5512915129 | AA92: 0.01494
A93: SDTR - 364Non-Fuel Energy - Non-Seasonal Off Peak | B93: Seasonal Demand TOU Rider (SDTR) (500 - 1,999 kW) Option B Winter | C93: Off-Peak Energy Charge $/kWh | D93: 84 | E93: Non-Fuel Energy - Non-Seasonal Off Peak | H93: =VLOOKUP($A93,'Billing Determinants - Units'!$A$9:$B$1153,2,FALSE) -> 21922658 | J93: 21922658 | K93: =INDEX('Present Base Rates by Rate Code'!$A$4:$V$50,MATCH('GSLD(T)-1'!$B93,'Present Base Rates by Rate Code'!$A$4:$A$50,0),MATCH('GSLD(T)-1'!C93,'Present Base Rates by Rate Code'!$A$4:$V$4,0)) -> 0.01035 | L93: 226899.5103 | N93: 21922658 | O93: 0.01399944684 | P93: 306905.0852 | R93: 21922658 | S93: =ROUND(O93*(1+$U$6),5) -> 0.014 | T93: 306917.212 | V93: 21922658 | W93: ='SDTR Workpaper'!D47 -> 0.014 | X93: 306917.212 | Z93: 0.3526570048 | AA93: 0.00365
A94: SDTR - 364Demand - Seasonal On-Peak | B94: Seasonal Demand TOU Rider (SDTR) (500 - 1,999 kW) Option B Summer | C94: On-Peak Demand Charge $/kW | D94: 85 | E94: Demand - Seasonal On-Peak | H94: =VLOOKUP($A94,'Billing Determinants - Units'!$A$9:$B$1153,2,FALSE) -> 31113 | J94: 31113 | K94: =INDEX('Present Base Rates by Rate Code'!$A$4:$V$50,MATCH('GSLD(T)-1'!$B94,'Present Base Rates by Rate Code'!$A$4:$A$50,0),MATCH('GSLD(T)-1'!C94,'Present Base Rates by Rate Code'!$A$4:$V$4,0)) -> 10.94 | L94: 340376.22 | N94: 31113 | O94: 14.79748294 | P94: 460394.0866 | R94: 31113 | S94: =ROUND(O94*(1+$U$6),1) -> 14.8 | T94: 460472.4 | V94: 31113 | W94: =W77 -> 13.8 | X94: 429359.4 | Z94: 0.2614259598 | AA94: 2.86
A95: SDTR - 364Demand - Non-Seasonal On Peak | B95: Seasonal Demand TOU Rider (SDTR) (500 - 1,999 kW) Option B Winter | C95: On-Peak Demand Charge $/kW | D95: 86 | E95: Demand - Non-Seasonal On Peak | H95: =VLOOKUP($A95,'Billing Determinants - Units'!$A$9:$B$1153,2,FALSE) -> 69675 | J95: 69675 | K95: =INDEX('Present Base Rates by Rate Code'!$A$4:$V$50,MATCH('GSLD(T)-1'!$B95,'Present Base Rates by Rate Code'!$A$4:$A$50,0),MATCH('GSLD(T)-1'!C95,'Present Base Rates by Rate Code'!$A$4:$V$4,0)) -> 9.59 | L95: 668183.25 | N95: 69675 | O95: 12.97146813 | P95: 903787.042 | R95: 69675 | S95: =ROUND(O95*(1+$U$6),1) -> 13 | T95: 905775 | V95: 69675 | W95: =W78 -> 13.2 | X95: 919710 | Z95: 0.3764337852 | AA95: 3.61
A96: SDTR - 364Transformation Credit | B96: Seasonal Demand TOU Rider (SDTR) (500 - 1,999 kW) Option B Summer | C96: Transformation Rider Credit ($/kW) | D96: 87 | E96: Transformation Credit | J96: 0 | K96: =INDEX('Present Base Rates by Rate Code'!$A$4:$V$50,MATCH('GSLD(T)-1'!$B96,'Present Base Rates by Rate Code'!$A$4:$A$50,0),MATCH('GSLD(T)-1'!C96,'Present Base Rates by Rate Code'!$A$4:$V$4,0)) -> -0.3 | L96: 0 | N96: 0 | O96: =O79 -> -0.24 | P96: 0 | Q96: =P96-L96 -> 0 | R96: 0 | S96: =S79 -> -0.24 | T96: 0 | U96: =T96-P96 -> 0 | V96: 0 | W96: =S96 -> -0.24 | X96: 0 | Z96: =W96/K96-1 -> -0.2 | AA96: 0.06
A97: SDTR - 364Subtotal | D97: 88 | E97: Subtotal | L97: =SUM(L89:L96) -> 1632569.707 | P97: =SUM(P89:P96) -> 2205940.886 | T97: =SUM(T89:T96) -> 2208050.012 | X97: =SUM(X89:X96) -> 2223336.477 | AA97: =P97/L97-1 -> 0.3512077777
A98: SDTR - 364CDR Credit | D98: 89 | E98: CDR Credit
A99: SDTR - 364Adder | B99: Seasonal Demand TOU Rider (SDTR) (500 - 1,999 kW) Option B Summer | C99: Commercial / Industrial Demand Rider (CDR) Adder per Customer | D99: 90 | E99: Adder | H99: =VLOOKUP($A99,'Billing Determinants - Units'!$A$9:$B$1153,2,FALSE) -> 0 | J99: 0 | K99: =INDEX('Present Base Rates by Rate Code'!$A$4:$V$50,MATCH('GSLD(T)-1'!$B99,'Present Base Rates by Rate Code'!$A$4:$A$50,0),MATCH('GSLD(T)-1'!C99,'Present Base Rates by Rate Code'!$A$4:$V$4,0)) -> 140.52 | L99: =H99*K99 -> 0 | N99: =J99 -> 0 | O99: =O82 -> 150 | P99: =N99*O99 -> 0 | Q99: =P99-L99 -> 0 | R99: =N99 -> 0 | S99: =S82 -> 150 | T99: =R99*S99 -> 0 | U99: =T99-P99 -> 0 | V99: =N99 -> 0 | W99: =S99 -> 150 | X99: =V99*W99 -> 0 | Z99: =W99/K99-1 -> 0.06746370623 | AA99: =W99-K99 -> 9.48
A100: SDTR - 364Credit | B100: Seasonal Demand TOU Rider (SDTR) (500 - 1,999 kW) Option B Summer | C100: Commercial / Industrial Demand Rider Credit (CDR) ($/kW) | D100: 91 | E100: Credit | H100: =VLOOKUP($A100,'Billing Determinants - Units'!$A$9:$B$1153,2,FALSE) -> 0 | J100: 0 | K100: =INDEX('Present Base Rates by Rate Code'!$A$4:$V$50,MATCH('GSLD(T)-1'!$B100,'Present Base Rates by Rate Code'!$A$4:$A$50,0),MATCH('GSLD(T)-1'!C100,'Present Base Rates by Rate Code'!$A$4:$V$4,0)) -> -8.2 | L100: =H100*K100 -> 0 | N100: =J100 -> 0 | O100: =O83 -> -5.26 | P100: =N100*O100 -> 0 | Q100: =P100-L100 -> 0 | R100: =N100 -> 0 | S100: =S83 -> -5.26 | T100: =R100*S100 -> 0 | U100: =T100-P100 -> 0 | V100: =N100 -> 0 | W100: =S100 -> -5.26 | X100: =V100*W100 -> 0 | Z100: =W100/K100-1 -> -0.3585365854 | AA100: =W100-K100 -> 2.94
D101: 92 | E101: Total | L101: =SUM(L97:L100) -> 1632569.707 | P101: =SUM(P97:P100) -> 2205940.886 | T101: =SUM(T97:T100) -> 2208050.012 | X101: =SUM(X97:X100) -> 2223336.477 | AA101: =P101/L101-1 -> 0.3512077777
D102: 93
D103: 94 | E103: TOTALS | L103: =L21+L35+L44+L55+L69+L84+L101 -> 370560164.6 | P103: =P21+P35+P44+P55+P69+P84+P101 -> 509435050.7 | Q103: =SUM(Q13:Q100) -> 4846306.984 | T103: =T21+T35+T44+T55+T69+T84+T101 -> 508596920.9 | U103: =SUM(U13:U100) -> 0 | X103: =X21+X35+X44+X55+X69+X84+X101 -> 509432133.1
D104: 95
D105: 96 | N105: a | O105: target revenue | P105: =('E-8 Parity Analysis Final'!W21*1000)+L103 -> 509435050.7 | R105: a | S105: target revenue | T105: =P105 -> 509435050.7 | W105: Increase | X105: =X103-L103 -> 138871968.5
D106: 97 | E106: Calculate Revenue Neutrality for Current Rates Before applying increase | N106: b | O106: Present revenue | P106: =L103 -> 370560164.6 | R106: b | S106: Present revenue | T106: =P103 -> 509435050.7 | W106: Target | X106: =P114 -> 138874886.1
D107: 98 | N107: c | O107: Proposed Increase | P107: =P105-P106 -> 138874886.1 | R107: c | S107: Proposed Increase | T107: =T105-T106 -> 0 | W107: Diff | X107: =X105-X106 -> -2917.592716
D108: 99 | N108: d | O108: Override Revenue | P108: =Q103 -> 4846306.984 | R108: d | S108: Override Revenue | T108: =U103 -> 0 | W108: Adj | X108: =ROUND(0.000200340646567121,5) -> 0.0002
D109: 100 | E109: TOU Off-Peak Energy | H109: =S28 -> 0.014 | N109: e | O109: Increase of Non-Override Revenue | P109: =P107-P108 -> 134028579.1 | R109: e | S109: Increase of Non-Override Revenue | T109: =T107+T108 -> 0
D110: 101 | N110: f | O110: Non-Override Revenue | P110: =L14+L15+L27+L28+L29+L40+L41+L50+L51+L52+L60+L61+L62+L63+L74+L75+L76+L77+L78+L90+L91+L92+L93+L94+L95 -> 380111248.7 | R110: f | S110: Non-Override Revenue | T110: =P14+P15+P27+P28+P29+P40+P41+P50+P51+P52+P60+P61+P62+P63+P74+P75+P76+P77+P78+P90+P91+P92+P93+P94+P95 -> 514139827.7
D111: 102 | N111: g | O111: adjustment factor | P111: =P109/P110 -> 0.352603559 | R111: g | S111: adjustment factor | T111: =T109/T110 -> 0 | W111: Per UII | X111: 509432133
D112: 103 | E112: TOU revenue neutral calculation | G112: Step 1 | W112: Difference | X112: =X103-X111 -> 0.08280062675
D113: 104 | E113: on pk class ave per Load Research Study | F113: 0.3040045634 | H113: Energy Revenue | O113: Increase | P113: =P103-L103 -> 138874886.1 | S113: Increase | T113: =T103-P103 -> -838129.8152
D114: 105 | E114: on peak | F114: =((+SUM($J$27:$J$28))+(SUM($J$50:$J$51)))*$F$113 -> 1398892342 | G114: =ROUND((H117-H115)/F114,5) -> 0.03222 | H114: =+F114*G114 -> 45072311.27 | I114: =ROUND(IF(G114>G115,G114,H116/F117),5) -> 0.03222 | O114: Target Increase | P114: ='E-8 Parity Analysis Final'!W21*1000 -> 138874886.1 | S114: Target Increase | T114: =T109 -> 0
D115: 106 | E115: off peak | F115: =((+SUM($J$27:$J$28))+(SUM($J$50:$J$51)))-F114 -> 3202658131 | G115: =H109 -> 0.014 | H115: =+F115*G115 -> 44837213.83 | I115: =ROUND(IF(G114>G115,G115,H116/F117),5) -> 0.014 | O115: Difference | P115: =P113-P114 -> 0 | S115: Difference | T115: =T113-T114 -> -838129.8152
D116: 107 | E116: total at class on-pk | H116: =SUM(H114:H115) -> 89909525.1
D117: 108 | E117: total rev required at GSLD1 rates | F117: =SUM(F114:F115) -> 4601550473 | G117: =W14 -> 0.01954 | H117: =G117*F117 -> 89914296.24
D118: 109 | E118: Difference | H118: =+H116-H117 -> -4771.142781
D119: 110 | L119: Step 1 - Set customer charge and CDR adder (if applicable) based on customer charge workpaper; transformation credit (if applicable) based on transformer credit workpaper; curtailment credit (if applicable) based on present curtailment credit;
D120: 111 | L120: and CDR credit (if applicable) based on CILC/CDR credit workpaper. These revenues/credits become "override revenues". Exclude override revenue from % increase calculations and apply the percent increase to only non-override rates.
D121: 112 | E121: HLFT Revenue at GSLD-1 rate and target Load Factor | L121: Step 2 - Round results of Step 1
D122: 113 | E122: Target Load Factor | G122: 0.7 | L122: Step 3 - Calculate revenue neutral and/or rounding adjustment. For rate classes with SDTR, refer to SDTR workpaper.
D123: 114 | E123: Average Class On-Peak % | G123: =+F113 -> 0.3040045634 | H123: =100%-G123 -> 0.6959954366 | L123: Step 4 - Compare to Unit Costs for reasonableness. Depending on changes in other rates (Customer, Demand, etc.), unit costs may differ from final energy rates to achieve target revenues.
D124: 115 | H124: Parent rates
D125: 116 | E125: accounts | G125: =+N59 -> 3472 | H125: =W13 -> 75 | I125: =G125*H125 -> 260400
D126: 117 | E126: kW | F126: on-peak kw | G126: =+N62 -> 2348012 | H126: =W15 -> 13.4 | I126: =G126*H126 -> 31463360.8
D127: 118 | E127: kWh | F127: max pk kw *8760*70% | G127: =(N63/12)*8760*G122 -> 1272485046 | H127: =W14 -> 0.01954 | I127: =G127*H127 -> 24864357.8
D128: 119 | E128: Total Revenue required | I128: =SUM(I125:I127) -> 56588118.6
D129: 120 | E129: Proposed HLFT Demand/Customer Rev | I129: =+SUM(X59,X62:X63) -> 41072728.4
D130: 121 | E130: Net Energy Revenue required | F130: (line 115-116) | I130: =I128-I129 -> 15515390.2
D131: 122
D132: 123
D133: 124 | E133: Adjusted Energy Charges
D134: 125 | E134: HLFT Off-Peak Energy | H134: =S61 -> 0.01197
D135: 126
D136: 127 | E136: kWh On-Peak | G136: =G127*G123 -> 386841260.8 | H136: =ROUND((I130-I137)/G136,5) -> 0.0127 | I136: =G136*H136 -> 4912884.012 | J136: =ROUND(IF(H136>H137,H136,I138/G138),5) -> 0.0127
D137: 128 | E137: kWh Off-Peak | G137: =G127-G136 -> 885643785.2 | H137: =H134 -> 0.01197 | I137: =G137*H137 -> 10601156.11 | J137: =ROUND(IF(H136>H137,H137,I138/G138),5) -> 0.01197
D138: 129 | E138: Total | G138: =SUM(G136:G137) -> 1272485046 | H138: =H136-H137 -> 0.00073 | I138: =SUM(I136:I137) -> 15514040.12
D139: 130 | E139: Difference | I139: =I138-I130 -> -1350.077837

Sheet GSLD(T)-2
A1: OPC 015208
A2: FPL RC-16
D4: MFR E-14 Workpapers - 2018
D5: Rate Class GSLD(T)-2 | J5: Present Revenues (with WCEC3 in Base) | N5: Percent increase calculation | R5: Rounded | V5: Final adjustments to achieve target revenues
Q6: =P111 -> 0.3759875978 | U6: 0 | AB6: =(X103-L103)/L103 -> 0.4081889665
A7: Ref. for linking data | E7: -1 | F7: =E7-1 -> -2 | G7: =F7-1 -> -3 | H7: -4 | I7: -5 | J7: -6 | K7: -7 | L7: -8 | M7: -9 | N7: -10 | O7: -11 | P7: -12 | Q7: -13 | R7: -14 | S7: -15 | T7: -16 | U7: -17 | V7: -18 | W7: -19 | X7: -20 | Y7: -21 | Z7: -22 | AA7: -23
D8: Line | E8: TYPE OF | H8: PRESENT REVENUE CALCULATION | N8: PROPOSED REVENUE CALCULATION | R8: PROPOSED REVENUE CALCULATION | V8: PROPOSED REVENUE CALCULATION | AC8: Override
D9: No. | E9: CHARGES | H9: UNITS | K9: CHARGE/UNIT | L9: $ REVENUE | N9: UNITS | O9: CHARGE/UNIT | P9: $ REVENUE | R9: UNITS | S9: CHARGE/UNIT | T9: $ REVENUE | V9: UNITS | W9: CHARGE/UNIT | X9: $ REVENUE | AA9: INCREASE | AC9: Calculated
A10: Reference for Billing Units | B10: Reference for Rates | C10: Reference for Rates | D10: 1 | Q10: Override | U10: Override
D11: =D10+1 -> 2 | E11: RATE SCHEDULE GSLD-2 - 63 | Q11: Revenue | U11: Revenue | AD11: Comparison of Unit Costs to Calculated Rates
D12: =D11+1 -> 3
A13: GSLD-2 - 63Customer | B13: General Service Large Demand (GSLD-2) | C13: Customer Charge | D13: 4 | E13: Customer | H13: =VLOOKUP($A13,'Billing Determinants - Units'!$A$9:$B$1153,2,FALSE) -> 456 | J13: =H13+I13 -> 456 | K13: =INDEX('Present Base Rates by Rate Code'!$A$4:$V$50,MATCH('GSLD(T)-2'!$B13,'Present Base Rates by Rate Code'!$A$4:$A$50,0),MATCH('GSLD(T)-2'!C13,'Present Base Rates by Rate Code'!$A$4:$V$4,0)) -> 219.22 | L13: =J13*K13 -> 99964.32 | N13: =J13 -> 456 | O13: ='E-6b Proposed Equalized'!$K$69 -> 275 | P13: =N13*O13 -> 125400 | Q13: =P13-L13 -> 25435.68 | R13: =N13 -> 456 | S13: =ROUND(O13,0) -> 275 | T13: =R13*S13 -> 125400 | U13: =T13-P13 -> 0 | V13: =J13 -> 456 | W13: =S13 -> 275 | X13: =V13*W13 -> 125400 | Z13: =W13/K13-1 -> 0.2544475869 | AA13: =W13-K13 -> 55.78
A14: GSLD-2 - 63Non-Fuel Energy | B14: General Service Large Demand (GSLD-2) | C14: Energy Charges $/kWh | D14: 5 | E14: Non-Fuel Energy | H14: =VLOOKUP($A14,'Billing Determinants - Units'!$A$9:$B$1153,2,FALSE) -> 489806672 | J14: =H14+I14 -> 489806672 | K14: =INDEX('Present Base Rates by Rate Code'!$A$4:$V$50,MATCH('GSLD(T)-2'!$B14,'Present Base Rates by Rate Code'!$A$4:$A$50,0),MATCH('GSLD(T)-2'!C14,'Present Base Rates by Rate Code'!$A$4:$V$4,0)) -> 0.01287 | L14: =J14*K14 -> 6303811.869 | N14: =J14 -> 489806672 | O14: =K14*(1+$Q$6) -> 0.01770896038 | P14: =N14*O14 -> 8673966.95 | R14: =N14 -> 489806672 | S14: =ROUND(O14*(1+$U$6),5) -> 0.01771 | T14: =R14*S14 -> 8674476.161 | V14: =J14 -> 489806672 | W14: =S14+X108 -> 0.01777 | X14: =V14*W14 -> 8703864.561 | Z14: =W14/K14-1 -> 0.3807303807 | AA14: =W14-K14 -> 0.0049 | AF14: Demand | AI14: Energy
A15: GSLD-2 - 63Demand | B15: General Service Large Demand (GSLD-2) | C15: Demand Charge $/kW | D15: 6 | E15: Demand | H15: =VLOOKUP($A15,'Billing Determinants - Units'!$A$9:$B$1153,2,FALSE) -> 1124679 | J15: 1124679 | K15: =INDEX('Present Base Rates by Rate Code'!$A$4:$V$50,MATCH('GSLD(T)-2'!$B15,'Present Base Rates by Rate Code'!$A$4:$A$50,0),MATCH('GSLD(T)-2'!C15,'Present Base Rates by Rate Code'!$A$4:$V$4,0)) -> 10.26 | L15: =J15*K15 -> 11539206.54 | N15: 1124679 | O15: =K15*(1+$Q$6) -> 14.11763275 | P15: =N15*O15 -> 15877805.09 | R15: 1124679 | S15: =ROUND(O15*(1+$U$6),1) -> 14.1 | T15: =R15*S15 -> 15857973.9 | V15: =J15 -> 1124679 | W15: =S15 -> 14.1 | X15: =V15*W15 -> 15857973.9 | Z15: =W15/K15-1 -> 0.3742690058 | AA15: =W15-K15 -> 3.84
A16: GSLD-2 - 63Transformation Credit | B16: General Service Large Demand (GSLD-2) | C16: Transformation Rider Credit ($/kW) | D16: 7 | E16: Transformation Credit | H16: =VLOOKUP($A16,'Billing Determinants - Units'!$A$9:$B$1153,2,FALSE) -> 287760 | J16: 287760 | K16: =INDEX('Present Base Rates by Rate Code'!$A$4:$V$50,MATCH('GSLD(T)-2'!$B16,'Present Base Rates by Rate Code'!$A$4:$A$50,0),MATCH('GSLD(T)-2'!C16,'Present Base Rates by Rate Code'!$A$4:$V$4,0)) -> -0.3 | L16: =J16*K16 -> -86328 | N16: 287760 | O16: ='Transformer Credit'!$E$9 -> -0.24 | P16: =N16*O16 -> -69062.4 | Q16: =P16-L16 -> 17265.6 | R16: 287760 | S16: =O16 -> -0.24 | T16: =R16*S16 -> -69062.4 | U16: =T16-P16 -> 0 | V16: =J16 -> 287760 | W16: =S16 -> -0.24 | X16: =V16*W16 -> -69062.4 | Z16: =W16/K16-1 -> -0.2 | AA16: =W16-K16 -> 0.06
A17: GSLD-2 - 63Subtotal | B17: General Service Large Demand (GSLD-2) | D17: 8 | E17: Subtotal | L17: =SUM(L13:L16) -> 17856654.73 | P17: =SUM(P13:P16) -> 24608109.64 | T17: =SUM(T13:T16) -> 24588787.66 | X17: =SUM(X13:X16) -> 24618176.06 | AA17: =X17/L17-1 -> 0.3786555453 | AD17: Billing Units | AE17: kW | AF17: =V15+V29+V41+V52+V63+V77+V78+V94+V95 -> 4594305 | AH17: kWh | AI17: =V14+V27+V28+V40+V50+V51+V60+V61+V74+V75+V76+V90+V91+V92+V93 -> 2511431587
A18: GSLD-2 - 63CDR Credit | B18: General Service Large Demand (GSLD-2) | D18: 9 | E18: CDR Credit
A19: GSLD-2 - 63Adder | B19: General Service Large Demand (GSLD-2) | C19: Commercial / Industrial Demand Rider (CDR) Adder per Customer | D19: 10 | E19: Adder | H19: =VLOOKUP($A19,'Billing Determinants - Units'!$A$9:$B$1153,2,FALSE) -> 84 | J19: 84 | K19: =INDEX('Present Base Rates by Rate Code'!$A$4:$V$50,MATCH('GSLD(T)-2'!$B19,'Present Base Rates by Rate Code'!$A$4:$A$50,0),MATCH('GSLD(T)-2'!C19,'Present Base Rates by Rate Code'!$A$4:$V$4,0)) -> 56.21 | L19: =J19*K19 -> 4721.64 | N19: 84 | O19: ='E-6b Proposed Equalized'!$K$75 -> 75 | P19: =N19*O19 -> 6300 | Q19: =P19-L19 -> 1578.36 | R19: 84 | S19: =O19 -> 75 | T19: =R19*S19 -> 6300 | U19: =T19-P19 -> 0 | V19: =J19 -> 84 | W19: =S19 -> 75 | X19: =V19*W19 -> 6300 | Z19: =W19/K19-1 -> 0.3342821562 | AA19: =W19-K19 -> 18.79 | AD19: Unit Costs per E-6b | AF19: ='E-6b Proposed Equalized'!K31 -> 15.63 | AI19: ='E-6b Proposed Equalized'!K41 -> 0.01183
A20: GSLD-2 - 63Credit | B20: General Service Large Demand (GSLD-2) | C20: Commercial / Industrial Demand Rider Credit (CDR) ($/kW) | D20: 11 | E20: Credit | H20: =VLOOKUP($A20,'Billing Determinants - Units'!$A$9:$B$1153,2,FALSE) -> 149075.4748 | J20: 149075.4748 | K20: =INDEX('Present Base Rates by Rate Code'!$A$4:$V$50,MATCH('GSLD(T)-2'!$B20,'Present Base Rates by Rate Code'!$A$4:$A$50,0),MATCH('GSLD(T)-2'!C20,'Present Base Rates by Rate Code'!$A$4:$V$4,0)) -> -8.2 | L20: =J20*K20 -> -1222418.893 | N20: 149075.4748 | O20: ='CDR Credit'!D13 -> -5.26 | P20: =N20*O20 -> -784136.9972 | Q20: =P20-L20 -> 438281.8958 | R20: 149075.4748 | S20: =O20 -> -5.26 | T20: =R20*S20 -> -784136.9972 | U20: =T20-P20 -> 0 | V20: =J20 -> 149075.4748 | W20: =S20 -> -5.26 | X20: =V20*W20 -> -784136.9972 | Z20: =W20/K20-1 -> -0.3585365854 | AA20: =W20-K20 -> 2.94
A21: Total | D21: 12 | E21: Total | L21: =SUM(L17:L20) -> 16638957.48 | P21: =SUM(P17:P20) -> 23830272.64 | T21: =SUM(T17:T20) -> 23810950.66 | X21: =SUM(X17:X20) -> 23840339.06 | AA21: =X21/L21-1 -> 0.4328024517 | AD21: Rate Calculated | AF21: =W15 -> 14.1 | AI21: =W28 -> 0.0138
D22: 13
A23: RATE SCHEDULE GSLDT-2 - 65 | D23: 14 | E23: RATE SCHEDULE GSLDT-2 - 65 | AD23: Difference | AF23: =AF21-AF19 -> -1.53 | AI23: =AI21-AI19 -> 0.00197
D24: 15 | AD24: % Difference | AF24: =AF23/AF19 -> -0.09788867562 | AI24: =AI23/AI19 -> 0.1665257819
A25: GSLDT-2 - 65Customer | B25: General Service Large Demand-TOU (GSLDT-2) | C25: Customer Charge | D25: 16 | E25: Customer | H25: =VLOOKUP($A25,'Billing Determinants - Units'!$A$9:$B$1153,2,FALSE) -> 830 | J25: 830 | K25: =INDEX('Present Base Rates by Rate Code'!$A$4:$V$50,MATCH('GSLD(T)-2'!$B25,'Present Base Rates by Rate Code'!$A$4:$A$50,0),MATCH('GSLD(T)-2'!C25,'Present Base Rates by Rate Code'!$A$4:$V$4,0)) -> 219.22 | L25: =J25*K25 -> 181952.6 | N25: 830 | O25: =O13 -> 275 | P25: =N25*O25 -> 228250 | Q25: =P25-L25 -> 46297.4 | R25: 830 | S25: =S13 -> 275 | T25: =R25*S25 -> 228250 | U25: =T25-P25 -> 0 | V25: =J25 -> 830 | W25: =S25 -> 275 | X25: =V25*W25 -> 228250 | Z25: =W25/K25-1 -> 0.2544475869 | AA25: =W25-K25 -> 55.78
A26: GSLDT-2 - 65Non-Fuel Energy | B26: General Service Large Demand-TOU (GSLDT-2) | D26: 17 | E26: Non-Fuel Energy
A27: GSLDT-2 - 65Non-Fuel Energy - On Peak | B27: General Service Large Demand-TOU (GSLDT-2) | C27: On-Peak Energy Charge $/kWh | D27: 18 | E27: Non-Fuel Energy - On Peak | H27: =VLOOKUP($A27,'Billing Determinants - Units'!$A$9:$B$1153,2,FALSE) -> 221251751 | J27: 221251751 | K27: =INDEX('Present Base Rates by Rate Code'!$A$4:$V$50,MATCH('GSLD(T)-2'!$B27,'Present Base Rates by Rate Code'!$A$4:$A$50,0),MATCH('GSLD(T)-2'!C27,'Present Base Rates by Rate Code'!$A$4:$V$4,0)) -> 0.02041 | L27: =J27*K27 -> 4515748.238 | N27: 221251751 | O27: =K27*(1+$Q$6) -> 0.02808390687 | P27: =N27*O27 -> 6213613.57 | R27: 221251751 | S27: =ROUND(O27*(1+$U$6),5) -> 0.02808 | T27: =R27*S27 -> 6212749.168 | V27: =J27 -> 221251751 | W27: =I114 -> 0.02785 | X27: =V27*W27 -> 6161861.265 | Z27: =W27/K27-1 -> 0.3645271926 | AA27: =W27-K27 -> 0.00744 | AD27: Note: The use of the percent increase method maintains the shift of
A28: GSLDT-2 - 65Non-Fuel Energy - Off Peak | B28: General Service Large Demand-TOU (GSLDT-2) | C28: Off-Peak Energy Charge $/kWh | D28: 19 | E28: Non-Fuel Energy - Off Peak | H28: =VLOOKUP($A28,'Billing Determinants - Units'!$A$9:$B$1153,2,FALSE) -> 726344212 | J28: 726344212 | K28: =INDEX('Present Base Rates by Rate Code'!$A$4:$V$50,MATCH('GSLD(T)-2'!$B28,'Present Base Rates by Rate Code'!$A$4:$A$50,0),MATCH('GSLD(T)-2'!C28,'Present Base Rates by Rate Code'!$A$4:$V$4,0)) -> 0.01003 | L28: =J28*K28 -> 7285232.446 | N28: 726344212 | O28: =K28*(1+$Q$6) -> 0.01380115561 | P28: =N28*O28 -> 10024389.49 | R28: 726344212 | S28: =ROUND(O28*(1+$U$6),5) -> 0.0138 | T28: =R28*S28 -> 10023550.13 | V28: =J28 -> 726344212 | W28: =I115 -> 0.0138 | X28: =V28*W28 -> 10023550.13 | Z28: =W28/K28-1 -> 0.3758723829 | AA28: =W28-K28 -> 0.00377 | AD28: some demand costs to energy charges approved in past rate cases
A29: GSLDT-2 - 65Demand | B29: General Service Large Demand-TOU (GSLDT-2) | C29: On-Peak Demand Charge $/kW | D29: 20 | E29: Demand | H29: =VLOOKUP($A29,'Billing Determinants - Units'!$A$9:$B$1153,2,FALSE) -> 1629697 | J29: 1629697 | K29: =INDEX('Present Base Rates by Rate Code'!$A$4:$V$50,MATCH('GSLD(T)-2'!$B29,'Present Base Rates by Rate Code'!$A$4:$A$50,0),MATCH('GSLD(T)-2'!C29,'Present Base Rates by Rate Code'!$A$4:$V$4,0)) -> 10.26 | L29: =J29*K29 -> 16720691.22 | N29: 1629697 | O29: =K29*(1+$Q$6) -> 14.11763275 | P29: =N29*O29 -> 23007463.75 | R29: 1629697 | S29: =ROUND(O29*(1+$U$6),1) -> 14.1 | T29: =R29*S29 -> 22978727.7 | V29: =J29 -> 1629697 | W29: =S29 -> 14.1 | X29: =V29*W29 -> 22978727.7 | Z29: =W29/K29-1 -> 0.3742690058 | AA29: =W29-K29 -> 3.84 | AD29: to limit impacts to low load factor customers.
A30: GSLDT-2 - 65Transformation Credit | B30: General Service Large Demand-TOU (GSLDT-2) | C30: Transformation Rider Credit ($/kW) | D30: 21 | E30: Transformation Credit | H30: =VLOOKUP($A30,'Billing Determinants - Units'!$A$9:$B$1153,2,FALSE) -> 338371 | J30: 338371 | K30: =INDEX('Present Base Rates by Rate Code'!$A$4:$V$50,MATCH('GSLD(T)-2'!$B30,'Present Base Rates by Rate Code'!$A$4:$A$50,0),MATCH('GSLD(T)-2'!C30,'Present Base Rates by Rate Code'!$A$4:$V$4,0)) -> -0.3 | L30: =J30*K30 -> -101511.3 | N30: 338371 | O30: =+O16 -> -0.24 | P30: =N30*O30 -> -81209.04 | Q30: =P30-L30 -> 20302.26 | R30: 338371 | S30: =+S16 -> -0.24 | T30: =R30*S30 -> -81209.04 | U30: =T30-P30 -> 0 | V30: =J30 -> 338371 | W30: =S30 -> -0.24 | X30: =V30*W30 -> -81209.04 | Z30: =W30/K30-1 -> -0.2 | AA30: =W30-K30 -> 0.06
A31: GSLDT-2 - 65Subtotal | B31: General Service Large Demand-TOU (GSLDT-2) | D31: 22 | E31: Subtotal | L31: =SUM(L25:L30) -> 28602113.2 | P31: =SUM(P25:P30) -> 39392507.77 | T31: =SUM(T25:T30) -> 39362067.95 | X31: =SUM(X25:X30) -> 39311180.05 | AA31: =X31/L31-1 -> 0.3744152318
A32: GSLDT-2 - 65CDR Credit | B32: General Service Large Demand-TOU (GSLDT-2) | D32: 23 | E32: CDR Credit
A33: GSLDT-2 - 65Adder | B33: General Service Large Demand-TOU (GSLDT-2) | C33: Commercial / Industrial Demand Rider (CDR) Adder per Customer | D33: 24 | E33: Adder | H33: =VLOOKUP($A33,'Billing Determinants - Units'!$A$9:$B$1153,2,FALSE) -> 132 | J33: 132 | K33: =INDEX('Present Base Rates by Rate Code'!$A$4:$V$50,MATCH('GSLD(T)-2'!$B33,'Present Base Rates by Rate Code'!$A$4:$A$50,0),MATCH('GSLD(T)-2'!C33,'Present Base Rates by Rate Code'!$A$4:$V$4,0)) -> 56.21 | L33: =J33*K33 -> 7419.72 | N33: 132 | O33: =O19 -> 75 | P33: =N33*O33 -> 9900 | Q33: =P33-L33 -> 2480.28 | R33: 132 | S33: =S19 -> 75 | T33: =R33*S33 -> 9900 | U33: =T33-P33 -> 0 | V33: =J33 -> 132 | W33: =S33 -> 75 | X33: =V33*W33 -> 9900 | Z33: =W33/K33-1 -> 0.3342821562 | AA33: =W33-K33 -> 18.79
A34: GSLDT-2 - 65Credit | B34: General Service Large Demand-TOU (GSLDT-2) | C34: Commercial / Industrial Demand Rider Credit (CDR) ($/kW) | D34: 25 | E34: Credit | H34: =VLOOKUP($A34,'Billing Determinants - Units'!$A$9:$B$1153,2,FALSE) -> 208403.2462 | J34: 208403.2462 | K34: =INDEX('Present Base Rates by Rate Code'!$A$4:$V$50,MATCH('GSLD(T)-2'!$B34,'Present Base Rates by Rate Code'!$A$4:$A$50,0),MATCH('GSLD(T)-2'!C34,'Present Base Rates by Rate Code'!$A$4:$V$4,0)) -> -8.2 | L34: =J34*K34 -> -1708906.619 | N34: 208403.2462 | O34: =O20 -> -5.26 | P34: =N34*O34 -> -1096201.075 | Q34: =P34-L34 -> 612705.5438 | R34: 208403.2462 | S34: =S20 -> -5.26 | T34: =R34*S34 -> -1096201.075 | U34: =T34-P34 -> 0 | V34: =J34 -> 208403.2462 | W34: =S34 -> -5.26 | X34: =V34*W34 -> -1096201.075 | Z34: =W34/K34-1 -> -0.3585365854 | AA34: =W34-K34 -> 2.94
A35: Total | D35: 26 | E35: Total | L35: =SUM(L31:L34) -> 26900626.31 | P35: =SUM(P31:P34) -> 38306206.69 | T35: =SUM(T31:T34) -> 38275766.88 | X35: =SUM(X31:X34) -> 38224878.98 | AA35: =X35/L35-1 -> 0.4209661345
D36: 27
A37: RATE SCHEDULE CS-2 - 71 | D37: 28 | E37: RATE SCHEDULE CS-2 - 71
D38: 29
A39: CS-2 - 71Customer | B39: Curtailable Service (CS-2) | C39: Customer Charge | D39: 30 | E39: Customer | H39: =VLOOKUP($A39,'Billing Determinants - Units'!$A$9:$B$1153,2,FALSE) -> 12 | J39: 12 | K39: =INDEX('Present Base Rates by Rate Code'!$A$4:$V$50,MATCH('GSLD(T)-2'!$B39,'Present Base Rates by Rate Code'!$A$4:$A$50,0),MATCH('GSLD(T)-2'!C39,'Present Base Rates by Rate Code'!$A$4:$V$4,0)) -> 247.32 | L39: =J39*K39 -> 2967.84 | N39: 12 | O39: =O25+25 -> 300 | P39: =N39*O39 -> 3600 | Q39: =P39-L39 -> 632.16 | R39: 12 | S39: =ROUND(O39,0) -> 300 | T39: =R39*S39 -> 3600 | U39: =T39-P39 -> 0 | V39: =J39 -> 12 | W39: =S39 -> 300 | X39: =V39*W39 -> 3600 | Z39: =+W39/K39-1 -> 0.2130033964 | AA39: =W39-K39 -> 52.68
A40: CS-2 - 71Non-Fuel Energy | B40: Curtailable Service (CS-2) | C40: Energy Charges $/kWh | D40: 31 | E40: Non-Fuel Energy | H40: =VLOOKUP($A40,'Billing Determinants - Units'!$A$9:$B$1153,2,FALSE) -> 24772973 | J40: 24772973 | K40: =INDEX('Present Base Rates by Rate Code'!$A$4:$V$50,MATCH('GSLD(T)-2'!$B40,'Present Base Rates by Rate Code'!$A$4:$A$50,0),MATCH('GSLD(T)-2'!C40,'Present Base Rates by Rate Code'!$A$4:$V$4,0)) -> 0.01287 | L40: =J40*K40 -> 318828.1625 | N40: 24772973 | O40: =O14 -> 0.01770896038 | P40: =N40*O40 -> 438703.5974 | R40: 24772973 | S40: =S14 -> 0.01771 | T40: =R40*S40 -> 438729.3518 | V40: =J40 -> 24772973 | W40: =W14 -> 0.01777 | X40: =V40*W40 -> 440215.7302 | Z40: =+W40/K40-1 -> 0.3807303807 | AA40: =W40-K40 -> 0.0049
A41: CS-2 - 71Demand | B41: Curtailable Service (CS-2) | C41: Demand Charge $/kW | D41: 32 | E41: Demand | H41: =VLOOKUP($A41,'Billing Determinants - Units'!$A$9:$B$1153,2,FALSE) -> 53716 | J41: 53716 | K41: =INDEX('Present Base Rates by Rate Code'!$A$4:$V$50,MATCH('GSLD(T)-2'!$B41,'Present Base Rates by Rate Code'!$A$4:$A$50,0),MATCH('GSLD(T)-2'!C41,'Present Base Rates by Rate Code'!$A$4:$V$4,0)) -> 10.26 | L41: =J41*K41 -> 551126.16 | N41: 53716 | O41: =O15 -> 14.11763275 | P41: =N41*O41 -> 758342.761 | R41: 53716 | S41: =S15 -> 14.1 | T41: =R41*S41 -> 757395.6 | V41: =J41 -> 53716 | W41: =S41 -> 14.1 | X41: =V41*W41 -> 757395.6 | Z41: =+W41/K41-1 -> 0.3742690058 | AA41: =W41-K41 -> 3.84
A42: CS-2 - 71Transformation Credit | B42: Curtailable Service (CS-2) | C42: Transformation Rider Credit ($/kW) | D42: 33 | E42: Transformation Credit | H42: =VLOOKUP($A42,'Billing Determinants - Units'!$A$9:$B$1153,2,FALSE) -> 39300 | J42: 39300 | K42: =INDEX('Present Base Rates by Rate Code'!$A$4:$V$50,MATCH('GSLD(T)-2'!$B42,'Present Base Rates by Rate Code'!$A$4:$A$50,0),MATCH('GSLD(T)-2'!C42,'Present Base Rates by Rate Code'!$A$4:$V$4,0)) -> -0.3 | L42: =J42*K42 -> -11790 | N42: 39300 | O42: =O30 -> -0.24 | P42: =N42*O42 -> -9432 | Q42: =P42-L42 -> 2358 | R42: 39300 | S42: =S30 -> -0.24 | T42: =R42*S42 -> -9432 | U42: =T42-P42 -> 0 | V42: =J42 -> 39300 | W42: =S42 -> -0.24 | X42: =V42*W42 -> -9432 | Z42: =W42/K42-1 -> -0.2 | AA42: =W42-K42 -> 0.06
A43: CS-2 - 71Curtailable Credit | B43: Curtailable Service (CS-2) | C43: Curtailment Credit ($/kW) | D43: 34 | E43: Curtailable Credit | H43: =-VLOOKUP($A43,'Billing Determinants - Units'!$A$9:$B$1153,2,FALSE) -> 31367 | J43: 31367 | K43: =INDEX('Present Base Rates by Rate Code'!$A$4:$V$50,MATCH('GSLD(T)-2'!$B43,'Present Base Rates by Rate Code'!$A$4:$A$50,0),MATCH('GSLD(T)-2'!C43,'Present Base Rates by Rate Code'!$A$4:$V$4,0)) -> -1.93 | L43: =J43*K43 -> -60538.31 | N43: 31367 | O43: =K43 -> -1.93 | P43: =N43*O43 -> -60538.31 | Q43: =P43-L43 -> 0 | R43: 31367 | S43: =O43 -> -1.93 | T43: =R43*S43 -> -60538.31 | U43: =T43-P43 -> 0 | V43: =J43 -> 31367 | W43: =S43 -> -1.93 | X43: =V43*W43 -> -60538.31 | Z43: =W43/K43-1 -> 0 | AA43: =W43-K43 -> 0
A44: Total | B44: Curtailable Service (CS-2) | D44: 35 | E44: Total | L44: =SUM(L39:L43) -> 800593.8525 | P44: =SUM(P39:P43) -> 1130676.048 | T44: =SUM(T39:T43) -> 1129754.642 | X44: =SUM(X39:X43) -> 1131241.02 | AA44: =X44/L44-1 -> 0.4130023815
D45: 36
A46: RATE SCHEDULE CST-2 - 75 | D46: 37 | E46: RATE SCHEDULE CST-2 - 75
D47: 38
A48: CST-2 - 75Customer | B48: Curtailable Service-TOU (CST-2) | C48: Customer Charge | D48: 39 | E48: Customer | H48: =VLOOKUP($A48,'Billing Determinants - Units'!$A$9:$B$1153,2,FALSE) -> 36 | J48: 36 | K48: =INDEX('Present Base Rates by Rate Code'!$A$4:$V$50,MATCH('GSLD(T)-2'!$B48,'Present Base Rates by Rate Code'!$A$4:$A$50,0),MATCH('GSLD(T)-2'!C48,'Present Base Rates by Rate Code'!$A$4:$V$4,0)) -> 247.32 | L48: =J48*K48 -> 8903.52 | N48: 36 | O48: =O39 -> 300 | P48: =N48*O48 -> 10800 | Q48: =P48-L48 -> 1896.48 | R48: 36 | S48: =O48 -> 300 | T48: =R48*S48 -> 10800 | U48: =T48-P48 -> 0 | V48: =J48 -> 36 | W48: =S48 -> 300 | X48: =V48*W48 -> 10800 | Z48: =+W48/K48-1 -> 0.2130033964 | AA48: =W48-K48 -> 52.68
A49: CST-2 - 75Non-Fuel Energy | B49: Curtailable Service-TOU (CST-2) | D49: 40 | E49: Non-Fuel Energy
A50: CST-2 - 75Non-Fuel Energy - On Peak | B50: Curtailable Service-TOU (CST-2) | C50: On-Peak Energy Charge $/kWh | D50: 41 | E50: Non-Fuel Energy - On Peak | H50: =VLOOKUP($A50,'Billing Determinants - Units'!$A$9:$B$1153,2,FALSE) -> 6488101 | J50: 6488101 | K50: =INDEX('Present Base Rates by Rate Code'!$A$4:$V$50,MATCH('GSLD(T)-2'!$B50,'Present Base Rates by Rate Code'!$A$4:$A$50,0),MATCH('GSLD(T)-2'!C50,'Present Base Rates by Rate Code'!$A$4:$V$4,0)) -> 0.02041 | L50: =J50*K50 -> 132422.1414 | N50: 6488101 | O50: =O27 -> 0.02808390687 | P50: =N50*O50 -> 182211.2243 | R50: 6488101 | S50: =S27 -> 0.02808 | T50: =R50*S50 -> 182185.8761 | V50: =J50 -> 6488101 | W50: =W27 -> 0.02785 | X50: =V50*W50 -> 180693.6129 | Z50: =+W50/K50-1 -> 0.3645271926 | AA50: =W50-K50 -> 0.00744
A51: CST-2 - 75Non-Fuel Energy - Off Peak | B51: Curtailable Service-TOU (CST-2) | C51: Off-Peak Energy Charge $/kWh | D51: 42 | E51: Non-Fuel Energy - Off Peak | H51: =VLOOKUP($A51,'Billing Determinants - Units'!$A$9:$B$1153,2,FALSE) -> 22700189 | J51: 22700189 | K51: =INDEX('Present Base Rates by Rate Code'!$A$4:$V$50,MATCH('GSLD(T)-2'!$B51,'Present Base Rates by Rate Code'!$A$4:$A$50,0),MATCH('GSLD(T)-2'!C51,'Present Base Rates by Rate Code'!$A$4:$V$4,0)) -> 0.01003 | L51: =J51*K51 -> 227682.8957 | N51: 22700189 | O51: =O28 -> 0.01380115561 | P51: =N51*O51 -> 313288.8407 | R51: 22700189 | S51: =S28 -> 0.0138 | T51: =R51*S51 -> 313262.6082 | V51: =J51 -> 22700189 | W51: =W28 -> 0.0138 | X51: 313262.6082 | Z51: =+W51/K51-1 -> 0.3758723829 | AA51: 0.00377
A52: CST-2 - 75Demand | B52: Curtailable Service-TOU (CST-2) | C52: On-Peak Demand Charge $/kW | D52: 43 | E52: Demand | H52: =VLOOKUP($A52,'Billing Determinants - Units'!$A$9:$B$1153,2,FALSE) -> 65705 | J52: 65705 | K52: =INDEX('Present Base Rates by Rate Code'!$A$4:$V$50,MATCH('GSLD(T)-2'!$B52,'Present Base Rates by Rate Code'!$A$4:$A$50,0),MATCH('GSLD(T)-2'!C52,'Present Base Rates by Rate Code'!$A$4:$V$4,0)) -> 10.26 | L52: =J52*K52 -> 674133.3 | N52: 65705 | O52: =O29 -> 14.11763275 | P52: =N52*O52 -> 927599.0601 | R52: 65705 | S52: =S29 -> 14.1 | T52: =R52*S52 -> 926440.5 | V52: =J52 -> 65705 | W52: =S52 -> 14.1 | X52: 926440.5 | Z52: =+W52/K52-1 -> 0.3742690058 | AA52: 3.84
A53: CST-2 - 75Transformation Credit | B53: Curtailable Service-TOU (CST-2) | C53: Transformation Rider Credit ($/kW) | D53: 44 | E53: Transformation Credit | H53: =VLOOKUP($A53,'Billing Determinants - Units'!$A$9:$B$1153,2,FALSE) -> 18137 | J53: 18137 | K53: =INDEX('Present Base Rates by Rate Code'!$A$4:$V$50,MATCH('GSLD(T)-2'!$B53,'Present Base Rates by Rate Code'!$A$4:$A$50,0),MATCH('GSLD(T)-2'!C53,'Present Base Rates by Rate Code'!$A$4:$V$4,0)) -> -0.3 | L53: =J53*K53 -> -5441.1 | N53: 18137 | O53: =O42 -> -0.24 | P53: =N53*O53 -> -4352.88 | Q53: =P53-L53 -> 1088.22 | R53: 18137 | S53: =O53 -> -0.24 | T53: =R53*S53 -> -4352.88 | U53: =T53-P53 -> 0 | V53: =J53 -> 18137 | W53: =S53 -> -0.24 | X53: -4352.88 | Z53: =W53/K53-1 -> -0.2 | AA53: 0.06
A54: CST-2 - 75Curtailable Credit | B54: Curtailable Service-TOU (CST-2) | C54: Curtailment Credit ($/kW) | D54: 45 | E54: Curtailable Credit | H54: =-VLOOKUP($A54,'Billing Determinants - Units'!$A$9:$B$1153,2,FALSE) -> 36157 | J54: 36157 | K54: =INDEX('Present Base Rates by Rate Code'!$A$4:$V$50,MATCH('GSLD(T)-2'!$B54,'Present Base Rates by Rate Code'!$A$4:$A$50,0),MATCH('GSLD(T)-2'!C54,'Present Base Rates by Rate Code'!$A$4:$V$4,0)) -> -1.93 | L54: =J54*K54 -> -69783.01 | N54: 36157 | O54: =K54 -> -1.93 | P54: =N54*O54 -> -69783.01 | Q54: =P54-L54 -> 0 | R54: 36157 | S54: =O54 -> -1.93 | T54: =R54*S54 -> -69783.01 | U54: =T54-P54 -> 0 | V54: =J54 -> 36157 | W54: =S54 -> -1.93 | X54: -69783.01 | Z54: =W54/K54-1 -> 0 | AA54: 0
A55: Total | B55: Curtailable Service-TOU (CST-2) | D55: 46 | E55: Total | L55: =SUM(L48:L54) -> 967917.7471 | P55: =SUM(P48:P54) -> 1359763.235 | T55: =SUM(T48:T54) -> 1358553.094 | X55: =SUM(X48:X54) -> 1357060.831 | AA55: =X55/L55-1 -> 0.4020414804
D56: 47
A57: RATE SCHEDULE HLFT - 165 | D57: 48 | E57: RATE SCHEDULE HLFT - 165
D58: 49 | H58: = or > 2,000 kW | V58: =J58 -> 0
A59: HLFT - 165Customer | B59: High Load Factor-TOU (2,000 kW or more) | C59: Customer Charge | D59: 50 | E59: Customer | H59: =VLOOKUP($A59,'Billing Determinants - Units'!$A$9:$B$1153,2,FALSE) -> 420 | J59: 420 | K59: =INDEX('Present Base Rates by Rate Code'!$A$4:$V$50,MATCH('GSLD(T)-2'!$B59,'Present Base Rates by Rate Code'!$A$4:$A$50,0),MATCH('GSLD(T)-2'!C59,'Present Base Rates by Rate Code'!$A$4:$V$4,0)) -> 219.22 | L59: =J59*K59 -> 92072.4 | N59: 420 | O59: =O25 -> 275 | P59: =N59*O59 -> 115500 | Q59: =P59-L59 -> 23427.6 | R59: 420 | S59: =ROUND(O59,0) -> 275 | T59: =R59*S59 -> 115500 | U59: =T59-P59 -> 0 | V59: 420 | W59: =S59 -> 275 | X59: =V59*W59 -> 115500 | Z59: =+W59/K59-1 -> 0.2544475869 | AA59: =W59-K59 -> 55.78
A60: HLFT - 165Non-Fuel Energy - On Peak | B60: High Load Factor-TOU (2,000 kW or more) | C60: On-Peak Energy Charge $/kWh | D60: 51 | E60: Non-Fuel Energy - On Peak | H60: =VLOOKUP($A60,'Billing Determinants - Units'!$A$9:$B$1153,2,FALSE) -> 224711506 | J60: 224711506 | K60: =INDEX('Present Base Rates by Rate Code'!$A$4:$V$50,MATCH('GSLD(T)-2'!$B60,'Present Base Rates by Rate Code'!$A$4:$A$50,0),MATCH('GSLD(T)-2'!C60,'Present Base Rates by Rate Code'!$A$4:$V$4,0)) -> 0.0081 | L60: 1820163.199 | N60: 224711506 | O60: =K60*(1+$Q$6) -> 0.01114549954 | P60: 2504521.987 | R60: 224711506 | S60: =ROUND(O60*(1+$U$6),5) -> 0.01115 | T60: 2505533.292 | V60: 224711506 | W60: =J136 -> 0.01113 | X60: 2501039.062 | Z60: =+W60/K60-1 -> 0.3740740741 | AA60: 0.00303
A61: HLFT - 165Non-Fuel Energy - Off Peak | B61: High Load Factor-TOU (2,000 kW or more) | C61: Off-Peak Energy Charge $/kWh | D61: 52 | E61: Non-Fuel Energy - Off Peak | H61: =VLOOKUP($A61,'Billing Determinants - Units'!$A$9:$B$1153,2,FALSE) -> 648440291 | J61: 648440291 | K61: =INDEX('Present Base Rates by Rate Code'!$A$4:$V$50,MATCH('GSLD(T)-2'!$B61,'Present Base Rates by Rate Code'!$A$4:$A$50,0),MATCH('GSLD(T)-2'!C61,'Present Base Rates by Rate Code'!$A$4:$V$4,0)) -> 0.0081 | L61: 5252366.357 | N61: 648440291 | O61: =K61*(1+$Q$6) -> 0.01114549954 | P61: 7227190.966 | R61: 648440291 | S61: =ROUND(O61*(1+$U$6),5) -> 0.01115 | T61: 7230109.245 | V61: 648440291 | W61: =J137 -> 0.01113 | X61: 7217140.439 | Z61: =+W61/K61-1 -> 0.3740740741 | AA61: 0.00303
A62: HLFT - 165Demand - On-Peak | B62: High Load Factor-TOU (2,000 kW or more) | C62: On-Peak Demand Charge $/kW | D62: 53 | E62: Demand - On-Peak | H62: =VLOOKUP($A62,'Billing Determinants - Units'!$A$9:$B$1153,2,FALSE) -> 1421334 | J62: 1421334 | K62: =INDEX('Present Base Rates by Rate Code'!$A$4:$V$50,MATCH('GSLD(T)-2'!$B62,'Present Base Rates by Rate Code'!$A$4:$A$50,0),MATCH('GSLD(T)-2'!C62,'Present Base Rates by Rate Code'!$A$4:$V$4,0)) -> 10.49 | L62: 14909793.66 | N62: 1421334 | O62: =K62*(1+$Q$6) -> 14.4341099 | P62: 20515691.16 | R62: 1421334 | S62: =ROUND(O62*(1+$U$6),1) -> 14.4 | T62: 20467209.6 | V62: 1421334 | W62: =S62 -> 14.4 | X62: 20467209.6 | Z62: =+W62/K62-1 -> 0.372735939 | AA62: 3.91
A63: HLFT - 165Demand - Maximum | B63: High Load Factor-TOU (2,000 kW or more) | C63: Maximum Demand Charge $/kW | D63: 54 | E63: Demand - Maximum | H63: =VLOOKUP($A63,'Billing Determinants - Units'!$A$9:$B$1153,2,FALSE) -> 1453443 | J63: 1453443 | K63: =INDEX('Present Base Rates by Rate Code'!$A$4:$V$50,MATCH('GSLD(T)-2'!$B63,'Present Base Rates by Rate Code'!$A$4:$A$50,0),MATCH('GSLD(T)-2'!C63,'Present Base Rates by Rate Code'!$A$4:$V$4,0)) -> 2.24 | L63: 3255712.32 | N63: 1453443 | O63: =K63*(1+$Q$6) -> 3.082212219 | P63: 4479819.774 | R63: 1453443 | S63: =ROUND(O63*(1+$U$6),1) -> 3.1 | T63: 4505673.3 | V63: 1453443 | W63: =S63 -> 3.1 | X63: 4505673.3 | Z63: =+W63/K63-1 -> 0.3839285714 | AA63: 0.86
A64: HLFT - 165Transformation Credit | B64: High Load Factor-TOU (2,000 kW or more) | C64: Transformation Rider Credit ($/kW) | D64: 55 | E64: Transformation Credit | H64: =VLOOKUP($A64,'Billing Determinants - Units'!$A$9:$B$1153,2,FALSE) -> 179012 | J64: 179012 | K64: =INDEX('Present Base Rates by Rate Code'!$A$4:$V$50,MATCH('GSLD(T)-2'!$B64,'Present Base Rates by Rate Code'!$A$4:$A$50,0),MATCH('GSLD(T)-2'!C64,'Present Base Rates by Rate Code'!$A$4:$V$4,0)) -> -0.3 | L64: -53703.6 | N64: 179012 | O64: =O16 -> -0.24 | P64: -42962.88 | Q64: =P64-L64 -> 10740.72 | R64: 179012 | S64: =S16 -> -0.24 | T64: -42962.88 | U64: =T64-P64 -> 0 | V64: 179012 | W64: =S64 -> -0.24 | X64: -42962.88 | Z64: =W64/K64-1 -> -0.2 | AA64: 0.06
B65: High Load Factor-TOU (2,000 kW or more) | D65: 56 | E65: Subtotal | L65: =SUM(L59:L64) -> 25276404.34 | P65: =SUM(P59:P64) -> 34799761.01 | T65: =SUM(T59:T64) -> 34781062.56 | X65: =SUM(X59:X64) -> 34763599.52 | AA65: =X65/L65-1 -> 0.3753380053
B66: High Load Factor-TOU (2,000 kW or more) | D66: 57 | E66: CDR Credit
A67: HLFT - 165Adder | B67: High Load Factor-TOU (2,000 kW or more) | C67: Commercial / Industrial Demand Rider (CDR) Adder per Customer | D67: 58 | E67: Adder | H67: =VLOOKUP($A67,'Billing Determinants - Units'!$A$9:$B$1153,2,FALSE) -> 24 | J67: 24 | K67: =INDEX('Present Base Rates by Rate Code'!$A$4:$V$50,MATCH('GSLD(T)-2'!$B67,'Present Base Rates by Rate Code'!$A$4:$A$50,0),MATCH('GSLD(T)-2'!C67,'Present Base Rates by Rate Code'!$A$4:$V$4,0)) -> 56.21 | L67: =J67*K67 -> 1349.04 | N67: 24 | O67: =O33 -> 75 | P67: =N67*O67 -> 1800 | Q67: =P67-L67 -> 450.96 | R67: 24 | S67: =S33 -> 75 | T67: =R67*S67 -> 1800 | U67: =T67-P67 -> 0 | V67: =J67 -> 24 | W67: =S67 -> 75 | X67: =V67*W67 -> 1800 | Z67: =W67/K67-1 -> 0.3342821562 | AA67: =W67-K67 -> 18.79
A68: HLFT - 165Credit | B68: High Load Factor-TOU (2,000 kW or more) | C68: Commercial / Industrial Demand Rider Credit (CDR) ($/kW) | D68: 59 | E68: Credit | H68: =VLOOKUP($A68,'Billing Determinants - Units'!$A$9:$B$1153,2,FALSE) -> 18162.48248 | J68: 18162.48248 | K68: =INDEX('Present Base Rates by Rate Code'!$A$4:$V$50,MATCH('GSLD(T)-2'!$B68,'Present Base Rates by Rate Code'!$A$4:$A$50,0),MATCH('GSLD(T)-2'!C68,'Present Base Rates by Rate Code'!$A$4:$V$4,0)) -> -8.2 | L68: =J68*K68 -> -148932.3564 | N68: 18162.48248 | O68: =O34 -> -5.26 | P68: =N68*O68 -> -95534.65786 | Q68: =P68-L68 -> 53397.6985 | R68: 18162.48248 | S68: =S34 -> -5.26 | T68: =R68*S68 -> -95534.65786 | U68: =T68-P68 -> 0 | V68: =J68 -> 18162.48248 | W68: =S68 -> -5.26 | X68: =V68*W68 -> -95534.65786 | Z68: =W68/K68-1 -> -0.3585365854 | AA68: =W68-K68 -> 2.94
A69: Total | D69: 60 | E69: Total | L69: =SUM(L65:L68) -> 25128821.02 | P69: =SUM(P65:P68) -> 34706026.35 | T69: =SUM(T65:T68) -> 34687327.9 | X69: =SUM(X65:X68) -> 34669864.86 | AA69: =X69/L69-1 -> 0.3796852959
D70: 61
A71: RATE SCHEDULE SDTR - 265 | D71: 62 | E71: RATE SCHEDULE SDTR - 265
D72: 63 | H72: Option A - GSLD-2 | V72: =J72 -> 0
A73: SDTR - 265Customer | B73: Seasonal Demand TOU Rider (SDTR) (2,000 kW and greater) Option A Summer | C73: Customer Charge | D73: 64 | E73: Customer | H73: =VLOOKUP($A73,'Billing Determinants - Units'!$A$9:$B$1153,2,FALSE) -> 48 | J73: 48 | K73: =INDEX('Present Base Rates by Rate Code'!$A$4:$V$50,MATCH('GSLD(T)-2'!$B73,'Present Base Rates by Rate Code'!$A$4:$A$50,0),MATCH('GSLD(T)-2'!C73,'Present Base Rates by Rate Code'!$A$4:$V$4,0)) -> 219.22 | L73: =J73*K73 -> 10522.56 | N73: 48 | O73: =O59 -> 275 | P73: =N73*O73 -> 13200 | Q73: =P73-L73 -> 2677.44 | R73: 48 | S73: =ROUND(O73,0) -> 275 | T73: =R73*S73 -> 13200 | U73: =T73-P73 -> 0 | V73: 48 | W73: =S73 -> 275 | X73: =V73*W73 -> 13200 | Z73: =+W73/K73-1 -> 0.2544475869 | AA73: =W73-K73 -> 55.78
A74: SDTR - 265Non-Fuel Energy - Seasonal On Peak | B74: Seasonal Demand TOU Rider (SDTR) (2,000 kW and greater) Option A Summer | C74: On-Peak Energy Charge $/kWh | D74: 65 | E74: Non-Fuel Energy - Seasonal On Peak | H74: =VLOOKUP($A74,'Billing Determinants - Units'!$A$9:$B$1153,2,FALSE) -> 560761 | J74: 560761 | K74: =INDEX('Present Base Rates by Rate Code'!$A$4:$V$50,MATCH('GSLD(T)-2'!$B74,'Present Base Rates by Rate Code'!$A$4:$A$50,0),MATCH('GSLD(T)-2'!C74,'Present Base Rates by Rate Code'!$A$4:$V$4,0)) -> 0.04302 | L74: 24123.93822 | N74: 560761 | O74: =K74*(1+$Q$6) -> 0.05919498646 | P74: 33194.2398 | R74: 560761 | S74: =ROUND(O74*(1+$U$6),5) -> 0.05919 | T74: 33191.44359 | V74: 560761 | W74: ='SDTR Workpaper'!E42 -> 0.05683 | X74: 31868.04763 | Z74: 0.3210134821 | AA74: 0.01381
A75: SDTR - 265Non-Fuel Energy - Seasonal Off Peak | B75: Seasonal Demand TOU Rider (SDTR) (2,000 kW and greater) Option A Summer | C75: Off-Peak Energy Charge $/kWh | D75: 66 | E75: Non-Fuel Energy - Seasonal Off Peak | H75: =VLOOKUP($A75,'Billing Determinants - Units'!$A$9:$B$1153,2,FALSE) -> 6657962 | J75: 6657962 | K75: =INDEX('Present Base Rates by Rate Code'!$A$4:$V$50,MATCH('GSLD(T)-2'!$B75,'Present Base Rates by Rate Code'!$A$4:$A$50,0),MATCH('GSLD(T)-2'!C75,'Present Base Rates by Rate Code'!$A$4:$V$4,0)) -> 0.00931 | L75: 61985.62622 | N75: 6657962 | O75: =K75*(1+$Q$6) -> 0.01281044454 | P75: 85291.45292 | R75: 6657962 | S75: =ROUND(O75*(1+$U$6),5) -> 0.01281 | T75: 85288.49322 | V75: 6657962 | W75: ='SDTR Workpaper'!E43 -> 0.0138 | X75: 91879.8756 | Z75: 0.4822771214 | AA75: 0.00449
A76: SDTR - 265Non-Fuel Energy - Non-Seasonal | B76: Seasonal Demand TOU Rider (SDTR) (2,000 kW and greater) Option A Winter | C76: Energy Charges $/kWh | D76: =D75+1 -> 67 | E76: Non-Fuel Energy - Non-Seasonal | H76: =VLOOKUP($A76,'Billing Determinants - Units'!$A$9:$B$1153,2,FALSE) -> 29208396 | J76: =H76+I76 -> 29208396 | K76: =INDEX('Present Base Rates by Rate Code'!$A$4:$V$50,MATCH('GSLD(T)-2'!$B76,'Present Base Rates by Rate Code'!$A$4:$A$50,0),MATCH('GSLD(T)-2'!C76,'Present Base Rates by Rate Code'!$A$4:$V$4,0)) -> 0.01287 | L76: 375912.0565 | N76: =J76 -> 29208396 | O76: =K76*(1+$Q$6) -> 0.01770896038 | P76: 517250.3276 | R76: =N76 -> 29208396 | S76: =ROUND(O76*(1+$U$6),5) -> 0.01771 | T76: 517280.6932 | V76: 29208396 | W76: ='SDTR Workpaper'!E45 -> 0.01777 | X76: 519033.1969 | Z76: 0.3807303807 | AA76: 0.0049
A77: SDTR - 265Demand - Seasonal On-Peak | B77: Seasonal Demand TOU Rider (SDTR) (2,000 kW and greater) Option A Summer | C77: On-Peak Demand Charge $/kW | D77: 68 | E77: Demand - Seasonal On-Peak | H77: =VLOOKUP($A77,'Billing Determinants - Units'!$A$9:$B$1153,2,FALSE) -> 15449 | J77: 15449 | K77: =INDEX('Present Base Rates by Rate Code'!$A$4:$V$50,MATCH('GSLD(T)-2'!$B77,'Present Base Rates by Rate Code'!$A$4:$A$50,0),MATCH('GSLD(T)-2'!C77,'Present Base Rates by Rate Code'!$A$4:$V$4,0)) -> 11.27 | L77: 174110.23 | N77: 15449 | O77: =K77*(1+$Q$6) -> 15.50738023 | P77: 239573.5171 | R77: 15449 | S77: =ROUND(O77*(1+$U$6),1) -> 15.5 | T77: 239459.5 | V77: 15449 | W77: ='SDTR Workpaper'!E39 -> 14.2 | X77: 219375.8 | Z77: 0.2599822538 | AA77: 2.93
A78: SDTR - 265Demand - Non-Seasonal | B78: Seasonal Demand TOU Rider (SDTR) (2,000 kW and greater) Option A Winter | C78: Demand Charge $/kW | D78: 69 | E78: Demand - Non-Seasonal | H78: =VLOOKUP($A78,'Billing Determinants - Units'!$A$9:$B$1153,2,FALSE) -> 71610 | J78: 71610 | K78: =INDEX('Present Base Rates by Rate Code'!$A$4:$V$50,MATCH('GSLD(T)-2'!$B78,'Present Base Rates by Rate Code'!$A$4:$A$50,0),MATCH('GSLD(T)-2'!C78,'Present Base Rates by Rate Code'!$A$4:$V$4,0)) -> 10.03 | L78: 718248.3 | N78: 71610 | O78: =K78*(1+$Q$6) -> 13.80115561 | P78: 988300.7529 | R78: 71610 | S78: =ROUND(O78*(1+$U$6),1) -> 13.8 | T78: 988218 | V78: 71610 | W78: ='SDTR Workpaper'!E40 -> 14.1 | X78: 1009701 | Z78: 0.405782652 | AA78: 4.07
A79: SDTR - 265Transformation Credit | B79: Seasonal Demand TOU Rider (SDTR) (2,000 kW and greater) Option A Summer | C79: Transformation Rider Credit ($/kW) | D79: 70 | E79: Transformation Credit | H79: =VLOOKUP($A79,'Billing Determinants - Units'!$A$9:$B$1153,2,FALSE) -> 4534 | J79: 4534 | K79: =INDEX('Present Base Rates by Rate Code'!$A$4:$V$50,MATCH('GSLD(T)-2'!$B79,'Present Base Rates by Rate Code'!$A$4:$A$50,0),MATCH('GSLD(T)-2'!C79,'Present Base Rates by Rate Code'!$A$4:$V$4,0)) -> -0.3 | L79: -1360.2 | N79: 4534 | O79: =+O16 -> -0.24 | P79: -1088.16 | Q79: =P79-L79 -> 272.04 | R79: 4534 | S79: =+S16 -> -0.24 | T79: -1088.16 | U79: =T79-P79 -> 0 | V79: 4534 | W79: =S79 -> -0.24 | X79: -1088.16 | Z79: =W79/K79-1 -> -0.2 | AA79: 0.06
A80: SDTR - 265Subtotal | D80: 71 | E80: Subtotal | L80: =SUM(L73:L79) -> 1363542.511 | P80: =SUM(P73:P79) -> 1875722.13 | T80: =SUM(T73:T79) -> 1875549.97 | X80: =SUM(X73:X79) -> 1883969.76 | AA80: =X80/L80-1 -> 0.3816729182
A81: SDTR - 265CDR Credit | D81: 72 | E81: CDR Credit
A82: SDTR - 265Adder | B82: Seasonal Demand TOU Rider (SDTR) (2,000 kW and greater) Option A Summer | C82: Commercial / Industrial Demand Rider (CDR) Adder per Customer | D82: 73 | E82: Adder | H82: =VLOOKUP($A82,'Billing Determinants - Units'!$A$9:$B$1153,2,FALSE) -> 0 | K82: =INDEX('Present Base Rates by Rate Code'!$A$4:$V$50,MATCH('GSLD(T)-2'!$B82,'Present Base Rates by Rate Code'!$A$4:$A$50,0),MATCH('GSLD(T)-2'!C82,'Present Base Rates by Rate Code'!$A$4:$V$4,0)) -> 56.21 | L82: =J82*K82 -> 0 | N82: 0 | O82: =O67 -> 75 | P82: =N82*O82 -> 0 | Q82: =P82-L82 -> 0 | R82: 0 | S82: =S67 -> 75 | T82: =R82*S82 -> 0 | U82: =T82-P82 -> 0 | V82: =J82 -> 0 | W82: =S82 -> 75 | X82: =V82*W82 -> 0 | Z82: =W82/K82-1 -> 0.3342821562 | AA82: =W82-K82 -> 18.79
A83: SDTR - 265Credit | B83: Seasonal Demand TOU Rider (SDTR) (2,000 kW and greater) Option A Summer | C83: Commercial / Industrial Demand Rider Credit (CDR) ($/kW) | D83: 74 | E83: Credit | H83: =VLOOKUP($A83,'Billing Determinants - Units'!$A$9:$B$1153,2,FALSE) -> 0 | K83: =INDEX('Present Base Rates by Rate Code'!$A$4:$V$50,MATCH('GSLD(T)-2'!$B83,'Present Base Rates by Rate Code'!$A$4:$A$50,0),MATCH('GSLD(T)-2'!C83,'Present Base Rates by Rate Code'!$A$4:$V$4,0)) -> -8.2 | L83: =J83*K83 -> 0 | N83: 0 | O83: =O68 -> -5.26 | P83: =N83*O83 -> 0 | Q83: =P83-L83 -> 0 | R83: 0 | S83: =S68 -> -5.26 | T83: =R83*S83 -> 0 | U83: =T83-P83 -> 0 | V83: =J83 -> 0 | W83: =S83 -> -5.26 | X83: =V83*W83 -> 0 | Z83: =W83/K83-1 -> -0.3585365854 | AA83: =W83-K83 -> 2.94
A84: Total | D84: 75 | E84: Total | L84: =SUM(L80:L83) -> 1363542.511 | P84: =SUM(P80:P83) -> 1875722.13 | T84: =SUM(T80:T83) -> 1875549.97 | X84: =SUM(X80:X83) -> 1883969.76 | AA84: =X84/L84-1 -> 0.3816729182
D85: 76
D86: 77
A87: RATE SCHEDULE SDTR - 365 | D87: 78 | E87: RATE SCHEDULE SDTR - 365
D88: 79 | H88: Option B - GSLDT-2 | V88: =J88 -> 0
A89: SDTR - 365Customer | B89: Seasonal Demand TOU Rider (SDTR) (2,000 kW and greater) Option B Summer | C89: Customer Charge | D89: 80 | E89: Customer | H89: =VLOOKUP($A89,'Billing Determinants - Units'!$A$9:$B$1153,2,FALSE) -> 96 | J89: 96 | K89: =INDEX('Present Base Rates by Rate Code'!$A$4:$V$50,MATCH('GSLD(T)-2'!$B89,'Present Base Rates by Rate Code'!$A$4:$A$50,0),MATCH('GSLD(T)-2'!C89,'Present Base Rates by Rate Code'!$A$4:$V$4,0)) -> 219.22 | L89: =J89*K89 -> 21045.12 | N89: =J89 -> 96 | O89: =O73 -> 275 | P89: =N89*O89 -> 26400 | Q89: =P89-L89 -> 5354.88 | R89: =N89 -> 96 | S89: =ROUND(O89,0) -> 275 | T89: =R89*S89 -> 26400 | U89: =T89-P89 -> 0 | V89: 96 | W89: =S89 -> 275 | X89: =V89*W89 -> 26400 | Z89: =+W89/K89-1 -> 0.2544475869 | AA89: =W89-K89 -> 55.78
A90: SDTR - 365Non-Fuel Energy - Seasonal On Peak | B90: Seasonal Demand TOU Rider (SDTR) (2,000 kW and greater) Option B Summer | C90: On-Peak Energy Charge $/kWh | D90: 81 | E90: Non-Fuel Energy - Seasonal On Peak | H90: =VLOOKUP($A90,'Billing Determinants - Units'!$A$9:$B$1153,2,FALSE) -> 3715054 | J90: 3715054 | K90: =INDEX('Present Base Rates by Rate Code'!$A$4:$V$50,MATCH('GSLD(T)-2'!$B90,'Present Base Rates by Rate Code'!$A$4:$A$50,0),MATCH('GSLD(T)-2'!C90,'Present Base Rates by Rate Code'!$A$4:$V$4,0)) -> 0.04302 | L90: 159821.6231 | N90: 3715054 | O90: =K90*(1+$Q$6) -> 0.05919498646 | P90: 219912.5712 | R90: 3715054 | S90: =ROUND(O90*(1+$U$6),5) -> 0.05919 | T90: 219894.0463 | V90: 3715054 | W90: ='SDTR Workpaper'!E42 -> 0.05683 | X90: 211126.5188 | Z90: 0.3210134821 | AA90: 0.01381
A91: SDTR - 365Non-Fuel Energy - Seasonal Off Peak | B91: Seasonal Demand TOU Rider (SDTR) (2,000 kW and greater) Option B Summer | C91: Off-Peak Energy Charge $/kWh | D91: 82 | E91: Non-Fuel Energy - Seasonal Off Peak | H91: =VLOOKUP($A91,'Billing Determinants - Units'!$A$9:$B$1153,2,FALSE) -> 35409100 | J91: 35409100 | K91: =INDEX('Present Base Rates by Rate Code'!$A$4:$V$50,MATCH('GSLD(T)-2'!$B91,'Present Base Rates by Rate Code'!$A$4:$A$50,0),MATCH('GSLD(T)-2'!C91,'Present Base Rates by Rate Code'!$A$4:$V$4,0)) -> 0.00931 | L91: 329658.721 | N91: 35409100 | O91: 0.01281044454 | P91: 453606.3116 | R91: 35409100 | S91: =ROUND(O91*(1+$U$6),5) -> 0.01281 | T91: 453590.571 | V91: 35409100 | W91: ='SDTR Workpaper'!E43 -> 0.0138 | X91: 488645.58 | Z91: 0.4822771214 | AA91: 0.00449
A92: SDTR - 365Non-Fuel Energy - Non-Seasonal On Peak | B92: Seasonal Demand TOU Rider (SDTR) (2,000 kW and greater) Option B Winter | C92: On-Peak Energy Charge $/kWh | D92: 83 | E92: Non-Fuel Energy - Non-Seasonal On Peak | H92: =VLOOKUP($A92,'Billing Determinants - Units'!$A$9:$B$1153,2,FALSE) -> 11257979 | J92: 11257979 | K92: =INDEX('Present Base Rates by Rate Code'!$A$4:$V$50,MATCH('GSLD(T)-2'!$B92,'Present Base Rates by Rate Code'!$A$4:$A$50,0),MATCH('GSLD(T)-2'!C92,'Present Base Rates by Rate Code'!$A$4:$V$4,0)) -> 0.02479 | L92: 279085.2994 | N92: 11257979 | O92: 0.03411073255 | P92: 384017.9107 | R92: 11257979 | S92: =ROUND(O92*(1+$U$6),5) -> 0.03411 | T92: 384009.6637 | V92: 11257979 | W92: ='SDTR Workpaper'!E46 -> 0.03897 | X92: 438723.4416 | Z92: 0.5720048407 | AA92: 0.01418
A93: SDTR - 365Non-Fuel Energy - Non-Seasonal Off Peak | B93: Seasonal Demand TOU Rider (SDTR) (2,000 kW and greater) Option B Winter | C93: Off-Peak Energy Charge $/kWh | D93: 84 | E93: Non-Fuel Energy - Non-Seasonal Off Peak | H93: =VLOOKUP($A93,'Billing Determinants - Units'!$A$9:$B$1153,2,FALSE) -> 60106640 | J93: 60106640 | K93: =INDEX('Present Base Rates by Rate Code'!$A$4:$V$50,MATCH('GSLD(T)-2'!$B93,'Present Base Rates by Rate Code'!$A$4:$A$50,0),MATCH('GSLD(T)-2'!C93,'Present Base Rates by Rate Code'!$A$4:$V$4,0)) -> 0.00931 | L93: 559592.8184 | N93: 60106640 | O93: 0.01281044454 | P93: 769992.7779 | R93: 60106640 | S93: =ROUND(O93*(1+$U$6),5) -> 0.01281 | T93: 769966.0584 | V93: 60106640 | W93: ='SDTR Workpaper'!E47 -> 0.0138 | X93: 829471.632 | Z93: 0.4822771214 | AA93: 0.00449
A94: SDTR - 365Demand - Seasonal On-Peak | B94: Seasonal Demand TOU Rider (SDTR) (2,000 kW and greater) Option B Summer | C94: On-Peak Demand Charge $/kW | D94: 85 | E94: Demand - Seasonal On-Peak | H94: =VLOOKUP($A94,'Billing Determinants - Units'!$A$9:$B$1153,2,FALSE) -> 54855 | J94: 54855 | K94: =INDEX('Present Base Rates by Rate Code'!$A$4:$V$50,MATCH('GSLD(T)-2'!$B94,'Present Base Rates by Rate Code'!$A$4:$A$50,0),MATCH('GSLD(T)-2'!C94,'Present Base Rates by Rate Code'!$A$4:$V$4,0)) -> 11.27 | L94: 618215.85 | N94: 54855 | O94: 15.50738023 | P94: 850657.3424 | R94: 54855 | S94: =ROUND(O94*(1+$U$6),1) -> 15.5 | T94: 850252.5 | V94: 54855 | W94: =W77 -> 14.2 | X94: 778941 | Z94: 0.2599822538 | AA94: 2.93
A95: SDTR - 365Demand - Non-Seasonal On Peak | B95: Seasonal Demand TOU Rider (SDTR) (2,000 kW and greater) Option B Winter | C95: On-Peak Demand Charge $/kW | D95: 86 | E95: Demand - Non-Seasonal On Peak | H95: =VLOOKUP($A95,'Billing Determinants - Units'!$A$9:$B$1153,2,FALSE) -> 125151 | J95: 125151 | K95: =INDEX('Present Base Rates by Rate Code'!$A$4:$V$50,MATCH('GSLD(T)-2'!$B95,'Present Base Rates by Rate Code'!$A$4:$A$50,0),MATCH('GSLD(T)-2'!C95,'Present Base Rates by Rate Code'!$A$4:$V$4,0)) -> 10.03 | L95: 1255264.53 | N95: 125151 | O95: 13.80115561 | P95: 1727228.425 | R95: 125151 | S95: =ROUND(O95*(1+$U$6),1) -> 13.8 | T95: 1727083.8 | V95: 125151 | W95: =W78 -> 14.1 | X95: 1764629.1 | Z95: 0.405782652 | AA95: 4.07
A96: SDTR - 365Transformation Credit | B96: Seasonal Demand TOU Rider (SDTR) (2,000 kW and greater) Option B Summer | C96: Transformation Rider Credit ($/kW) | D96: 87 | E96: Transformation Credit | H96: =VLOOKUP($A96,'Billing Determinants - Units'!$A$9:$B$1153,2,FALSE) -> 8058 | J96: 8058 | K96: =INDEX('Present Base Rates by Rate Code'!$A$4:$V$50,MATCH('GSLD(T)-2'!$B96,'Present Base Rates by Rate Code'!$A$4:$A$50,0),MATCH('GSLD(T)-2'!C96,'Present Base Rates by Rate Code'!$A$4:$V$4,0)) -> -0.3 | L96: -2417.4 | N96: 8058 | O96: =O16 -> -0.24 | P96: -1933.92 | Q96: =P96-L96 -> 483.48 | R96: 8058 | S96: =S16 -> -0.24 | T96: -1933.92 | U96: =T96-P96 -> 0 | V96: 8058 | W96: =S96 -> -0.24 | X96: -1933.92 | Z96: =W96/K96-1 -> -0.2 | AA96: 0.06
A97: SDTR - 365Subtotal | D97: 88 | E97: Subtotal | L97: =SUM(L89:L96) -> 3220266.562 | P97: =SUM(P89:P96) -> 4429881.419 | T97: =SUM(T89:T96) -> 4429262.719 | X97: =SUM(X89:X96) -> 4536003.352 | AA97: =X97/L97-1 -> 0.4085800865
A98: SDTR - 365CDR Credit | D98: 89 | E98: CDR Credit
A99: SDTR - 365Adder | B99: Seasonal Demand TOU Rider (SDTR) (2,000 kW and greater) Option B Summer | C99: Commercial / Industrial Demand Rider (CDR) Adder per Customer | D99: 90 | E99: Adder | H99: =VLOOKUP($A99,'Billing Determinants - Units'!$A$9:$B$1153,2,FALSE) -> 0 | J99: 0 | K99: =INDEX('Present Base Rates by Rate Code'!$A$4:$V$50,MATCH('GSLD(T)-2'!$B99,'Present Base Rates by Rate Code'!$A$4:$A$50,0),MATCH('GSLD(T)-2'!C99,'Present Base Rates by Rate Code'!$A$4:$V$4,0)) -> 56.21 | L99: =J99*K99 -> 0 | N99: 0 | O99: =O82 -> 75 | P99: =N99*O99 -> 0 | Q99: =P99-L99 -> 0 | R99: 0 | S99: =S82 -> 75 | T99: =R99*S99 -> 0 | U99: =T99-P99 -> 0 | V99: =J99 -> 0 | W99: =S99 -> 75 | X99: =V99*W99 -> 0 | Z99: =W99/K99-1 -> 0.3342821562 | AA99: =W99-K99 -> 18.79
A100: SDTR - 365Credit | B100: Seasonal Demand TOU Rider (SDTR) (2,000 kW and greater) Option B Summer | C100: Commercial / Industrial Demand Rider Credit (CDR) ($/kW) | D100: 91 | E100: Credit | H100: =VLOOKUP($A100,'Billing Determinants - Units'!$A$9:$B$1153,2,FALSE) -> 0 | J100: 0 | K100: =INDEX('Present Base Rates by Rate Code'!$A$4:$V$50,MATCH('GSLD(T)-2'!$B100,'Present Base Rates by Rate Code'!$A$4:$A$50,0),MATCH('GSLD(T)-2'!C100,'Present Base Rates by Rate Code'!$A$4:$V$4,0)) -> -8.2 | L100: =J100*K100 -> 0 | N100: 0 | O100: =O83 -> -5.26 | P100: =N100*O100 -> 0 | Q100: =P100-L100 -> 0 | R100: 0 | S100: =S83 -> -5.26 | T100: =R100*S100 -> 0 | U100: =T100-P100 -> 0 | V100: =J100 -> 0 | W100: =S100 -> -5.26 | X100: =V100*W100 -> 0 | Z100: =W100/K100-1 -> -0.3585365854 | AA100: =W100-K100 -> 2.94
A101: Total | D101: 92 | E101: Total | L101: =SUM(L97:L100) -> 3220266.562 | P101: =SUM(P97:P100) -> 4429881.419 | T101: =SUM(T97:T100) -> 4429262.719 | X101: =SUM(X97:X100) -> 4536003.352 | AA101: =X101/L101-1 -> 0.4085800865
D102: 93
D103: 94 | E103: TOTALS | L103: =L21+L35+L44+L55+L69+L84+L101 -> 75020725.47 | P103: =P21+P35+P44+P55+P69+P84+P101 -> 105638548.5 | Q103: =SUM(Q13:Q100) -> 1267126.698 | T103: =T21+T35+T44+T55+T69+T84+T101 -> 105567165.9 | U103: =SUM(U13:U100) -> 0 | X103: =X21+X35+X44+X55+X69+X84+X101 -> 105643357.9
D104: 95
D105: 96 | N105: a | O105: target revenue | P105: =('E-8 Parity Analysis Final'!W22*1000)+L103 -> 105638548.5 | R105: a | S105: target revenue | T105: =P105 -> 105638548.5 | W105: Increase | X105: =X103-L103 -> 30622632.39
D106: 97 | N106: b | O106: Present revenue | P106: =L103 -> 75020725.47 | R106: b | S106: Present revenue | T106: =P103 -> 105638548.5 | W106: Target | X106: =P114 -> 30617823.05
D107: 98 | N107: c | O107: Proposed Increase | P107: =P105-P106 -> 30617823.05 | R107: c | S107: Proposed Increase | T107: =T105-T106 -> 0 | W107: Diff | X107: =X105-X106 -> 4809.348638
D108: 99 | N108: d | O108: Override Revenue | P108: =Q103 -> 1267126.698 | R108: d | S108: Override Revenue | T108: =U103 -> 0 | W108: Adj | X108: 6e-05
D109: 100 | E109: TOU Off-Peak Energy | H109: =S28 -> 0.0138 | N109: e | O109: Increase of Non-Override Revenue | P109: =P107-P108 -> 29350696.35 | R109: e | S109: Increase of Non-Override Revenue | T109: =T107-T108 -> 0
D110: 101 | N110: f | O110: Non-Override Revenue | P110: =L14+L15+L27+L28+L29+L40+L41+L50+L51+L52+L60+L61+L62+L63+L74+L75+L76+L77+L78+L90+L91+L92+L93+L94+L95 -> 78062937.5 | R110: f | S110: Non-Override Revenue | T110: =P14+P15+P27+P28+P29+P40+P41+P50+P51+P52+P60+P61+P62+P63+P74+P75+P76+P77+P78+P90+P91+P92+P93+P94+P95 -> 107413633.8
D111: 102 | E111: New Calc. | N111: g | O111: adjustment factor | P111: =P109/P110 -> 0.3759875978 | R111: g | S111: adjustment factor | T111: =T109/T110 -> 0 | W111: Per UII | X111: 105643358
D112: 103 | E112: TOU revenue neutral calculation | W112: Difference | X112: =X103-X111 -> -0.1331256926
D113: 104 | E113: on pk class ave per Load Research Study | F113: 0.2824981538 | H113: Energy Revenue | O113: Increase | P113: =P103-L103 -> 30617823.05 | S113: Increase | T113: =T103-P103 -> -71382.65144
D114: 105 | E114: on peak | F114: =+SUM($J$27:$J$28)*$F$113 -> 267694110.1 | G114: =ROUND((H117-H115)/F114,5) -> 0.02785 | H114: =+F114*G114 -> 7455280.967 | I114: =ROUND(IF(G114>G115,G114,H116/F117),5) -> 0.02785 | O114: Target Increase | P114: =P107 -> 30617823.05 | S114: Target Increase | T114: =T107 -> 0
D115: 106 | E115: off peak | F115: =+SUM($J$27:$J$28)-$F$114 -> 679901852.9 | G115: =H109 -> 0.0138 | H115: =+F115*G115 -> 9382645.57 | I115: =ROUND(IF(G114>G115,G115,H116/F117),5) -> 0.0138 | O115: Difference | P115: =P113-P114 -> 2.980232239e-08 | S115: Difference | T115: =T113-T114 -> -71382.65144
D116: 107 | E116: total at class on-pk | H116: =SUM(H114:H115) -> 16837926.54
D117: 108 | E117: total rev required at GSLD2 rates | F117: =SUM(F114:F115) -> 947595963 | G117: =W14 -> 0.01777 | H117: =G117*F117 -> 16838780.26
D118: 109 | E118: Difference | H118: =+H116-H117 -> -853.7257529
D119: 110 | L119: Step 1 - Set customer charge and CDR adder (if applicable) based on customer charge workpaper; transformation credit (if applicable) based on transformer credit workpaper; curtailment credit (if applicable) based on present curtailment credit;
D120: 111 | L120: and CDR credit (if applicable) based on CILC/CDR credit workpaper. These revenues/credits become "override revenues". Exclude override revenue from % increase calculations and apply the percent increase to only non-override rates.
D121: 112 | E121: HLFT Revenue at GSLD-2 rate and target Load Factor | L121: Step 2 - Round results of Step 1
D122: 113 | E122: Target Load Factor | G122: 0.7 | L122: Step 3 - Calculate revenue neutral and/or rounding adjustment. For rate classes with SDTR, refer to SDTR workpaper.
D123: 114 | E123: Average Class On-Peak % | G123: =+F113 -> 0.2824981538 | L123: Step 4 - Compare to Unit Costs for reasonableness. Depending on changes in other rates (Customer, Demand, etc.), unit costs may differ from final energy rates to achieve target revenues.
D124: 115 | H124: Parent rates
D125: 116 | E125: accounts | G125: =+V59 -> 420 | H125: =+$W$13 -> 275 | I125: =G125*H125 -> 115500
D126: 117 | E126: kW | F126: on-peak kw | G126: =+V62 -> 1421334 | H126: =W15 -> 14.1 | I126: =G126*H126 -> 20040809.4
D127: 118 | E127: kWh | F127: max pk kw *8760*70% | G127: =(V63/12)*8760*G122 -> 742709373 | H127: =+$W$14 -> 0.01777 | I127: =G127*H127 -> 13197945.56
D128: 119 | E128: Total Revenue required | I128: =SUM(I125:I127) -> 33354254.96
D129: 120 | E129: Proposed HLFT Demand/Customer Rev | I129: =+SUM(X59,X62:X63) -> 25088382.9
D130: 121 | E130: Net Energy Revenue required | F130: (line 115-116) | I130: =I128-I129 -> 8265872.058
D131: 122
D132: 123
D133: 124 | E133: Adjusted Energy Charges
D134: 125 | E134: HLFT Off-Peak Energy | H134: =S61 -> 0.01115
D135: 126
D136: 127 | E136: kWh On-Peak | G136: =G127*G123 -> 209814026.7 | H136: =ROUND((I130-I137)/G136,5) -> 0.01108 | I136: =G136*H136 -> 2324739.416 | J136: =ROUND(IF(H136>H137,H136,I138/G138),5) -> 0.01113
D137: 128 | E137: kWh Off-Peak | G137: =G127-G136 -> 532895346.3 | H137: =H134 -> 0.01115 | I137: =G137*H137 -> 5941783.111 | J137: =ROUND(IF(H136>H137,H137,I138/G138),5) -> 0.01113
D138: 129 | E138: Total | G138: =SUM(G136:G137) -> 742709373 | I138: =SUM(I136:I137) -> 8266522.527
D139: 130 | E139: Difference | I139: =I138-I130 -> 650.4688702

Sheet GSLD(T)-3
A1: OPC 015209
A2: FPL RC-16
D4: MFR E-14 Workpapers - 2018
D5: Rate Class GSLD(T)-3 | H5: Present Revenues (with WCEC3 in Base) | L5: Percent increase calculation | P5: Rounded | T5: Final adjustments to achieve target revenues
O6: =N63 -> 0.2753803819 | S6: 0 | AA6: =(V55-J55)/J55 -> 0.2987534895
A7: Ref. for linking data | E7: -1 | F7: =E7-1 -> -2 | G7: =F7-1 -> -3 | H7: -4 | I7: -5 | J7: -6 | K7: -7 | L7: -8 | M7: -9 | N7: -10 | O7: -11 | P7: -12 | Q7: -13 | R7: -14 | S7: -15 | T7: -16 | U7: -17 | V7: -18 | W7: -19 | X7: -20 | Y7: -21 | Z7: -22
D8: Line | E8: Type of | F8: Present Revenue Calculation | L8: Proposed Revenue Calculation | P8: Proposed Revenue Calculation | T8: Proposed Revenue Calculation | Z8: Percent | AB8: Override
D9: No. | E9: Charges | F9: Units | I9: Charge/Unit | J9: $ Revenue | L9: Units | M9: Charge/Unit | N9: $ Revenue | P9: Units | Q9: Charge/Unit | R9: $ Revenue | T9: Units | U9: Charge/Unit | V9: $ Revenue | Z9: Increase | AB9: Calculated
A11: Reference for Billing Units | B11: Reference for Rates | C11: Reference for Rates | D11: 1 | E11: RATE SCHEDULE GSLD-3 - 91 | O11: Override | S11: Override | AA11: Comparison of Unit Costs to Calculated Rates
D12: =D11+1 -> 2 | O12: Revenue | S12: Revenue
A13: NA | B13: General Service Large Demand (GSLD-3) | C13: Customer Charge | D13: =D12+1 -> 3 | E13: Customer | F13: 0 | H13: =F13+G13 -> 0 | I13: =INDEX('Present Base Rates by Rate Code'!$A$4:$V$50,MATCH('GSLD(T)-3'!$B13,'Present Base Rates by Rate Code'!$A$4:$A$50,0),MATCH('GSLD(T)-3'!$C13,'Present Base Rates by Rate Code'!$A$4:$V$4,0)) -> 1620.94 | J13: =F13*I13 -> 0 | L13: =H13 -> 0 | M13: ='E-6b Proposed Equalized'!$L$69 -> 3125 | N13: =L13*M13 -> 0 | O13: =N13-J13 -> 0 | P13: =H13 -> 0 | Q13: =ROUND(M13,0) -> 3125 | R13: =P13*Q13 -> 0 | S13: =R13-N13 -> 0 | T13: =H13 -> 0 | U13: =Q13 -> 3125 | V13: =T13*U13 -> 0 | X13: =U13/I13-1 -> 0.9278936913 | Y13: =U13-I13 -> 1504.06
A14: NA | B14: General Service Large Demand (GSLD-3) | C14: Energy Charges $/kWh | D14: 4 | E14: Non-Fuel Energy | F14: 0 | H14: =F14+G14 -> 0 | I14: =INDEX('Present Base Rates by Rate Code'!$A$4:$V$50,MATCH('GSLD(T)-3'!$B14,'Present Base Rates by Rate Code'!$A$4:$A$50,0),MATCH('GSLD(T)-3'!$C14,'Present Base Rates by Rate Code'!$A$4:$V$4,0)) -> 0.00932 | J14: =F14*I14 -> 0 | L14: =H14 -> 0 | M14: =I14*(1+$O$6) -> 0.01188654516 | N14: =L14*M14 -> 0 | P14: =H14 -> 0 | Q14: =ROUND(M14*(1+$S$6),5) -> 0.01189 | R14: =P14*Q14 -> 0 | T14: =H14 -> 0 | U14: =Q14+V60 -> 0.01195 | V14: =T14*U14 -> 0 | X14: =U14/I14-1 -> 0.2821888412 | Y14: =U14-I14 -> 0.00263 | AC14: Demand | AF14: Energy
A15: NA | B15: General Service Large Demand (GSLD-3) | C15: Demand Charge $/kW | D15: 5 | E15: Demand | F15: 0 | H15: 0 | I15: =INDEX('Present Base Rates by Rate Code'!$A$4:$V$50,MATCH('GSLD(T)-3'!$B15,'Present Base Rates by Rate Code'!$A$4:$A$50,0),MATCH('GSLD(T)-3'!$C15,'Present Base Rates by Rate Code'!$A$4:$V$4,0)) -> 8.18 | J15: =F15*I15 -> 0 | L15: 0 | M15: =I15*(1+$O$6) -> 10.43261152 | N15: =L15*M15 -> 0 | P15: 0 | Q15: =ROUND(M15*(1+$S$6),1) -> 10.4 | R15: =P15*Q15 -> 0 | T15: 0 | U15: =Q15 -> 10.4 | V15: =T15*U15 -> 0 | X15: =U15/I15-1 -> 0.271393643 | Y15: =U15-I15 -> 2.22
A16: NA | B16: General Service Large Demand (GSLD-3) | D16: 6 | E16: Subtotal | H16: 0 | J16: =SUM(J11:J15) -> 0 | L16: 0 | N16: =SUM(N11:N15) -> 0 | P16: 0 | R16: =SUM(R11:R15) -> 0 | T16: 0 | V16: =SUM(V11:V15) -> 0
A17: NA | B17: General Service Large Demand (GSLD-3) | D17: 7 | E17: CDR Credit | H17: 0 | L17: 0 | P17: 0 | T17: 0 | AA17: Billing Units | AB17: kW | AC17: =Q15+Q28+Q39+Q50 -> 41.6 | AE17: kWh | AF17: =Q14+Q26+Q27+Q38+Q48+Q49 -> 0.07314
A18: NA | B18: General Service Large Demand (GSLD-3) | C18: Commercial / Industrial Demand Rider (CDR) Adder per Customer | D18: 8 | E18: Adder | F18: 0 | H18: 0 | I18: =INDEX('Present Base Rates by Rate Code'!$A$4:$V$50,MATCH('GSLD(T)-3'!$B18,'Present Base Rates by Rate Code'!$A$4:$A$50,0),MATCH('GSLD(T)-3'!$C18,'Present Base Rates by Rate Code'!$A$4:$V$4,0)) -> 533.99 | J18: =F18*I18 -> 0 | L18: 0 | M18: ='E-6b Proposed Equalized'!$L$75 -> 150 | N18: =L18*M18 -> 0 | O18: =N18-J18 -> 0 | P18: 0 | Q18: =ROUND(M18,0) -> 150 | R18: =P18*Q18 -> 0 | S18: =R18-N18 -> 0 | T18: 0 | U18: =Q18 -> 150 | V18: =T18*U18 -> 0 | X18: =U18/I18-1 -> -0.7190958632 | Y18: =U18-I18 -> -383.99
A19: NA | B19: General Service Large Demand (GSLD-3) | C19: Commercial / Industrial Demand Rider Credit (CDR) ($/kW) | D19: 9 | E19: Credit | F19: 0 | H19: 0 | I19: =INDEX('Present Base Rates by Rate Code'!$A$4:$V$50,MATCH('GSLD(T)-3'!$B19,'Present Base Rates by Rate Code'!$A$4:$A$50,0),MATCH('GSLD(T)-3'!$C19,'Present Base Rates by Rate Code'!$A$4:$V$4,0)) -> -8.2 | J19: =F19*I19 -> 0 | L19: 0 | M19: ='CDR Credit'!D13 -> -5.26 | N19: =L19*M19 -> 0 | O19: =N19-J19 -> 0 | P19: 0 | Q19: =M19 -> -5.26 | R19: =P19*Q19 -> 0 | S19: =R19-N19 -> 0 | T19: 0 | U19: =Q19 -> -5.26 | V19: =T19*U19 -> 0 | X19: =U19/I19-1 -> -0.3585365854 | Y19: =U19-I19 -> 2.94 | AA19: Unit Costs per E-6b | AC19: ='E-6b Proposed Equalized'!L31 -> 8.45 | AF19: ='E-6b Proposed Equalized'!L41 -> 0.01155
A20: NA | B20: General Service Large Demand (GSLD-3) | D20: 10 | E20: Total | H20: 0 | J20: =SUM(J16:J19) -> 0 | L20: 0 | N20: =SUM(N16:N19) -> 0 | P20: 0 | R20: =SUM(R16:R19) -> 0 | T20: 0 | V20: =SUM(V16:V19) -> 0
D21: 11 | H21: 0 | L21: 0 | P21: 0 | T21: 0 | AA21: Rate Calculated | AC21: =U15 -> 10.4 | AF21: =U14 -> 0.01195
D22: 12 | E22: RATE SCHEDULE GSLDT-3 - 90 | H22: 0 | L22: 0 | P22: 0 | T22: 0
D23: 13 | H23: 0 | L23: 0 | P23: 0 | T23: 0 | AA23: Difference | AC23: =AC21-AC19 -> 1.95 | AF23: =AF21-AF19 -> 0.0004
A24: GSLDT-3 - 90Customer | B24: General Service Large Demand-TOU (GSLDT-3) | C24: Customer Charge | D24: 14 | E24: Customer | F24: =VLOOKUP($A24,'Billing Determinants - Units'!$A$9:$B$1153,2,FALSE) -> 72 | H24: 72 | I24: =INDEX('Present Base Rates by Rate Code'!$A$4:$V$50,MATCH('GSLD(T)-3'!$B24,'Present Base Rates by Rate Code'!$A$4:$A$50,0),MATCH('GSLD(T)-3'!$C24,'Present Base Rates by Rate Code'!$A$4:$V$4,0)) -> 1620.94 | J24: =F24*I24 -> 116707.68 | L24: 72 | M24: =M13 -> 3125 | N24: =L24*M24 -> 225000 | O24: =N24-J24 -> 108292.32 | P24: 72 | Q24: =ROUND(M24,0) -> 3125 | R24: =P24*Q24 -> 225000 | S24: =R24-N24 -> 0 | T24: 72 | U24: =Q24 -> 3125 | V24: =T24*U24 -> 225000 | X24: =U24/I24-1 -> 0.9278936913 | Y24: =U24-I24 -> 1504.06 | AA24: % Difference
B25: General Service Large Demand-TOU (GSLDT-3) | D25: 15 | E25: Non-Fuel Energy | H25: 0 | L25: 0 | P25: 0 | T25: 0 | AC25: =AC23/AC19 -> 0.2307692308 | AF25: =AF23/AF19 -> 0.03463203463
A26: GSLDT-3 - 90Non-Fuel Energy - On Peak | B26: General Service Large Demand-TOU (GSLDT-3) | C26: On-Peak Energy Charge $/kWh | D26: 16 | E26: On Peak | F26: =VLOOKUP($A26,'Billing Determinants - Units'!$A$9:$B$1153,2,FALSE) -> 42995849 | H26: 42995849 | I26: =INDEX('Present Base Rates by Rate Code'!$A$4:$V$50,MATCH('GSLD(T)-3'!$B26,'Present Base Rates by Rate Code'!$A$4:$A$50,0),MATCH('GSLD(T)-3'!$C26,'Present Base Rates by Rate Code'!$A$4:$V$4,0)) -> 0.01043 | J26: =F26*I26 -> 448446.7051 | L26: 42995849 | M26: =I26*(1+$O$6) -> 0.01330221738 | N26: =L26*M26 -> 571940.13 | P26: 42995849 | Q26: =ROUND(M26*(1+$S$6),5) -> 0.0133 | R26: =P26*Q26 -> 571844.7917 | T26: 42995849 | U26: =I65 -> 0.01354 | V26: =T26*U26 -> 582163.7955 | X26: =U26/I26-1 -> 0.2981783317 | Y26: =U26-I26 -> 0.00311
A27: GSLDT-3 - 90Non-Fuel Energy - Off Peak | B27: General Service Large Demand-TOU (GSLDT-3) | C27: Off-Peak Energy Charge $/kWh | D27: 17 | E27: Off Peak | F27: =VLOOKUP($A27,'Billing Determinants - Units'!$A$9:$B$1153,2,FALSE) -> 116299458 | H27: 116299458 | I27: =INDEX('Present Base Rates by Rate Code'!$A$4:$V$50,MATCH('GSLD(T)-3'!$B27,'Present Base Rates by Rate Code'!$A$4:$A$50,0),MATCH('GSLD(T)-3'!$C27,'Present Base Rates by Rate Code'!$A$4:$V$4,0)) -> 0.00892 | J27: =F27*I27 -> 1037391.165 | L27: 116299458 | M27: =I27*(1+$O$6) -> 0.01137639301 | N27: =L27*M27 -> 1323068.341 | P27: 116299458 | Q27: =ROUND(M27*(1+$S$6),5) -> 0.01138 | R27: =P27*Q27 -> 1323487.832 | T27: 116299458 | U27: =I66 -> 0.01138 | V27: =T27*G66 -> 1323487.832 | X27: =G66/I27-1 -> 0.2757847534 | Y27: =G66-I27 -> 0.00246
A28: GSLDT-3 - 90Demand | B28: General Service Large Demand-TOU (GSLDT-3) | C28: On-Peak Demand Charge $/kW | D28: 18 | E28: Demand | F28: =VLOOKUP($A28,'Billing Determinants - Units'!$A$9:$B$1153,2,FALSE) -> 313318 | H28: 313318 | I28: =INDEX('Present Base Rates by Rate Code'!$A$4:$V$50,MATCH('GSLD(T)-3'!$B28,'Present Base Rates by Rate Code'!$A$4:$A$50,0),MATCH('GSLD(T)-3'!$C28,'Present Base Rates by Rate Code'!$A$4:$V$4,0)) -> 8.18 | J28: =F28*I28 -> 2562941.24 | L28: 313318 | M28: =I28*(1+$O$6) -> 10.43261152 | N28: =L28*M28 -> 3268724.977 | P28: 313318 | Q28: =ROUND(M28*(1+$S$6),1) -> 10.4 | R28: =P28*Q28 -> 3258507.2 | T28: 313318 | U28: =Q28 -> 10.4 | V28: =T28*U28 -> 3258507.2 | X28: =U28/I28-1 -> 0.271393643 | Y28: =U28-I28 -> 2.22
B29: General Service Large Demand-TOU (GSLDT-3) | D29: 19 | E29: Subtotal | H29: 0 | J29: =SUM(J24:J28) -> 4165486.79 | L29: 0 | N29: =SUM(N24:N28) -> 5388733.448 | P29: 0 | R29: =SUM(R24:R28) -> 5378839.824 | T29: 0 | V29: =SUM(V24:V28) -> 5389158.828
B30: General Service Large Demand-TOU (GSLDT-3) | D30: 20 | E30: CDR Credit | H30: 0 | L30: 0 | P30: 0 | T30: 0
A31: GSLDT-3 - 90Adder | B31: General Service Large Demand-TOU (GSLDT-3) | C31: Commercial / Industrial Demand Rider (CDR) Adder per Customer | D31: 21 | E31: Adder | F31: =VLOOKUP($A31,'Billing Determinants - Units'!$A$9:$B$1153,2,FALSE) -> 0 | H31: 0 | I31: =INDEX('Present Base Rates by Rate Code'!$A$4:$V$50,MATCH('GSLD(T)-3'!$B31,'Present Base Rates by Rate Code'!$A$4:$A$50,0),MATCH('GSLD(T)-3'!$C31,'Present Base Rates by Rate Code'!$A$4:$V$4,0)) -> 533.99 | J31: =F31*I31 -> 0 | L31: 0 | M31: =M18 -> 150 | N31: =L31*M31 -> 0 | O31: =N31-J31 -> 0 | P31: 0 | Q31: =Q18 -> 150 | R31: =P31*Q31 -> 0 | S31: =R31-N31 -> 0 | T31: 0 | U31: =Q31 -> 150 | V31: =T31*U31 -> 0 | X31: =U31/I31-1 -> -0.7190958632 | Y31: =U31-I31 -> -383.99
A32: GSLDT-3 - 90Credit | B32: General Service Large Demand-TOU (GSLDT-3) | C32: Commercial / Industrial Demand Rider Credit (CDR) ($/kW) | D32: 22 | E32: Credit | F32: =VLOOKUP($A32,'Billing Determinants - Units'!$A$9:$B$1153,2,FALSE) -> 0 | H32: 0 | I32: =INDEX('Present Base Rates by Rate Code'!$A$4:$V$50,MATCH('GSLD(T)-3'!$B32,'Present Base Rates by Rate Code'!$A$4:$A$50,0),MATCH('GSLD(T)-3'!$C32,'Present Base Rates by Rate Code'!$A$4:$V$4,0)) -> -8.2 | J32: =F32*I32 -> 0 | L32: 0 | M32: =M19 -> -5.26 | N32: =L32*M32 -> 0 | O32: =N32-J32 -> 0 | P32: 0 | Q32: =M32 -> -5.26 | R32: =P32*Q32 -> 0 | S32: =R32-N32 -> 0 | T32: 0 | U32: =Q32 -> -5.26 | V32: =T32*U32 -> 0 | X32: =U32/I32-1 -> -0.3585365854 | Y32: =U32-I32 -> 2.94
D33: 23 | E33: Total | H33: 0 | J33: =SUM(J29:J32) -> 4165486.79 | L33: 0 | N33: =SUM(N29:N32) -> 5388733.448 | P33: 0 | R33: =SUM(R29:R32) -> 5378839.824 | T33: 0 | V33: =SUM(V29:V32) -> 5389158.828 | Z33: =V33/J33-1 -> 0.2937644743
D34: 24 | H34: 0 | L34: 0 | P34: 0 | T34: 0
D35: 25 | E35: RATE SCHEDULE CS-3 - 92 | H35: 0 | L35: 0 | P35: 0 | T35: 0
D36: 26 | H36: 0 | L36: 0 | P36: 0 | T36: 0
A37: NA | B37: Curtailable Service (CS-3) | C37: Customer Charge | D37: 27 | E37: Customer | F37: 0 | H37: 0 | I37: =INDEX('Present Base Rates by Rate Code'!$A$4:$V$50,MATCH('GSLD(T)-3'!$B37,'Present Base Rates by Rate Code'!$A$4:$A$50,0),MATCH('GSLD(T)-3'!$C37,'Present Base Rates by Rate Code'!$A$4:$V$4,0)) -> 1649.04 | J37: =F37*I37 -> 0 | L37: 0 | M37: =M13+25 -> 3150 | N37: =L37*M37 -> 0 | O37: =N37-J37 -> 0 | P37: 0 | Q37: =ROUND(M37,0) -> 3150 | R37: =P37*Q37 -> 0 | S37: =R37-N37 -> 0 | T37: 0 | U37: =Q37 -> 3150 | V37: =T37*U37 -> 0 | X37: =U37/I37-1 -> 0.9102022995 | Y37: =U37-I37 -> 1500.96
A38: NA | B38: Curtailable Service (CS-3) | C38: Energy Charges $/kWh | D38: 28 | E38: Non-Fuel Energy | F38: 0 | H38: 0 | I38: =INDEX('Present Base Rates by Rate Code'!$A$4:$V$50,MATCH('GSLD(T)-3'!$B38,'Present Base Rates by Rate Code'!$A$4:$A$50,0),MATCH('GSLD(T)-3'!$C38,'Present Base Rates by Rate Code'!$A$4:$V$4,0)) -> 0.00932 | J38: =F38*I38 -> 0 | L38: 0 | M38: =M14 -> 0.01188654516 | N38: =L38*M38 -> 0 | P38: 0 | Q38: =Q14 -> 0.01189 | R38: =P38*Q38 -> 0 | T38: 0 | U38: =U14 -> 0.01195 | V38: =T38*U38 -> 0 | X38: =U38/I38-1 -> 0.2821888412 | Y38: =U38-I38 -> 0.00263
A39: NA | B39: Curtailable Service (CS-3) | C39: Demand Charge $/kW | D39: 29 | E39: Demand | F39: 0 | H39: 0 | I39: =INDEX('Present Base Rates by Rate Code'!$A$4:$V$50,MATCH('GSLD(T)-3'!$B39,'Present Base Rates by Rate Code'!$A$4:$A$50,0),MATCH('GSLD(T)-3'!$C39,'Present Base Rates by Rate Code'!$A$4:$V$4,0)) -> 8.18 | J39: =F39*I39 -> 0 | L39: 0 | M39: =M15 -> 10.43261152 | N39: =L39*M39 -> 0 | P39: 0 | Q39: =Q15 -> 10.4 | R39: =P39*Q39 -> 0 | T39: 0 | U39: =U15 -> 10.4 | V39: =T39*U39 -> 0 | X39: =U39/I39-1 -> 0.271393643 | Y39: =U39-I39 -> 2.22
A40: NA | B40: Curtailable Service (CS-3) | C40: Transformation Rider Credit ($/kW) | D40: 30 | E40: Transformation Credit | F40: 0 | H40: 0 | I40: 0.3 | J40: =F40*I40 -> 0 | L40: 0 | M40: ='Transformer Credit'!E9 -> -0.24 | N40: =L40*M40 -> 0 | O40: =N40-J40 -> 0 | P40: 0 | Q40: =M40 -> -0.24 | R40: =P40*Q40 -> 0 | S40: =R40-N40 -> 0 | T40: 0 | U40: =Q40 -> -0.24 | V40: =T40*U40 -> 0
A41: NA | B41: Curtailable Service (CS-3) | C41: Curtailment Credit ($/kW) | D41: 31 | E41: Curtailable Credit | F41: 0 | H41: 0 | I41: =INDEX('Present Base Rates by Rate Code'!$A$4:$V$50,MATCH('GSLD(T)-3'!$B41,'Present Base Rates by Rate Code'!$A$4:$A$50,0),MATCH('GSLD(T)-3'!$C41,'Present Base Rates by Rate Code'!$A$4:$V$4,0)) -> -1.93 | J41: =F41*I41 -> 0 | L41: 0 | M41: =I41 -> -1.93 | N41: =L41*M41 -> 0 | O41: =N41-J41 -> 0 | P41: 0 | Q41: =M41 -> -1.93 | R41: =P41*Q41 -> 0 | S41: =R41-N41 -> 0 | T41: 0 | U41: =Q41 -> -1.93 | V41: =T41*U41 -> 0 | X41: =U41/I41-1 -> 0 | Y41: =U41-I41 -> 0
A42: NA | B42: Curtailable Service (CS-3) | D42: 32 | E42: Total | H42: 0 | J42: =SUM(J37:J41) -> 0 | L42: 0 | N42: =SUM(N37:N41) -> 0 | P42: 0 | R42: =SUM(R37:R41) -> 0 | T42: 0 | V42: =SUM(V37:V41) -> 0
D43: 33 | H43: 0 | L43: 0 | P43: 0 | T43: 0
D44: 34 | E44: RATE SCHEDULE CST-3 - 82 | H44: 0 | L44: 0 | P44: 0 | T44: 0
D45: 35 | H45: 0 | L45: 0 | P45: 0 | T45: 0
A46: CST-3 - 82Customer | B46: Curtailable Service-TOU (CST-3) | C46: Customer Charge | D46: 36 | E46: Customer | F46: =VLOOKUP($A46,'Billing Determinants - Units'!$A$9:$B$1153,2,FALSE) -> 12 | H46: 12 | I46: =INDEX('Present Base Rates by Rate Code'!$A$4:$V$50,MATCH('GSLD(T)-3'!$B46,'Present Base Rates by Rate Code'!$A$4:$A$50,0),MATCH('GSLD(T)-3'!$C46,'Present Base Rates by Rate Code'!$A$4:$V$4,0)) -> 1649.04 | J46: =F46*I46 -> 19788.48 | L46: 12 | M46: =M37 -> 3150 | N46: =L46*M46 -> 37800 | O46: =N46-J46 -> 18011.52 | P46: 12 | Q46: =Q37 -> 3150 | R46: =P46*Q46 -> 37800 | S46: =R46-N46 -> 0 | T46: 12 | U46: =Q46 -> 3150 | V46: =T46*U46 -> 37800 | X46: =U46/I46-1 -> 0.9102022995 | Y46: =U46-I46 -> 1500.96
B47: Curtailable Service-TOU (CST-3) | D47: 37 | E47: Non-Fuel Energy | H47: 0 | L47: 0 | P47: 0 | T47: 0
A48: CST-3 - 82Non-Fuel Energy - On Peak | B48: Curtailable Service-TOU (CST-3) | C48: On-Peak Energy Charge $/kWh | D48: 38 | E48: On Peak | F48: =VLOOKUP($A48,'Billing Determinants - Units'!$A$9:$B$1153,2,FALSE) -> 3598411 | H48: 3598411 | I48: =INDEX('Present Base Rates by Rate Code'!$A$4:$V$50,MATCH('GSLD(T)-3'!$B48,'Present Base Rates by Rate Code'!$A$4:$A$50,0),MATCH('GSLD(T)-3'!$C48,'Present Base Rates by Rate Code'!$A$4:$V$4,0)) -> 0.01043 | J48: =F48*I48 -> 37531.42673 | L48: 3598411 | M48: =M26 -> 0.01330221738 | N48: =L48*M48 -> 47866.84536 | P48: 3598411 | Q48: =Q26 -> 0.0133 | R48: =P48*Q48 -> 47858.8663 | T48: 3598411 | U48: =U26 -> 0.01354 | V48: =T48*U48 -> 48722.48494 | X48: =U48/I48-1 -> 0.2981783317 | Y48: =U48-I48 -> 0.00311
A49: CST-3 - 82Non-Fuel Energy - Off Peak | B49: Curtailable Service-TOU (CST-3) | C49: Off-Peak Energy Charge $/kWh | D49: 39 | E49: Off Peak | F49: =VLOOKUP($A49,'Billing Determinants - Units'!$A$9:$B$1153,2,FALSE) -> 12888810 | H49: 12888810 | I49: =INDEX('Present Base Rates by Rate Code'!$A$4:$V$50,MATCH('GSLD(T)-3'!$B49,'Present Base Rates by Rate Code'!$A$4:$A$50,0),MATCH('GSLD(T)-3'!$C49,'Present Base Rates by Rate Code'!$A$4:$V$4,0)) -> 0.00892 | J49: =F49*I49 -> 114968.1852 | L49: 12888810 | M49: =M27 -> 0.01137639301 | N49: =L49*M49 -> 146628.1679 | P49: 12888810 | Q49: =Q27 -> 0.01138 | R49: =P49*Q49 -> 146674.6578 | T49: 12888810 | U49: =U27 -> 0.01138 | V49: =T49*U49 -> 146674.6578 | X49: =U49/I49-1 -> 0.2757847534 | Y49: =U49-I49 -> 0.00246
A50: CST-3 - 82Demand | B50: Curtailable Service-TOU (CST-3) | C50: On-Peak Demand Charge $/kW | D50: 40 | E50: Demand | F50: =VLOOKUP($A50,'Billing Determinants - Units'!$A$9:$B$1153,2,FALSE) -> 43894 | H50: 43894 | I50: =INDEX('Present Base Rates by Rate Code'!$A$4:$V$50,MATCH('GSLD(T)-3'!$B50,'Present Base Rates by Rate Code'!$A$4:$A$50,0),MATCH('GSLD(T)-3'!$C50,'Present Base Rates by Rate Code'!$A$4:$V$4,0)) -> 8.18 | J50: =F50*I50 -> 359052.92 | L50: 43894 | M50: =M28 -> 10.43261152 | N50: =L50*M50 -> 457929.0502 | P50: 43894 | Q50: =Q28 -> 10.4 | R50: =P50*Q50 -> 456497.6 | T50: 43894 | U50: =U28 -> 10.4 | V50: =T50*U50 -> 456497.6 | X50: =U50/I50-1 -> 0.271393643 | Y50: =U50-I50 -> 2.22
A51: CST-3 - 82Transformation Credit | B51: Curtailable Service-TOU (CST-3) | C51: Transformation Rider Credit ($/kW) | D51: 41 | E51: Transformation Credit | F51: =VLOOKUP($A51,'Billing Determinants - Units'!$A$9:$B$1153,2,FALSE) -> 0 | H51: 0 | J51: =F51*I51 -> 0 | L51: 0 | N51: =L51*M51 -> 0 | P51: 0 | R51: =P51*Q51 -> 0 | T51: 0 | V51: =T51*U51 -> 0 | X51: 0 | Y51: =U51-I51 -> 0
A52: CST-3 - 82Curtailable Credit | B52: Curtailable Service-TOU (CST-3) | C52: Curtailment Credit ($/kW) | D52: 42 | E52: Curtailable Credit | F52: =-VLOOKUP($A52,'Billing Determinants - Units'!$A$9:$B$1153,2,FALSE) -> 36712 | H52: 36712 | I52: =INDEX('Present Base Rates by Rate Code'!$A$4:$V$50,MATCH('GSLD(T)-3'!$B52,'Present Base Rates by Rate Code'!$A$4:$A$50,0),MATCH('GSLD(T)-3'!$C52,'Present Base Rates by Rate Code'!$A$4:$V$4,0)) -> -1.93 | J52: =F52*I52 -> -70854.16 | L52: 36712 | M52: =I52 -> -1.93 | N52: =L52*M52 -> -70854.16 | O52: =N52-J52 -> 0 | P52: 36712 | Q52: =M52 -> -1.93 | R52: =P52*Q52 -> -70854.16 | S52: =R52-N52 -> 0 | T52: 36712 | U52: =I52 -> -1.93 | V52: =T52*U52 -> -70854.16 | X52: =U52/I52-1 -> 0 | Y52: =U52-I52 -> 0
B53: Curtailable Service-TOU (CST-3) | D53: 43 | E53: Total | J53: =SUM(J46:J52) -> 460486.8519 | N53: =SUM(N46:N52) -> 619369.9035 | P53: 0 | R53: =SUM(R46:R52) -> 617976.9641 | V53: =SUM(V46:V52) -> 618840.5827 | Z53: =V53/J53-1 -> 0.3438832838
D54: 44
D55: 45 | E55: TOTAL | J55: =J20+J33+J42+J53 -> 4625973.642 | N55: =N20+N33+N42+N53 -> 6008103.351 | O55: =SUM(O13:O53) -> 126303.84 | R55: =R20+R33+R42+R53 -> 5996816.788 | S55: =SUM(S13:S53) -> 0 | V55: =V20+V33+V42+V53 -> 6007999.41
D56: 46
D57: 47 | L57: a | M57: target revenue | N57: =('E-8 Parity Analysis Final'!W23*1000)+J55 -> 6008103.351 | P57: a | Q57: target revenue | R57: =N57 -> 6008103.351 | U57: Increase | V57: =+V55-J55 -> 1382025.768
D58: 48 | L58: b | M58: Present revenue | N58: =J55 -> 4625973.642 | P58: b | Q58: Present revenue | R58: =N55 -> 6008103.351 | U58: Target | V58: =N66 -> 1382129.709
D59: 49 | L59: c | M59: Proposed Increase | N59: =N57-N58 -> 1382129.709 | P59: c | Q59: Proposed Increase | R59: =R57-R58 -> 0 | U59: Difference | V59: =+V57-V58 -> -103.9412446
D60: 50 | L60: d | M60: Override Revenue | N60: =O55 -> 126303.84 | P60: d | Q60: Override Revenue | R60: =S55 -> 0 | U60: Adj. | V60: =ROUND(0.0000592381102819397,5) -> 6e-05
D61: 51 | L61: e | M61: Increase of Non-Override Revenue | N61: =N59-N60 -> 1255825.869 | P61: e | Q61: Increase of Non-Override Revenue | R61: =R59-R60 -> 0
D62: 52 | E62: Revenue Neutral Calc. | L62: f | M62: Non-Override Revenue | N62: =J14+J15+J26+J27+J28+J38+J39+J40+J48+J49+J50 -> 4560331.642 | P62: f | Q62: Non-Override Revenue | R62: =N14+N15+N26+N27+N28+N38+N39+N40+N48+N49+N50 -> 5816157.511
D63: 53 | E63: TOU revenue neutral calculation | L63: g | M63: adjustment factor | N63: =N61/N62 -> 0.2753803819 | P63: g | Q63: adjustment factor | R63: =R61/R62 -> 0
D64: 54 | E64: on pk class ave per Load Research Study | F64: 0.263834187 | H64: Energy Revenue | U64: UI | V64: 6007999
D65: 55 | E65: on peak | F65: =+SUM(T26:T27)*F64 -> 42027547.82 | G65: =(H68-H66)/F65 -> 0.01354044784 | H65: =F65*G65 -> 569071.8192 | I65: =ROUND(IF(G65>G66,G65,H68/F68),5) -> 0.01354 | M65: Increase | N65: =N55-J55 -> 1382129.709 | Q65: Increase | R65: =R55-N55 -> -11286.56364 | U65: Difference | V65: =V55-V64 -> 0.4102400001
D66: 56 | E66: off peak | F66: =SUM(T26:T27)-F65 -> 117267759.2 | G66: =Q27 -> 0.01138 | H66: =F66*G66 -> 1334507.099 | I66: =ROUND(IF(G65>G66,G66,H68/F68),5) -> 0.01138 | M66: Target Increase | N66: =N59 -> 1382129.709 | Q66: Target Increase | R66: =R59 -> 0
D67: 57 | E67: total at class on-pk | H67: =SUM(H65:H66) -> 1903578.919 | M67: Difference | N67: =N65-N66 -> 0 | Q67: Difference | R67: =R65-R66 -> -11286.56364
D68: 58 | E68: total rev required at GSLD(T)-3 rates | F68: =F65+F66 -> 159295307 | G68: =U14 -> 0.01195 | H68: =F68*G68 -> 1903578.919
D69: 59 | E69: Difference | H69: =+H67-H68 -> 0
D70: 60
D71: 61
D72: 62 | E72: Step 1 - Set customer charge and CDR adder (if applicable) based on customer charge workpaper; transformation credit (if applicable) based on transformer credit workpaper; curtailment credit (if applicable) based on present curtailment credit;
D73: 63 | E73: and CDR credit (if applicable) based on CILC/CDR credit workpaper. These revenues/credits become "override revenues". Exclude override revenue from % increase calculations and apply the percent increase to only non-override rates.
D74: 64 | E74: Step 2 - Round results of Step 1
D75: 65 | E75: Step 3 - Calculate revenue neutral and/or rounding adjustment. For rate classes with SDTR, refer to SDTR workpaper.
D76: 66 | E76: Step 4 - Compare to Unit Costs for reasonableness. Depending on changes in other rates (Customer, Demand, etc.), unit costs may differ from final energy rates to achieve target revenues.

Sheet MET
A1: OPC 015210
A2: FPL RC-16
D4: MFR E-14 Workpapers - 2018
D5: Rate Class MET | G5: Present Revenues (with WCEC3 in Base) | K5: Percent increase calculation | O5: Rounded | S5: Final adjustments to achieve target revenues
N6: =M26 -> 0.1582684772 | R6: 0 | X6: =(U18-I18)/I18 -> 0.1783294695
A7: Ref. for linking data | E7: -1 | F7: =E7-1 -> -2 | G7: =F7-1 -> -3 | H7: -4 | I7: -5 | J7: -6 | K7: -7 | L7: -8 | M7: -9 | N7: -10 | O7: -11 | P7: -12 | Q7: -13 | R7: -14 | S7: -15 | T7: -16 | U7: -17 | V7: -18 | W7: -19 | X7: -20 | Z7: Override
D8: Line | E8: Type of | G8: Present Revenue Calculation | K8: Proposed Revenue Calculation | O8: Proposed Revenue Calculation | S8: Proposed Revenue Calculation | X8: Percent | Z8: Calculated
D9: No. | E9: Charges | G9: Units | H9: Charge/Unit | I9: $ Revenue | K9: Units | L9: Charge/Unit | M9: $ Revenue | O9: Units | P9: Charge/Unit | Q9: $ Revenue | S9: Units | T9: Charge/Unit | U9: $ Revenue | X9: Increase
A11: Reference for Billing Units | B11: Reference for Rates | C11: Reference for Rates | D11: 1 | E11: RATE SCHEDULE MET - 80 | N11: Override | R11: Override
D12: =D11+1 -> 2 | N12: Revenue | R12: Revenue
